Workbook

Sheet Obsah
E1: 100
C3: B. Příjmy a výdaje
C4: Zdroje dat jsou uvedeny v zápatí jednotlivých tabulek
C6: Text | E6: Obsah
C8: Tabulka 1 | E8: Veřejné výdaje a příjmy v oblasti školství
C10: Tabulka 2 | E10: Přehled běžných a kapitálových výdajů, příjmů a plnění rozpočtu kapitoly 333-MŠMT
C12: Tabulka 3 | E12: Přehled výdajů kapitoly 333-MŠMT – státní správa a vzdělávání
C14: Tabulka 4 | E14: Příjmy kapitoly 333-MŠMT – podle položek
C16: Tabulka 5 | E16: Příjmy kapitoly 700-Obce a DSO; KÚ (část: vzdělávání) – podle položek
C18: Tabulka 6 | E18: Výdaje kapitoly 333-MŠMT – podle položek
C20: Tabulka 7 | E20: Výdaje kapitoly 700-Obce a DSO; KÚ (část: 31–32– vzdělávání) – podle položek
C22: Tabulka 8 | E22: Běžné a kapitálové výdaje kapitoly 333-MŠMT – podle paragrafů
C24: Tabulka 9 | E24: Běžné a kapitálové výdaje kapitoly 700-Obce a DSO; KÚ (část: 31–32–vzdělávání) – podle paragrafů
C26: Tabulka 10 | E26: Výdaje kapitol 333-MŠMT a 700-Obce a DSO; KÚ (vzdělávání) – podle paragrafů
C28: Tabulka 11 | E28: Poskytnuté dotace církevním školám – podle paragrafů
C30: Tabulka 12 | E30: Porovnání čerpaných dotací církevním školám v letech 20017 a 2018 – vybrané oblasti

Sheet B1
A1: =IF(#REF!="","ŠABLONA",IF(#REF!="T","TISK","ELEKTRO")) ->  | B1: 0 | C1: =CONCATENATE(D1,F1,IF(G1<>"",".",""),G1,IF(H1<>"",".",""),H1,IF(I1<>"",".",""),I1,"") ->  | D1: =IF(#REF!=""," ?",#REF!) ->  | E1: =CONCATENATE(C1,N1) ->  | F1: 1
A2: konst
A3: konst | B3: 9x5 | D3: Tab. B1: | H3: Veřejné výdaje a příjmy v oblasti školství | N3: 3843471 | O3: Tab. B1: | Q3: Veřejné výdaje a příjmy v oblasti vzdělávání a školských služeb
A4: konst | B4: =COUNTA(Datova_oblast) -> 45 | D4: =IF(D1=" ?","",CONCATENATE("Tab. ",E1,":")) ->  | H4: =IF(H3="Zadejte název tabulky","",H3) -> Veřejné výdaje a příjmy v oblasti školství
A5: =IF(D5="","odstr","OK") -> odstr | B5: 0
A6: =IF(COUNTBLANK(C6:IV6)=254,"odstr","OK") -> odstr | B6: Řádky pro
A7: =IF(COUNTBLANK(C7:IV7)=254,"odstr","OK") -> odstr | B7: ročenku PaM
A8: konst | D8: (podle stavu k: 31. 12. 2017) | N8: v tis. Kč | O8: (podle stavu k: 31. 12. 2018) | Y8: v tis. Kč
A9: konst | J9: Výdaje | M9: Podíl výdajů na HDP | N9: Příjmy celkem | U9: Výdaje | X9: Podíl výdajů na HDP | Y9: Příjmy celkem
A10: konst
A11: konst
A12: konst
A13: konst | B13: nebo odstr | J13: běžné | K13: kapitálové | L13: celkem | U13: běžné | V13: kapitálové | W13: celkem
A14: konst | B14: OK | E14: Kapitola 333-MŠMT | J14: 151878791 | K14: 5632649.007 | L14: 157511440 | M14: 0.03115935438 | N14: 3274552.889 | O14: Kapitola 333-MŠMT | U14: 164364833.4 | V14: 10605088.26 | W14: 174969921.7 | X14: 0.0328 | Y14: 8248802.81
A15: konst | B15: OK | E15: Kapitola 700-Obce a DSO1) | J15: 33100413.15 | K15: 10117079.32 | L15: 43217492.48 | M15: 0.008549405449 | N15: 783585.0862 | O15: Kapitola 700-Obce a DSO1) | U15: ='B9'!X15 -> 35676406.32 | V15: ='B9'!Y15 -> 14056598.28 | W15: ='B9'!Z15 -> 49733004.6 | X15: 0.0093 | Y15: 400380.2
A16: konst | B16: OK | E16: Kapitola 700-Krajské úřady1) | J16: 97280924.71 | K16: 2068752.588 | L16: 99349677.3 | M16: 0.01965363152 | N16: 472146.3528 | O16: Kapitola 700-Krajské úřady1) | U16: ='B9'!AA15 -> 109788985.3 | V16: ='B9'!AB15 -> 6192138.759 | W16: ='B9'!AC15 -> 115981124.1 | X16: 0.02176 | Y16: 623200.7488
A17: konst | B17: OK | E17: Transfery z MŠMT veřejným rozpočtům místní úrovně | J17: -106016383.9 | K17: -420092.3111 | L17: -106436476.3 | M17: -0.02105556195 | N17: (neuvedeno) | O17: Transfery z MŠMT veřejným rozpočtům místní úrovně | U17: -120275674 | V17: -1141995.752 | W17: =U17+V17 -> -121417669.8 | X17: -0.02278 | Y17: (neuvedeno)
A18: konst | B18: OK | E18: Celkem | J18: 176243744.9 | K18: 17398388.61 | L18: 193642133.5 | M18: 0.03830682941 | N18: 4530284.328 | O18: Celkem | U18: 189554551 | V18: 29711829.6 | W18: 219266380.6 | X18: 0.0411 | Y18: 9272383.7
A19: konst | B19: OK | E19: Ministerstvo obrany (kapitola 307) | J19: 1106057.172 | K19: 74874.33064 | L19: 1180931.503 | M19: 0.0002336151787 | N19: (neuvedeno) | O19: Ministerstvo obrany (kapitola 307) | U19: 1233907.078 | V19: 87736.50616 | W19: 1321643.584 | X19: 0.000248 | Y19: (neuvedeno)
A20: konst | B20: OK | F20: z toho transfer krajským úřadům | J20: 0 | K20: 0 | L20: 0 | M20: 0 | N20: (neuvedeno) | P20: z toho transfer krajským úřadům | U20: -12426.408 | V20: 0 | W20: -12426.408 | X20: 0 | Y20: (neuvedeno)
A21: konst | B21: OK | E21: Ministerstvo spravedlnosti (kapitola 336) | J21: x | K21: x | L21: x | M21: x | N21: x | O21: Ministerstvo spravedlnosti (kapitola 336) | U21: x | V21: x | W21: x | X21: x | Y21: x
A22: konst | B22: OK | E22: Ministerstvo vnitra (kapitola 314) | J22: . | K22: . | L22: . | M22: . | N22: . | O22: Ministerstvo vnitra (kapitola 314) | U22: . | V22: . | W22: . | X22: . | Y22: .
A23: konst | B23: OK | E23: Celkem oblast školství | J23: 177349802.1 | K23: 17473262.94 | L23: 194823065 | M23: 0.03854044458 | N23: 4530284.328 | O23: Celkem oblast školství | U23: 190776031.7 | V23: =V18+V19 -> 29799566.11 | W23: 220575597.8 | Y23: =Y18 -> 9272383.7
A24: konst | B24: stop | D24: Komentáře: | N24: Zdroj: Závěrečný účet – kapitola 333-MŠMT, 700-Obce a DSO; KÚ, 307-MO | V24: Zdroj: Závěrečný účet kapitoly 333-MŠMT; monitor.statnipokladna.cz
A25: stop

Sheet B2
A1: =IF(#REF!="","ŠABLONA",IF(#REF!="T","TISK","ELEKTRO")) ->  | B1: 0 | C1: =CONCATENATE(D1,F1,IF(G1<>"",".",""),G1,IF(H1<>"",".",""),H1,IF(I1<>"",".",""),I1,"") ->  | D1: =IF(#REF!=""," ?",#REF!) ->  | E1: =CONCATENATE(C1,M1) ->  | F1: 2
A2: konst
A3: konst | B3: 3x4 | D3: Tab. B2: | H3: Přehled běžných a kapitálových výdajů, příjmů a plnění rozpočtu kapitoly 333-MŠMT | N3: Tab. B2: | R3: Přehled běžných a kapitálových výdajů, příjmů a plnění rozpočtu kapitoly 333-MŠMT
A4: konst | B4: =COUNTA(Datova_oblast) -> 12 | D4: =IF(D1=" ?","",CONCATENATE("Tab. ",E1,":")) ->  | H4: =IF(H3="Zadejte název tabulky","",H3) -> Přehled běžných a kapitálových výdajů, příjmů a plnění rozpočtu kapitoly 333-MŠMT
A5: =IF(D5="","odstr","OK") -> odstr | B5: 0
A6: =IF(COUNTBLANK(C6:IV6)=254,"odstr","OK") -> odstr | B6: Řádky pro
A7: =IF(COUNTBLANK(C7:IV7)=254,"odstr","OK") -> odstr | B7: ročenku PaM
A8: konst | D8: (podle stavu k: 31. 12. 2017) | N8: (podle stavu k: 31. 12. 2018) | W8: v tis. Kč
A9: konst | J9: Výdaje | M9: Příjmy celkem | T9: Výdaje | W9: Příjmy celkem
A10: konst
A11: konst
A12: konst
A13: konst | B13: nebo odstr | J13: běžné | K13: kapitálové | L13: celkem | T13: běžné | U13: kapitálové | V13: celkem
A14: konst | B14: OK | E14: Schválený rozpočet | J14: 148332711.7 | K14: 8193150.466 | L14: 156525862.2 | M14: 8645045.514 | O14: Schválený rozpočet | T14: 168608032 | U14: 7503677.926 | V14: =T14+U14 -> 176111709.9 | W14: 7192982.16
A15: konst | B15: OK | E15: Rozpočet po změnách | J15: 151760634.2 | K15: 7741115.027 | L15: 159501749.3 | M15: 8645045.514 | O15: Rozpočet po změnách | T15: 172905173.9 | U15: 10647506 | V15: =T15+U15 -> 183552679.9 | W15: 13900115.2
A16: konst | B16: OK | E16: Skutečnost | J16: 151878791 | K16: 5632649.007 | L16: 157511440 | M16: 3274552.889 | O16: Skutečnost | T16: 174693824.5 | U16: 13022564.07 | V16: 187415570.9 | W16: 8248802.81
A17: konst | B17: OK | E17: Plnění rozpočtu v procentech | J17: 1.000778573 | K17: 0.7276276076 | L17: 0.987521709 | M17: 0.3787779814 | O17: Plnění rozpočtu v procentech | T17: 1.010344691 | U17: 1.223062384 | V17: 1.022683998 | W17: 0.5934
A18: konst | B18: stop | W18: Zdroj: Závěrečný účet – kapitola 333-MŠMT; monitor.statnipokladna.cz
A19: stop

Sheet B3
A1: =IF(#REF!="","ŠABLONA",IF(#REF!="T","TISK","ELEKTRO")) ->  | B1: 0 | C1: =CONCATENATE(D1,F1,IF(G1<>"",".",""),G1,IF(H1<>"",".",""),H1,IF(I1<>"",".",""),I1,"") ->  | D1: =IF(#REF!=""," ?",#REF!) ->  | E1: =CONCATENATE(C1,P1) ->  | F1: 3
A2: konst
A3: konst | B3: 3x7 | D3: Tab. B3: | H3: Přehled výdajů kapitoly 333-MŠMT – státní správa a vzdělávání | Q3: Tab. B3: | U3: Přehled výdajů kapitoly 333-MŠMT – státní správa a vzdělávání
A4: konst | B4: =COUNTA(Datova_oblast) -> 21 | D4: =IF(D1=" ?","",CONCATENATE("Tab. ",E1,":")) ->  | H4: =IF(H3="Zadejte název tabulky","",H3) -> Přehled výdajů kapitoly 333-MŠMT – státní správa a vzdělávání
A5: =IF(D5="","odstr","OK") -> odstr | B5: 0
A6: =IF(COUNTBLANK(C6:IV6)=254,"odstr","OK") -> odstr | B6: Řádky pro
A7: =IF(COUNTBLANK(C7:IV7)=254,"odstr","OK") -> odstr | B7: ročenku PaM
A8: konst | D8: (podle stavu k: 31. 12. 2017) | P8: v tis. Kč | Q8: (podle stavu k: 31. 12. 2018) | AC8: v tis. Kč
A9: konst | J9: Běžné výdaje | M9: Kapitálové výdaje | P9: Výdaje celkem | W9: Běžné výdaje | Z9: Kapitálové výdaje | AC9: Výdaje celkem
A10: konst
A11: konst
A12: konst
A13: konst | B13: nebo odstr | J13: státní správa | K13: vzdělávání | L13: ostatní | M13: státní správa | N13: vzdělávání | O13: ostatní | W13: státní správa 1) | X13: vzdělávání 2) | Y13: ostatní 3) | Z13: státní správa 1) | AA13: vzdělávání 2) | AB13: ostatní 3)
A14: konst | B14: OK | E14: Schválený rozpočet | J14: 842175.071 | K14: 134134545.2 | L14: 13355991.48 | M14: 12869.07 | N14: 3652457.919 | O14: 4527823.477 | P14: 156525862.2 | R14: Schválený rozpočet | W14: 910931.45 | X14: 160779210.7 | Y14: 155146.69 | Z14: 125469.07 | AA14: 4059136.451 | AB14: 1618657.199 | AC14: 176111709.9
A15: konst | B15: OK | E15: Rozpočet po změnách | J15: 850712.34 | K15: 137712361.3 | L15: 13197560.61 | M15: 13171.572 | N15: 3774579.227 | O15: 3953364.228 | P15: 159501749.3 | R15: Rozpočet po změnách | W15: 908081.94 | X15: 170377927 | Y15: 161733.07 | Z15: 35046.979 | AA15: 8151432.66 | AB15: 1054503.304 | AC15: 183552679.9
A16: konst | B16: OK | E16: Skutečnost | J16: 827390.0649 | K16: 141528772.1 | L16: 9522628.819 | M16: 22710.56041 | N16: 3405327.105 | O16: 2204611.342 | P16: 157511440 | R16: Skutečnost | W16: 845264.4 | X16: 174969921.7 | Y16: 164044.12 | Z16: 105594.239 | AA16: 10594528.84 | AB16: 910491.7173 | AC16: 187716388.6
A17: konst | B17: OK | E17: Plnění rozpočtu v procentech | J17: 0.9725850044 | K17: 1.027712914 | L17: 0.7215446174 | M17: 1.724210323 | N17: 0.9021739642 | O17: 0.5576544976 | P17: 0.987521709 | R17: Plnění rozpočtu v procentech | W17: 0.9308 | X17: 1.027 | Y17: 1.0143 | Z17: 3.01293 | AA17: 1.29971 | AB17: 0.86343 | AC17: 1.022683998
A18: konst | B18: stop | P18: Zdroj: Závěrečný účet – kapitola 333-MŠMT | AC18: Zdroj: Závěrečný účet – kapitola 333-MŠMT
R19: Komentáře:
R20: 1) | S20: § 326x
A21: =IF(COUNTBLANK(D21:E21)=2,"odstr","OK") -> odstr | R21: 2) § 3111, 3112, 3113, 3114, 3115, 3117, 3118, 3119, 312x, 313x , 3143, 3141, 3142, 3150, 321x, 322x, 3231
A22: =IF(COUNTBLANK(D22:E22)=2,"odstr","OK") -> odstr | R22: 3) § 3144,3145, 3146,3147,3148,3149,3232,3233,3239,3280,329x
A23: stop

Sheet B4
A1: =IF(#REF!="","ŠABLONA",IF(#REF!="T","TISK","ELEKTRO")) ->  | B1: 0 | C1: =CONCATENATE(D1,F1,IF(G1<>"",".",""),G1,IF(H1<>"",".",""),H1,IF(I1<>"",".",""),I1,"") ->  | D1: =IF(#REF!=""," ?",#REF!) ->  | E1: =CONCATENATE(C1,M1) ->  | F1: 4
A2: konst
A3: konst | B3: 35x3 | D3: Tab. B4: | H3: Příjmy kapitoly 333-MŠMT – podle položek | N3: Tab. B4: Příjmy kapitoly 333-MŠMT - podle položek
A4: konst | B4: =COUNTA(Datova_oblast) -> 108 | D4: =IF(D1=" ?","",CONCATENATE("Tab. ",E1,":")) ->  | H4: =IF(H3="Zadejte název tabulky","",H3) -> Příjmy kapitoly 333-MŠMT – podle položek
A5: =IF(D5="","odstr","OK") -> odstr | B5: 0
A6: =IF(COUNTBLANK(C6:IW6)=254,"odstr","OK") -> OK | B6: Řádky pro
A7: =IF(COUNTBLANK(C7:IW7)=254,"odstr","OK") -> OK | B7: ročenku PaM
A8: konst | D8: (podle stavu k: 31. 12. 2017) | M8: v tis. Kč | N8: (podle stavu k: 31. 12. 2018) | X8: v tis. Kč
A9: konst | D9: Položka | G9: Popis položky | J9: Schválený rozpočet | K9: Rozpočet po změnách | L9: Skutečnost | M9: % plnění rozpočtu | O9: Položka | Q9: Popis položky | U9: Schválený rozpočet | V9: Rozpočet po změnách | W9: Skutečnost | X9: % plnění rozpočtu
A10: konst
A11: konst
A12: konst
A13: konst
E14: 1361 | G14: Správní poplatky | J14: 200 | K14: 200 | L14: 796.08622 | M14: 3.9804311 | O14: 1 | Q14: Daňové příjmy | U14: 200 | V14: 200 | W14: 598.38 | X14: 2.9919
E15: 1 | G15: Daňové příjmy | J15: 200 | K15: 200 | L15: 796.08622 | M15: 3.9804311 | O15: 1361 | Q15: Správní poplatky | U15: 200 | V15: 200 | W15: 598.4 | X15: 2.9919
A16: =IF(COUNTBLANK(C16:IW16)=254,"odstr",IF(AND($A$1="TISK",SUM(J16:M16)=0),"odstr","OK")) ->  | B16: OK | E16: 2111 | G16: Příjmy z poskytování služeb a výrobků | J16: 66 | K16: 66 | L16: 73.1 | M16: 1.107575758 | O16: 2 | Q16: Nedaňové příjmy | U16: 89752 | V16: 89752 | W16: 119976 | X16: 1.3368
B17: OK | E17: 2119 | G17: Ostatní příjmy z vlastní činnosti | J17: 0 | K17: 0 | L17: 4 | M17: x | O17: 211 | Q17: Příjmy z vlastní činnosti | W17: 17.5 | X17: x
B18: OK | E18: 2123 | G18: Ostatní odvody příspěvkových organizací | J18: 0 | K18: 0 | L18: 9119.108 | M18: x | O18: 212 | Q18: Odvody přebytků organizací s přímým vztahem | U18: 0 | V18: 0 | W18: 5657.06 | X18: x
B19: OK | E19: 2131 | G19: Příjmy z pronájmu pozemků | J19: 15 | K19: 3.6 | L19: 3.6 | M19: 1 | O19: 213 | Q19: Příjmy z pronájmu majetku | U19: 0 | V19: 0 | W19: 5582.55 | X19: x
B20: OK | E20: 2132 | G20: Příjmy z pronájmu ostatních nemovitostí a jejich částí | J20: 1279 | K20: 1261.621 | L20: 9827.70794 | M20: 7.789746635 | O20: 2131 | Q20: Příjmy z pronájmu pozemků | U20: 0 | V20: 0 | W20: 3.6 | X20: x
B21: OK | E21: 2133 | G21: Příjmy z pronájmu movitých věcí | J21: 0 | K21: 0 | L21: 0.59 | M21: x | O21: 2132 | Q21: Příjmy z pronájmu ostatních nemovitostí a jejich částí | U21: 0 | V21: 0 | W21: 5565.65 | X21: x
B22: OK | E22: 2141 | G22: Příjmy z úroků (část) | J22: 0 | K22: 0 | L22: 1.37288 | M22: x | O22: 2133 | Q22: Příjmy z pronájmu movitých věcí | U22: 0 | V22: 0 | W22: 13.3 | X22: x
B23: OK | E23: 2143 | G23: Realizované kursové zisky | J23: 0 | K23: 0 | L23: 35.32777 | M23: x | O23: 214 | Q23: Výnosy z finančního majetku | U23: 0 | V23: 0 | W23: 0.83 | X23: x
E24: 21 | G24: Příjmy z vlastní činnosti a odvody přebytků organizací s přímým vztahem | J24: 1360 | K24: 1331.221 | L24: 19064.80659 | M24: 14.32129345 | O24: 221 | Q24: Přijaté sankční platby | U24: 0 | V24: 0 | W24: 26.5 | X24: x
A25: =IF(COUNTBLANK(C25:IW25)=254,"odstr",IF(AND($A$1="TISK",SUM(J24:M24)=0),"odstr","OK")) ->  | B25: OK | E25: 2211 | G25: Příjmy z poskytování služeb a výrobků | J25: 0 | K25: 0 | L25: 163.97262 | M25: x | O25: 222 | Q25: Přijaté vratky transferů a ostatní platby | U25: 0 | V25: 0 | W25: 9724.76 | X25: x
A26: =IF(COUNTBLANK(C26:IW26)=254,"odstr",IF(AND($A$1="TISK",SUM(J25:M25)=0),"odstr","OK")) ->  | B26: OK | E26: 2212 | G26: Sankční platby přijaté od jiných subjektů | J26: 0 | K26: 0 | L26: 6.23719 | M26: x | O26: 23 | Q26: Příjmy z prodeje nekapitálového majetku a ostatní nedaňové příjmy | U26: 0 | V26: 0 | W26: 10966.8 | X26: x
A27: =IF(COUNTBLANK(C27:IW27)=254,"odstr",IF(AND($A$1="TISK",SUM(J26:M26)=0),"odstr","OK")) ->  | B27: OK | E27: 2221 | G27: Přijaté vratky transferů od jiných veřejných rozpočtů | J27: 0 | K27: 0 | L27: 1387.33129 | M27: x | O27: 2322 | Q27: Přijaté pojistné náhrady | U27: 0 | V27: 0 | W27: 289.82 | X27: x
A28: =IF(COUNTBLANK(C28:IW28)=254,"odstr",IF(AND($A$1="TISK",SUM(J27:M27)=0),"odstr","OK")) ->  | B28: OK | E28: 2222 | G28: Ostatní příjmy z finančního vypořádání předchozích let od jiných veřejných rozpočtů | J28: 0 | K28: 0 | L28: 5359.92214 | M28: x | O28: 2324 | Q28: Přijaté nekapitálové příspěvky a náhrady | U28: 0 | V28: 0 | W28: 5904.76 | X28: x
E29: 22 | G29: Přijaté sankční platby a vratky transferů | J29: 0 | K29: 0 | L29: 6917.46324 | M29: x | O29: 2328 | Q29: Neidentifikované příjmy | U29: 0 | V29: 0 | W29: 4772.22 | X29: x
E30: 2322 | G30: Přijaté pojistné náhrady | J30: 0 | K30: 0 | L30: 90.765 | M30: x | O30: 2452 | Q30: Splátky půjčených prostředků od vysokých škol | U30: 88000 | V30: 88000 | W30: 88000 | X30: 1
E31: 2324 | G31: Přijaté nekapitálové příspěvky a náhrady | J31: 390 | K31: 418.779 | L31: 2370.39743 | M31: 5.660258585 | O31: 3 | Q31: Kapitálové příjmy | U31: 0 | V31: 0 | W31: 170.63 | X31: x
E32: 2328 | G32: Neidentifikované příjmy | J32: 0 | K32: 0 | L32: 0 | M32: x | O32: 3111 | Q32: Příjmy z prodeje pozemků | U32: 0 | V32: 0 | W32: 18.13 | X32: x
E33: 2329 | G33: Ostatní nedaňové příjmy jinde nezařazené | J33: 2 | K33: 2 | L33: 4316.29807 | M33: 2158.149035 | O33: 3113 | Q33: Příjmy z prodeje ostatního hmotného dlouhodobého majetku | U33: 0 | V33: 0 | W33: 152.5 | X33: x
E34: 2391 | G34: Dočasné zatřídění příjmů | J34: 0 | K34: 0 | L34: 0 | M34: x | O34: 4 | Q34: Přijaté transfery | U34: 7103030.16 | V34: 13810163.2 | W34: 8128057.81 | X34: 0.5882
A35: =IF(COUNTBLANK(C35:IW35)=254,"odstr",IF(AND($A$1="TISK",SUM(J28:M28)=0),"odstr","OK")) ->  | B35: OK | E35: 23 | G35: Příjmy z prodeje nekapitálového majetku a ostatní nedaňové příjmy | J35: 392 | K35: 420.779 | L35: 6777.4605 | M35: 16.10693618 | N35: v tom | Q35: příjmy z rozpočtu Evropské unie bez SZP | U35: 7086030.16 | W35: 8077242.17 | X35: x
B36: OK | E36: 2452 | G36: Splátky půjčených prostředků od vysokých škol | J36: 88000 | K36: 88000 | L36: 88000 | M36: 1 | Q36: příjmy z prostředků finančních mechanizmů | U36: 17000 | V36: 17000 | W36: 46390.6 | X36: x
B37: OK | E37: 24 | G37: Přijaté splátky půjčených prostředků | J37: 88000 | K37: 88000 | L37: 88000 | M37: 1 | O37: 4118 | Q37: NIV převody z Národního fondu | U37: 4991791.64 | V37: 11698045.65 | W37: 5404445.74 | X37: 0.462
B38: OK | E38: 2 | G38: Nedaňové příjmy | J38: 89752 | K38: 89752 | L38: 120759.7303 | M38: 1.345482333 | O38: 4122 | Q38: NIV přijaté transfery krajů | U38: 0 | V38: 0 | W38: 3504.5 | X38: x
B39: OK | E39: 3111 | G39: Příjmy z prodeje pozemků | J39: 0 | K39: 0 | L39: 107.333 | M39: x | O39: 4135 | Q39: Převody z rezervních fondů (RF) OSS | U39: 0 | V39: 0 | W39: 733.34 | X39: x
O40: 4132 | Q40: Převod z ostatních vlastních fondů | U40: 0 | V40: 0 | W40: 187.19 | X40: x
E41: 3113 | G41: Příjmy z prodeje ostatního hmotného dlouhodobého majetku | J41: 0 | K41: 0 | L41: 0 | M41: x | O41: 4218 | Q41: INV převody z NF | U41: 2098583.18 | V41: 2098925.97 | W41: 2717798.17 | X41: 1.2949
B42: OK | E42: 31 | G42: Příjmy z prodeje dlouhodobého majetku a ostatní kapitálové příjmy | J42: 0 | K42: 0 | L42: 107.333 | M42: x | O42: 4153 | Q42: NIV převody přijaté od EU | U42: 12655.33 | V42: 13191.58 | W42: 1388.86 | X42: 0.1053
B43: OK | E43: 3 | G43: Kapitálové příjmy | J43: 0 | K43: 0 | L43: 107.333 | M43: x | O43: 4233 | Q43: INV převody přijaté od EU | U43: 0 | V43: 0 | W43: 0 | X43: x
B44: OK | E44: 4118 | G44: Neinvestiční převody z Národního fondu | J44: 8543882.763 | K44: 4916646.126 | L44: 1995659.516 | M44: 0.4058985465 | O44: Příjmy kapitoly 333-MŠMT celkem | U44: 7192982.16 | V44: 13900115.2 | W44: 8248802.81 | X44: 0.5934
B45: OK | E45: 4122 | G45: Neinvestiční přijaté transfery od krajů | J45: 0 | K45: 0 | L45: 6884.60949 | M45: x | O45: Příjmy po konsolidaci (- RF) | W45: 8248069.47
E46: 4132 | G46: Převody z ostatních vlastních fondů | J46: 0 | K46: 0 | L46: 498.0421 | M46: x | X46: Zdroj: Závěrečný účet – kapitola 333-MŠMT
A47: =IF(COUNTBLANK(C47:IW47)=254,"odstr",IF(AND($A$1="TISK",SUM(J39:M39)=0),"odstr","OK")) ->  | B47: OK | E47: 4135 | G47: Převody z fondů organizačních složek státu | J47: 0 | K47: 0 | L47: 160 | M47: x
A48: =IF(COUNTBLANK(C48:IW48)=254,"odstr",IF(AND($A$1="TISK",SUM(J41:M41)=0),"odstr","OK")) ->  | B48: OK | E48: 4153 | G48: Neinvestiční transfery přijaté od Evropské unie | J48: 11210.751 | K48: 14781.436 | L48: 10197.09148 | M48: 0.6898579732
B49: OK | E49: 4159 | G49: Neinvestiční transfery přijaté od Evropské unie | J49: 0 | K49: 0 | L49: 0 | M49: x
B50: OK | E50: 41 | G50: Neivestiční přijaté dotace | J50: 8555093.514 | K50: 4931427.562 | L50: 2013399.259 | M50: 0.4082791917
B51: OK | E51: 4218 | G51: Investiční převody z Národního fondu | J51: 0 | K51: 3623665.952 | L51: 1139444.656 | M51: 0.3144452802
B52: OK | E52: 4233 | G52: Investiční transfery přijaté od Evropské unie | J52: 0 | K52: 0 | L52: 45.825 | M52: x
E53: 42 | G53: Investiční přijaté transfery | J53: 0 | K53: 3623665.952 | L53: 1139490.481 | M53: 0.3144579262
E54: 4 | G54: Přijaté dotace | J54: 8555093.514 | K54: 8555093.514 | L54: 3152889.74 | M54: 0.3685394829
B55: OK | E55: Příjmy kapitoly 333-MŠMT celkem | J55: 8645045.514 | K55: 8645045.514 | L55: 3274552.889 | M55: 0.3787779814
A56: odstr | B56: OK | M56: Zdroj: Závěrečný účet – kapitola 333-MŠMT
A61: =IF(COUNTBLANK(C61:IW61)=254,"odstr",IF(AND($A$1="TISK",SUM(J50:M50)=0),"odstr","OK")) ->  | B61: OK
A64: =IF(COUNTBLANK(C64:IW64)=254,"odstr",IF(AND($A$1="TISK",SUM(J51:M51)=0),"odstr","OK")) ->  | B64: OK
A65: =IF(COUNTBLANK(C65:IW65)=254,"odstr",IF(AND($A$1="TISK",SUM(J52:M52)=0),"odstr","OK")) ->  | B65: OK
A66: konst | B66: stop
A67: =IF(COUNTBLANK(D55:E55)=2,"odstr","OK") -> OK
A68: stop

Sheet B5
A1: =IF(#REF!="","ŠABLONA",IF(#REF!="T","TISK","ELEKTRO")) ->  | B1: 0 | C1: =CONCATENATE(D1,F1,IF(G1<>"",".",""),G1,IF(H1<>"",".",""),H1,IF(I1<>"",".",""),I1,"") ->  | D1: =IF(#REF!=""," ?",#REF!) ->  | E1: =CONCATENATE(C1,U1) ->  | F1: 5
A2: konst
A3: konst | B3: 47x11 | D3: Tab. B5: | H3: Příjmy kapitoly 700-Obce a DSO; KÚ (část: vzdělávání) – podle položek | W3: Tab. B5: | Z3: Příjmy kapitoly 700-Obce a DSO; KÚ (část: vzdělávání) – podle položek
A4: konst | B4: =COUNTA(Datova_oblast) -> 517 | D4: =IF(D1=" ?","",CONCATENATE("Tab. ",E1,":")) ->  | H4: =IF(H3="Zadejte název tabulky","",H3) -> Příjmy kapitoly 700-Obce a DSO; KÚ (část: vzdělávání) – podle položek | W4: =IF(W1=" ?","",CONCATENATE("Tab. ",X1,":")) -> Tab. : | Z4: =IF(Z3="Zadejte název tabulky","",Z3) -> Příjmy kapitoly 700-Obce a DSO; KÚ (část: vzdělávání) – podle položek
A5: =IF(D5="","odstr","OK") -> odstr | B5: 0
A6: =IF(COUNTBLANK(C6:IV6)=254,"odstr","OK") -> odstr | B6: Řádky pro
A7: =IF(COUNTBLANK(C7:IV7)=254,"odstr","OK") -> odstr | B7: ročenku PaM
A8: konst | D8: (podle stavu k: 31. 12. 2017) | U8: v tis. Kč | W8: (podle stavu k: 31. 12. 2018) | AM8: v tis. Kč
A9: konst | D9: Položka | G9: Popis položky | J9: Celkem 1) | N9: Obce a DSO1) | R9: Krajské úřady1) | W9: Položka | Y9: Popis položky | AB9: Celkem 1) | AF9: Obce a DSO1) | AJ9: Krajské úřady1)
A10: konst
A11: konst | J11: schválený rozpočet | K11: rozpočet po změnách | L11: skutečnost | M11: % plnění rozpočtu | N11: schválený rozpočet | O11: rozpočet po změnách | P11: skutečnost | Q11: % plnění rozpočtu | R11: schválený rozpočet | S11: rozpočet po změnách | T11: skutečnost | U11: % plnění rozpočtu | AB11: schválený rozpočet | AC11: rozpočet po změnách | AD11: skutečnost | AE11: % plnění rozpočtu | AF11: schválený rozpočet | AG11: rozpočet po změnách | AH11: skutečnost | AI11: % plnění rozpočtu | AJ11: schválený rozpočet | AK11: rozpočet po změnách | AL11: skutečnost | AM11: % plnění rozpočtu
A12: konst
A13: konst
E14: 2111 | G14: Příjmy z poskytování služeb a výrobků | J14: 31472.245 | K14: 35823.96265 | L14: 34397.46523 | M14: 0.9601803565 | N14: 31472.245 | O14: 34668.06265 | P14: 33329.46523 | Q14: 0.9613881677 | R14: 0 | S14: 1155.9 | T14: 1068 | U14: 0.9239553595 | X14: 2 | Y14: Nedaňové příjmy | AB14: =AB15+AB31+AB39 -> 976181.9548 | AC14: =AC15+AC31+AC39 -> 1382838.46 | AD14: 1418875.2 | AE14: =AD14/AC14 -> 1.026059978 | AF14: =AF15+AF31+AF39 -> 575801.7548 | AG14: =AG15+AG31+AG39 -> 904291.8685 | AH14: 934572 | AI14: =AH14/AG14 -> 1.03348491 | AJ14: =AJ15+AJ31+AJ39 -> 400380.2 | AK14: =AK15+AK31+AK39 -> 478546.5911 | AL14: 484303.2 | AM14: =AL14/AK14 -> 1.012029359
E15: 2112 | G15: Příjmy z prodeje zboží (jinak nakoupeného za účelem prodeje) | J15: 316.781 | K15: 320.161 | L15: 335.849 | M15: 1.049000347 | N15: 316.781 | O15: 320.161 | P15: 335.849 | Q15: 1.049000347 | R15: 0 | S15: 0 | T15: 0 | U15: x | X15: 21 | Y15: Příjmy z vlastní činnosti a odvody přebytků organizací s přímým vztahem | AB15: =SUM(AB16:AB30) -> 863037.1508 | AC15: =SUM(AC16:AC30) -> 1115496.789 | AD15: 1103551.3 | AE15: =AD15/AC15 -> 0.9892913286 | AF15: =SUM(AF16:AF30) -> 463496.9508 | AG15: =SUM(AG16:AG30) -> 654437.847 | AH15: 635268.3 | AI15: =AH15/AG15 -> 0.9707083766 | AJ15: =SUM(AJ16:AJ30) -> 399540.2 | AK15: =SUM(AK16:AK30) -> 461058.9416 | AL15: =SUM(AL16:AL30) -> 468282.9767 | AM15: =AL15/AK15 -> 1.015668355
A16: =IF(COUNTBLANK(C16:IV16)=254,"odstr",IF(AND($A$1="TISK",SUM(J14:U14)=0),"odstr","OK")) ->  | B16: OK | E16: 2113 | G16: Příjmy ze školného | J16: 0 | K16: 14.5 | L16: 14.565 | M16: 1.004482759 | N16: 0 | O16: 14.5 | P16: 14.565 | Q16: 1.004482759 | R16: 0 | S16: 0 | T16: 0 | U16: x | X16: 2111 | Y16: Příjmy z poskytování služeb a výrobků | AB16: 42236.71 | AC16: =AG16+AK16 -> 53031.91019 | AD16: =AH16+AL16 -> 48167.85218 | AE16: =AD16/AC16 -> 0.9082805429 | AF16: 42236.71 | AG16: 52239.01019 | AH16: 47314.45218 | AI16: =AH16/AG16 -> 0.9057302581 | AJ16: 0 | AK16: 792.9 | AL16: 853.4 | AM16: =AL16/AK16 -> 1.076302182
B17: OK | E17: 2119 | G17: Ostatní příjmy z vlastní činnosti | J17: 705.6 | K17: 2203.856 | L17: 2265.54012 | M17: 1.027989179 | N17: 705.6 | O17: 2094.29 | P17: 2072.75758 | Q17: 0.9897185108 | R17: 0 | S17: 109.566 | T17: 192.78254 | U17: 1.759510615 | X17: 2112 | Y17: Příjmy z prodeje zboží (jinak nakoupeného za účelem prodeje) | AB17: 319.655 | AC17: =AG17+AK17 -> 397.813 | AD17: =AH17+AL17 -> 378.63299 | AE17: =AD17/AC17 -> 0.951786367 | AF17: 319.655 | AG17: 397.813 | AH17: 378.63299 | AI17: =AH17/AG17 -> 0.951786367 | AJ17: 0 | AK17: 0 | AL17: 0 | AM17: x
B18: OK | E18: 2122 | G18: Odvody příspěvkových organizací | J18: 687422.804 | K18: 903579.6699 | L18: 885012.0637 | M18: 0.979451058 | N18: 305182.804 | O18: 474885.2179 | P18: 456173.87 | Q18: 0.9605981674 | R18: 382240 | S18: 428694.452 | T18: 428838.1936 | U18: 1.000335301 | X18: 2113 | Y18: Příjmy ze školného | AB18: 36 | AC18: 36 | AD18: 0 | AE18: x | AF18: 36 | AG18: 36 | AH18: 0 | AI18: x | AJ18: 0 | AK18: 0 | AL18: 0 | AM18: x
B19: OK | E19: 2123 | G19: Ostatní odvody příspěvkových organizací | J19: 2456 | K19: 3626.33784 | L19: 10194.34297 | M19: 2.811195046 | N19: 2456 | O19: 2381.29254 | P19: 2403.40954 | Q19: 1.009287813 | R19: 0 | S19: 1245.0453 | T19: 7790.93343 | U19: 6.257550171 | X19: 2119 | Y19: Ostatní příjmy z vlastní činnosti | AB19: 1170.61 | AC19: 4172.5432 | AD19: 4111.76573 | AE19: =AD19/AC19 -> 0.9854339507 | AF19: 1170.61 | AG19: 4157.2192 | AH19: 4065.88923 | AI19: 0.9780309949 | AJ19: 0 | AK19: 15.324 | AL19: 45.8765 | AM19: =AL19/AK19 -> 2.993767946
B20: OK | E20: 2124 | G20: Odvody školských právnických osob zřízených státem, kraji a obcemi | J20: 2822.059 | K20: 3053.0315 | L20: 3090.7345 | M20: 1.012349365 | N20: 2822.059 | O20: 3053.0315 | P20: 3052.9815 | Q20: 0.9999836228 | R20: 0 | S20: 0 | T20: 37.753 | U20: x | X20: 2122 | Y20: Odvody příspěvkových organizací | AB20: 722232.6056 | AC20: 955263.6437 | AD20: 940285.6573 | AE20: 0.9843205732 | AF20: 339692.4056 | AG20: 512283.7047 | AH20: 497240.7177 | AI20: 0.9706354372 | AJ20: 382540.2 | AK20: 442979.9391 | AL20: 443044.9397 | AM20: =AL20/AK20 -> 1.000146735
B21: OK | E21: 2129 | G21: Ostatní odvody přebytků organizací s přímým vztahem | J21: 0 | K21: 1076.036 | L21: 1076.03715 | M21: 1.000001069 | N21: 0 | O21: 0 | P21: 0 | Q21: x | R21: 0 | S21: 1076.036 | T21: 1076.03715 | U21: 1.000001069 | X21: 2123 | Y21: Ostatní odvody příspěvkových organizací | AB21: 2305 | AC21: 3827.13239 | AD21: 5368.80182 | AE21: 1.402826261 | AF21: 2305 | AG21: 3705.23239 | AH21: 3648.35836 | AI21: 0.9846503474 | AJ21: 0 | AK21: 121.9 | AL21: 1720.44346 | AM21: =AL21/AK21 -> 14.11356407
B22: OK | E22: 2131 | G22: Příjmy z pronájmu pozemků | J22: 602.1 | K22: 602.1 | L22: 607.163 | M22: 1.008408902 | N22: 602.1 | O22: 602.1 | P22: 607.163 | Q22: 1.008408902 | R22: 0 | S22: 0 | T22: 0 | U22: x | X22: 2124 | Y22: Odvody školských právnických osob zřízených státem, kraji a obcemi | AB22: 2861.49 | AC22: 2954.775 | AD22: 2954.8094 | AE22: 1.000011642 | AF22: 2861.49 | AG22: 2954.775 | AH22: 2954.8094 | AI22: 1.000011642 | AJ22: 0 | AK22: 0 | AL22: 0 | AM22: x
B23: OK | E23: 2132 | G23: Příjmy z pronájmu ostatních nemovitostí a jejich částí | J23: 83254.966 | K23: 87581.11229 | L23: 87302.19413 | M23: 0.9968153161 | N23: 66614.966 | O23: 71200.67829 | P23: 71118.31122 | Q23: 0.9988431701 | R23: 16640 | S23: 16380.434 | T23: 16183.88291 | U23: 0.9880008619 | X23: 2129 | Y23: Ostatní odvody přebytků organizací s přímým vztahem | AB23: 0 | AC23: 219.13151 | AD23: 7151.4 | AE23: 32.63519701 | AF23: 0 | AG23: 60.00451 | AH23: 205.51799 | AI23: 3.425042384 | AJ23: 0 | AK23: 159.127 | AL23: 6945.877 | AM23: =AL23/AK23 -> 43.649896
B24: OK | E24: 2133 | G24: Příjmy z pronájmu movitých věcí | J24: 1750.021 | K24: 1770.121 | L24: 1456.73525 | M24: 0.8229580068 | N24: 1750.021 | O24: 1770.121 | P24: 1456.73525 | Q24: 0.8229580068 | R24: 0 | S24: 0 | T24: 0 | U24: x | X24: 2131 | Y24: Příjmy z pronájmu pozemků | AB24: 665.9952 | AC24: 664.4952 | AD24: 626.112 | AE24: 0.9422370545 | AF24: 665.9952 | AG24: 664.4952 | AH24: 624.192 | AI24: 0.9393476431 | AJ24: 0 | AK24: 0 | AL24: 1.92 | AM24: x
B25: OK | E25: 2139 | G25: Ostatní příjmy z pronájmu majetku | J25: 134.5 | K25: 134 | L25: 66.55 | M25: 0.496641791 | N25: 134.5 | O25: 134 | P25: 66.55 | Q25: 0.496641791 | R25: 0 | S25: 0 | T25: 0 | U25: x | X25: 2132 | Y25: Příjmy z pronájmu ostatních nemovitostí a jejich částí | AB25: 90840.785 | AC25: 94304.66724 | AD25: 93381.57767 | AE25: 0.9902116237 | AF25: 73840.785 | AG25: 77319.99124 | AH25: 77716.13319 | AI25: 1.005123409 | AJ25: 17000 | AK25: 16984.676 | AL25: 15665.44448 | AM25: =AL25/AK25 -> 0.9223281315
B26: OK | E26: 2141 | G26: Příjmy z úroků (část) | J26: 0.02 | K26: 0.72 | L26: 1.12502 | M26: 1.562527778 | N26: 0.02 | O26: 0.72 | P26: 0.80221 | Q26: 1.114180556 | R26: 0 | S26: 0 | T26: 0.32281 | U26: x | X26: 2133 | Y26: Příjmy z pronájmu movitých věcí | AB26: 215.2 | AC26: 440.226 | AD26: 959.18868 | AE26: 2.178855133 | AF26: 215.2 | AG26: 440.226 | AH26: 959.18868 | AI26: 2.178855133 | AJ26: 0 | AK26: 0 | AL26: 0 | AM26: x
B27: OK | E27: 2143 | G27: Realizované kursové zisky | J27: 0 | K27: 0 | L27: 0 | M27: x | N27: 0 | O27: 0 | P27: 0 | Q27: x | R27: 0 | S27: 0 | T27: 0 | U27: x | X27: 2139 | Y27: Ostatní příjmy z pronájmu majetku | AB27: 153 | AC27: 179.34 | AD27: 131.08456 | AE27: 0.7309276235 | AF27: 153 | AG27: 179.34 | AH27: 131.08456 | AI27: 0.7309276235 | AK27: 0 | AL27: 0 | AM27: x
E28: 2149 | G28: Ostatní příjmy z výnosů finančního majetku | J28: 0 | K28: 0 | L28: 0 | M28: x | N28: 0 | O28: 0 | P28: 0 | Q28: x | R28: 0 | S28: 0 | T28: 0 | U28: x | X28: 2141 | Y28: Příjmy z úroků (část) | AB28: 0.1 | AC28: 0.03558 | AD28: 29.30011 | AE28: x | AF28: 0.1 | AG28: 0.03558 | AH28: 29.30008 | AI28: x | AJ28: 0 | AK28: 0 | AL28: 3e-05 | AM28: x
X29: 2143 | Y29: Realizované kursové zisky | AB29: 0 | AC29: 5.07554 | AD29: 5.07573 | AE29: =AD29/AC29 -> 1.000037434 | AF29: 0 | AG29: 0 | AH29: 0.00019 | AI29: x | AJ29: 0 | AK29: 5.07554 | AL29: 5.07554 | AM29: =AL29/AK29 -> 1
A30: =IF(COUNTBLANK(C30:IV30)=254,"odstr",IF(AND($A$1="TISK",SUM(J28:U28)=0),"odstr","OK")) ->  | B30: OK | E30: 21 | G30: Příjmy z vlastní činnosti a odvody přebytků organizací s přímým vztahem | J30: 810937.096 | K30: 1039785.608 | L30: 1025820.365 | M30: 0.9865691129 | N30: 412057.096 | O30: 591124.1749 | P30: 570632.4596 | Q30: 0.9653343304 | R30: 398880 | S30: 448661.4333 | T30: 455187.9054 | U30: 1.014546541 | X30: 2149 | Y30: Ostatní příjmy z výnosů finančního majetku | AB30: 0 | AC30: 0 | AD30: 0 | AE30: x | AF30: 0 | AG30: 0 | AH30: 0 | AI30: x | AK30: 0 | AL30: 0 | AM30: x
E31: 2210 | G31: Přijaté sankční platby | J31: 0 | K31: 0 | L31: 0 | M31: x | N31: 0 | O31: 0 | P31: 0 | Q31: x | R31: 0 | S31: 0 | T31: 0 | U31: x | X31: 22 | Y31: Přijaté sankční platby a vratky transferů | AB31: =SUM(AB32:AB38) -> 14981.433 | AC31: =AG31+AK31 -> 139759.3271 | AD31: =AH31+AL31 -> 194089.8268 | AE31: =AD31/AC31 -> 1.388743283 | AF31: =SUM(AF32:AF38) -> 14141.433 | AG31: =SUM(AG32:AG38) -> 126086.0039 | AH31: =AH34+AH35+AH36+AH37+AH38 -> 182878.5877 | AI31: 1.450427343 | AJ31: =SUM(AJ32:AJ38) -> 840 | AK31: =SUM(AK32:AK38) -> 13673.32322 | AL31: =SUM(AL32:AL38) -> 11211.23905 | AM31: =AL31/AK31 -> 0.819935203
A32: =IF(COUNTBLANK(C32:IV32)=254,"odstr",IF(AND($A$1="TISK",SUM(J30:U30)=0),"odstr","OK")) ->  | B32: OK | E32: 2211 | G32: Příjmy z poskytování služeb a výrobků | J32: 0 | K32: 458.96625 | L32: 1900.51925 | M32: 4.14086929 | N32: 0 | O32: 0 | P32: 0 | Q32: x | R32: 0 | S32: 458.96625 | T32: 1900.51925 | U32: 4.14086929 | X32: 2210 | Y32: Přijaté sankční platby | AB32: 0 | AC32: =AG32+AK32 -> 0 | AD32: =AH32+AL32 -> 0 | AE32: x | AF32: 0 | AG32: 0 | AH32: 0 | AI32: x | AJ32: 0 | AK32: 0 | AL32: 0 | AM32: x
B33: OK | E33: 2212 | G33: Sankční platby přijaté od jiných subjektů | J33: 1349.1 | K33: 16512.09243 | L33: 19368.23432 | M33: 1.172972741 | N33: 509.1 | O33: 5837.78908 | P33: 11042.23272 | Q33: 1.891509366 | R33: 840 | S33: 10674.30335 | T33: 8326.0016 | U33: 0.7800042145 | X33: 2211 | Y33: Příjmy z poskytování služeb a výrobků | AB33: 0 | AC33: =AG33+AK33 -> 0 | AD33: =AH33+AL33 -> 0 | AE33: x | AF33: 0 | AG33: 0 | AH33: 0 | AI33: x | AJ33: 0 | AK33: 0 | AL33: 0 | AM33: x
E34: 2221 | G34: Přijaté vratky transferů od jiných veřejných rozpočtů | J34: 0 | K34: 219.25239 | L34: 217.7973 | M34: 0.9933634019 | N34: 0 | O34: 219.25239 | P34: 217.7973 | Q34: 0.9933634019 | R34: 0 | S34: 0 | T34: 0 | U34: x | X34: 2212 | Y34: Sankční platby přijaté od jiných subjektů | AB34: 1004.333 | AC34: 16577.94257 | AD34: 21539.44658 | AE34: =AD34/AC34 -> 1.29928346 | AF34: 164.333 | AG34: 10000.72663 | AH34: 18933.93674 | AI34: 1.893256104 | AJ34: 840 | AK34: 6577.21594 | AL34: 2605.50984 | AM34: =AL34/AK34 -> 0.3961417511
E35: 2222 | G35: Ostatní příjmy z finančního vypořádání předchozích let od jiných veřejných rozpočtů | J35: 0 | K35: 88.1 | L35: 88.04543 | M35: 0.9993805902 | N35: 0 | O35: 88.1 | P35: 88.04543 | Q35: 0.9993805902 | R35: 0 | S35: 0 | T35: 0 | U35: x | X35: 2221 | Y35: Přijaté vratky transferů od jiných veřejných rozpočtů | AB35: 0 | AC35: 0 | AD35: 365.25604 | AE35: x | AF35: 0 | AG35: 0 | AH35: 365.25604 | AI35: 0 | AJ35: 0 | AK35: 0 | AL35: 0 | AM35: x
B36: OK | E36: 2226 | G36: Příjmy z finančního vypořádání minulých let mezi obcemi | J36: 43 | K36: 281.824 | L36: 298.03282 | M36: 1.05751398 | N36: 43 | O36: 281.824 | P36: 298.03282 | Q36: 1.05751398 | R36: 0 | S36: 0 | T36: 0 | U36: x | X36: 2222 | Y36: Ostatní příjmy z finančního vypořádání předchozích let od jiných veřejných rozpočtů | AB36: 0 | AC36: 0 | AD36: 0.96 | AE36: x | AF36: 0 | AG36: 0 | AH36: 0.96 | AI36: x | AJ36: 0 | AK36: 0 | AL36: 0 | AM36: x
B37: OK | E37: 2229 | G37: Ostatní přijaté vratky transferů | J37: 10561.7269 | K37: 64597.49701 | L37: 74410.65167 | M37: 1.151912305 | N37: 10561.7269 | O37: 61774.05618 | P37: 71344.30188 | Q37: 1.154923382 | R37: 0 | S37: 2823.44083 | T37: 3066.34979 | U37: 1.086032956 | X37: 2226 | Y37: Příjmy z finančního vypořádání minulých let mezi obcemi | AB37: 0 | AC37: 33.24 | AD37: 55.471 | AE37: =AD37/AC37 -> 1.668802647 | AF37: 0 | AG37: 33.24 | AH37: 55.471 | AI37: 1.668802647 | AJ37: 0 | AK37: 0 | AL37: 0 | AM37: x
B38: OK | E38: 22 | G38: Přijaté sankční platby a vratky transferů | J38: 11953.8269 | K38: 82157.73208 | L38: 96283.28079 | M38: 1.171932067 | N38: 11113.8269 | O38: 68201.02165 | P38: 82990.41015 | Q38: 1.216849955 | R38: 840 | S38: 13956.71043 | T38: 13292.87064 | U38: 0.9524357983 | X38: 2229 | Y38: Ostatní přijaté vratky transferů | AB38: 13977.1 | AC38: 123148.1446 | AD38: 172128.6931 | AE38: 1.397736797 | AF38: 13977.1 | AG38: 116052.0373 | AH38: 163522.9639 | AI38: 1.409048628 | AJ38: 0 | AK38: 7096.10728 | AL38: 8605.72921 | AM38: =AL38/AK38 -> 1.212739446
B39: OK | E39: 2310 | G39: Příjmy z prodeje krátkodobého a drobného dlouhodobého majetku | J39: 5 | K39: 478.00063 | L39: 495.80763 | M39: 1.037253089 | N39: 5 | O39: 65.926 | P39: 83.733 | Q39: 1.270105876 | R39: 0 | S39: 412.07463 | T39: 412.07463 | U39: 1 | X39: 23 | Y39: Příjmy z prodeje nekapitálového majetku a ostatní nedaňové příjmy | AB39: =SUM(AB40:AB46) -> 98163.371 | AC39: =AG39+AK39 -> 127582.3439 | AD39: =AH39+AL39 -> 121234.1349 | AE39: 0.9502422612 | AF39: =SUM(AF40:AF46) -> 98163.371 | AG39: =SUM(AG40:AG46) -> 123768.0176 | AH39: =AH40+AH41+AH42+AH43+AH44+AH45 -> 116425.1094 | AI39: 0.9406720059 | AJ39: =SUM(AJ40:AJ46) -> 0 | AK39: =SUM(AK40:AK46) -> 3814.32628 | AL39: =SUM(AL40:AL46) -> 4809.02556 | AM39: =AL39/AK39 -> 1.260779809
B40: OK | E40: 2321 | G40: Přijaté neinvestiční dary | J40: 1902.1 | K40: 18225.439 | L40: 18269.1268 | M40: 1.002397078 | N40: 1902.1 | O40: 18125.439 | P40: 18169.1268 | Q40: 1.002410303 | R40: 0 | S40: 100 | T40: 100 | U40: 1 | X40: 2310 | Y40: Příjmy z prodeje krátkodobého a drobného dlouhodobého majetku | AB40: 11 | AC40: =AD40+AK40 -> 866.32608 | AD40: =AH40+AL40 -> 518.88554 | AE40: 0.5989494625 | AF40: 11 | AG40: 159.03 | AH40: 171.445 | AI40: 1.078067031 | AJ40: 0 | AK40: 347.44054 | AL40: 347.44054 | AM40: =AL40/AK40 -> 1
B41: OK | E41: 2322 | G41: Přijaté pojistné náhrady | J41: 181.234 | K41: 12407.41975 | L41: 12341.138 | M41: 0.9946578941 | N41: 181.234 | O41: 12407.41975 | P41: 12341.138 | Q41: 0.9946578941 | R41: 0 | S41: 0 | T41: 0 | U41: x | X41: 2321 | Y41: Přijaté neinvestiční dary | AB41: 4075.9 | AC41: =AD41+AK41 -> 19684.63473 | AD41: =AH41+AL41 -> 19334.63473 | AE41: 0.9822196345 | AF41: 4075.9 | AG41: 19828.43892 | AH41: 18984.63473 | AI41: 0.9574447493 | AJ41: 0 | AK41: 350 | AL41: 350 | AM41: =AL41/AK41 -> 1
B42: OK | E42: 2324 | G42: Přijaté nekapitálové příspěvky a náhrady | J42: 65155.936 | K42: 89192.82487 | L42: 80783.54968 | M42: 0.9057180305 | N42: 65155.936 | O42: 88455.06758 | P42: 79755.63139 | Q42: 0.9016513533 | R42: 0 | S42: 737.75729 | T42: 1027.91829 | U42: 1.393301434 | X42: 2322 | Y42: Přijaté pojistné náhrady | AB42: 868.005 | AC42: 20427.89935 | AD42: 20427.89935 | AE42: 1 | AF42: 868.005 | AG42: 19188.50195 | AH42: 20427.89935 | AI42: 1.064590628 | AK42: 0 | AL42: 0 | AM42: x
B43: OK | E43: 2328 | G43: Neidentifikované příjmy | J43: 0 | K43: 2 | L43: 2 | M43: 1 | N43: 0 | O43: 2 | P43: 2 | Q43: 1 | R43: 0 | S43: 0 | T43: 0 | U43: x | X43: 2324 | Y43: Přijaté nekapitálové příspěvky a náhrady | AB43: 72978.122 | AC43: 69240.51081 | AD43: 68102.03881 | AE43: 0.9835577181 | AF43: 72978.122 | AG43: 76003.98909 | AH43: 65975.43488 | AI43: 0.868052265 | AJ43: 0 | AK43: 1138.472 | AL43: 2126.60393 | AM43: =AL43/AK43 -> 1.867945747
B44: OK | E44: 2329 | G44: Ostatní nedaňové příjmy jinde nezařazené | J44: 4542.744 | K44: 14616.95462 | L44: 11545.44253 | M44: 0.7898664825 | N44: 4542.744 | O44: 14359.70462 | P44: 11100.05483 | Q44: 0.77300022 | R44: 0 | S44: 257.25 | T44: 445.3877 | U44: 1.731341885 | X44: 2328 | Y44: Neidentifikované příjmy | AB44: 14900 | AC44: 20.23525 | AD44: 20.23525 | AE44: 1 | AF44: 14900 | AG44: 20.2 | AH44: 20.23525 | AI44: 1.00174505 | AK44: 0 | AL44: 0 | AM44: x
B45: OK | E45: 2343 | G45: Příjmy z úhrad dobývacího prostoru a z vydobytých nerostů | J45: 290 | K45: 0 | L45: 0 | M45: x | N45: 290 | O45: 0 | P45: 0 | Q45: x | R45: 0 | S45: 0 | T45: 0 | U45: x | X45: 2329 | Y45: Ostatní nedaňové příjmy jinde nezařazené | AB45: 5330.344 | AC45: 14808.85498 | AD45: 12830.44124 | AE45: 0.8664033281 | AF45: 5330.344 | AG45: 8567.85762 | AH45: 10845.46015 | AI45: 1.265831043 | AJ45: 0 | AK45: 1978.41374 | AL45: 1984.98109 | AM45: =AL45/AK45 -> 1.003319503
B46: OK | X46: 2343 | Y46: Příjmy z úhrad dobývacího prostoru a z vydobytých nerostů | AB46: 0 | AC46: 0 | AD46: 0 | AE46: x | AF46: 0 | AG46: 0 | AH46: 0 | AI46: x | AK46: 0 | AL46: 0 | AM46: x
E47: 23 | G47: Příjmy z prodeje nekapitálového majetku a ostatní nedaňové příjmy | J47: 72077.014 | K47: 134922.6389 | L47: 123437.0646 | M47: 0.9148728907 | N47: 72077.014 | O47: 133415.557 | P47: 121451.684 | Q47: 0.9103262528 | R47: 0 | S47: 1507.08192 | T47: 1985.38062 | U47: 1.31736742 | X47: 3 | Y47: Kapitálové příjmy | AB47: =AB48+AB57 -> 47398.994 | AC47: =AC48+AC57 -> 64025.94582 | AD47: =AH47+AL47 -> 38993.25082 | AE47: =AD47/AC47 -> 0.6090226442 | AF47: =AF48+AF57 -> 47398.994 | AG47: =AG48+AG57 -> 51963.829 | AH47: =AH48+AH57 -> 34487.554 | AI47: 0.6636838482 | AJ47: =AJ48+AJ57 -> 0 | AK47: =AK48+AK57 -> 12062.11682 | AL47: =AL48 -> 4505.69682 | AM47: =AL47/AK47 -> 0.373541136
E48: 2 | G48: Nedaňové příjmy | J48: 894967.9369 | K48: 1256865.979 | L48: 1245540.71 | M48: 0.990989279 | N48: 495247.9369 | O48: 792740.7535 | P48: 775074.5537 | Q48: 0.9777150353 | R48: 399720 | S48: 464125.2257 | T48: 470466.1567 | U48: 1.013662113 | X48: 31 | Y48: Příjmy z prodej dlouhodobého majetku a ostatní kapitálové příjmy | AB48: =SUM(AB49:AB56) -> 47398.994 | AC48: =AG48+AK48 -> 64025.94582 | AD48: =AH48+AL48 -> 38993.25082 | AE48: =AD48/AC48 -> 0.6090226442 | AF48: =SUM(AF49:AF56) -> 47398.994 | AG48: =SUM(AG49:AG56) -> 51963.829 | AH48: =AH50+AH51+AH54+AH55+AH56 -> 34487.554 | AI48: 0.6636838482 | AJ48: =SUM(AJ49:AJ56) -> 0 | AK48: =SUM(AK49:AK56) -> 12062.11682 | AL48: =SUM(AL49:AL56) -> 4505.69682 | AM48: =AL48/AK48 -> 0.373541136
A49: =IF(COUNTBLANK(C49:IV49)=254,"odstr",IF(AND($A$1="TISK",SUM(J47:U47)=0),"odstr","OK")) ->  | B49: OK | E49: 3111 | G49: Příjmy z prodeje pozemků | J49: 0 | K49: 130 | L49: 323.363 | M49: 2.487407692 | N49: 0 | O49: 0 | P49: 8.12 | Q49: x | R49: 0 | S49: 130 | T49: 315.243 | U49: 2.424946154 | X49: 3111 | Y49: Příjmy z prodeje pozemků | AB49: 0 | AC49: =AG49+AK49 -> 1426 | AD49: =AH49+AL49 -> 513.58 | AE49: =AD49/AC49 -> 0.3601542777 | AG49: 0 | AH49: 0 | AI49: x | AJ49: 0 | AK49: 1426 | AL49: 513.58 | AM49: =AL49/AK49 -> 0.3601542777
B50: OK | E50: 3112 | G50: Příjmy z prodeje ostatních nemovitostí a jejich částí | J50: 0 | K50: 300 | L50: 300 | M50: 1 | N50: 0 | O50: 0 | P50: 0 | Q50: x | R50: 0 | S50: 300 | T50: 300 | U50: 1 | X50: 3112 | Y50: Příjmy z prodeje ostatních nemovitostí a jejich částí | AB50: 20 | AC50: =AG50+AK50 -> 9470.58 | AD50: =AH50+AL50 -> 2815.578 | AE50: =AD50/AC50 -> 0.2972973144 | AF50: 20 | AG50: 105.78 | AH50: 105.778 | AI50: 0.9999810928 | AJ50: 0 | AK50: 9364.8 | AL50: 2709.8 | AM50: =AL50/AK50 -> 0.2893601572
B51: OK | E51: 3113 | G51: Příjmy z prodeje ostatního hmotného dlouhodobého majetku | J51: 0 | K51: 893.9041 | L51: 2220.7231 | M51: 2.484296805 | N51: 0 | O51: 47.9 | P51: 1156.32 | Q51: 24.14029228 | R51: 0 | S51: 846.0041 | T51: 1064.4031 | U51: 1.258153595 | X51: 3113 | Y51: Příjmy z prodeje ostatního hmotného dlouhodobého majetku | AB51: 0 | AC51: 1538.64082 | AD51: 1579.97282 | AE51: =AD51/AC51 -> 1.02686267 | AF51: 0 | AG51: 267.324 | AH51: 297.656 | AI51: 1.113465308 | AJ51: 0 | AK51: 1271.31682 | AL51: 1282.31682 | AM51: =AL51/AK51 -> 1.008652446
B52: OK | E52: 3114 | G52: Příjmy z prodeje nehmotného dlouhodobého majetku | J52: 0 | K52: 0 | L52: 0 | M52: x | N52: 0 | O52: 0 | P52: 0 | Q52: x | R52: 0 | S52: 0 | T52: 0 | U52: x | X52: 3114 | Y52: Příjmy z prodeje nehmotného dlouhodobého majetku | AB52: 0 | AC52: 0 | AD52: 0 | AE52: x | AG52: 0 | AH52: 0 | AI52: x | AJ52: 0 | AK52: 0 | AL52: 0 | AM52: x
B53: OK | E53: 3119 | G53: Ostatní příjmy z prodeje dlouhodobého majetku | J53: 0 | K53: 0 | L53: 0 | M53: x | N53: 0 | O53: 0 | P53: 0 | Q53: x | R53: 0 | S53: 0 | T53: 0 | U53: x | X53: 3119 | Y53: Ostatní příjmy z prodeje dlouhodobého majetku | AB53: 0 | AC53: 0 | AD53: 0 | AE53: x | AG53: 0 | AH53: 0 | AI53: x | AJ53: 0 | AK53: 0 | AL53: 0 | AM53: x
B54: OK | E54: 3121 | G54: Přijaté dary na pořízení dlouhodobého majetku | J54: 500 | K54: 5660 | L54: 5807.592 | M54: 1.026076325 | N54: 500 | O54: 5660 | P54: 5807.592 | Q54: 1.026076325 | R54: 0 | S54: 0 | T54: 0 | U54: x | X54: 3121 | Y54: Přijaté dary na pořízení dlouhodobého majetku | AB54: 2375.1 | AC54: 30591.416 | AD54: 32624.346 | AE54: =AD54/AC54 -> 1.066454263 | AF54: 2375.1 | AG54: 30591.416 | AH54: 32624.346 | AI54: 1.066454263 | AJ54: 0 | AK54: 0 | AL54: 0 | AM54: x
B55: OK | E55: 3122 | G55: Přijaté příspěvky na pořízení dlouhodobého majetku | J55: 1006 | K55: 1740.1445 | L55: 1538.5005 | M55: 0.8841222669 | N55: 1006 | O55: 1740.1445 | P55: 1538.5005 | Q55: 0.8841222669 | R55: 0 | S55: 0 | T55: 0 | U55: x | X55: 3122 | Y55: Přijaté příspěvky na pořízení dlouhodobého majetku | AB55: 12219.494 | AC55: 883.309 | AD55: 658.309 | AE55: =AD55/AC55 -> 0.7452760019 | AF55: 12219.494 | AG55: 883.309 | AH55: 658.309 | AI55: 0.7452760019 | AJ55: 0 | AK55: 0 | AL55: 0 | AM55: x
B56: OK | E56: 3129 | G56: Ostatní investiční příjmy jinde nezařazené | J56: 2900 | K56: 0 | L56: 0.55 | M56: x | N56: 2900 | O56: 0 | P56: 0 | Q56: x | R56: 0 | S56: 0 | T56: 0.55 | U56: x | X56: 3129 | Y56: Ostatní investiční příjmy jinde nezařazené | AB56: 32784.4 | AC56: 20116 | AD56: 801.465 | AE56: =AD56/AC56 -> 0.03984216544 | AF56: 32784.4 | AG56: 20116 | AH56: 801.465 | AI56: 0.03984216544 | AJ56: 0 | AK56: 0 | AL56: 0 | AM56: x
B57: OK | E57: 31 | G57: Příjmy z prodeje dlouhodobého majetku a ostatní kapitálové příjmy | J57: 4406 | K57: 8724.0486 | L57: 10190.7286 | M57: 1.168119192 | N57: 4406 | O57: 7448.0445 | P57: 8510.5325 | Q57: 1.142653283 | R57: 0 | S57: 1276.0041 | T57: 1680.1961 | U57: 1.316763872 | X57: 32 | Y57: Příjmy z prodeje dlouhodobého finančního majetku | AB57: =SUM(AB58:AB59) -> 0 | AC57: =AG57+AK57 -> 0 | AD57: 0 | AE57: x | AF57: =SUM(AF58:AF59) -> 0 | AG57: 0 | AH57: 0 | AI57: x | AJ57: =SUM(AJ58:AJ59) -> 0 | AK57: 0 | AL57: 0 | AM57: x
B58: OK | E58: 3201 | G58: Příjmy z prodeje akcií | J58: 0 | K58: 0 | L58: 0 | M58: x | N58: 0 | O58: 0 | P58: 0 | Q58: x | R58: 0 | S58: 0 | T58: 0 | U58: x | X58: 3201 | Y58: Příjmy z prodeje akcií | AB58: 0 | AC58: =AG58+AK58 -> 0 | AD58: 0 | AE58: x | AF58: 0 | AG58: 0 | AH58: 0 | AI58: x | AJ58: 0 | AK58: 0 | AL58: 0 | AM58: x
B59: OK | E59: 3202 | G59: Příjmy z prodeje majetkových podílů | J59: 0 | K59: 0 | L59: 0 | M59: x | N59: 0 | O59: 0 | P59: 0 | Q59: x | R59: 0 | S59: 0 | T59: 0 | U59: x | X59: 3202 | Y59: Příjmy z prodeje majetkových podílů | AB59: 0 | AC59: =AG59+AK59 -> 0 | AD59: 0 | AE59: x | AF59: 0 | AG59: 0 | AH59: 0 | AI59: x | AJ59: 0 | AK59: 0 | AL59: 0 | AM59: x
B60: OK | E60: 32 | G60: Příjmy z prodeje dlouhodobého finančního majetku | J60: 0 | K60: 0 | L60: 0 | M60: x | N60: 0 | O60: 0 | P60: 0 | Q60: x | R60: 0 | S60: 0 | T60: 0 | U60: x | X60: Příjmy kap. 700-Obce a DSO; KÚ (část vzdělávání) | AB60: =AB47+AB14 -> 1023580.949 | AC60: =AC47+AC14 -> 1446864.405 | AD60: =AD47+AD14 -> 1457868.451 | AE60: =AD60/AC60 -> 1.007605443 | AF60: =AF47+AF14 -> 623200.7488 | AG60: =AG14+AG47 -> 956255.6975 | AH60: =AH47+AH14 -> 969059.554 | AI60: 1.013389574 | AJ60: =AJ47+AJ14 -> 400380.2 | AK60: =AK14+AK47 -> 490608.7079 | AL60: =AL47+AL14 -> 488808.8968 | AM60: =AL60/AK60 -> 0.9963314733
A61: =IF(COUNTBLANK(C61:IV61)=254,"odstr",IF(AND($A$1="TISK",SUM(J59:U59)=0),"odstr","OK")) ->  | B61: OK | E61: 3 | G61: Kapitálové příjmy | J61: 4406 | K61: 8724.0486 | L61: 10190.7286 | M61: 1.168119192 | N61: 4406 | O61: 7448.0445 | P61: 8510.5325 | Q61: 1.142653283 | R61: 0 | S61: 1276.0041 | T61: 1680.1961 | U61: 1.316763872 | AM61: Zdroj: Závěrečný účet – kapitola 700-Obce a DSO; KÚ (část: vzdělávání); monitor.statnipokladna.cz
X62: Komentář:
A63: =IF(COUNTBLANK(C63:IV63)=254,"odstr",IF(AND($A$1="TISK",SUM(J60:U60)=0),"odstr","OK")) ->  | B63: OK | E63: Příjmy kap. 700-Obce a DSO; KÚ (část vzdělávání) | J63: 899373.9369 | K63: 1265590.028 | L63: 1255731.439 | M63: 0.9922102826 | N63: 499653.9369 | O63: 800188.798 | P63: 783585.0862 | Q63: 0.9792502572 | R63: 399720 | S63: 465401.2298 | T63: 472146.3528 | U63: 1.014493135 | W63: 1) | X63: Tabulka neobsahuje z daných tříd následující položky: 2223, 2441, 2442, 2449, 4121, 4122, 4129, 4133, 4134, 4139, 4221, 4222, 4229.
A64: =IF(COUNTBLANK(C64:IV64)=254,"odstr",IF(AND($A$1="TISK",SUM(J61:U61)=0),"odstr","OK")) ->  | B64: OK | U64: Zdroj: Závěrečný účet – kapitola 700-Obce a DSO; KÚ (část: vzdělávání)
B65: OK | E65: Tabulka neobsahuje z daných tříd následující položky: 2223, 2441, 2442, 2449, 4121, 4122, 4129, 4133, 4134, 4139, 4221, 4222, 4229.
A66: konst | B66: stop | D66: Komentáře:
A67: =IF(COUNTBLANK(D67:E67)=2,"odstr","OK") -> OK | D67: 1)
A68: =IF(COUNTBLANK(D68:E68)=2,"odstr","OK") -> odstr
A69: stop

Sheet B6
A1: =IF(#REF!="","ŠABLONA",IF(#REF!="T","TISK","ELEKTRO")) ->  | B1: 0 | C1: =CONCATENATE(D1,F1,IF(G1<>"",".",""),G1,IF(H1<>"",".",""),H1,IF(I1<>"",".",""),I1,"") ->  | D1: =IF(#REF!=""," ?",#REF!) ->  | E1: =CONCATENATE(C1,N1) ->  | F1: 6
A2: konst
A3: konst | B3: 102x4 | D3: Tab. B6: | H3: Výdaje kapitoly 333-MŠMT – podle položek | P3: Tab. B6: | S3: Výdaje kapitoly 333-MŠMT - podle položek
A4: konst | B4: =COUNTA(Datova_oblast) -> 420 | D4: =IF(D1=" ?","",CONCATENATE("Tab. ",E1,":")) ->  | H4: =IF(H3="Zadejte název tabulky","",H3) -> Výdaje kapitoly 333-MŠMT – podle položek | P4: =IF(P1=" ?","",CONCATENATE("Tab. ",Q1,":")) -> Tab. :
A5: =IF(D5="","odstr","OK") -> odstr | B5: 0
A6: =IF(COUNTBLANK(C6:IW6)=254,"odstr","OK") -> OK | B6: Řádky pro
A7: =IF(COUNTBLANK(C7:IW7)=254,"odstr","OK") -> OK | B7: ročenku PaM
A8: konst | D8: (podle stavu k: 31. 12. 2017) | N8: v tis. Kč | P8: (podle stavu k: 31. 12. 2018) | Z8: v tis. Kč
A9: konst | D9: Položka | G9: Popis položky | J9: Schválený rozpočet | K9: Rozpočet po změnách | L9: Konečný rozpočet | M9: Skutečnost | N9: % plnění rozpočtu | P9: Položka | S9: Popis položky | V9: Schválený rozpočet | W9: Rozpočet po změnách | X9: Konečný rozpočet | Y9: Skutečnost | Z9: % plnění rozpočtu
A10: konst
A11: konst
A12: konst
A13: konst
E14: 5011 | G14: Platy zaměstnanců v pracovním poměru | J14: 107421.165 | K14: 111655.406 | L14: 113405.006 | M14: 108242.683 | N14: 0.9694352193 | Q14: 5 | S14: Běžné výdaje celkem | V14: =V15+V34+V77+V86+V104+V111+V120 -> 168608032 | W14: =W15+W34+W77+W86+W104+W111+W120 -> 172905173.9 | X14: =X15+X34+X77+X86+X104+X111+X120 -> 179369523.8 | Y14: =Y15+Y34+Y77+Y86+Y104+Y111+Y120 -> 174693824.5 | Z14: =Y14/W14 -> 1.010344691
E15: 5013 | G15: Platy státních zaměstnanců ve správních úřadech | J15: 659840.394 | K15: 668565.483 | L15: 679002.77 | M15: 645905.535 | N15: 0.966106614 | Q15: 50 | S15: Platy a podobné související výdaje | V15: =V16+V20+V26+V30+V32 -> 1243477.582 | W15: =W16+W20+W26+W30+W32 -> 1243477.582 | X15: =X16+X20+X26+X30+X32 -> 1372635.396 | Y15: =Y16+Y20+Y26+Y30+Y32 -> 1222701.214 | Z15: =Y15/W15 -> 0.9832917226
E16: 5021 | G16: Ostatní osobní výdaje | J16: 102553.765 | K16: 112732.023 | L16: 163424.899 | M16: 102161.1148 | N16: 0.9062297659 | Q16: 501 | S16: Platy | V16: =V17+V18+V19 -> 845764.315 | W16: =W17+W18+W19 -> 845764.315 | X16: =X17+X18 -> 890573.733 | Y16: =Y17+Y18+Y19 -> 834226.562 | Z16: =Y16/W16 -> 0.9863581937
E17: 5022 | G17: Platy představitelů státní moci a některých orgánů | J17: 1622.4 | K17: 1622.4 | L17: 1639.32 | M17: 1638.72 | N17: 1.010059172 | Q17: 5011 | S17: Platy zaměstnanců v pracovním poměru vyjma zaměstnanců na služebních místech | V17: 121029.258 | W17: 121725.258 | X17: 127583.41 | Y17: 117027.302 | Z17: =Y17/W17 -> 0.9614052492
E18: 5024 | G18: Odstupné | J18: 1000 | K18: 697.077 | L18: 698.708 | M18: 350.708 | N18: 0.5031122817 | Q18: 5013 | S18: Platy zaměstnanců na služebních místech podle zákona o státní službě | V18: 724735.057 | W18: 724039.057 | X18: 762990.323 | Y18: 717199.26 | Z18: =Y18/W18 -> 0.9905532762
E19: 5025 | G19: Odbytné | J19: 500 | K19: 908.736 | L19: 908.736 | M19: 408.736 | N19: 0.4497851961 | Q19: 5019 | S19: Ostatní platy | V19: 0 | W19: 0 | X19: 0 | Y19: 0 | Z19: x
E20: 5026 | G20: Odchodné | J20: 0 | K20: 406.5 | L20: 406.5 | M20: 406.5 | N20: 1 | Q20: 502 | S20: Ostatní platby za provedenou práci | V20: =SUM(V21:V25) -> 88058.631 | W20: =SUM(W21:W25) -> 88058.631 | X20: =SUM(X21:X25) -> 143663.849 | Y20: =SUM(Y21:Y25) -> 85758.258 | Z20: =Y20/W20 -> 0.9738768026
A21: =IF(COUNTBLANK(C21:IW21)=254,"odstr",IF(AND($A$1="TISK",SUM(J14:N14)=0),"odstr","OK")) ->  | B21: OK | E21: 5031 | G21: Povinné pojistné na sociální zabezpečení a příspěvek na státní politiku zaměstnanosti | J21: 216146.819 | K21: 219288.94 | L21: 233924.401 | M21: 208999.671 | N21: 0.9530789423 | Q21: 5021 | S21: Ostatní osobní výdaje | V21: 84823.431 | W21: 84720.681 | X21: 140323.899 | Y21: 83043.218 | Z21: 0.9802000765
A22: =IF(COUNTBLANK(C22:IW22)=254,"odstr",IF(AND($A$1="TISK",SUM(J15:N15)=0),"odstr","OK")) ->  | B22: OK | E22: 5032 | G22: Povinné pojistné na veřejné zdravotní pojištění | J22: 78017.9 | K22: 78920.143 | L22: 84188.316 | M22: 75443.115 | N22: 0.9559424519 | Q22: 5022 | S22: Platy představitelů státní moci a některých orgánů | V22: 1735.2 | W22: 1735.2 | X22: 1737.2 | Y22: 1736.4 | Z22: 1.000691563
E23: 5039 | G23: Ostatní povinné pojistné placené zaměstnavatelem | J23: 0 | K23: 170 | L23: 170 | M23: 40.669 | N23: 0.2392294118 | Q23: 5024 | S23: Odstupné | V23: 1000 | W23: 864.5 | X23: 864.5 | Y23: 363.995 | Z23: 0.4210468479
A24: =IF(COUNTBLANK(C24:IW24)=254,"odstr",IF(AND($A$1="TISK",SUM(J16:N16)=0),"odstr","OK")) ->  | B24: OK | E24: 5041 | G24: Odměny za užití duševního vlastnictví | J24: 0 | K24: 0 | L24: 0 | M24: 0 | N24: x | Q24: 5025 | S24: Odbytné | V24: 500 | W24: 602.75 | X24: 602.75 | Y24: 479.145 | Z24: 0.7949315637
A25: =IF(COUNTBLANK(C25:IW25)=254,"odstr",IF(AND($A$1="TISK",SUM(J17:N17)=0),"odstr","OK")) ->  | B25: OK | E25: 50 | G25: Výdaje na platby, ostatních platby za provedenou práci a pojistné | J25: 1167102.443 | K25: 1194966.708 | L25: 1277768.656 | M25: 1143597.452 | N25: 0.9570119771 | Q25: 5026 | S25: Odchodné | V25: 0 | W25: 135.5 | X25: 135.5 | Y25: 135.5 | Z25: 1
E26: 5132 | G26: Ochranné pomůcky | J26: 45 | K26: 46 | L26: 46 | M26: 27.97687 | N26: 0.6081928261 | Q26: 503 | S26: Povinné pojistné placené zaměstnavatelem | V26: =V27+V28+V29 -> 309654.636 | W26: =W27+W28+W29 -> 309654.636 | X26: =X27+X28+X29 -> 338397.814 | Y26: =SUM(Y27:Y29) -> 302712.3936 | Z26: 0.9775806928
A27: =IF(COUNTBLANK(C27:IW27)=254,"odstr",IF(AND($A$1="TISK",SUM(J18:N18)=0),"odstr","OK")) ->  | B27: OK | E27: 5133 | G27: Léky a zdravotnický materiál | J27: 55 | K27: 28.361 | L27: 28.361 | M27: 11.77 | N27: 0.415006523 | Q27: 5031 | S27: Povinné pojistné na sociální zabezpečení a příspěvek na státní politiku zaměstnanosti | V27: 227310.777 | W27: 227310.777 | X27: 247185.558 | Y27: 222437.8205 | Z27: 0.9785625804
A28: =IF(COUNTBLANK(C28:IW28)=254,"odstr",IF(AND($A$1="TISK",SUM(J19:N19)=0),"odstr","OK")) ->  | B28: OK | E28: 5134 | G28: Prádlo, oděv a obuv | J28: 3170 | K28: 6436.861 | L28: 6436.861 | M28: 6433.03812 | N28: 0.9994060956 | Q28: 5032 | S28: Povinné pojistné na veřejné zdravotní pojištění | V28: 82343.859 | W28: 82343.859 | X28: 91212.256 | Y28: 80274.5731 | Z28: 0.9748701855
A29: =IF(COUNTBLANK(C29:IW29)=254,"odstr",IF(AND($A$1="TISK",SUM(J20:N20)=0),"odstr","OK")) ->  | B29: OK | E29: 5136 | G29: Knihy, učební pomůcky a tisk | J29: 628 | K29: 752.382 | L29: 752.382 | M29: 568.66554 | N29: 0.7558202349 | Q29: 5039 | S29: Ostatní povinné pojistné placené zaměstnavatelem | V29: 0 | W29: 0 | X29: 0 | Y29: 0 | Z29: x
E30: 5137 | G30: Drobný hmotný dlouhodobý majetek | J30: 7139.117 | K30: 22071.644 | L30: 31950.87625 | M30: 14910.87171 | N30: 0.6755668817 | Q30: 504 | S30: Odměny za užití duševního vlastnictví | V30: =V31 -> 0 | W30: 0 | X30: =X31 -> 0 | Y30: =Y31 -> 4 | Z30: 0
A31: =IF(COUNTBLANK(C31:IW31)=254,"odstr",IF(AND($A$1="TISK",SUM(J21:N21)=0),"odstr","OK")) ->  | B31: OK | E31: 5139 | G31: Nákup materiálu jinde nezařazený | J31: 5920 | K31: 15009.152 | L31: 16431.777 | M31: 12732.59662 | N31: 0.848322185 | Q31: 5041 | S31: Odměny za užití duševního vlastnictví | V31: 0 | W31: 0 | X31: =X33 -> 0 | Y31: 4 | Z31: x
E32: 5142 | G32: Realizované kurzové ztráty | J32: 215 | K32: 343.27 | L32: 343.27 | M32: 324.05953 | N32: 0.9440368515 | Q32: 505 | S32: Mzdové náhrady | V32: =V33 -> 0 | W32: 0 | X32: 0 | Y32: =Y33 -> 0 | Z32: x
A33: =IF(COUNTBLANK(C33:IW33)=254,"odstr",IF(AND($A$1="TISK",SUM(J22:N22)=0),"odstr","OK")) ->  | B33: OK | E33: 5151 | G33: Studená voda | J33: 1461 | K33: 1672.206 | L33: 1672.206 | M33: 1580.74117 | N33: 0.9453028933 | Q33: 5051 | S33: Mzdové náhrady | V33: 0 | W33: 0 | X33: 0 | Y33: 0 | Z33: x
A34: =IF(COUNTBLANK(C34:IW34)=254,"odstr",IF(AND($A$1="TISK",SUM(J23:N23)=0),"odstr","OK")) ->  | B34: OK | E34: 5152 | G34: Teplo | J34: 2551 | K34: 3261.185 | L34: 3261.185 | M34: 2497.0607 | N34: 0.7656912135 | Q34: 51 | S34: Neinvestiční nákupy a související výdaje | V34: =V36+V43+V45+V52+V61+V68+V71 -> 405320.749 | W34: =W36+W43+W45+W52+W61+W68+W71 -> 410837.733 | X34: =X36+X43+X45+X52+X61+X68+X71 -> 455183.1697 | Y34: =SUM(Y35:Y71) -> 603573.2213 | Z34: =Y34/W34 -> 1.469128011
A35: =IF(COUNTBLANK(C35:IW35)=254,"odstr",IF(AND($A$1="TISK",SUM(J24:N24)=0),"odstr","OK")) ->  | B35: OK | E35: 5153 | G35: Plyn | J35: 4943 | K35: 5014.532 | L35: 5014.532 | M35: 4406.86661 | N35: 0.8788191221 | Q35: 5123 | S35: Podlimitní technické zhodnocení | V35: 0 | W35: 0 | X35: 0 | Y35: 41 | Z35: 0
E36: 5154 | G36: Elektrická energie | J36: 5767 | K36: 8303.478 | L36: 8303.478 | M36: 6363.30429 | N36: 0.7663420425 | Q36: 513 | S36: Nákupy materiálu | V36: =SUM(V37:V42) -> 27394.523 | W36: =SUM(W37:W42) -> 57574.216 | X36: =SUM(X37:X42) -> 58096.27219 | Y36: 46193 | Z36: =Y36/W36 -> 0.8023209556
E37: 5156 | G37: Pohonné hmoty a maziva | J37: 6256 | K37: 6084.14 | L37: 6084.14 | M37: 5801.66859 | N37: 0.9535725 | Q37: 5132 | S37: Ochranné pomůcky | V37: 35 | W37: 32.999 | X37: 32.999 | Y37: 22.994 | Z37: 0.6968089942
E38: 5157 | G38: Teplá voda | J38: 290 | K38: 275 | L38: 275 | M38: 255.14293 | N38: 0.9277924727 | Q38: 5133 | S38: Léky a zdravotnický personál | V38: 25 | W38: 44.164 | X38: 44.164 | Y38: 22.018 | Z38: 0.4985508559
E39: 5161 | G39: Služby pošt | J39: 1391.25 | K39: 2062.5 | L39: 2062.5 | M39: 1927.56101 | N39: 0.9345750352 | Q39: 5134 | S39: Prádlo, oděv a obuv | V39: 3250 | W39: 6378.5 | X39: 6378.5 | Y39: 6377.89105 | Z39: 0.9999045308
E40: 5162 | G40: Služby telekomunikací a radiokomunikací | J40: 11851.76 | K40: 9363.613 | L40: 9608.613 | M40: 6122.7944 | N40: 0.6538922956 | Q40: 5136 | S40: Knihy, učební pomůcky a tisk | V40: 635 | W40: 660.28 | X40: 660.28 | Y40: 470.0738 | Z40: 0.711930999
E41: 5163 | G41: Služby peněžních ústavů | J41: 1679 | K41: 1970.612 | L41: 1970.612 | M41: 1827.89579 | N41: 0.927577722 | Q41: 5137 | S41: Drobný hmotný dlouhodobý majetek | V41: 13254.323 | W41: 36757.102 | X41: 36866.722 | Y41: 27717.78927 | Z41: 0.7540798312
E42: 5164 | G42: Nájemné | J42: 23586 | K42: 55612.721 | L42: 58556.00957 | M42: 52840.72231 | N42: 0.9501553127 | Q42: 5139 | S42: Nákup materiálu jinde nezařazený | V42: 10195.2 | W42: 13701.171 | X42: 14113.60719 | Y42: 11582.46244 | Z42: 0.8453629577
A43: =IF(COUNTBLANK(C43:IW43)=254,"odstr",IF(AND($A$1="TISK",SUM(J25:N25)=0),"odstr","OK")) ->  | B43: OK | E43: 5166 | G43: Konzultační, poradenské a právní služby | J43: 2879.9 | K43: 2687.503 | L43: 3687.503 | M43: 1137.975 | N43: 0.4234320855 | Q43: 514 | S43: Úroky a ostatní finanční výdaje | V43: =V44 -> 215 | W43: =W44 -> 390.736 | X43: =X44 -> 390.736 | Y43: =Y44 -> 260.13098 | Z43: 0.6657461304
E44: 5167 | G44: Služby školení a vzdělávání | J44: 3300 | K44: 5604.449 | L44: 5604.451 | M44: 3527.56552 | N44: 0.6294223607 | Q44: 5142 | S44: Kursové rozdíly ve výdajích | V44: 215 | W44: 390.736 | X44: 390.736 | Y44: 260.13098 | Z44: 0.6657461304
A45: =IF(COUNTBLANK(C45:IW45)=254,"odstr",IF(AND($A$1="TISK",SUM(J26:N26)=0),"odstr","OK")) ->  | B45: OK | E45: 5168 | G45: Služby zpracování dat | J45: 22992.108 | K45: 22237.342 | L45: 23343.98034 | M45: 19930.09026 | N45: 0.8962442661 | Q45: 515 | S45: Nákupy vody, paliv a energie | V45: =SUM(V46:V51) -> 19563.215 | W45: =SUM(W46:W51) -> 22132.354 | X45: =SUM(X46:X51) -> 22137.354 | Y45: =SUM(Y46:Y51) -> 20079.62978 | Z45: 0.907252332
E46: 5169 | G46: Nákup ostatních služeb | J46: 218895.046 | K46: 147032.127 | L46: 165406.8459 | M46: 95098.04977 | N46: 0.6467841533 | Q46: 5151 | S46: Studená voda | V46: 1400 | W46: 1754.769 | X46: 1754.769 | Y46: 1678.00512 | Z46: 0.9562541394
E47: 5171 | G47: Opravy a udržování | J47: 9222.755 | K47: 12832.527 | L47: 13872.429 | M47: 10784.20454 | N47: 0.8403804286 | Q47: 5152 | S47: Teplo | V47: 2414.185 | W47: 2877.68 | X47: 2877.68 | Y47: 2397.33372 | Z47: 0.8330786328
E48: 5172 | G48: Programové vybavení | J48: 4720 | K48: 5483.197 | L48: 5816.1211 | M48: 891.7976 | N48: 0.162641904 | Q48: 5153 | S48: Plyn | V48: 4716 | W48: 4566 | X48: 4566 | Y48: 3985.36236 | Z48: 0.8728345072
E49: 5173 | G49: Cestovné (tuzemské i zahraniční) | J49: 40496.787 | K49: 42454.56 | L49: 44398.62149 | M49: 31604.71092 | N49: 0.7444361906 | Q49: 5154 | S49: Elektrická energie | V49: 4987.03 | W49: 6633.315 | X49: 6633.315 | Y49: 5999.5278 | Z49: 0.9044539269
E50: 5175 | G50: Pohoštění | J50: 2120.47 | K50: 6240.472 | L50: 6476.672 | M50: 3185.54398 | N50: 0.5104652308 | Q50: 5156 | S50: Pohonné hmoty a maziva | V50: 5756 | W50: 6026.59 | X50: 6031.59 | Y50: 5783.56224 | Z50: 0.9596740843
E51: 5176 | G51: Účastnické poplatky na konference | J51: 165 | K51: 1510 | L51: 1510 | M51: 992.85675 | N51: 0.6575210265 | Q51: 5157 | S51: Teplá voda | V51: 290 | W51: 274 | X51: 274 | Y51: 235.83854 | Z51: 0.8607245985
A52: =IF(COUNTBLANK(C52:IW52)=254,"odstr",IF(AND($A$1="TISK",SUM(J27:N27)=0),"odstr","OK")) ->  | B52: OK | E52: 5179 | G52: Ostatní nákupy jinde nezařazené | J52: 6018 | K52: 7236.824 | L52: 7236.824 | M52: 7222.9698 | N52: 0.9980855967 | Q52: 516 | S52: Nákup služeb | V52: =SUM(V53:V60) -> 293797.367 | W52: =SUM(W53:W60) -> 257240.124 | X52: =SUM(X53:X60) -> 297164.0562 | Y52: =SUM(Y53:Y60) -> 175633.7794 | Z52: 0.6827619918
E53: 5181 | G53: Poskytnuté zálohy vnitřním organizačním jednotkám | J53: 0 | K53: 220 | L53: 220 | M53: 0 | N53: 0 | Q53: 5161 | S53: Poštovní služby | V53: 1811.25 | W53: 2225.308 | X53: 2285.845 | Y53: 2193.75204 | Z53: 0.985819509
E54: 5182 | G54: Poskytované zálohy vlastní pokladně | J54: 0 | K54: 0 | L54: 0 | M54: 0 | N54: x | Q54: 5162 | S54: Služby elektronických komunikací | V54: 11113.792 | W54: 9693.067 | X54: 10509.826 | Y54: 5947.70016 | Z54: 0.6136035333
E55: 5189 | G55: Ostatní poskytované zálohy a jistiny | J55: 0 | K55: 0 | L55: 0 | M55: 0 | N55: x | Q55: 5163 | S55: Služby peněžních ústavů | V55: 1869 | W55: 2149.643 | X55: 2149.643 | Y55: 2032.5211 | Z55: 0.9455156507
E56: 5191 | G56: Zaplacené sankce | J56: 0 | K56: 29.861 | L56: 29.861 | M56: 29.77534 | N56: 0.9971313754 | Q56: 5164 | S56: Nájemné | V56: 29799.022 | W56: 60046.512 | X56: 60535.30889 | Y56: 53294.12433 | Z56: 0.8875473788
E57: 5192 | G57: Poskytnuté neinvestiční příspěvky a náhrady (část) | J57: 160 | K57: 749.394 | L57: 749.394 | M57: 645.283 | N57: 0.8610730804 | Q57: 5166 | S57: Konzultační, poradenské a právní služby | V57: 2122.3 | W57: 3314.229 | X57: 3314.229 | Y57: 778.38989 | Z57: 0.2348630375
E58: 5194 | G58: Věcné dary | J58: 475 | K58: 572.487 | L58: 572.487 | M58: 177.6693 | N58: 0.3103464358 | Q58: 5167 | S58: Služby školení a vzdělávání | V58: 3050 | W58: 6660.827 | X58: 7251.91161 | Y58: 3171.10383 | Z58: 0.4760825991
E59: 5195 | G59: Odvody za neplnění povinnosti zaměstnávat zdravotně postižené | J59: 364 | K59: 264.6 | L59: 264.6 | M59: 264.6 | N59: 1 | Q59: 5168 | S59: Zpracování dat a služby související s informačními a komunikačními technologiemi | V59: 24496.196 | W59: 28728.301 | X59: 31064.877 | Y59: 21399.22876 | Z59: 0.7448831993
E60: 5196 | G60: Náhrady a příspěvky související s výkonem ústavní funkce a funkce soudce | J60: 219.6 | K60: 238.92 | L60: 238.92 | M60: 238.92 | N60: 1 | Q60: 5169 | S60: Nákup ostatních služeb | V60: 219535.807 | W60: 144422.237 | X60: 180052.4157 | Y60: 86816.95932 | Z60: 0.6011329081
A61: =IF(COUNTBLANK(C61:IW61)=254,"odstr",IF(AND($A$1="TISK",SUM(J28:N28)=0),"odstr","OK")) ->  | B61: OK | E61: 51 | G61: Neinvestiční nákupy a související výdaje | J61: 388976.793 | K61: 393701.92 | L61: 432226.5127 | M61: 294364.748 | N61: 0.7476843089 | Q61: 517 | S61: Ostatní nákupy | V61: =SUM(V62:V67) -> 63027.044 | W61: =SUM(W62:W67) -> 71654.908 | X61: =SUM(X62:X67) -> 75549.35628 | Y61: =SUM(Y62:Y67) -> 58843.96007 | Z61: 0.8212132527
E62: 5212 | G62: Neinvestiční transfery nefinančním podnikatelským subjektům-fyzickým osobám | J62: 5375 | K62: 1970.94 | L62: 2115.94 | M62: 1140.653 | N62: 0.5787355272 | Q62: 5171 | S62: Opravy a udržování | V62: 10049.027 | W62: 13174.695 | X62: 16149.24676 | Y62: 13150.73218 | Z62: 0.998181148
E63: 5213 | G63: Neinvestiční transfery nefinančním podnikatelským subjektům-právnickým osobám | J63: 582735.351 | K63: 655200.445 | L63: 992878.5922 | M63: 844041.8171 | N63: 1.288219237 | Q63: 5172 | S63: Programové vybavení | V63: 1589.76 | W63: 2418.223 | X63: 2592.223 | Y63: 905.1489 | Z63: 0.3743033211
E64: 5221 | G64: Neinvestiční transfery obecně prospěšným společnostem | J64: 36604 | K64: 58491.296 | L64: 296257.702 | M64: 254890.0777 | N64: 4.357743718 | Q64: 5173 | S64: Cestovné (tuzemské i zahraniční) | V64: 42739.787 | W64: 40307.239 | X64: 40547.53341 | Y64: 32813.59946 | Z64: 0.8140870046
E65: 5222 | G65: Neinvestiční transfery občanským sdružením | J65: 4795705.298 | K65: 4326945.15 | L65: 4613479.665 | M65: 4431366.141 | N65: 1.024132728 | Q65: 5175 | S65: Pohoštění | V65: 2455.47 | W65: 5917.985 | X65: 6422.58711 | Y65: 3186.00902 | Z65: 0.5383604419
E66: 5223 | G66: Neinvestiční transfery církvím a náboženským společnostem | J66: 1428972.974 | K66: 1532501.15 | L66: 1613387.627 | M66: 1591329.81 | N66: 1.038387351 | Q66: 5176 | S66: Účastnické poplatky na konference | V66: 175 | W66: 1456.6 | X66: 1456.6 | Y66: 440.98459 | Z66: 0.3027492723
E67: 5229 | G67: Ostatní neinvestiční transfery neziskovým a podobným organizacím | J67: 691665 | K67: 325814.862 | L67: 380984.963 | M67: 331556.1257 | N67: 1.017621246 | Q67: 5179 | S67: Ostaní nákupy jinde nezařazené | V67: 6018 | W67: 8380.166 | X67: 8381.166 | Y67: 8347.48592 | Z67: 0.9961003064
A68: =IF(COUNTBLANK(C68:IW68)=254,"odstr",IF(AND($A$1="TISK",SUM(J29:N29)=0),"odstr","OK")) ->  | B68: OK | E68: 5230 | G68: Neinvestiční nedotační transfery podnikatelským subjektům | J68: 0 | K68: 0 | L68: 0 | M68: 0 | N68: x | Q68: 518 | S68: Poskytnuté zálohy, jistiny a záruky | V68: 0 | W68: 0 | X68: 0 | Y68: 0 | Z68: x
E69: 5240 | G69: Neinvestiční nedotační transfery neziskovým a podobným organizacím | J69: 0 | K69: 0 | L69: 0 | M69: 0 | N69: x | Q69: 5181 | S69: Poskytnuté zálohy vnitřním organizačním jednotkám | V69: 0 | W69: 0 | X69: 0 | Y69: 0 | Z69: x
E70: 52 | G70: Neinvestiční transfery podnikatelským subjektům a neziskovým organizacím. Neinvestiční transfery soukromoprávním subjektům | J70: 7541057.623 | K70: 6900923.843 | L70: 7899104.489 | M70: 7454324.624 | N70: 1.080192275 | Q70: 5182 | S70: Poskytnuté zálohy vlastní pokladně | V70: 0 | W70: 0 | X70: 0 | Y70: 0 | Z70: x
A71: =IF(COUNTBLANK(C71:IW71)=254,"odstr",IF(AND($A$1="TISK",SUM(J30:N30)=0),"odstr","OK")) ->  | B71: OK | E71: 5321 | G71: Neinvestiční dotace obcím | J71: 10779967.12 | K71: 12553597.65 | L71: 15369169.68 | M71: 14984063.06 | N71: 1.193607082 | Q71: 519 | S71: Výdaje související s neivestičními nákupy, příspěvky, náhrady a věcné dary | V71: =SUM(V72:V76) -> 1323.6 | W71: =SUM(W72:W76) -> 1845.395 | X71: =SUM(X72:X76) -> 1845.395 | Y71: =Y72+Y73+Y74+Y75+Y76 -> 1510.99225 | Z71: =Y71/W71 -> 0.8187906925
E72: 5323 | G72: Neinvestiční dotace krajům | J72: 89220432.45 | K72: 90693638.83 | L72: 91588230.84 | M72: 91013283.63 | N72: 1.003524446 | Q72: 5191 | S72: Zaplacené sankce | V72: 0 | W72: 11.04 | X72: 11.04 | Y72: 10.09855 | Z72: 0.9147237319
E73: 5329 | G73: Ostatní neinvestiční dotace veřejným rozpočtům územní úrovně | J73: 0 | K73: 564.694 | L73: 19134.401 | M73: 19037.26154 | N73: 33.71252668 | Q73: 5192 | S73: Poskytnuté náhrady | V73: 260 | W73: 539.699 | X73: 539.699 | Y73: 508.7057 | Z73: 0.9425729898
E74: 5331 | G74: Neinvestiční příspěvky zřízeným příspěvkovým organizacím | J74: 3339486.427 | K74: 3363723.989 | L74: 3375449.556 | M74: 3323142.277 | N74: 0.9879354811 | Q74: 5194 | S74: Věcné dary | V74: 480 | W74: 536.7 | X74: 536.7 | Y74: 234.232 | Z74: 0.4364300354
E75: 5332 | G75: Neinvestiční dotace vysokým školám | J75: 33122116.44 | K75: 32767330.88 | L75: 34385203.29 | M75: 29769946.75 | N75: 0.9085252279 | Q75: 5195 | S75: Odvody za neplnění povinností zaměstnávat zdravotně postižené | V75: 364 | W75: 504.756 | X75: 504.756 | Y75: 504.756 | Z75: 1
E76: 5334 | G76: Neinvestiční transfery veřejným výzkumným institucím | J76: 1043935.084 | K76: 1499257.464 | L76: 1947033.046 | M76: 1800709.627 | N76: 1.201067642 | Q76: 5196 | S76: Náhrady a příspěvky související s výkonem ústavní funkce a funkce soudce | V76: 219.6 | W76: 253.2 | X76: 253.2 | Y76: 253.2 | Z76: 1
E77: 5336 | G77: Neinvestiční dotace zřízeným příspěvkovým organizacím | J77: 713266.626 | K77: 1097051.05 | L77: 1324519.851 | M77: 785985.7188 | N77: 0.7164531849 | Q77: 52 | S77: Neinvestiční transfery soukromoprávním subjektům | V77: =V78+V81 -> 7292131.507 | W77: =W78+W81 -> 7996254.111 | X77: =X78+X81 -> 8597534.019 | Y77: =Y78+Y81 -> 8056243.626 | Z77: 1.007502202
E78: 5339 | G78: Neinvestiční příspěvky ostatním příspěvkovým organizacím | J78: 447492 | K78: 366772.506 | L78: 390768.506 | M78: 388315.3973 | N78: 1.058736386 | Q78: 521 | S78: Neinvestiční transfery podnikatelským subjektům | V78: =V79+V80 -> 588677.933 | W78: =W79+W80 -> 803510.683 | X78: =X79+X80 -> 926043.3932 | Y78: =Y79+Y80 -> 829193.1017 | Z78: 1.031962759
E79: 5342 | G79: Převody fondu kulturních a sociálních potřeb a sociálnímu fondu obcí a krajů | J79: 15345.231 | K79: 15604.419 | L79: 15835.388 | M79: 15063.02836 | N79: 0.9653052997 | Q79: 5212 | S79: Neinvestiční transfery nefinančním podnikatelským subjektům - fyzickým osobám | V79: 5375 | W79: 1131.648 | X79: 1131.648 | Y79: 592.72 | Z79: 0.5237671078
E80: 5361 | G80: Nákup kolků | J80: 0 | K80: 24 | L80: 24 | M80: 24 | N80: 1 | Q80: 5213 | S80: Neinvestiční transfery nefinančním podnikatelským subjektům - právnickým osobám | V80: 583302.933 | W80: 802379.035 | X80: 924911.7452 | Y80: 828600.3817 | Z80: 1.032679501
E81: 5362 | G81: Platby daní a poplatků státnímu rozpočtu | J81: 322 | K81: 490.513 | L81: 490.513 | M81: 443.461 | N81: 0.9040759368 | Q81: 522 | S81: Neinvestiční transfery neziskovým a podobným organizacím | V81: =SUM(V82:V85) -> 6703453.574 | W81: =SUM(W82:W85) -> 7192743.428 | X81: =SUM(X82:X85) -> 7671490.626 | Y81: =SUM(Y82:Y85) -> 7227050.525 | Z81: 1.004769682
E82: 5363 | G82: Úhrady sankcí jiným rozpočtům | J82: 0 | K82: 2534.082 | L82: 7894.995 | M82: 6054.322 | N82: 2.389157888 | Q82: 5221 | S82: Neinvestiční transfery obecně prospěšným společnostem | V82: 24749 | W82: 274526.198 | X82: 378809.823 | Y82: 342119.7836 | Z82: 1.246219072
E83: 5365 | G83: Výdaje z finančního vypořádání minulých let mezi krajem a obcemi | J83: 0 | K83: 0 | L83: 0 | M83: 0 | N83: x | Q83: 5222 | S83: Neinvestiční tranfery spolkům | V83: 4533166.683 | W83: 5146811.555 | X83: 5326362.489 | Y83: 5047881.554 | Z83: 0.9807783906
E84: 53 | G84: Neinvestiční transfery veřejnoprávním subjektům a mezi peněžními fondy téhož subjektu | J84: 138682363.4 | K84: 142360590.1 | L84: 148423754.1 | M84: 142106068.5 | N84: 0.9982121348 | Q84: 5223 | S84: Neinvestiční transfery církvím a náboženským společnostem | V84: 1540660.121 | W84: 1657947.191 | X84: 1833204.113 | Y84: 1797772.438 | Z84: 1.08433637
E85: 5422 | G85: Náhrady povahy rehabilitací | J85: 0 | K85: 0 | L85: 0 | M85: 0 | N85: x | Q85: 5229 | S85: Ostatní neinvestiční transfery neziskovým a podpbným organizacím | V85: 604877.77 | W85: 113458.484 | X85: 133114.201 | Y85: 39276.74905 | Z85: 0.3461772771
E86: 5424 | G86: Náhrady mezd v době nemoci | J86: 3021 | K86: 3001 | L86: 3001 | M86: 2321.685 | N86: 0.773637121 | Q86: 53 | S86: Neinvestiční transfery veřejnoprávním subjektům a mezi peněžními fondy téhož subjektu a platby daní | V86: =V87+V91+V97+V99 -> 158906166.3 | W86: =W87+W91+W97+W99 -> 162405897.6 | X86: =X87+X91+X97+X99 -> 167895438.3 | Y86: =Y87+Y91+Y97+Y99 -> 163847406.8 | Z86: 1.008875966
E87: 5491 | G87: Stipendia studentům a doktorandům | J87: 4231 | K87: 5678.6 | L87: 5678.6 | M87: 5069.5 | N87: 0.8927376466 | Q87: 532 | S87: Neinvestiční transfery veřejným rozpočtům územní úrovně | V87: =V88+V89+V90 -> 117127153.8 | W87: =SUM(W88:W90) -> 120096833 | X87: =SUM(X88:X90) -> 121170005.6 | Y87: =SUM(Y88:Y90) -> 120258983.2 | Z87: 1.001350162
E88: 5492 | G88: Dary obyvatelstvu | J88: 1377 | K88: 0 | L88: 900 | M88: 900 | N88: x | Q88: 5321 | S88: Neinvestiční transfery obcím | V88: 12434384.41 | W88: 16424683.78 | X88: 17163377.56 | Y88: 17048054.82 | Z88: 1.037953305
E89: 5494 | G89: Neinvestiční transfery obyvatelstvu nemající charakter daru | J89: 50 | K89: 250 | L89: 945 | M89: 945 | N89: 3.78 | Q89: 5323 | S89: Neinvestiční transfery krajům | V89: 104692769.4 | W89: 103656696.6 | X89: 103988516.1 | Y89: 103193437.1 | Z89: 0.9955308284
E90: 5499 | G90: Ostatní neinvestiční transfery obyvatelstvu | J90: 0 | K90: 0 | L90: 0 | M90: 0 | N90: x | Q90: 5329 | S90: Ostatní neinvestiční transfery veřejným rozpočtům územní úrovně | V90: 0 | W90: 15452.624 | X90: 18111.918 | Y90: 17491.32187 | Z90: 1.131932148
E91: 54 | G91: Neinvestiční transfery obyvatelstvu | J91: 8679 | K91: 8929.6 | L91: 10524.6 | M91: 9236.185 | N91: 1.034333565 | Q91: 533 | S91: Neinvestiční transfery příspěvkovým a podobným organizacím | V91: =SUM(V92:V96) -> 41761775.14 | W91: =SUM(W92:W96) -> 42288258.66 | X91: =SUM(X92:X96) -> 46699119.62 | Y91: =SUM(Y92:Y96) -> 43568049.58 | Z91: 1.030263505
E92: 5511 | G92: Neinvestiční transfery mezinárodním organizacím | J92: 538196.1 | K92: 0 | L92: 0 | M92: 0 | N92: x | Q92: 5331 | S92: Neinvestiční příspěvky zřízeným příspěvkovým organizacím | V92: 3713312.899 | W92: 3679919.604 | X92: 3697507.178 | Y92: 3617049.67 | Z92: 0.9829154056
E93: 5531 | G93: Peněžní dary do zahraničí | J93: 3002.358 | K93: 2903.201 | L93: 2903.201 | M93: 2903.20036 | N93: 0.9999997796 | Q93: 5332 | S93: Neinvestiční transfery vysokým školám | V93: 34938251.03 | W93: 35689674.44 | X93: 38962759.24 | Y93: 36625348.74 | Z93: 1.026216947
E94: 5532 | G94: Ostatní neinvestiční transfery do zahraničí | J94: 3334 | K94: 13865.179 | L94: 30565.179 | M94: 23344.30852 | N94: 1.683664417 | Q94: 5334 | S94: Neinvestiční transfery veřejným výzkumným institucím | V94: 1271574.311 | W94: 1832008.767 | X94: 2679685.137 | Y94: 2367511.062 | Z94: 1.292303347
E95: 5541 | G95: Členské příspěvky mezinárodním vládním organizacím | J95: 0 | K95: 876675.55 | L95: 876675.55 | M95: 835256.9062 | N95: 0.9527548774 | Q95: 5336 | S95: Neinvestiční transfery zřízeným příspěvkovým organizacím | V95: 1357663.896 | W95: 735442.85 | X95: 1007955.067 | Y95: 616698.934 | Z95: 0.8385409335
E96: 5542 | G96: Členské příspěvky mezinárodním nevládním organizacím | J96: 0 | K96: 4922.762 | L96: 8222.762 | M96: 7589.35761 | N96: 1.541686884 | Q96: 5339 | S96: Neinvestiční transfery cizím příspěvkovým organizacím | V96: 480973 | W96: 351213 | X96: 351213 | Y96: 341441.169 | Z96: 0.9721769097
E97: 55 | G97: Neinvestiční transfery do zahraničí | J97: 544532.458 | K97: 898366.692 | L97: 918366.692 | M97: 869093.7726 | N97: 0.9674153999 | Q97: 534 | S97: Převod vlastním fondům a ve vztahu k útvarům bez plné právní subjektivity | V97: =V98 -> 16915.287 | W97: =W98 -> 16915.287 | X97: =X98 -> 17822.433 | Y97: =SUM(Y98) -> 16691 | Z97: 0.9867405738
E98: 5909 | G98: Ostatní neinvestiční výdaje jinde nezařazené | J98: 0 | K98: 3155.4 | L98: 3155.4 | M98: 2105.70319 | N98: x | Q98: 5342 | S98: Převody fondu kulturních a sociálních potřeb a sociálnímu fondu obcí a krajů | V98: 16915.287 | W98: 16915.287 | X98: 17822.433 | Y98: 16691 | Z98: 0.9867405738
E99: 59 | G99: Ostatní neinvestiční výdaje | J99: 0 | K99: 3155.4 | L99: 3155.4 | M99: 2105.70319 | N99: x | Q99: 536 | R99: Ostatní neinvestiční transfery jiným veřejným rozpočtům, platby daní a další povinné platby | V99: =V100+V101+V102+V103 -> 322 | W99: =SUM(W100:W103) -> 3890.618 | X99: =SUM(X100:X103) -> 8490.618 | Y99: =SUM(Y100:Y103) -> 3683 | Z99: 0.9466362413
E100: 5 | G100: Běžné výdaje | J100: 148332711.7 | K100: 151760634.2 | L100: 158964900.4 | M100: 151878791 | N100: 1.000778573 | Q100: 5361 | S100: Nákup kolků | V100: 0 | W100: 17 | X100: 17 | Y100: 17 | Z100: 1
E101: 6111 | G101: Programové vybavení | J101: 0 | K101: 4029.959 | L101: 7322.6466 | M101: 5845.8146 | N101: 1.4505891 | Q101: 5362 | S101: Platba daní a poplatků státnímu rozpočtu | V101: 322 | W101: 169.921 | X101: 169.921 | Y101: 124 | Z101: 0.7297508842
A102: =IF(COUNTBLANK(C102:IW102)=254,"odstr",IF(AND($A$1="TISK",SUM(J31:N31)=0),"odstr","OK")) ->  | B102: OK | E102: 6112 | G102: Ocenitelná práva | J102: 0 | K102: 0 | L102: 0 | M102: 0 | N102: x | Q102: 5363 | S102: Úhrady sankcí jiným rozpočtům | V102: 0 | W102: 3703.697 | X102: 8303.697 | Y102: 3542 | Z102: 0.956341731
A103: =IF(COUNTBLANK(C103:IW103)=254,"odstr",IF(AND($A$1="TISK",SUM(J32:N32)=0),"odstr","OK")) ->  | B103: OK | E103: 6121 | G103: Budovy, haly a stavby | J103: 66869.07 | K103: 63634.74 | L103: 68948.12664 | M103: 5307.2607 | N103: 0.08340193894 | Q103: 5365 | S103: Platby daní a poplatků krajům, obcím a státním fondům | V103: 0 | W103: 0 | X103: 0 | Y103: 0 | Z103: x
A104: =IF(COUNTBLANK(C104:IW104)=254,"odstr",IF(AND($A$1="TISK",SUM(J33:N33)=0),"odstr","OK")) ->  | B104: OK | E104: 6122 | G104: Stroje, přístroje a zařízení | J104: 0 | K104: 13213.119 | L104: 13213.119 | M104: 12738.0966 | N104: 0.9640491848 | Q104: 54 | S104: Neinvestiční transfery obyvatelstvu | V104: =V105+V107 -> 8400.708 | W104: =W105+W107 -> 23033.508 | X104: =X105+X107 -> 23059.508 | Y104: =Y105+Y107 -> 21313.848 | Z104: =Y104/W104 -> 0.9253409424
E105: 6123 | G105: Dopravní prostředky | J105: 0 | K105: 1812.582 | L105: 8870.57083 | M105: 8870.57083 | N105: 4.893886638 | Q105: 542 | S105: Náhrady placené obyvatelstvu | V105: =V106 -> 3069.708 | W105: =W106 -> 3212.208 | X105: =X106 -> 3212.208 | Y105: =Y106 -> 2743.718 | Z105: 0.8541532802
E106: 6125 | G106: Výpočetní technika | J106: 0 | K106: 774.925 | L106: 6643.222 | M106: 5564.82128 | N106: 7.181109501 | Q106: 5424 | S106: Náhrady mezd v době nemoci | V106: 3069.708 | W106: 3212.208 | X106: 3212.208 | Y106: 2743.718 | Z106: 0.8541532802
E107: 6127 | G107: Umělecká díla a předměty | J107: 0 | K107: 0 | L107: 0 | M107: 0 | N107: x | Q107: 549 | S107: Ostatní neinvestiční transfery obyvatelstvu | V107: =SUM(V108:V110) -> 5331 | W107: =SUM(W108:W110) -> 19821.3 | X107: =SUM(X108:X110) -> 19847.3 | Y107: =SUM(Y108:Y110) -> 18570.13 | Z107: 0.9368775005
Q108: 5491 | S108: Stipendia žákům, studentům a doktorandům | V108: 4231 | W108: 6324.2 | X108: 6324.2 | Y108: 5147.25 | Z108: 0.8138974099
E109: 61 | G109: Investiční nákupy a související výdaje | J109: 66869.07 | K109: 83465.325 | L109: 104997.6851 | M109: 38326.56401 | N109: 0.4591914548 | Q109: 5492 | S109: Dary obyvatelstvu | V109: 900 | W109: 900 | X109: 900 | Y109: 800 | Z109: 0.8888888889
Q110: 5494 | S110: Neinvestiční transfery obyvatelstvu nemající charakter daru | V110: 200 | W110: 12597.1 | X110: 12623.1 | Y110: 12622.88 | Z110: 1.002046503
A111: =IF(COUNTBLANK(C111:IW111)=254,"odstr",IF(AND($A$1="TISK",SUM(J34:N34)=0),"odstr","OK")) ->  | B111: OK | E111: 6313 | G111: Investiční dotace nefinančním podnikatelským subjektům – právnickým osobám | J111: 0 | K111: 7273.788 | L111: 287668.7029 | M111: 243036.9217 | N111: 33.4127035 | Q111: 55 | S111: Neinvestiční transfery a související platby do zahraničí | V111: =V112+V114+V117 -> 752535.174 | W111: =W112+W114+W117 -> 822567.632 | X111: =X112+X114+X117 -> 1022567.632 | Y111: =Y112+Y114+Y117 -> 940250.0489 | Z111: 1.143067162
E112: 6319 | G112: Ostatní investiční dotace podnikatelským subjektům | J112: 20800 | K112: 10475.25 | L112: 10475.25 | M112: 10346 | N112: 0.9876613923 | Q112: 551 | S112: Neinvestiční transfery mezinárodním vládním organizacím a nadnárodním orgánům | V112: =V113 -> 6132 | W112: 0 | X112: 0 | Y112: 0 | Z112: x
A113: =IF(COUNTBLANK(C113:IW113)=254,"odstr",IF(AND($A$1="TISK",SUM(J35:N35)=0),"odstr","OK")) ->  | B113: OK | E113: 6321 | G113: Investiční transfery obecně prospěšným organizacím | J113: 0 | K113: 5015 | L113: 5015 | M113: 4515 | N113: 0.9002991027 | Q113: 5511 | S113: Neinvestiční transfery mezinárodním vládním organizacím | V113: 6132 | W113: 0 | X113: 0 | Y113: 0 | Z113: x
E114: 6322 | G114: Investiční transfery občanským sdružením | J114: 875194.1 | K114: 805193.474 | L114: 829670.0674 | M114: 77875.46385 | N114: 0.09671646178 | Q114: 553 | S114: ostatní neinvestiční transfery do zahraničí | V114: =V115+V116 -> 21336.358 | W114: =W115+W116 -> 183388.826 | X114: =X115+X116 -> 183388.826 | Y114: =Y115+Y116 -> 176264.5725 | Z114: =Y114/W114 -> 0.961152194
E115: 6329 | G115: Ostatní investiční transfery neziskovým a podobným organizacím | J115: 52940 | K115: 36439.45 | L115: 45592 | M115: 45592 | N115: 1.251171464 | Q115: 5531 | S115: Peněžní dary do zahraničí | V115: 3002.358 | W115: 6163.036 | X115: 6163.036 | Y115: 5810.97483 | Z115: 0.9428753669
E116: 6341 | G116: Investiční transfery obcím | J116: 619690 | K116: 686309.956 | L116: 900487.1817 | M116: 413729.9572 | N116: 0.6028325155 | Q116: 5532 | S116: Ostatní neinvestiční transfery do zahraničí | V116: 18334 | W116: 177225.79 | X116: 177225.79 | Y116: 170453.5976 | Z116: 0.9617877716
E117: 6342 | G117: Investiční transfery krajům | J117: 0 | K117: 1251.481 | L117: 9180.8382 | M117: 6362.35389 | N117: 5.083859755 | Q117: 554 | S117: Členské příspěvky mezinárodním organizacím | V117: =V118+V119 -> 725066.816 | W117: =W118+W119 -> 639178.806 | X117: =X118+X119 -> 839178.806 | Y117: =Y118+Y119 -> 763985.4764 | Z117: 1.195260965
E118: 6349 | G118: Ostatní investiční transfery veřejným rozpočtům územní úrovně | J118: 0 | K118: 11600 | L118: 11600 | M118: 6485.42117 | N118: 0.5590880319 | Q118: 5541 | S118: Členské příspěvky mezinárodním vládním organizacím | V118: 723066.816 | W118: 626613.291 | X118: 826613.291 | Y118: 753881.5538 | Z118: 1.203104953
E119: 6351 | G119: Investiční dotace zřízeným příspěvkovým a podobným organizacím | J119: 127041.553 | K119: 91623.523 | L119: 156887.0133 | M119: 54440.49345 | N119: 0.594175946 | Q119: 5542 | S119: Členské příspěvky mezinárodním nevládním organizacím | V119: 2000 | W119: 12565.515 | X119: 12565.515 | Y119: 10103.92268 | Z119: 0.8040993688
A120: =IF(COUNTBLANK(C120:IW120)=254,"odstr",IF(AND($A$1="TISK",SUM(J36:N36)=0),"odstr","OK")) ->  | B120: OK | E120: 6352 | G120: Investiční dotace vysokým školám | J120: 6362451.964 | K120: 5670556.591 | L120: 8493027.941 | M120: 2951214.951 | N120: 0.5204453749 | Q120: 59 | S120: Ostatní neinvestiční výdaje | V120: =V121 -> 0 | W120: =W121 -> 3105.782 | X120: =X121 -> 3105.782 | Y120: =Y121 -> 2335.77712 | Z120: 0.7520737515
A121: =IF(COUNTBLANK(C121:IW121)=254,"odstr",IF(AND($A$1="TISK",SUM(J37:N37)=0),"odstr","OK")) ->  | B121: OK | E121: 6354 | G121: Investiční transfery veřejným výzkumným institucím | J121: 62463.779 | K121: 331821.189 | L121: 1844718.789 | M121: 1780633.881 | N121: 5.366245255 | Q121: 5909 | S121: Ostatní neinvestiční výdaje jinde nezařazené | V121: 0 | W121: 3105.782 | X121: 3105.782 | Y121: 2335.77712 | Z121: 0.7520737515
A122: =IF(COUNTBLANK(C122:IW122)=254,"odstr",IF(AND($A$1="TISK",SUM(J38:N38)=0),"odstr","OK")) ->  | B122: OK | E122: 6359 | G122: Investiční dotace ostatním příspěvkovým organizacím | J122: 5700 | K122: 90 | L122: 90 | M122: 90 | N122: 1 | S122: Ostantí neinvestiční transfery | Y122: 171883276 | Z122: 0
A123: =IF(COUNTBLANK(C123:IW123)=254,"odstr",IF(AND($A$1="TISK",SUM(J39:N39)=0),"odstr","OK")) ->  | B123: OK | E123: 63 | G123: Investiční transfery | J123: 8126281.396 | K123: 7657649.702 | L123: 12594412.78 | M123: 5594322.443 | N123: 0.7305534545 | Q123: 6 | S123: Kapitálové výdaje celkem | V123: =V124+V132 -> 7503677.926 | W123: =W124+W132 -> 10647506 | X123: =X124+X132 -> 18487590.08 | Y123: 13022564.07 | Z123: =Y123/W123 -> 1.223062384
E124: 6 | G124: Kapitálové výdaje | J124: 8193150.466 | K124: 7741115.027 | L124: 12699410.47 | M124: 5632649.007 | N124: 0.7276276076 | Q124: 61 | S124: Investiční nákupy a související výdaje | V124: =V125+V127 -> 125869.07 | W124: =W125+W127 -> 50709.979 | X124: =X125+X127 -> 112519.954 | Y124: =Y125+Y127 -> 21312.49809 | Z124: 0.420282132
E125: Výdaje kapitoly 333-MŠMT podle položek celkem | J125: 156525862.2 | K125: 159501749.3 | L125: 171664310.9 | M125: 157511440 | N125: 0.987521709 | Q125: 611 | S125: Pořízení dlouhodobého nehmotného majetku | V125: =V126 -> 15000 | W125: =W126 -> 18595.009 | X125: =X126 -> 27777.774 | Y125: =Y126 -> 2000.61919 | Z125: 0.1075890412
N126: Zdroj: Závěrečný účet – kapitola 333-MŠMT | Q126: 6111 | S126: Programové vybavení | V126: 15000 | W126: 18595.009 | X126: 27777.774 | Y126: 2000.61919 | Z126: 0.1075890412
Q127: 612 | S127: Pořízení dlohodobého hmotného majetku | V127: =V128+V129+V130+V131 -> 110869.07 | W127: =SUM(W128:W131) -> 32114.97 | X127: =SUM(X128:X131) -> 84742.18 | Y127: =SUM(Y128:Y131) -> 19311.8789 | Z127: 0.6013357291
Q128: 6121 | S128: Budovy, haly a stavby | V128: 110469.07 | W128: 13837.182 | X128: 60400.54731 | Y128: 151.25 | Z128: 0.01093069384
Q129: 6122 | S129: Stroje, přístroje a zařízení | V129: 400 | W129: 7991.084 | X129: 10052.70369 | Y129: 8002.8555 | Z129: 1.001473079
Q130: 6123 | S130: Dopravní prostředky | V130: 0 | W130: 7365.774 | X130: 9711.419 | Y130: 7440.4149 | Z130: 1.010133477
Q131: 6125 | S131: Výpočetní technika | V131: 0 | W131: 2920.93 | X131: 4577.51 | Y131: 3717.3585 | Z131: 1.272662645
A132: =IF(COUNTBLANK(C132:IW132)=254,"odstr",IF(AND($A$1="TISK",SUM(J40:N40)=0),"odstr","OK")) ->  | B132: OK | Q132: 63 | S132: Investiční transfery | V132: =V133+V136+V140+V144 -> 7377808.856 | W132: =W133+W136+W140+W144 -> 10596796.02 | X132: =X133+X136+X140+X144 -> 18375070.12 | Y132: =Y133+Y136+Y140+Y144 -> 13001135.57 | Z132: 1.226893068
Q133: 631 | S133: Investiční transfery podnikateslým subjektům | V133: =V134+V135 -> 20800 | W133: =W134+W135 -> 20722.034 | X133: =X134+X135 -> 108802.898 | Y133: =Y134+Y135 -> 88693.49228 | Z133: 4.280153786
Q134: 6313 | S134: Investiční transfery nefinančním podnikatelským subjektům - právnickým osobám | V134: 0 | W134: 1566.034 | X134: 89646.898 | Y134: 79657.7414 | Z134: 50.86590802
Q135: 6319 | S135: Ostatní investiční transfery podnikatelským subjektům | V135: 20800 | W135: 19156 | X135: 19156 | Y135: 9035.75088 | Z135: 0.4716929881
Q136: 632 | S136: Investiční tranfery neziskovým a podobným organizacím | V136: =SUM(V137:V139) -> 1037234.1 | W136: =W137+W138+W139 -> 703446.248 | X136: =X137+X138+X139 -> 1390304.69 | Y136: =Y137+Y138+Y139 -> 980936.514 | Z136: 1.394472594
Q137: 6321 | S137: Investiční tranfery obecně prospěšným společnostem | V137: 600 | W137: 1071.355 | X137: 1571.355 | Y137: 1523.355 | Z137: 1.421895637
Q138: 6322 | S138: Investiční transfery spolkům | V138: 975194.1 | W138: 702374.893 | X138: 1323316.333 | Y138: 913996.159 | Z138: 1.301293893
Q139: 6329 | S139: Ostatní investiční transfery neziskovým a podobným organizacím | V139: 61440 | W139: 0 | X139: 65417.002 | Y139: 65417 | Z139: 0
Q140: 634 | S140: Investiční transfery veřejným rozpočtům územní úrovně | V140: =SUM(V141:V143) -> 926340.508 | W140: =W141+W142+W143 -> 1136405.527 | X140: =X141+X142+X143 -> 1839402.808 | Y140: =Y141+Y142+Y143 -> 1141995.752 | Z140: =Y140/W140 -> 1.004919216
Q141: 6341 | S141: Investiční transfery obcím | V141: 913740.508 | W141: 1098590.366 | X141: 1714607.222 | Y141: 1027463.951 | Z141: 0.9352566547
Q142: 6342 | S142: Investiční transfery krajům | V142: 10000 | W142: 35215.161 | X142: 117081.0064 | Y142: 106817.2222 | Z142: 3.033273715
Q143: 6349 | S143: Ostatní investiční transfery veřejným rozpočtům územní úrovně | V143: 2600 | W143: 2600 | X143: 7714.57883 | Y143: 7714.57883 | Z143: 2.967145704
Q144: 635 | S144: Investiční transfery příspěvkovým a podobným organizacím | V144: =SUM(V145:V148) -> 5393434.248 | W144: =W145+W146+W147+W148 -> 8736222.207 | X144: =X145+X146+X147+X148 -> 15036559.73 | Y144: =Y145+Y146+Y147+Y148 -> 10789509.81 | Z144: 1.235031523
Q145: 6351 | S145: Investiční transfery zřízeným příspěvkovým organizacím | V145: 100736.5 | W145: 63870.448 | X145: 151536.4072 | Y145: 100772.3802 | Z145: 1.577762225
Q146: 6352 | S146: Investiční transfery vysokým školám | V146: 5224712.748 | W146: 8381837.862 | X146: 13470605.28 | Y146: 9613582.023 | Z146: 1.146953948
Q147: 6354 | S147: Investiční transfery veřejným výzkumným institucím | V147: 62285 | W147: 284813.897 | X147: 1408718.036 | Y147: 1075155.411 | Z147: 3.774940136
Q148: 6359 | S148: Investiční transfery ostatním příspěvkovým organizacím | V148: 5700 | W148: 5700 | X148: 5700 | Y148: 0 | Z148: 0
A149: =IF(COUNTBLANK(C149:IW149)=254,"odstr",IF(AND($A$1="TISK",SUM(J41:N41)=0),"odstr","OK")) ->  | B149: OK | Q149: Výdaje kapitoly 333-MŠMT podle položek celkem | V149: =V123+V14 -> 176111709.9 | W149: =W123+W14 -> 183552679.9 | X149: =X123+X14 -> 197857113.8 | Y149: =Y123+Y14 -> 187716388.6 | Z149: 1.022683998
A150: odstr | B150: OK | Z150: Zdroj: Závěrečný účet – kapitola 333-MŠMT
B151: OK
B152: OK
B153: OK
B154: OK
B155: OK
B156: OK
B157: OK
B158: OK
B159: OK
B160: OK
B161: OK
B162: OK
B163: OK
B164: OK
B165: OK
B166: OK
B167: OK
B168: OK
B169: OK
B170: OK
B171: OK
B172: OK
B173: OK
B174: OK
B175: OK
B176: OK
B177: OK
B178: OK
B179: OK
B180: OK
B181: OK
B182: OK
B183: OK
B184: OK
B185: OK
B186: OK
B187: OK
B188: OK
B189: OK
B190: OK
B191: OK
B192: OK
B193: OK
B194: OK
B195: OK
A197: =IF(COUNTBLANK(C197:IW197)=254,"odstr",IF(AND($A$1="TISK",SUM(J89:N89)=0),"odstr","OK")) ->  | B197: OK
B198: OK
B199: OK
B200: OK
B201: OK
... 25 more rows

Sheet B7
A1: =IF(#REF!="","ŠABLONA",IF(#REF!="T","TISK","ELEKTRO")) ->  | B1: 0 | C1: =CONCATENATE(D1,F1,IF(G1<>"",".",""),G1,IF(H1<>"",".",""),H1,IF(I1<>"",".",""),I1,"") ->  | D1: =IF(#REF!=""," ?",#REF!) ->  | E1: =CONCATENATE(C1,U1) ->  | F1: 7
A2: konst
A3: konst | B3: 172x11 | D3: Tab. B7: | H3: Výdaje kapitoly 700-Obce a DSO; KÚ (část: 31–32– vzdělávání) – podle položek | W3: Tab. B7: | AA3: Výdaje kapitoly 700-Obce a DSO; KÚ (část: 31–32– vzdělávání) – podle položek
A4: konst | B4: =COUNTA(Datova_oblast) -> 1922 | D4: =IF(D1=" ?","",CONCATENATE("Tab. ",E1,":")) ->  | H4: =IF(H3="Zadejte název tabulky","",H3) -> Výdaje kapitoly 700-Obce a DSO; KÚ (část: 31–32– vzdělávání) – podle položek | W4: =IF(W1=" ?","",CONCATENATE("Tab. ",X1,":")) -> Tab. : | AA4: =IF(AA3="Zadejte název tabulky","",AA3) -> Výdaje kapitoly 700-Obce a DSO; KÚ (část: 31–32– vzdělávání) – podle položek
A5: =IF(D5="","odstr","OK") -> odstr | B5: 0
A6: =IF(COUNTBLANK(C6:IV6)=254,"odstr","OK") -> odstr | B6: Řádky pro
A7: =IF(COUNTBLANK(C7:IV7)=254,"odstr","OK") -> odstr | B7: ročenku PaM
A8: konst | D8: (podle stavu k: 31. 12. 2017) | U8: v tis. Kč | W8: (podle stavu k: 31. 12. 2018) | AN8: v tis. Kč
A9: konst | D9: Položka | G9: Popis položky | J9: Celkem1) | N9: Obce a DSO1) | R9: Krajské úřady1) | W9: Položka | Z9: Popis položky | AC9: Celkem1) | AG9: Obce a DSO1) | AK9: Krajské úřady1)
A10: konst
A11: konst | J11: schválený rozpočet | K11: rozpočet po změnách | L11: skutečnost | M11: % plnění rozpočtu | N11: schválený rozpočet | O11: rozpočet po změnách | P11: skutečnost | Q11: % plnění rozpočtu | R11: schválený rozpočet | S11: rozpočet po změnách | T11: skutečnost | U11: % plnění rozpočtu | AC11: schválený rozpočet | AD11: rozpočet po změnách | AE11: skutečnost | AF11: % plnění rozpočtu | AG11: schválený rozpočet | AH11: rozpočet po změnách | AI11: skutečnost | AJ11: % plnění rozpočtu | AK11: schválený rozpočet | AL11: rozpočet po změnách | AM11: skutečnost | AN11: % plnění rozpočtu
A12: konst
A13: konst
E14: 5011 | G14: Platy zaměstnanců v pracovním poměru | J14: 46169.0806 | K14: 98350.1388 | L14: 73940.02829 | M14: 0.7518040055 | N14: 42774.2806 | O14: 74219.25658 | P14: 56249.05433 | Q14: 0.7578768223 | R14: 3394.8 | S14: 24130.88222 | T14: 17690.97396 | U14: 0.7331258675 | X14: 5 | Z14: BĚŽNÉ VÝDAJE | AC14: =AC15+AC33+AC92+AC110+AC137+AC148+AC155+AC171 -> 77088125.49 | AD14: =AD15+AD33+AD92+AD110+AD137+AD148+AD155+AD171 -> 149104534.8 | AE14: =AE15+AE33+AE92+AE110+AE137+AE148+AE155+AE171 -> 147162294.7 | AF14: =AE14/AD14 -> 0.9869739697 | AG14: =AG15+AG33+AG92+AG110+AG137+AG148+AG155+AG171 -> 29086731.81 | AH14: =AH15+AH33+AH92+AH110+AH137+AH148+AH155+AH171 -> 38487490.55 | AI14: =AI15+AI33+AI92+AI110+AI137+AI148+AI155+AI171 -> 37034681.59 | AJ14: =AI14/AH14 -> 0.9622524375 | AK14: =AK15+AK33+AK92+AK110+AK137+AK148+AK155+AK171 -> 48001393.69 | AL14: =AL15+AL33+AL92+AL110+AL137+AL148+AL155+AL171 -> 110625133.5 | AM14: =AM15+AM33+AM92+AM110+AM137+AM148+AM155+AM171 -> 110127613.1 | AN14: =AM14/AL14 -> 0.9955026455
E15: 5019 | G15: Ostatní platy | J15: 526.8 | K15: 7207.49 | L15: 5763.62021 | M15: 0.799670927 | N15: 526.8 | O15: 7207.49 | P15: 5763.62021 | Q15: 0.799670927 | R15: 0 | S15: 0 | T15: 0 | U15: x | X15: 50 | Y15: Platy a podobné a související výdaje | AC15: =AC16+AC19+AC23+AC28+AC31 -> 150588.8067 | AD15: =AD16+AD19+AD23+AD28+AD31 -> 346307.7341 | AE15: =AE16+AE19+AE23+AE28 -> 277715.3959 | AF15: 0.8019324103 | AG15: =AG16+AG19+AG23+AG28+AG31 -> 133162.1727 | AH15: =AH16+AH19+AH23+AH28+AH31 -> 269183.8929 | AI15: =AI16+AI19+AI23+AI28+AI31 -> 215975.3285 | AJ15: 0.8023337734 | AK15: =AK16+AK19+AK23+AK28 -> 17426.634 | AL15: =AL16+AL19+AL23+AL28+AL31 -> 77123.84127 | AM15: =AM16+AM19+AM23+AM28+AM31 -> 61740.06742 | AN15: =AM15/AL15 -> 0.80053154
E16: 5021 | G16: Ostatní osobní výdaje | J16: 43487.57956 | K16: 123416.5346 | L16: 103360.9949 | M16: 0.8374971411 | N16: 38422.53956 | O16: 110963.4826 | P16: 93363.2019 | Q16: 0.8413867311 | R16: 5065.04 | S16: 12453.052 | T16: 9997.793 | U16: 0.802838774 | X16: 501 | Z16: Platy | AC16: =AC17+AC18 -> 63640.49369 | AD16: =AD17+AD18 -> 134815.659 | AE16: =AE17+AE18 -> 101916.4739 | AF16: 0.7559691116 | AG16: =AG17+AG18 -> 58243.38469 | AH16: =AH17+AH18 -> 100504.7453 | AI16: =AI17+AI18 -> 76063.26609 | AJ16: 0.7568126841 | AK16: =AK17 -> 5397.109 | AL16: =AL17 -> 34310.91362 | AM16: =AM17 -> 25853.20784 | AN16: =AM16/AL16 -> 0.7534980889
A17: =IF(COUNTBLANK(C17:IV17)=254,"odstr",IF(AND($A$1="TISK",SUM(J14:U14)=0),"odstr","OK")) ->  | B17: OK | E17: 5024 | G17: Odstupné | J17: 0 | K17: 0 | L17: 3.009 | M17: x | N17: 0 | O17: 0 | P17: 3.009 | Q17: x | R17: 0 | S17: 0 | T17: 0 | U17: x | X17: 5011 | Z17: Platy zaměstnanců v pracovním poměru vyjma zaměstnanců na služebních místech | AC17: 63061.69369 | AD17: 128436.549 | AE17: 96240.88507 | AF17: 0.7493263082 | AG17: 57664.58469 | AH17: 94125.63534 | AI17: 70387.67723 | AJ17: 0.7478056002 | AK17: 5397.109 | AL17: 34310.91362 | AM17: 25853.20784 | AN17: =AM17/AL17 -> 0.7534980889
A18: =IF(COUNTBLANK(C18:IV18)=254,"odstr",IF(AND($A$1="TISK",SUM(J15:U15)=0),"odstr","OK")) ->  | B18: OK | E18: 5029 | G18: Ostatní platby za provedenou práci jinde nezařazené | J18: 24 | K18: 175 | L18: 135.53374 | M18: 0.7744785143 | N18: 24 | O18: 175 | P18: 135.53374 | Q18: 0.7744785143 | R18: 0 | S18: 0 | T18: 0 | U18: x | X18: 5019 | Z18: Ostatní platy | AC18: 578.8 | AD18: 6379.11 | AE18: 5675.58886 | AF18: 0.8897148442 | AG18: 578.8 | AH18: 6379.11 | AI18: 5675.58886 | AJ18: 0.8897148442 | AK18: 0 | AL18: 0 | AM18: 0 | AN18: x
E19: 5031 | G19: Povinné pojistné na sociální zabezpečení a příspěvek na státní politiku zaměstnanosti | J19: 11652.6434 | K19: 37230.80622 | L19: 29352.15956 | M19: 0.7883836677 | N19: 10724.6834 | O19: 29362.35141 | P19: 23563.45333 | Q19: 0.8025056645 | R19: 927.96 | S19: 7868.45481 | T19: 5788.70623 | U19: 0.7356852609 | X19: 502 | Z19: Ostatní platby za provedenou práci | AC19: =AC20+AC21+AC22 -> 55482.879 | AD19: =AD20+AD21+AD22 -> 139700.6288 | AE19: =AE20+AE22 -> 115149.6395 | AF19: 0.8242599942 | AG19: =AG20+AG21+AG22 -> 53126.923 | AH19: =AH20+AH22 -> 122141.0591 | AI19: =AI20+AI22 -> 100506.4135 | AJ19: 0.8228716387 | AK19: =AK20 -> 2355.956 | AL19: =AL20 -> 17559.56966 | AM19: =AM20 -> 14643.226 | AN19: =AM19/AL19 -> 0.8339171337
A20: =IF(COUNTBLANK(C20:IV20)=254,"odstr",IF(AND($A$1="TISK",SUM(J16:U16)=0),"odstr","OK")) ->  | B20: OK | E20: 5032 | G20: Povinné pojistné na veřejné zdravotní pojištění | J20: 4258.2636 | K20: 14106.90445 | L20: 10474.90203 | M20: 0.7425372496 | N20: 3922.4736 | O20: 11214.59948 | P20: 8390.19012 | Q20: 0.7481488871 | R20: 335.79 | S20: 2892.30497 | T20: 2084.71191 | U20: 0.7207787324 | X20: 5021 | Z20: Ostatní osobní výdaje | AC20: 55458.879 | AD20: 139572.6288 | AE20: 115043.1834 | AF20: 0.8242531822 | AG20: 53102.923 | AH20: 122013.0591 | AI20: 100399.9574 | AJ20: 0.8228623899 | AK20: 2355.956 | AL20: 17559.56966 | AM20: 14643.226 | AN20: =AM20/AL20 -> 0.8339171337
A21: =IF(COUNTBLANK(C21:IV21)=254,"odstr",IF(AND($A$1="TISK",SUM(J17:U17)=0),"odstr","OK")) ->  | B21: OK | E21: 5038 | G21: Povinné pojistné na úrazové pojištění | J21: 60.8396 | K21: 274.13201 | L21: 166.73194 | M21: 0.6082176977 | N21: 54.4196 | O21: 202.78903 | P21: 129.24627 | Q21: 0.6373434993 | R21: 6.42 | S21: 71.34298 | T21: 37.48567 | U21: 0.5254289911 | X21: 5024 | Z21: Odstupné | AC21: 0 | AD21: 0 | AE21: 0 | AF21: x | AG21: 0 | AH21: 0 | AI21: 0 | AJ21: x | AK21: 0 | AL21: 0 | AM21: 0 | AN21: x
A22: =IF(COUNTBLANK(C22:IV22)=254,"odstr",IF(AND($A$1="TISK",SUM(J18:U18)=0),"odstr","OK")) ->  | B22: OK | E22: 5039 | G22: Ostatní povinné pojistné placené zaměstnavatelem | J22: 75 | K22: 2371.34 | L22: 1824.12079 | M22: 0.7692362926 | N22: 75 | O22: 2371.34 | P22: 1824.12079 | Q22: 0.7692362926 | R22: 0 | S22: 0 | T22: 0 | U22: x | X22: 5029 | Z22: Ostatní platby za provedenou práci jinde nezařazené | AC22: 24 | AD22: 128 | AE22: 106.45605 | AF22: =AE22/AD22 -> 0.8316878906 | AG22: 24 | AH22: 128 | AI22: 106.45605 | AJ22: =AI22/AH22 -> 0.8316878906 | AK22: 0 | AL22: 0 | AM22: 0 | AN22: x
E23: 5041 | G23: Odměny za užití duševního vlastnictví | J23: 116.8 | K23: 185.409 | L23: 147.986 | M23: 0.7981597441 | N23: 116.8 | O23: 185.409 | P23: 147.986 | Q23: 0.7981597441 | R23: 0 | S23: 0 | T23: 0 | U23: x | X23: 503 | Z23: Povinné pojistné placené zaměstnavatelem | AC23: =AC24+AC25+AC26+AC27 -> 22002.385 | AD23: =AD24+AD25+AD26+AD27 -> 60497.71237 | AE23: =SUM(AE24:AE27) -> 49494.02281 | AF23: 0.8181139562 | AG23: =SUM(AG24:AG27) -> 20168.816 | AH23: =SUM(AH24:AH27) -> 44773.46438 | AI23: =SUM(AI24:AI27) -> 37779.04723 | AJ23: 0.8437820873 | AK23: =AK24+AK25+AK26 -> 1833.569 | AL23: =SUM(AL24:AL27) -> 15724.24799 | AM23: =AM24+AM25+AM26+AM27 -> 11714.97558 | AN23: =AM23/AL23 -> 0.745026127
A24: =IF(COUNTBLANK(C24:IV24)=254,"odstr",IF(AND($A$1="TISK",SUM(J19:U19)=0),"odstr","OK")) ->  | B24: OK | E24: 5042 | G24: Odměny za užití počítačových programů | J24: 8563.675 | K24: 8112.591 | L24: 8101.1539 | M24: 0.9985902038 | N24: 723.675 | O24: 750.021 | P24: 738.6459 | Q24: 0.9848336247 | R24: 7840 | S24: 7362.57 | T24: 7362.508 | U24: 0.999991579 | X24: 5031 | Z24: Povinné pojistné na sociální zabezpečení a příspěvek na státní politiku zaměstnanosti | AC24: 16073.563 | AD24: 42242.63165 | AE24: 35108.67405 | AF24: 0.83111948 | AG24: 14725.677 | AH24: 30835.03969 | AI24: 26536.73312 | AJ24: 0.860603177 | AK24: 1347.886 | AL24: 11407.59196 | AM24: 8571.94093 | AN24: =AM24/AL24 -> 0.7514242235
A25: =IF(COUNTBLANK(C25:IV25)=254,"odstr",IF(AND($A$1="TISK",SUM(J20:U20)=0),"odstr","OK")) ->  | B25: OK | E25: 5051 | G25: Mzdové náhrady | J25: 0 | K25: 5.1 | L25: 5.061 | M25: 0.9923529412 | N25: 0 | O25: 5.1 | P25: 5.061 | Q25: 0.9923529412 | R25: 0 | S25: 0 | T25: 0 | U25: x | X25: 5032 | Z25: Povinné pojistné na veřejné zdravotní pojištění | AC25: 5792.563 | AD25: 15884.89417 | AE25: 12479.82151 | AF25: 0.7856408344 | AG25: 5307.08 | AH25: 11686.45251 | AI25: 9394.2174 | AJ25: 0.8038553523 | AK25: 485.483 | AL25: 4198.44166 | AM25: 3085.60411 | AN25: =AM25/AL25 -> 0.7349403326
A26: =IF(COUNTBLANK(C26:IV26)=254,"odstr",IF(AND($A$1="TISK",SUM(J21:U21)=0),"odstr","OK")) ->  | B26: OK | E26: 50 | G26: Výdaje na platby, ostatních platby za provedenou práci a pojistné | J26: 114934.6818 | K26: 291435.4461 | L26: 233275.3014 | M26: 0.8004355836 | N26: 97364.67176 | O26: 236656.8391 | P26: 190313.1226 | Q26: 0.8041733478 | R26: 17570.01 | S26: 54778.60698 | T26: 42962.17877 | U26: 0.7842875374 | X26: 5038 | Z26: Povinné pojistné na úrazové pojištění | AC26: 69.959 | AD26: 341.64655 | AE26: 179.66166 | AF26: 0.5258699671 | AG26: 69.759 | AH26: 223.43218 | AI26: 122.23112 | AJ26: 0.5470613946 | AK26: 0.2 | AL26: 118.21437 | AM26: 57.43054 | AN26: =AM26/AL26 -> 0.4858169104
A27: =IF(COUNTBLANK(C27:IV27)=254,"odstr",IF(AND($A$1="TISK",SUM(J22:U22)=0),"odstr","OK")) ->  | B27: OK | E27: 5122 | G27: Podlimitní věcná břemena | J27: 0 | K27: 700.8 | L27: 0.726 | M27: 0.001035958904 | N27: 0 | O27: 700.8 | P27: 0.726 | Q27: 0.001035958904 | R27: 0 | S27: 0 | T27: 0 | U27: x | X27: 5039 | Z27: Ostatní povinné pojistné placené zaměstnavatelem | AC27: 66.3 | AD27: 2028.54 | AE27: 1725.86559 | AF27: 0.8507919933 | AG27: 66.3 | AH27: 2028.54 | AI27: 1725.86559 | AJ27: 0.8507919933 | AK27: 0 | AL27: 0 | AM27: 0 | AN27: x
E28: 5131 | G28: Potraviny | J28: 9447.1 | K28: 10367.2585 | L28: 9646.84882 | M28: 0.9305110719 | N28: 9447.1 | O28: 10367.2585 | P28: 9646.84882 | Q28: 0.9305110719 | R28: 0 | S28: 0 | T28: 0 | U28: x | X28: 504 | Z28: Odměny za užití duševního vlastnictví | AC28: =AC29+AC30 -> 9463.049 | AD28: =AD29+AD30 -> 11293.734 | AE28: =AE29+AE30 -> 11155.25969 | AF28: 0.9877388373 | AG28: =AG29+AG30 -> 1623.049 | AH28: =SUM(AH29:AH30) -> 1764.624 | AI28: =AI29+AI30 -> 1626.60169 | AJ28: 0.9217837284 | AK28: =AK30 -> 7840 | AL28: =AL29+AL30 -> 9529.11 | AM28: =AM29+AM30 -> 9528.658 | AN28: =AM28/AL28 -> 0.9999525664
A29: =IF(COUNTBLANK(C29:IV29)=254,"odstr",IF(AND($A$1="TISK",SUM(J23:U23)=0),"odstr","OK")) ->  | B29: OK | E29: 5132 | G29: Ochranné pomůcky | J29: 41.34 | K29: 51.675 | L29: 43.60761 | M29: 0.843882148 | N29: 41.34 | O29: 51.675 | P29: 43.60761 | Q29: 0.843882148 | R29: 0 | S29: 0 | T29: 0 | U29: x | X29: 5041 | Z29: Odměny za užití duševního vlastnictví | AC29: 538.999 | AD29: 2860.653 | AE29: 2751.1762 | AF29: 0.9617301364 | AG29: 538.999 | AH29: 343.543 | AI29: 234.0752 | AJ29: 0.6813563368 | AK29: 0 | AL29: 2517.11 | AM29: 2517.101 | AN29: =AM29/AL29 -> 0.9999964245
A30: =IF(COUNTBLANK(C30:IV30)=254,"odstr",IF(AND($A$1="TISK",SUM(J24:U24)=0),"odstr","OK")) ->  | B30: OK | E30: 5133 | G30: Léky a zdravotnický materiál | J30: 7.5 | K30: 50.955 | L30: 20.744 | M30: 0.4071043077 | N30: 7.5 | O30: 50.955 | P30: 20.744 | Q30: 0.4071043077 | R30: 0 | S30: 0 | T30: 0 | U30: x | X30: 5042 | Z30: Odměny za užití počítačových programů | AC30: 8924.05 | AD30: 8433.081 | AE30: 8404.08349 | AF30: 0.9965614572 | AG30: 1084.05 | AH30: 1421.081 | AI30: 1392.52649 | AJ30: 0.9799064867 | AK30: 7840 | AL30: 7012 | AM30: 7011.557 | AN30: =AM30/AL30 -> 0.9999368226
E31: 5134 | G31: Prádlo, oděv a obuv | J31: 49.5 | K31: 234.998 | L31: 191.067 | M31: 0.8130579835 | N31: 49.5 | O31: 234.998 | P31: 191.067 | Q31: 0.8130579835 | R31: 0 | S31: 0 | T31: 0 | U31: x | X31: 505 | Z31: Mzdové náhrady | AC31: =AC32 -> 0 | AD31: =AD32 -> 0 | AE31: 0 | AF31: x | AG31: 0 | AI31: 0 | AJ31: x | AK31: 0 | AL31: 0 | AM31: 0 | AN31: x
A32: =IF(COUNTBLANK(C32:IV32)=254,"odstr",IF(AND($A$1="TISK",SUM(J25:U25)=0),"odstr","OK")) ->  | B32: OK | E32: 5135 | G32: Učebnice a bezplatně poskytované školní potřeby | J32: 114 | K32: 81.67 | L32: 9.703 | M32: 0.1188073956 | N32: 114 | O32: 81.67 | P32: 9.703 | Q32: 0.1188073956 | R32: 0 | S32: 0 | T32: 0 | U32: x | X32: 5051 | Z32: Mzdové náhrady | AC32: 0 | AD32: 0 | AE32: 0 | AF32: x | AG32: 0 | AH32: 0 | AI32: 0 | AJ32: x | AK32: 0 | AL32: 0 | AM32: 0 | AN32: x
A33: =IF(COUNTBLANK(C33:IV33)=254,"odstr",IF(AND($A$1="TISK",SUM(J26:U26)=0),"odstr","OK")) ->  | B33: OK | E33: 5136 | G33: Knihy, učební pomůcky a tisk | J33: 1236.56 | K33: 2238.00277 | L33: 1817.73491 | M33: 0.8122129849 | N33: 1230.56 | O33: 2220.83677 | P33: 1812.26891 | Q33: 0.8160297661 | R33: 6 | S33: 17.166 | T33: 5.466 | U33: 0.3184201328 | X33: 51 | Y33: Neinvestiční nákupy a související výdaje | Z33: Neinvestiční nákupy a související výdaje | AC33: =AC34+AC37+AC47+AC53+AC62+AC72+AC81+AC85 -> 3009383.021 | AD33: =AD34+AD37+AD47+AD53+AD62+AD72+AD81+AD85 -> 4632584.829 | AE33: =AE34+AE37+AE47+AE53+AE62+AE72+AE81+AE85 -> 3422039.682 | AF33: =AE33/AD33 -> 0.7386890491 | AG33: =AG34+AG37+AG47+AG53+AG62+AG72+AG81+AG85 -> 2664387.658 | AH33: =AH34+AH37+AH47+AH53+AH62+AH72+AH81+AH85 -> 3961622.683 | AI33: =AI34+AI37+AI47+AI53+AI62+AI72+AI81+AI85 -> 3008595.981 | AJ33: =AI33/AH33 -> 0.7594352672 | AK33: =AK34+AK37+AK47+AK53+AK62+AK72+AK81+AK85 -> 344995.363 | AL33: =AL34+AL37+AL47+AL53+AL62+AL72+AL81+AL85 -> 679051.3566 | AM33: =AM34+AM37+AM47+AM53+AM62+AM72+AM81+AM85 -> 413443.701 | AN33: =AM33/AL33 -> 0.608854834
E34: 5137 | G34: Drobný hmotný dlouhodobý majetek | J34: 51554.657 | K34: 239163.3419 | L34: 198307.5516 | M34: 0.829172021 | N34: 51473.657 | O34: 226480.4128 | P34: 187477.946 | Q34: 0.8277887863 | R34: 81 | S34: 12682.92919 | T34: 10829.60561 | U34: 0.8538725911 | X34: 512 | Y34: Výdaje na některé úpravy hmotných věcí a pořízení některých práv k hmotným věcem | AC34: =AC35 -> 110 | AD34: =AD35+AD36 -> 259.4 | AE34: =AE35+AE36 -> 4086.35946 | AF34: =AE34/AD34 -> 15.75312051 | AG34: =AG35 -> 110 | AH34: =AH35+AH36 -> 4136.6054 | AI34: =AI35+AI36 -> 3936.71207 | AJ34: =AI34/AH34 -> 0.9516769644 | AK34: 0 | AL34: =SUM(AL35:AL36) -> 4212.0054 | AM34: =AM36 -> 149.64739 | AN34: =AM34/AL34 -> 0.03552877449
A35: =IF(COUNTBLANK(C35:IV35)=254,"odstr",IF(AND($A$1="TISK",SUM(J27:U27)=0),"odstr","OK")) ->  | B35: OK | E35: 5138 | G35: Nákup zboží (za účelem dalšího prodeje) | J35: 420 | K35: 5 | L35: 0.83871 | M35: 0.167742 | N35: 420 | O35: 5 | P35: 0.83871 | Q35: 0.167742 | R35: 0 | S35: 0 | T35: 0 | U35: x | X35: 5122 | Z35: Podlimitní věcná břemena | AC35: 110 | AD35: 92 | AE35: 0 | AF35: x | AG35: 110 | AH35: 92 | AI35: 0 | AJ35: x | AK35: 0 | AL35: 0 | AN35: x
X36: 5123 | Z36: Podlimitní technické zhodnocení | AD36: 167.4 | AE36: 4086.35946 | AF36: =AE36/AD36 -> 24.41074946 | AH36: 4044.6054 | AI36: 3936.71207 | AJ36: =AI36/AH36 -> 0.9733241394 | AL36: 4212.0054 | AM36: 149.64739 | AN36: =AM36/AL36 -> 0.03552877449
E37: 5139 | G37: Nákup materiálu jinde nezařazený | J37: 38598.439 | K37: 64483.15709 | L37: 49673.81487 | M37: 0.7703378233 | N37: 34695.439 | O37: 57757.04808 | P37: 43818.06416 | Q37: 0.7586617671 | R37: 3903 | S37: 6726.10901 | T37: 5855.75071 | U37: 0.8706000306 | X37: 513 | Z37: Nákupy materiálu | AC37: =SUM(AC38:AC46) -> 344565.989 | AD37: =SUM(AD38:AD46) -> 996828.8611 | AE37: =SUM(AE38:AE46) -> 747571.7017 | AF37: 0.749949897 | AG37: =SUM(AG38:AG46) -> 278055.789 | AH37: =SUM(AH38:AH46) -> 713434.8418 | AI37: =SUM(AI38:AI46) -> 584076.6566 | AJ37: 0.8186825514 | AK37: =AK43+AK44+AK46 -> 66510.2 | AL37: =SUM(AL38:AL46) -> 283394.0193 | AM37: =SUM(AM38:AM46) -> 163495.0451 | AN37: =AM37/AL37 -> 0.5769177681
A38: =IF(COUNTBLANK(C38:IV38)=254,"odstr",IF(AND($A$1="TISK",SUM(J28:U28)=0),"odstr","OK")) ->  | B38: OK | E38: 5141 | G38: Úroky vlastní | J38: 16843.9652 | K38: 17338.01629 | L38: 14494.25848 | M38: 0.8359813624 | N38: 16843.9652 | O38: 17338.01629 | P38: 14494.25848 | Q38: 0.8359813624 | R38: 0 | S38: 0 | T38: 0 | U38: x | X38: 5131 | Z38: Potraviny | AC38: 13716.2 | AD38: 10788.71 | AE38: 9911.51674 | AF38: 0.9186934063 | AG38: 13716.2 | AH38: 10788.71 | AI38: 9911.51674 | AJ38: 0.9186934063 | AK38: 0 | AL38: 0 | AM38: 0 | AN38: x
B39: OK | E39: 5142 | G39: Realizované kurzové ztráty | J39: 2 | K39: 12.815 | L39: 6.69244 | M39: 0.522234881 | N39: 2 | O39: 12.815 | P39: 6.69244 | Q39: 0.522234881 | R39: 0 | S39: 0 | T39: 0 | U39: x | X39: 5132 | Z39: Ochranné pomůcky | AC39: 109.8 | AD39: 78.726 | AE39: 64.3055 | AF39: 0.8168267154 | AG39: 109.8 | AH39: 78.726 | AI39: 64.3055 | AJ39: 0.8168267154 | AK39: 0 | AL39: 0 | AM39: 0 | AN39: x
B40: OK | E40: 5143 | G40: Úroky vzniklé převzetím cizích závazků | J40: 0 | K40: 40.3 | L40: 40.239 | M40: 0.9984863524 | N40: 0 | O40: 40.3 | P40: 40.239 | Q40: 0.9984863524 | R40: 0 | S40: 0 | T40: 0 | U40: x | X40: 5133 | Z40: Léky a zdravotnický materiál | AC40: 151.999 | AD40: 95.801 | AE40: 79.32193 | AF40: 0.8279864511 | AG40: 151.999 | AH40: 94.064 | AI40: 77.58493 | AJ40: 0.824810023 | AK40: 0 | AL40: 1.737 | AM40: 1.737 | AN40: =AM40/AL40 -> 1
B41: OK | E41: 5144 | G41: Poplatky dluhové služby | J41: 3.6 | K41: 0 | L41: 0 | M41: x | N41: 3.6 | O41: 0 | P41: 0 | Q41: x | R41: 0 | S41: 0 | T41: 0 | U41: x | X41: 5134 | Z41: Prádlo, oděv a obuv | AC41: 94.04 | AD41: 105.342 | AE41: 89.1769 | AF41: 0.8465464867 | AG41: 94.04 | AH41: 105.342 | AI41: 89.1769 | AJ41: 0.8465464867 | AK41: 0 | AL41: 0 | AM41: 0 | AN41: x
B42: OK | E42: 5149 | G42: Ostatní úroky a ostatní finanční výdaje | J42: 0 | K42: 312.9 | L42: 312.803 | M42: 0.9996899968 | N42: 0 | O42: 312.9 | P42: 312.803 | Q42: 0.9996899968 | R42: 0 | S42: 0 | T42: 0 | U42: x | X42: 5135 | Z42: Učebnice a bezplatně poskytované školní potřeby | AC42: 5 | AD42: 9 | AE42: 8.284 | AF42: 0.9204444444 | AG42: 5 | AH42: 9 | AI42: 8.284 | AJ42: 0.9204444444 | AK42: 0 | AL42: 0 | AM42: 0 | AN42: x
B43: OK | E43: 5151 | G43: Studená voda | J43: 8776.72 | K43: 9562.05517 | L43: 7732.8769 | M43: 0.8087044848 | N43: 8776.72 | O43: 9562.05517 | P43: 7732.8769 | Q43: 0.8087044848 | R43: 0 | S43: 0 | T43: 0 | U43: x | X43: 5136 | Z43: Knihy, učební pomůcky a tisk | AC43: 1155.269 | AD43: 4735.2511 | AE43: 4434.25552 | AF43: 0.9364351386 | AG43: 1149.269 | AH43: 4625.9481 | AI43: 4387.93252 | AJ43: 0.9485477193 | AK43: 6 | AL43: 109.303 | AM43: 46.323 | AN43: =AM43/AL43 -> 0.4238035553
B44: OK | E44: 5152 | G44: Teplo | J44: 52953.62 | K44: 52772.05076 | L44: 48187.88223 | M44: 0.9131326438 | N44: 52953.62 | O44: 52726.46076 | P44: 48164.28223 | Q44: 0.913474592 | R44: 0 | S44: 45.59 | T44: 23.6 | U44: 0.517657381 | X44: 5137 | Z44: Drobný hmotný dlouhodobý majetek | AC44: 250772.393 | AD44: 825458.4159 | AE44: 645698.766 | AF44: 0.7822305201 | AG44: 189007.393 | AH44: 580739.6001 | AI44: 492373.3939 | AJ44: 0.8478385043 | AK44: 61765 | AL44: 244718.8158 | AM44: 153325.3721 | AN44: =AM44/AL44 -> 0.6265369158
B45: OK | E45: 5153 | G45: Plyn | J45: 36809.316 | K45: 38752.73917 | L45: 30882.57118 | M45: 0.7969132464 | N45: 36809.316 | O45: 38752.73917 | P45: 30882.57118 | Q45: 0.7969132464 | R45: 0 | S45: 0 | T45: 0 | U45: x | X45: 5138 | Z45: Nákup zboží (za účelem dalšího prodeje) | AC45: 505 | AD45: 138.453 | AE45: 125.3123 | AF45: 0.9050890916 | AG45: 505 | AH45: 138.453 | AI45: 125.3123 | AJ45: 0.9050890916 | AK45: 0 | AL45: 0 | AM45: 0 | AN45: x
A46: =IF(COUNTBLANK(C46:IV46)=254,"odstr",IF(AND($A$1="TISK",SUM(J37:U37)=0),"odstr","OK")) ->  | B46: OK | E46: 5154 | G46: Elektrická energie | J46: 40931.84 | K46: 43760.85426 | L46: 37093.95507 | M46: 0.8476515301 | N46: 40931.84 | O46: 43742.97926 | P46: 37079.89207 | Q46: 0.8476764202 | R46: 0 | S46: 17.875 | T46: 14.063 | U46: 0.7867412587 | X46: 5139 | Z46: Nákup materiálu jinde nezařazený | AC46: 78056.288 | AD46: 155419.1621 | AE46: 87160.7628 | AF46: 0.5608109168 | AG46: 73317.088 | AH46: 116854.9986 | AI46: 77039.14977 | AJ46: 0.659271325 | AK46: 4739.2 | AL46: 38564.16351 | AM46: 10121.61303 | AN46: =AM46/AL46 -> 0.2624616252
E47: 5155 | G47: Pevná paliva | J47: 2670 | K47: 3278.01262 | L47: 3018.51506 | M47: 0.9208369247 | N47: 2670 | O47: 3278.01262 | P47: 3018.51506 | Q47: 0.9208369247 | R47: 0 | S47: 0 | T47: 0 | U47: x | X47: 514 | Z47: Úroky a ostatní finanční výdaje | AC47: =SUM(AC48:AC52) -> 17019.97865 | AD47: =SUM(AD48:AD52) -> 18445.95047 | AE47: =SUM(AE48:AE52) -> 15971.07806 | AF47: 0.8658311257 | AG47: =SUM(AG48:AG52) -> 17019.97865 | AH47: =SUM(AH48:AH52) -> 18445.95047 | AI47: =SUM(AI48:AI52) -> 15971.07806 | AJ47: 0.8658311257 | AK47: 0 | AL47: =SUM(AL48:AL52) -> 0 | AM47: 0 | AN47: x
A48: =IF(COUNTBLANK(C48:IV48)=254,"odstr",IF(AND($A$1="TISK",SUM(J38:U38)=0),"odstr","OK")) ->  | B48: OK | E48: 5156 | G48: Pohonné hmoty a maziva | J48: 1878.5 | K48: 1509.81935 | L48: 1347.14489 | M48: 0.8922556795 | N48: 1868.5 | O48: 1499.41935 | P48: 1346.74689 | Q48: 0.8981789451 | R48: 10 | S48: 10.4 | T48: 0.398 | U48: 0.03826923077 | X48: 5141 | Z48: Úroky vlastní | AC48: 15907.97865 | AD48: 18430.82947 | AE48: 15944.47572 | AF48: 0.8650981089 | AG48: 15907.97865 | AH48: 18430.82947 | AI48: 15944.47572 | AJ48: 0.8650981089 | AK48: 0 | AL48: 0 | AM48: 0 | AN48: x
A49: =IF(COUNTBLANK(C49:IV49)=254,"odstr",IF(AND($A$1="TISK",SUM(J39:U39)=0),"odstr","OK")) ->  | E49: 5157 | G49: Teplá voda | J49: 324 | K49: 234.671 | L49: 106.70622 | M49: 0.4547056091 | N49: 324 | O49: 225.6 | P49: 106.70622 | Q49: 0.4729885638 | R49: 0 | S49: 9.071 | T49: 0 | U49: 0 | X49: 5142 | Z49: Realizované kurzové ztráty | AC49: 2 | AD49: 4 | AE49: 1.59496 | AF49: 0.39874 | AG49: 2 | AH49: 4 | AI49: 1.59496 | AJ49: 0.39874 | AK49: 0 | AL49: 0 | AM49: 0 | AN49: x
A50: =IF(COUNTBLANK(C50:IV50)=254,"odstr",IF(AND($A$1="TISK",SUM(J40:U40)=0),"odstr","OK")) ->  | B50: OK | E50: 5159 | G50: Nákup ostatních paliv a energie | J50: 1963 | K50: 2114.73978 | L50: 2095.41972 | M50: 0.9908640958 | N50: 1963 | O50: 2114.73978 | P50: 2095.41972 | Q50: 0.9908640958 | R50: 0 | S50: 0 | T50: 0 | U50: x | X50: 5143 | Z50: Úroky vzniklé převzetím cizích závazků | AC50: 0 | AD50: 0 | AE50: 0 | AF50: x | AG50: 0 | AH50: 0 | AI50: 0 | AJ50: x | AK50: 0 | AL50: 0 | AM50: 0 | AN50: x
A51: =IF(COUNTBLANK(C51:IV51)=254,"odstr",IF(AND($A$1="TISK",SUM(J41:U41)=0),"odstr","OK")) ->  | B51: OK | E51: 5161 | G51: Služby pošt | J51: 26.4 | K51: 40.56378 | L51: 17.58938 | M51: 0.4336228034 | N51: 26.4 | O51: 40.56378 | P51: 17.58938 | Q51: 0.4336228034 | R51: 0 | S51: 0 | T51: 0 | U51: x | X51: 5144 | Z51: Poplatky dluhové služby | AC51: 10 | AD51: 11.121 | AE51: 25.0073 | AF51: =AE51/AD51 -> 2.248655696 | AG51: 10 | AH51: 11.121 | AI51: 25.0073 | AJ51: =AI51/AH51 -> 2.248655696 | AK51: 0 | AL51: 0 | AM51: 0 | AN51: x
A52: =IF(COUNTBLANK(C52:IV52)=254,"odstr",IF(AND($A$1="TISK",SUM(J42:U42)=0),"odstr","OK")) ->  | B52: OK | E52: 5162 | G52: Služby telekomunikací a radiokomunikací | J52: 4325.6705 | K52: 4683.29855 | L52: 4249.32835 | M52: 0.9073366356 | N52: 4281.6705 | O52: 4579.18276 | P52: 4189.68774 | Q52: 0.9149422418 | R52: 44 | S52: 104.11579 | T52: 59.64061 | U52: 0.5728296352 | X52: 5149 | Z52: Ostatní úroky a ostatní finanční výdaje | AC52: 1100 | AD52: 0 | AE52: 8e-05 | AF52: x | AG52: 1100 | AH52: 0 | AI52: 8e-05 | AJ52: x | AK52: 0 | AL52: 0 | AM52: 0 | AN52: x
E53: 5163 | G53: Služby peněžních ústavů | J53: 21175.001 | K53: 21158.48811 | L53: 18575.35061 | M53: 0.8779148356 | N53: 21174.001 | O53: 21145.48811 | P53: 18574.36161 | Q53: 0.8784077962 | R53: 1 | S53: 13 | T53: 0.989 | U53: 0.07607692308 | X53: 515 | Z53: Nákup vody, paliv a energie | AC53: =SUM(AC54:AC61) -> 149542.401 | AD53: =SUM(AD54:AD61) -> 159386.0796 | AE53: =SUM(AE54:AE61) -> 132533.0195 | AF53: =AE53/AD53 -> 0.8315219239 | AG53: =SUM(AG54:AG61) -> 149522.401 | AH53: =SUM(AH54:AH61) -> 159362.1496 | AI53: =SUM(AI54:AI61) -> 132519.2844 | AJ53: =AI53/AH53 -> 0.831560598 | AK53: =AK59 -> 20 | AL53: =SUM(AL54:AL61) -> 23.93 | AM53: =SUM(AM54:AM61) -> 13.73514 | AN53: =AM53/AL53 -> 0.5739715838
A54: =IF(COUNTBLANK(C54:IV54)=254,"odstr",IF(AND($A$1="TISK",SUM(J43:U43)=0),"odstr","OK")) ->  | B54: OK | E54: 5164 | G54: Nájemné | J54: 22234.289 | K54: 37131.16748 | L54: 33769.24598 | M54: 0.9094582334 | N54: 20998.289 | O54: 35425.07148 | P54: 32577.56831 | Q54: 0.9196189859 | R54: 1236 | S54: 1706.096 | T54: 1191.67767 | U54: 0.6984821897 | X54: 5151 | Z54: Studená voda | AC54: 9866.554 | AD54: 11598.6936 | AE54: 9190.62681 | AF54: 0.7923846536 | AG54: 9866.554 | AH54: 11598.6936 | AI54: 9190.62681 | AJ54: 0.7923846536 | AK54: 0 | AL54: 0 | AM54: 0 | AN54: x
B55: OK | E55: 5165 | G55: Nájemné za půdu | J55: 1.68 | K55: 3.28 | L55: 3.28 | M55: 1 | N55: 1.68 | O55: 3.28 | P55: 3.28 | Q55: 1 | R55: 0 | S55: 0 | T55: 0 | U55: x | X55: 5152 | Z55: Teplo | AC55: 52542.9 | AD55: 53921.34819 | AE55: 45843.75024 | AF55: 0.850196662 | AG55: 52542.9 | AH55: 53907.41819 | AI55: 45831.37164 | AJ55: 0.8501867309 | AK55: 0 | AL55: 13.93 | AM55: 12.3786 | AN55: =AM55/AL55 -> 0.8886288586
B56: OK | E56: 5166 | G56: Konzultační, poradenské a právní služby | J56: 14592.45 | K56: 31045.5351 | L56: 21375.90237 | M56: 0.6885338681 | N56: 13779.45 | O56: 28600.6891 | P56: 19787.93837 | Q56: 0.6918692868 | R56: 813 | S56: 2444.846 | T56: 1587.964 | U56: 0.6495149388 | X56: 5153 | Z56: Plyn | AC56: 36300.38 | AD56: 36121.13003 | AE56: 28489.33089 | AF56: 0.7887164899 | AG56: 36300.38 | AH56: 36121.13003 | AI56: 28489.33089 | AJ56: 0.7887164899 | AK56: 0 | AL56: 0 | AM56: 0 | AN56: x
B57: OK | E57: 5167 | G57: Služby školení a vzdělávání | J57: 4207.7 | K57: 12270.25964 | L57: 6665.2558 | M57: 0.5432041371 | N57: 3618.7 | O57: 10741.3921 | P57: 6311.3284 | Q57: 0.5875708047 | R57: 589 | S57: 1528.86754 | T57: 353.9274 | U57: 0.2314964447 | X57: 5154 | Z57: Elektrická energie | AC57: 43403.267 | AD57: 50427.89803 | AE57: 42463.08959 | AF57: 0.8420555139 | AG57: 43403.267 | AH57: 50427.89803 | AI57: 42463.08959 | AJ57: 0.8420555139 | AK57: 0 | AL57: 0 | AM57: 0 | AN57: x
B58: OK | E58: 5168 | G58: Služby zpracování dat | J58: 1615.693 | K58: 9513.65171 | L58: 7323.93431 | M58: 0.7698341849 | N58: 678.693 | O58: 3021.37471 | P58: 922.50275 | Q58: 0.305325502 | R58: 937 | S58: 6492.277 | T58: 6401.43156 | U58: 0.9860071528 | X58: 5155 | Z58: Pevná paliva | AC58: 2774.5 | AD58: 3154.01711 | AE58: 2767.58339 | AF58: 0.8774788765 | AG58: 2774.5 | AH58: 3154.01711 | AI58: 2767.58339 | AJ58: 0.8774788765 | AK58: 0 | AL58: 0 | AM58: 0 | AN58: x
B59: OK | E59: 5169 | G59: Nákup ostatních služeb | J59: 357760.8819 | K59: 407396.5484 | L59: 277064.5167 | M59: 0.6800855771 | N59: 281160.3359 | O59: 345163.1069 | P59: 245465.2338 | Q59: 0.7111572149 | R59: 76600.546 | S59: 62233.44149 | T59: 31599.28291 | U59: 0.5077540652 | X59: 5156 | Z59: Pohonné hmoty a maziva | AC59: 2090.3 | AD59: 1887.82335 | AE59: 1638.01854 | AF59: 0.8676757494 | AG59: 2070.3 | AH59: 1877.82335 | AI59: 1636.662 | AJ59: 0.8715739955 | AK59: 20 | AL59: 10 | AM59: 1.35654 | AN59: =AM59/AL59 -> 0.135654
B60: OK | E60: 5171 | G60: Opravy a udržování | J60: 1485366.772 | K60: 2054490.15 | L60: 1584318.312 | M60: 0.77114914 | N60: 1263408.772 | O60: 1737233.851 | P60: 1391455.507 | Q60: 0.8009603924 | R60: 221958 | S60: 317256.2986 | T60: 192862.805 | U60: 0.6079085137 | X60: 5157 | Z60: Teplá voda | AC60: 50 | AD60: 54 | AE60: 46.59916 | AF60: 0.8629474074 | AG60: 50 | AH60: 54 | AI60: 46.59916 | AJ60: 0.8629474074 | AK60: 0 | AL60: 0 | AM60: 0 | AN60: x
B61: OK | E61: 5172 | G61: Programové vybavení | J61: 439.5 | K61: 2981.74097 | L61: 2449.21697 | M61: 0.8214050096 | N61: 439.5 | O61: 2060.84357 | P61: 1634.70838 | Q61: 0.7932229325 | R61: 0 | S61: 920.8974 | T61: 814.50859 | U61: 0.8844726785 | X61: 5159 | Z61: Nákup ostatních paliv a energie | AC61: 2514.5 | AD61: 2221.16925 | AE61: 2094.0209 | AF61: 0.9427561182 | AG61: 2514.5 | AH61: 2221.16925 | AI61: 2094.0209 | AJ61: 0.9427561182 | AK61: 0 | AL61: 0 | AM61: 0 | AN61: x
E62: 5173 | G62: Cestovné (tuzemské i zahraniční) | J62: 1816.208 | K62: 3607.17963 | L62: 2714.48442 | M62: 0.7525226627 | N62: 1644.208 | O62: 2391.19563 | P62: 1865.72241 | Q62: 0.7802466626 | R62: 172 | S62: 1215.984 | T62: 848.76201 | U62: 0.6980042583 | X62: 516 | Z62: Nákup služeb | AC62: =SUM(AC63:AC71) -> 623565.8304 | AD62: =SUM(AD63:AD71) -> 1000892.325 | AE62: =SUM(AE63:AE71) -> 593146.2463 | AF62: 0.5926174388 | AG62: =SUM(AG63:AG71) -> 533625.9834 | AH62: =SUM(AH63:AH71) -> 905921.6715 | AI62: =SUM(AI63:AI71) -> 539955.3634 | AJ62: 0.5960287521 | AK62: =SUM(AK63:AK71) -> 89939.847 | AL62: =SUM(AL63:AL71) -> 94970.6537 | AM62: =SUM(AM63:AM71) -> 53190.8829 | AN62: =AM62/AL62 -> 0.560077043
A63: =IF(COUNTBLANK(C63:IV63)=254,"odstr",IF(AND($A$1="TISK",SUM(J51:U51)=0),"odstr","OK")) ->  | B63: OK | E63: 5175 | G63: Pohoštění | J63: 4841.443 | K63: 10504.10599 | L63: 7265.58162 | M63: 0.6916896713 | N63: 3647.597 | O63: 7751.90633 | P63: 5623.11229 | Q63: 0.7253844475 | R63: 1193.846 | S63: 2752.19966 | T63: 1642.46933 | U63: 0.596784221 | X63: 5161 | Z63: Služby pošt | AC63: 20.309 | AD63: 40.633 | AE63: 6.424 | AF63: 0.1580980976 | AG63: 20.309 | AH63: 37.633 | AI63: 6.218 | AJ63: 0.1652273271 | AK63: 0 | AL63: 3 | AM63: 0.206 | AN63: =AM63/AL63 -> 0.06866666667
B64: OK | E64: 5176 | G64: Účastnické poplatky na konference | J64: 28.391 | K64: 520.818 | L64: 253.417 | M64: 0.4865749648 | N64: 28.391 | O64: 9.231 | P64: 7.825 | Q64: 0.8476871412 | R64: 0 | S64: 511.587 | T64: 245.592 | U64: 0.4800591102 | X64: 5162 | Z64: Služby telekomunikací a radiokomunikací | AC64: 4573.54 | AD64: 4971.75808 | AE64: 4502.46452 | AF64: 0.9056081265 | AG64: 4540.54 | AH64: 4836.73416 | AI64: 4415.11622 | AJ64: 0.9128300365 | AK64: 33 | AL64: 135.02392 | AM64: 87.3483 | AN64: =AM64/AL64 -> 0.6469098216
B65: OK | E65: 5177 | G65: Nákup uměleckých předmětů | J65: 0 | K65: 0 | L65: 0 | M65: x | N65: 0 | O65: 0 | P65: 0 | Q65: x | R65: 0 | S65: 0 | T65: 0 | U65: x | X65: 5163 | Z65: Služby peněžních ústavů | AC65: 21045.657 | AD65: 22199.93131 | AE65: 19214.75451 | AF65: 0.8655321605 | AG65: 21044.657 | AH65: 22190.23447 | AI65: 19211.90234 | AJ65: 0.865781854 | AK65: 1 | AL65: 9.69684 | AM65: 2.85217 | AN65: =AM65/AL65 -> 0.2941339653
B66: OK | E66: 5178 | G66: Nájemné za nájem s právem koupě | J66: 699.416 | K66: 4464.202 | L66: 2985.224 | M66: 0.6687027155 | N66: 0 | O66: 0 | P66: 0 | Q66: x | R66: 699.416 | S66: 4464.202 | T66: 2985.224 | U66: 0.6687027155 | X66: 5164 | Z66: Nájemné | AC66: 33502.73 | AD66: 49280.59403 | AE66: 44788.72558 | AF66: 0.9088511708 | AG66: 32007.73 | AH66: 46543.8769 | AI66: 42657.23213 | AJ66: 0.9164950359 | AK66: 1495 | AL66: 2736.71713 | AM66: 2131.49345 | AN66: =AM66/AL66 -> 0.7788504799
B67: OK | E67: 5179 | G67: Ostatní nákupy jinde nezařazené | J67: 789.01 | K67: 2239.38 | L67: 1800.69175 | M67: 0.8041028097 | N67: 779.01 | O67: 1026.88 | P67: 709.19175 | Q67: 0.690627678 | R67: 10 | S67: 1212.5 | T67: 1091.5 | U67: 0.9002061856 | X67: 5165 | Z67: Nájemné za půdu | AC67: 242.913 | AD67: 249.864 | AE67: 26.10334 | AF67: 0.1044701918 | AG67: 242.913 | AH67: 249.864 | AI67: 26.10334 | AJ67: 0.1044701918 | AK67: 0 | AL67: 0 | AM67: 0 | AN67: x
B68: OK | E68: 5182 | G68: Poskytované zálohy vlastní pokladně | J68: 0 | K68: 0 | L68: 0 | M68: x | N68: 0 | O68: 0 | P68: 0 | Q68: x | R68: 0 | S68: 0 | T68: 0 | U68: x | X68: 5166 | Z68: Konzultační, poradenské a právní služby | AC68: 12244.551 | AD68: 31048.90667 | AE68: 19933.41018 | AF68: 0.6420003896 | AG68: 11932.551 | AH68: 23115.91325 | AI68: 15913.25369 | AJ68: 0.6884112048 | AK68: 312 | AL68: 7932.99342 | AM68: 4020.15649 | AN68: =AM68/AL68 -> 0.5067641276
B69: OK | E69: 5183 | G69: Výdaje na realizaci záruk | J69: 0 | K69: 0 | L69: 0 | M69: x | N69: 0 | O69: 0 | P69: 0 | Q69: x | R69: 0 | S69: 0 | T69: 0 | U69: x | X69: 5167 | Z69: Služby školení a vzdělávání | AC69: 3556.076 | AD69: 13857.92229 | AE69: 10221.66185 | AF69: 0.737604212 | AG69: 3236.3 | AH69: 10601.70214 | AI69: 8150.1704 | AJ69: 0.768760553 | AK69: 319.776 | AL69: 3256.22015 | AM69: 2071.49145 | AN69: 0.6361644344
B70: OK | E70: 5189 | G70: Ostatní poskytované zálohy a jistiny | J70: 20 | K70: 115 | L70: 115 | M70: 1 | N70: 0 | O70: 115 | P70: 115 | Q70: 1 | R70: 20 | S70: 0 | T70: 0 | U70: x | X70: 5168 | Z70: Služby zpracování dat | AC70: 3658.873 | AD70: 15686.6155 | AE70: 11578.17701 | AF70: 0.7380927396 | AG70: 1878.873 | AH70: 5644.339 | AI70: 4346.85167 | AJ70: 0.7701259031 | AK70: 1780 | AL70: 10042.2765 | AM70: 7231.32534 | AN70: 0.7200882529
B71: OK | E71: 5191 | G71: Zaplacené sankce | J71: 4.602 | K71: 837.4422 | L71: 766.50444 | M71: 0.9152923509 | N71: 4.602 | O71: 814.702 | P71: 743.76424 | Q71: 0.9129279663 | R71: 0 | S71: 22.7402 | T71: 22.7402 | U71: 1 | X71: 5169 | Z71: Nákup ostatních služeb | AC71: 544721.1814 | AD71: 863556.1003 | AE71: 482874.5253 | AF71: 0.5591698387 | AG71: 458722.1104 | AH71: 792701.3746 | AI71: 445228.5156 | AJ71: 0.5616598253 | AK71: 85999.071 | AL71: 70854.72574 | AM71: 37646.0097 | AN71: 0.5313126162
E72: 5192 | G72: Poskytnuté neinvestiční příspěvky a náhrady (část) | J72: 5456.362 | K72: 6288.93596 | L72: 5952.92009 | M72: 0.9465703146 | N72: 5456.362 | O72: 6284.93596 | P72: 5948.92009 | Q72: 0.9465363097 | R72: 0 | S72: 4 | T72: 4 | U72: 1 | X72: 517 | Z72: Ostatní nákupy | AC72: =SUM(AC73:AC80) -> 1831489.091 | AD72: =SUM(AD73:AD80) -> 2420493.15 | AE72: =SUM(AE73:AE80) -> 1903938.533 | AF72: 0.7865911679 | AG72: =SUM(AG73:AG80) -> 1666424.775 | AH72: =SUM(AH73:AH80) -> 2132120.702 | AI72: =SUM(AI73:AI80) -> 1708729.529 | AJ72: 0.8014225121 | AK72: =SUM(AK73:AK80) -> 165064.316 | AL72: =SUM(AL73:AL80) -> 288372.4478 | AM72: =SUM(AM73:AM80) -> 195209.0046 | AN72: 0.6769336187
A73: =IF(COUNTBLANK(C73:IV73)=254,"odstr",IF(AND($A$1="TISK",SUM(J60:U60)=0),"odstr","OK")) ->  | B73: OK | E73: 5193 | G73: Výdaje na dopravní územní obslužnost | J73: 0 | K73: 3 | L73: 0 | M73: 0 | N73: 0 | O73: 3 | P73: 0 | Q73: 0 | R73: 0 | S73: 0 | T73: 0 | U73: x | X73: 5171 | Z73: Opravy a udržování | AC73: 1814876.953 | AD73: 2371078.334 | AE73: 1868968.723 | AF73: 0.7882357557 | AG73: 1654490.953 | AH73: 2097632.495 | AI73: 1681228.46 | AJ73: 0.8014885659 | AK73: 160386 | AL73: 273445.8391 | AM73: 187740.2624 | AN73: 0.6865720211
B74: OK | E74: 5194 | G74: Věcné dary | J74: 9145.8 | K74: 12830.41102 | L74: 11042.35226 | M74: 0.8606390117 | N74: 7360.8 | O74: 10123.36102 | P74: 8867.42275 | Q74: 0.8759366314 | R74: 1785 | S74: 2707.05 | T74: 2174.92951 | U74: 0.803431599 | X74: 5172 | Z74: Programové vybavení | AC74: 1356.799 | AD74: 21310.87294 | AE74: 16638.95966 | AF74: 0.7807732563 | AG74: 1356.799 | AH74: 16116.2438 | AI74: 14142.16909 | AJ74: 0.8775102478 | AK74: 0 | AL74: 5194.62914 | AM74: 2496.79057 | AN74: 0.4806484742
B75: OK | E75: 5197 | G75: Náhrady zvýšených nákladů spojených s výkonem funkce v zahraničí | J75: 0 | K75: 0 | L75: 0 | M75: x | N75: 0 | O75: 0 | P75: 0 | Q75: x | R75: 0 | S75: 0 | T75: 0 | U75: x | X75: 5173 | Z75: Cestovné (tuzemské i zahraniční) | AC75: 1456.55 | AD75: 5093.77875 | AE75: 3153.24026 | AF75: 0.6190375387 | AG75: 1117.55 | AH75: 2578.99625 | AI75: 1948.54441 | AJ75: 0.7555437159 | AK75: 339 | AL75: 2514.7825 | AM75: 1204.69585 | AN75: 0.4790457425
B76: OK | E76: 5199 | G76: Ostatní výdaje související s neinvestičními nákupy | J76: 20322 | K76: 4132.04621 | L76: 10.667 | M76: 0.002581529697 | N76: 42 | O76: 12.6 | P76: 10.667 | Q76: 0.8465873016 | R76: 20280 | S76: 4119.44621 | T76: 0 | U76: 0 | X76: 5175 | Z76: Pohoštění | AC76: 9532.91907 | AD76: 18123.54463 | AE76: 12405.28373 | AF76: 0.6844844087 | AG76: 8013.07307 | AH76: 13894.71563 | AI76: 9866.40198 | AJ76: 0.7100830447 | AK76: 1519.846 | AL76: 4228.829 | AM76: 2538.88175 | AN76: 0.6003746545
E77: 51 | G77: Neinvestiční nákupy a související výdaje | J77: 2219494.927 | K77: 3113323.036 | L77: 2393750.476 | M77: 0.7688731455 | N77: 1889156.119 | O77: 2684104.347 | P77: 2133134.149 | Q77: 0.7947284729 | R77: 330338.808 | S77: 429218.6891 | T77: 260616.3271 | U77: 0.6071877429 | X77: 5176 | Z77: Účastnické poplatky na konference | AC77: 47 | AD77: 103.098 | AE77: 34.884 | AF77: 0.3383576791 | AG77: 2 | AH77: 12.7 | AI77: 19.01 | AJ77: 1.496850394 | AK77: 45 | AL77: 90.398 | AM77: 15.874 | AN77: 0.1756012301
B78: OK | E78: 5211 | G78: Neinvestiční transfery finančním institucím | J78: 0 | K78: 0 | L78: 0 | M78: x | N78: 0 | O78: 0 | P78: 0 | Q78: x | R78: 0 | S78: 0 | T78: 0 | U78: x | X78: 5177 | Z78: Nákup uměleckých předmětů | AC78: 0 | AD78: 0 | AE78: 0 | AF78: x | AG78: 0 | AH78: 0 | AI78: 0 | AJ78: x | AK78: 0 | AL78: 0 | AM78: 0 | AN78: x
B79: OK | E79: 5212 | G79: Neinvestiční transfery nefinančním podnikatelským subjektům-fyzickým osobám | J79: 37899.311 | K79: 156800.5797 | L79: 156571.2462 | M79: 0.9985374192 | N79: 1096.5 | O79: 6159.8 | P79: 5999.048 | Q79: 0.9739030488 | R79: 36802.811 | S79: 150640.7797 | T79: 150572.1982 | U79: 0.9995447347 | X79: 5178 | Z79: Nájemné za nájem s právem koupě | AC79: 1564.47 | AD79: 1577.947 | AE79: 13.477 | AF79: =AE79/AD79 -> 0.008540844528 | AG79: 0 | AH79: 13.477 | AI79: 13.477 | AJ79: =AI79/AH79 -> 1 | AK79: 1564.47 | AL79: 1564.47 | AM79: 0 | AN79: x
B80: OK | E80: 5213 | G80: Neinvestiční transfery nefinančním podnikatelským subjektům-právnickým osobám | J80: 823119.795 | K80: 3962468.84 | L80: 3957840.046 | M80: 0.9988318411 | N80: 13379.5 | O80: 1209935.8 | P80: 1206016.243 | Q80: 0.996760524 | R80: 809740.295 | S80: 2752533.039 | T80: 2751823.804 | U80: 0.9997423336 | X80: 5179 | Z80: Ostatní nákupy jinde nezařazené | AC80: 2654.4 | AD80: 3205.574 | AE80: 2723.9661 | AF80: =AE80/AD80 -> 0.8497592319 | AG80: 1444.4 | AH80: 1872.074 | AI80: 1511.4661 | AJ80: =AI80/AH80 -> 0.8073751892 | AK80: 1210 | AL80: 1333.5 | AM80: 1212.5 | AN80: =AM80/AL80 -> 0.9092613423
E81: 5215 | G81: Neinvestiční transfery vybraným podnikatelským subjektům ve vlastnictví státu | J81: 85 | K81: 70 | L81: 0 | M81: 0 | N81: 85 | O81: 70 | P81: 0 | Q81: 0 | R81: 0 | S81: 0 | T81: 0 | U81: x | X81: 518 | Z81: Poskytnuté zálohy, jistiny, záruky a vládní úvěry | AC81: =SUM(AC82:AC84) -> 0 | AD81: =SUM(AD82:AD84) -> 4942.69 | AE81: =AE84 -> 4872.6936 | AF81: =AE81/AD81 -> 0.9858383997 | AG81: 0 | AH81: =SUM(AH82:AH84) -> 4937.69 | AI81: =AI84 -> 4872.6936 | AJ81: =AI81/AH81 -> 0.9868366787 | AK81: 0 | AL81: =SUM(AL82:AL84) -> 5 | AM81: 0 | AN81: x
A82: =IF(COUNTBLANK(C82:IV82)=254,"odstr",IF(AND($A$1="TISK",SUM(J68:U68)=0),"odstr","OK")) ->  | B82: OK | E82: 5219 | G82: Ostatní neinvestiční transfery podnikatelským subjektům | J82: 40 | K82: 61 | L82: 61.02 | M82: 1.000327869 | N82: 40 | O82: 61 | P82: 61.02 | Q82: 1.000327869 | R82: 0 | S82: 0 | T82: 0 | U82: x | X82: 5182 | Z82: Poskytované zálohy vlastní pokladně | AF82: x | AJ82: x | AN82: x
A83: =IF(COUNTBLANK(C83:IV83)=254,"odstr",IF(AND($A$1="TISK",SUM(J69:U69)=0),"odstr","OK")) ->  | B83: OK | E83: 5221 | G83: Neinvestiční transfery obecně prospěšným společnostem | J83: 287431.451 | K83: 1040458.838 | L83: 1029632.361 | M83: 0.9895945174 | N83: 16847.2 | O83: 275650.596 | P83: 265280.6104 | Q83: 0.9623799631 | R83: 270584.251 | S83: 764808.2418 | T83: 764351.751 | U83: 0.9994031304 | X83: 5183 | Z83: Výdaje na realizaci záruk | AF83: x | AJ83: x | AN83: x
A84: =IF(COUNTBLANK(C84:IV84)=254,"odstr",IF(AND($A$1="TISK",SUM(J70:U70)=0),"odstr","OK")) ->  | B84: OK | E84: 5222 | G84: Neinvestiční transfery občanským sdružením | J84: 85512.027 | K84: 189283.3729 | L84: 186740.7463 | M84: 0.9865670897 | N84: 36657.97 | O84: 61071.0484 | P84: 59999.90585 | Q84: 0.9824607146 | R84: 48854.057 | S84: 128212.3245 | T84: 126740.8405 | U84: 0.9885230689 | X84: 5189 | Z84: Ostatní poskytované zálohy a jistiny | AC84: 0 | AD84: 4942.69 | AE84: 4872.6936 | AF84: =AE84/AD84 -> 0.9858383997 | AG84: 0 | AH84: 4937.69 | AI84: 4872.6936 | AJ84: =AI84/AH84 -> 0.9868366787 | AK84: 0 | AL84: 5 | AM84: 0 | AN84: x
E85: 5223 | G85: Neinvestiční transfery církvím a náboženským společnostem | J85: 835 | K85: 8674.2883 | L85: 8132.80355 | M85: 0.9375758873 | N85: 835 | O85: 7410.34895 | P85: 6868.872 | Q85: 0.9269296286 | R85: 0 | S85: 1263.93935 | T85: 1263.93155 | U85: 0.9999938288 | X85: 519 | Z85: Výdaje související s neinvestičními nákupy, příspěvky, náhrady a věcné dary | AC85: =SUM(AC86:AC91) -> 43089.731 | AD85: =SUM(AD86:AD91) -> 31336.37284 | AE85: =SUM(AE86:AE91) -> 19920.04994 | AF85: =AE85/AD85 -> 0.6356846098 | AG85: =AG87+AG89+AG91 -> 19628.731 | AH85: =SUM(AH86:AH91) -> 23263.07241 | AI85: =SUM(AI86:AI91) -> 18534.66405 | AJ85: =AI85/AH85 -> 0.7967418801 | AK85: =AK89+AK91 -> 23461 | AL85: =SUM(AL86:AL91) -> 8073.30043 | AM85: =AM87+AM89 -> 1385.38589 | AN85: =AM85/AL85 -> 0.1716009335
A86: =IF(COUNTBLANK(C86:IV86)=254,"odstr",IF(AND($A$1="TISK",SUM(J71:U71)=0),"odstr","OK")) ->  | B86: OK | E86: 5224 | G86: Neinvestiční transfery politickým stranám a hnutím | J86: 0 | K86: 0 | L86: 0 | M86: x | N86: 0 | O86: 0 | P86: 0 | Q86: x | R86: 0 | S86: 0 | T86: 0 | U86: x | X86: 5191 | Z86: Zaplacené sankce | AC86: 0 | AD86: 43.336 | AE86: 5.536 | AF86: =AE86/AD86 -> 0.1277459849 | AG86: 0 | AH86: 43.336 | AI86: 5.536 | AJ86: =AI86/AH86 -> 0.1277459849 | AK86: 0 | AL86: 0 | AM86: 0 | AN86: x
B87: OK | E87: 5229 | G87: Ostatní neinvestiční transfery neziskovým a podobným organizacím | J87: 74521.036 | K87: 100315.2723 | L87: 81361.14261 | M87: 0.8110543963 | N87: 21752.45 | O87: 67514.72129 | P87: 50552.09161 | Q87: 0.748756577 | R87: 52768.586 | S87: 32800.551 | T87: 30809.051 | U87: 0.9392845565 | X87: 5192 | Z87: Poskytnuté neinvestiční příspěvky a náhrady (část) | AC87: 4083.511 | AD87: 5680.823 | AE87: 5117.14164 | AF87: =AE87/AD87 -> 0.9007747011 | AG87: 4083.511 | AH87: 5678.823 | AI87: 5115.14164 | AJ87: =AI87/AH87 -> 0.9007397554 | AK87: 0 | AL87: 2 | AM87: 2 | AN87: =AM87/AL87 -> 1
B88: OK | E88: 5230 | G88: Neinvestiční nedotační transfery podnikatelským subjektům | J88: 0 | K88: 6.5 | L88: 6.5 | M88: 1 | N88: 0 | O88: 6.5 | P88: 6.5 | Q88: 1 | R88: 0 | S88: 0 | T88: 0 | U88: x | X88: 5193 | Z88: Výdaje na dopravní územní obslužnost | AC88: 0 | AD88: 0 | AE88: 0 | AF88: x | AG88: 0 | AH88: 0 | AI88: 0 | AJ88: x | AK88: 0 | AL88: 0 | AM88: 0 | AN88: x
B89: OK | E89: 5240 | G89: Neinvestiční nedotační transfery neziskovým a podobným organizacím | J89: 792 | K89: 1246.606 | L89: 1200.451 | M89: 0.962975471 | N89: 792 | O89: 1246.606 | P89: 1200.451 | Q89: 0.962975471 | R89: 0 | S89: 0 | T89: 0 | U89: x | X89: 5194 | Z89: Věcné dary | AC89: 16349.22 | AD89: 18619.25831 | AE89: 14624.5713 | AF89: =AE89/AD89 -> 0.7854540206 | AG89: 13188.22 | AH89: 16796.11341 | AI89: 13241.18541 | AJ89: =AI89/AH89 -> 0.7883481783 | AK89: 3161 | AL89: 1823.1449 | AM89: 1383.38589 | AN89: =AM89/AL89 -> 0.7587909716
B90: OK | E90: 52 | G90: Neinvestiční transfery podnikatelským subjektům a neziskovým organizacím. Neinvestiční transfery soukromoprávním subjektům | J90: 1310235.62 | K90: 5459385.297 | L90: 5421546.317 | M90: 0.9930690037 | N90: 91485.62 | O90: 1629126.421 | P90: 1595984.741 | Q90: 0.9796567784 | R90: 1218750 | S90: 3830258.875 | T90: 3825561.576 | U90: 0.9987736339 | X90: 5197 | Z90: Náhrady zvýšených nákladů spojených s výkonem funkce v zahraničí | AC90: 0 | AD90: 0 | AE90: 0 | AF90: x | AG90: 0 | AH90: 0 | AI90: 0 | AJ90: x | AK90: 0 | AL90: 0 | AM90: 0 | AN90: x
B91: OK | E91: 5311 | G91: Neinvestiční transfery státnímu rozpočtu | J91: 1340 | K91: 5302.488 | L91: 1135.038 | M91: 0.2140576273 | N91: 300 | O91: 300 | P91: 0 | Q91: 0 | R91: 1040 | S91: 5002.488 | T91: 1135.038 | U91: 0.2268946972 | X91: 5199 | Z91: Ostatní výdaje související s neinvestičními nákupy | AC91: 22657 | AD91: 6992.95553 | AE91: 172.801 | AF91: =AE91/AD91 -> 0.02471072485 | AG91: 2357 | AH91: 744.8 | AI91: 172.801 | AJ91: =AI91/AH91 -> 0.2320099356 | AK91: 20300 | AL91: 6248.15553 | AM91: 0 | AN91: x
B92: OK | E92: 5313 | G92: Neinvestiční transfery zvláštním fondům ústřední úrovně | J92: 0 | K92: 0 | L92: 0 | M92: x | N92: 0 | O92: 0 | P92: 0 | Q92: x | R92: 0 | S92: 0 | T92: 0 | U92: x | X92: 52 | Y92: Neinvestiční transfery soukromoprávním subjektům | Z92: Neinvestiční transfery podnikatelským subjektům a neziskovým organizacím. Neinvestiční transfery soukromoprávním subjektům | AC92: =AC93+AC100 -> 1814134.127 | AD92: =AD93+AD100+AD108 -> 6704385.954 | AE92: =AE93+AE100+AE108 -> 6505544.94 | AF92: =AE92/AD92 -> 0.9703416518 | AG92: =AG93+AG100+AG106+AG108 -> 310361.697 | AH92: =AH93+AH100+AH106+AH108 -> 2244057.846 | AI92: =AI93+AI100+AI106+AI108 -> 2054623.722 | AJ92: =AI92/AH92 -> 0.9155841172 | AK92: =AK93+AK100+AK106+AK108 -> 1503772.43 | AL92: =AL93+AL100 -> 4460328.108 | AM92: =AM93+AM100+AM106+AM108 -> 4450921.219 | AN92: =AM92/AL92 -> 0.9978909872
E93: 5319 | G93: Ostatní neinvestiční transfery jiným veřejným rozpočtům | J93: 100 | K93: 10 | L93: 0 | M93: 0 | N93: 100 | O93: 10 | P93: 0 | Q93: 0 | R93: 0 | S93: 0 | T93: 0 | U93: x | X93: 521 | Z93: Neinvestiční transfery podnikatelským subjektům | AC93: =SUM(AC94:AC99) -> 1054971.392 | AD93: =SUM(AD94:AD99) -> 4804541.641 | AE93: =SUM(AE95:AE99) -> 4657608.02 | AF93: =AE93/AD93 -> 0.9694177651 | AG93: =SUM(AG94:AG99) -> 15991.23 | AH93: =SUM(AH95:AH99) -> 1559693.456 | AI93: =SUM(AI95:AI99) -> 1415120.467 | AJ93: =AI93/AH93 -> 0.9073067928 | AK93: =AK95+AK96 -> 1038980.162 | AL93: =SUM(AL94:AL99) -> 3244848.185 | AM93: =AM95+AM96 -> 3242487.553 | AN93: =AM93/AL93 -> 0.9992724983
A94: =IF(COUNTBLANK(C94:IV94)=254,"odstr",IF(AND($A$1="TISK",SUM(J78:U78)=0),"odstr","OK")) ->  | B94: OK | E94: 5322 | G94: Neinvestiční dotace obcím v rámci souhrnného dotačního vztahu | J94: 0 | K94: 0 | L94: 0 | M94: x | N94: 0 | O94: 0 | P94: 0 | Q94: x | R94: 0 | S94: 0 | T94: 0 | U94: x | X94: 5211 | Z94: Neinvestiční transfery finančním institucím | AC94: 0 | AD94: x | AE94: x | AF94: x | AG94: 0 | AH94: x | AI94: 0 | AJ94: x | AK94: 0 | AL94: x | AM94: x | AN94: x
A95: =IF(COUNTBLANK(C95:IV95)=254,"odstr",IF(AND($A$1="TISK",SUM(J79:U79)=0),"odstr","OK")) ->  | B95: OK | E95: 5324 | G95: Neinvestiční dotace krajům v rámci souhrnného dotačního vztahu | J95: 0 | K95: 0 | L95: 0 | M95: x | N95: 0 | O95: 0 | P95: 0 | Q95: x | R95: 0 | S95: 0 | T95: 0 | U95: x | X95: 5212 | Z95: Neinvestiční transfery nefinančním podnikatelským subjektům-fyzickým osobám | AC95: 60720.66 | AD95: 202108.371 | AE95: 201847.401 | AF95: =AE95/AD95 -> 0.998708762 | AG95: 1235.5 | AH95: 10188.252 | AI95: 9985.412 | AJ95: =AI95/AH95 -> 0.9800907948 | AK95: 59485.16 | AL95: 191920.119 | AM95: 191861.989 | AN95: =AM95/AL95 -> 0.9996971136
A96: =IF(COUNTBLANK(C96:IV96)=254,"odstr",IF(AND($A$1="TISK",SUM(J80:U80)=0),"odstr","OK")) ->  | B96: OK | E96: 5331 | G96: Neinvestiční příspěvky zřízeným příspěvkovým organizacím | J96: 18709549.54 | K96: 20596942.25 | L96: 20443288.48 | M96: 0.992539972 | N96: 13133157.25 | O96: 14510176.46 | P96: 14416912.25 | Q96: 0.9935724964 | R96: 5576392.294 | S96: 6086765.786 | T96: 6026376.233 | U96: 0.9900785482 | X96: 5213 | Z96: Neinvestiční transfery nefinančním podnikatelským subjektům-právnickým osobám | AC96: 994095.732 | AD96: 4602128.27 | AE96: 4455697.687 | AF96: =AE96/AD96 -> 0.9681819857 | AG96: 14600.73 | AH96: 1549200.204 | AI96: 1405072.123 | AJ96: =AI96/AH96 -> 0.9069661363 | AK96: 979495.002 | AL96: 3052928.066 | AM96: 3050625.564 | AN96: =AM96/AL96 -> 0.9992458052
X97: 5214 | Z97: Neinvestiční transfery finančním a podobným institucím ve vlastnictví státu | AD97: 160 | AE97: 0 | AF97: x | AH97: 160 | AI97: 0 | AJ97: x | AL97: 0 | AM97: 0 | AN97: x
A98: =IF(COUNTBLANK(C98:IV98)=254,"odstr",IF(AND($A$1="TISK",SUM(J81:U81)=0),"odstr","OK")) ->  | B98: OK | E98: 5332 | G98: Neinvestiční dotace vysokým školám | J98: 18399.6 | K98: 59407.899 | L98: 54693.61009 | M98: 0.9206454194 | N98: 9099.6 | O98: 24934.1 | P98: 23960.81009 | Q98: 0.9609655087 | R98: 9300 | S98: 34473.799 | T98: 30732.8 | U98: 0.8914828331 | X98: 5215 | Z98: Neinvestiční transfery vybraným podnikatelským subjektům ve vlastnictví státu | AC98: 85 | AD98: 75 | AE98: 0 | AF98: x | AG98: 85 | AH98: 75 | AI98: 0 | AJ98: x | AK98: 0 | AL98: 0 | AM98: 0 | AN98: x
A99: =IF(COUNTBLANK(C99:IV99)=254,"odstr",IF(AND($A$1="TISK",SUM(J82:U82)=0),"odstr","OK")) ->  | B99: OK | E99: 5333 | G99: Neinvestiční transfery školským právnickým osobám zřízeným státem, kraji a obcemi | J99: 76432.025 | K99: 120492.1265 | L99: 120549.7844 | M99: 1.00047852 | N99: 56432.025 | O99: 69684.67653 | P99: 69742.33439 | Q99: 1.000827411 | R99: 20000 | S99: 50807.45 | T99: 50807.45 | U99: 1 | X99: 5219 | Z99: Ostatní neinvestiční transfery podnikatelským subjektům | AC99: 70 | AD99: 70 | AE99: 62.932 | AF99: =AE99/AD99 -> 0.8990285714 | AG99: 70 | AH99: 70 | AI99: 62.932 | AJ99: =AI99/AH99 -> 0.8990285714 | AK99: 0 | AL99: 0 | AM99: 0 | AN99: x
E100: 5334 | G100: Neinvestiční transfery veřejným výzkumným institucím | J100: 0 | K100: 0 | L100: 0 | M100: x | N100: 0 | O100: 0 | P100: 0 | Q100: x | R100: 0 | S100: 0 | T100: 0 | U100: x | X100: 522 | Y100: Neinvestiční transfery neziskovým a podobným organizacím | AC100: =SUM(AC101:AC105) -> 759162.735 | AD100: =SUM(AD101:AD105) -> 1899663.154 | AE100: =SUM(AE101:AE105) -> 1847838.762 | AF100: =AE100/AD100 -> 0.9727191675 | AG100: =SUM(AG101:AG105) -> 294370.467 | AH100: =SUM(AH101:AH105) -> 684183.2318 | AI100: =SUM(AI101:AI105) -> 639405.0963 | AJ100: =AI100/AH100 -> 0.9345524219 | AK100: =SUM(AK101:AK105) -> 464792.268 | AL100: =SUM(AL101:AL105) -> 1215479.923 | AM100: =SUM(AM101:AM105) -> 1208433.666 | AN100: =AM100/AL100 -> 0.9942029015
A101: =IF(COUNTBLANK(C101:IV101)=254,"odstr",IF(AND($A$1="TISK",SUM(J83:U83)=0),"odstr","OK")) ->  | B101: OK | E101: 5335 | G101: Neinvestiční transfery veřejným zdravotnickým zařízením zřízeným státem, kraji a obcemi | J101: 0 | K101: 0 | L101: 0 | M101: x | N101: 0 | O101: 0 | P101: 0 | Q101: x | R101: 0 | S101: 0 | T101: 0 | U101: x | X101: 5221 | Z101: Neinvestiční transfery obecně prospěšným společnostem | AC101: 363264.493 | AD101: 1187739.753 | AE101: 1179507.102 | AF101: =AE101/AD101 -> 0.993068641 | AG101: 22888.78 | AH101: 309801.4807 | AI101: 301593.895 | AJ101: =AI101/AH101 -> 0.9735069511 | AK101: 340375.713 | AL101: 877938.2719 | AM101: 877913.207 | AN101: =AM101/AL101 -> 0.9999714503
A102: =IF(COUNTBLANK(C102:IV102)=254,"odstr",IF(AND($A$1="TISK",SUM(J84:U84)=0),"odstr","OK")) ->  | E102: 5336 | G102: Neinvestiční dotace zřízeným příspěvkovým organizacím | J102: 19693365.8 | K102: 41134059.53 | L102: 41090577.92 | M102: 0.9989429293 | N102: 9356464.978 | O102: 13426302.16 | P102: 13386970.07 | Q102: 0.9970705193 | R102: 10336900.82 | S102: 27707757.37 | T102: 27703607.85 | U102: 0.9998502399 | X102: 5222 | Z102: Neinvestiční transfery občanským sdružením | AC102: 273786.058 | AD102: 485206.2903 | AE102: 472308.899 | AF102: =AE102/AD102 -> 0.9734187467 | AG102: 186649.64 | AH102: 229056.2616 | AI102: 218141.9477 | AJ102: =AI102/AH102 -> 0.9523509474 | AK102: 87136.418 | AL102: 256150.0287 | AM102: 254166.9512 | AN102: =AM102/AL102 -> 0.9922581408
A103: =IF(COUNTBLANK(C103:IV103)=254,"odstr",IF(AND($A$1="TISK",SUM(J85:U85)=0),"odstr","OK")) ->  | B103: OK | E103: 5339 | G103: Neinvestiční příspěvky ostatním příspěvkovým organizacím | J103: 20683779.1 | K103: 58947049.23 | L103: 58938267.21 | M103: 0.9998510184 | N103: 24790.35 | O103: 38760.3641 | P103: 35109.35281 | Q103: 0.9058055471 | R103: 20658988.75 | S103: 58908288.86 | T103: 58903157.85 | U103: 0.9999128983 | X103: 5223 | Z103: Neinvestiční transfery církvím a náboženským společnostem | AC103: 3186 | AD103: 19059.53141 | AE103: 14290.42257 | AF103: =AE103/AD103 -> 0.7497782743 | AG103: 2979 | AH103: 17298.89215 | AI103: 12583.28953 | AJ103: =AI103/AH103 -> 0.7274043575 | AK103: 207 | AL103: 1760.63926 | AM103: 1707.13304 | AN103: =AM103/AL103 -> 0.9696097768
A104: =IF(COUNTBLANK(C104:IV104)=254,"odstr",IF(AND($A$1="TISK",SUM(J86:U86)=0),"odstr","OK")) ->  | B104: OK | E104: 5341 | G104: Převody vlastním fondům hospodářské (podnikatelské) činnosti | J104: 0 | K104: 0 | L104: 0 | M104: x | N104: 0 | O104: 0 | P104: 0 | Q104: x | R104: 0 | S104: 0 | T104: 0 | U104: x | X104: 5224 | Z104: Neinvestiční transfery politickým stranám a hnutím | AC104: 0 | AD104: 0 | AE104: 0 | AF104: x | AG104: 0 | AH104: 0 | AI104: 0 | AJ104: x | AK104: 0 | AL104: 0 | AM104: 0 | AN104: x
A105: =IF(COUNTBLANK(C105:IV105)=254,"odstr",IF(AND($A$1="TISK",SUM(J87:U87)=0),"odstr","OK")) ->  | B105: OK | E105: 5342 | G105: Převody fondu kulturních a sociálních potřeb a sociálnímu fondu obcí a krajů | J105: 0 | K105: 0 | L105: 0 | M105: x | N105: 0 | O105: 0 | P105: 0 | Q105: x | R105: 0 | S105: 0 | T105: 0 | U105: x | X105: 5229 | Z105: Ostatní neinvestiční transfery neziskovým a podobným organizacím | AC105: 118926.184 | AD105: 207657.5802 | AE105: 181732.3387 | AF105: =AE105/AD105 -> 0.8751538881 | AG105: 81853.047 | AH105: 128026.5973 | AI105: 107085.964 | AJ105: =AI105/AH105 -> 0.8364352901 | AK105: 37073.137 | AL105: 79630.98291 | AM105: 74646.37465 | AN105: =AM105/AL105 -> 0.9374036577
E106: 5343 | G106: Převody jiným vlastním fondům a účtům nemajícím charakter veřejných rozpočtů | J106: 0 | K106: 0 | L106: 0 | M106: x | N106: 0 | O106: 0 | P106: 0 | Q106: x | R106: 0 | S106: 0 | T106: 0 | U106: x | X106: 523 | Y106: Neinvestiční nedotační transfery podnikatelským subjektům | AC106: x | AD106: x | AE106: x | AF106: x | AG106: 0 | AI106: 0 | AJ106: x | AK106: 0 | AN106: x
A107: =IF(COUNTBLANK(C107:IV107)=254,"odstr",IF(AND($A$1="TISK",SUM(J88:U88)=0),"odstr","OK")) ->  | B107: OK | E107: 5361 | G107: Nákup kolků | J107: 48 | K107: 53 | L107: 52.1 | M107: 0.9830188679 | N107: 48 | O107: 51 | P107: 50.1 | Q107: 0.9823529412 | R107: 0 | S107: 2 | T107: 2 | U107: 1 | X107: 5230 | Z107: Neinvestiční nedotační transfery podnikatelským subjektům (zrušeno) | AC107: x | AD107: x | AE107: x | AF107: x | AG107: x | AI107: x | AJ107: x | AK107: x | AM107: x | AN107: x
E108: 5362 | G108: Platby daní a poplatků státnímu rozpočtu | J108: 198.8 | K108: 745.91959 | L108: 704.53459 | M108: 0.9445181484 | N108: 48.8 | O108: 641.16959 | P108: 599.78459 | Q108: 0.9354538945 | R108: 150 | S108: 104.75 | T108: 104.75 | U108: 1 | X108: 524 | Y108: Neinvestiční nedotační transfery neziskovým a podobným organizacím | AC108: x | AD108: =AD109 -> 181.158 | AE108: =AE109 -> 98.158 | AF108: =AE108/AD108 -> 0.541836408 | AG108: 0 | AH108: =AH109 -> 181.158 | AI108: =AI109 -> 98.158 | AJ108: =AI108/AH108 -> 0.541836408 | AK108: 0 | AN108: x
A109: =IF(COUNTBLANK(C109:IV109)=254,"odstr",IF(AND($A$1="TISK",SUM(J89:U89)=0),"odstr","OK")) ->  | B109: OK | E109: 5363 | G109: Úhrady sankcí jiným rozpočtům | J109: 27000 | K109: 48652.73796 | L109: 16076.4714 | M109: 0.3304330254 | N109: 0 | O109: 13665.97858 | P109: 13364.5839 | Q109: 0.9779456203 | R109: 27000 | S109: 34986.75938 | T109: 2711.8875 | U109: 0.07751182299 | X109: 5240 | Z109: Neinvestiční nedotační transfery neziskovým a podobným organizacím (zrušeno) | AC109: x | AD109: 181.158 | AE109: 98.158 | AF109: =AE109/AD109 -> 0.541836408 | AG109: x | AH109: 181.158 | AI109: 98.158 | AJ109: =AI109/AH109 -> 0.541836408 | AK109: x | AM109: 0 | AN109: x
A110: =IF(COUNTBLANK(C110:IV110)=254,"odstr",IF(AND($A$1="TISK",SUM(J90:U90)=0),"odstr","OK")) ->  | B110: OK | E110: 5364 | G110: Vratky veřejným rozpočtům ústřední úrovně transferů poskytnutých v minulých rozpočtových obdobích | J110: 0 | K110: 900.74808 | L110: 900.72269 | M110: 0.9999718123 | N110: 0 | O110: 900.74808 | P110: 900.72269 | Q110: 0.9999718123 | R110: 0 | S110: 0 | T110: 0 | U110: x | X110: 53 | Y110: Neinvestiční transfery veřejnoprávním subjektům a mezi peněžními fondy téhož subjektu a platby daní | Z110: Neinvestiční transfery veřejnoprávním subjektům a mezi peněžními fondy téhož subjektu a platby daní | AC110: =AC111+AC115+AC118+AC126+AC130 -> 65961062.48 | AD110: =AD111+AD118+AD130 -> 136748660.9 | AE110: =AE111+AE115+AE118+AE126+AE130 -> 136514806 | AF110: =AE110/AD110 -> 0.9982898924 | AG110: =AG111+AG118+AG126+AG130 -> 24722100.9 | AH110: =AH111+AH118+AH126+AH130 -> 31779430.64 | AI110: =AI111+AI115+AI118+AI126+AI130 -> 31613490.4 | AJ110: =AI110/AH110 -> 0.9947783758 | AK110: =AK111+AK115+AK118+AK126+AK130 -> 41238961.58 | AL110: =AL111+AL118+AL126+AL130 -> 104969230.3 | AM110: =AM111+AM115+AM118+AM126+AM130 -> 104901315.6 | AN110: =AM110/AL110 -> 0.9993530039
E111: 5365 | G111: Výdaje z finančního vypořádání minulých let mezi krajem a obcemi | J111: 29 | K111: 331.7 | L111: 319.65 | M111: 0.9636719928 | N111: 29 | O111: 330.7 | P111: 318.65 | Q111: 0.9635621409 | R111: 0 | S111: 1 | T111: 1 | U111: 1 | X111: 531 | Y111: Neinvestiční transfery veřejným rozpočtům ústřední úrovně | AC111: =SUM(AC112:AC114) -> 1043 | AD111: =SUM(AD112:AD114) -> 6201.0804 | AE111: =AE112+AE114 -> 2260.8104 | AF111: =AE111/AD111 -> 0.3645833071 | AG111: =AG112+AG113+AG114 -> 3 | AH111: =AH112+AH114 -> 152.3104 | AI111: =AI112 -> 150.8104 | AJ111: =AI111/AH111 -> 0.9901516902 | AK111: =AK112 -> 1040 | AL111: =AL112+AL114 -> 6048.77 | AM111: =AM112+AM114 -> 2110 | AN111: =AM111/AL111 -> 0.34883125
A112: =IF(COUNTBLANK(C112:IV112)=254,"odstr",IF(AND($A$1="TISK",SUM(J91:U91)=0),"odstr","OK")) ->  | B112: OK | E112: 5369 | G112: Ostatní neinvestiční transfery jiným veřejným rozpočtům | J112: 0 | K112: 195.9 | L112: 195.8212 | M112: 0.999597754 | N112: 0 | O112: 195.9 | P112: 195.8212 | Q112: 0.999597754 | R112: 0 | S112: 0 | T112: 0 | U112: x | X112: 5311 | Z112: Neinvestiční transfery státnímu rozpočtu | AC112: 1040 | AD112: 5129.5804 | AE112: 1190.8104 | AF112: =AE112/AD112 -> 0.2321457716 | AG112: 0 | AH112: 150.8104 | AI112: 150.8104 | AJ112: =AI112/AH112 -> 1 | AK112: 1040 | AL112: 4978.77 | AM112: 1040 | AN112: =AM112/AL112 -> 0.2088869339
A113: =IF(COUNTBLANK(C113:IV113)=254,"odstr",IF(AND($A$1="TISK",SUM(J92:U92)=0),"odstr","OK")) ->  | B113: OK | E113: 53 | G113: Neinvestiční transfery veřejnoprávním subjektům a mezi peněžními fondy téhož subjektu | J113: 59210241.86 | K113: 120914143.5 | L113: 120666761.3 | M113: 0.9979540674 | N113: 22580470 | O113: 28085953.25 | P113: 27948124.47 | Q113: 0.995092608 | R113: 36629771.86 | S113: 92828190.27 | T113: 92718636.86 | U113: 0.9988198261 | X113: 5313 | Z113: Neinvestiční transfery zvláštním fondům ústřední úrovně | AC113: 0 | AD113: 0 | AE113: 0 | AF113: x | AG113: 0 | AH113: 0 | AJ113: x | AK113: 0 | AL113: 0 | AM113: 0 | AN113: x
A114: =IF(COUNTBLANK(C114:IV114)=254,"odstr",IF(AND($A$1="TISK",SUM(J93:U93)=0),"odstr","OK")) ->  | B114: OK | E114: 5421 | G114: Náhrady z úrazového pojištění | J114: 0 | K114: 14 | L114: 13.5 | M114: 0.9642857143 | N114: 0 | O114: 14 | P114: 13.5 | Q114: 0.9642857143 | R114: 0 | S114: 0 | T114: 0 | U114: x | X114: 5319 | Z114: Ostatní neinvestiční transfery jiným veřejným rozpočtům | AC114: 3 | AD114: 1071.5 | AE114: 1070 | AF114: =AE114/AD114 -> 0.9986000933 | AG114: 3 | AH114: 1.5 | AI114: 0 | AJ114: x | AK114: 0 | AL114: 1070 | AM114: 1070 | AN114: =AM114/AL114 -> 1
E115: 5424 | G115: Náhrady mezd v době nemoci | J115: 84 | K115: 428.717 | L115: 220.1677 | M115: 0.5135501974 | N115: 84 | O115: 303.316 | P115: 172.946 | Q115: 0.5701842303 | R115: 0 | S115: 125.401 | T115: 47.2217 | U115: 0.3765655776 | X115: 532 | Z115: Neinvestiční transfery veřejným rozpočtům územní úrovně | AC115: =SUM(AC116:AC117) -> 0 | AD115: =SUM(AD116:AD117) -> 0 | AE115: 0 | AF115: x | AG115: 0 | AI115: 0 | AJ115: x | AK115: 0 | AM115: 0 | AN115: x
A116: =IF(COUNTBLANK(C116:IV116)=254,"odstr",IF(AND($A$1="TISK",SUM(J94:U94)=0),"odstr","OK")) ->  | B116: OK | E116: 5429 | G116: Ostatní náhrady placené obyvatelstvu | J116: 45 | K116: 79.5 | L116: 61.89 | M116: 0.778490566 | N116: 45 | O116: 79.5 | P116: 61.89 | Q116: 0.778490566 | R116: 0 | S116: 0 | T116: 0 | U116: x | X116: 5322 | Z116: Neinvestiční dotace obcím v rámci souhrnného dotačního vztahu | AC116: 0 | AE116: 0 | AF116: x | AG116: 0 | AI116: 0 | AJ116: x | AK116: 0 | AM116: 0 | AN116: x
A117: =IF(COUNTBLANK(C117:IV117)=254,"odstr",IF(AND($A$1="TISK",SUM(J95:U95)=0),"odstr","OK")) ->  | B117: OK | E117: 5491 | G117: Stipendia studentům a doktorandům | J117: 15174 | K117: 7537 | L117: 6579 | M117: 0.8728937243 | N117: 1824 | O117: 1937 | P117: 1713 | Q117: 0.8843572535 | R117: 13350 | S117: 5600 | T117: 4866 | U117: 0.8689285714 | X117: 5324 | Z117: Neinvestiční dotace krajům v rámci souhrnného dotačního vztahu | AC117: 0 | AE117: 0 | AF117: x | AG117: 0 | AI117: 0 | AJ117: x | AK117: 0 | AM117: 0 | AN117: x
E118: 5492 | G118: Dary obyvatelstvu | J118: 12111.1 | K118: 12736.573 | L118: 11490.5365 | M118: 0.902168621 | N118: 11219.1 | O118: 11885.316 | P118: 11033.0365 | Q118: 0.9282913891 | R118: 892 | S118: 851.257 | T118: 457.5 | U118: 0.5374405144 | X118: 533 | Y118: Neinvestiční transfery příspěvkovým a podobným organizacím | AC118: =SUM(AC119:AC125) -> 65958744.82 | AD118: =SUM(AD119:AD125) -> 136728343.6 | AE118: =SUM(AE119:AE125) -> 136505607.5 | AF118: =AE118/AD118 -> 0.9983709587 | AG118: =SUM(AG119:AG125) -> 24720823.24 | AH118: =SUM(AH119:AH125) -> 31772925.61 | AI118: =SUM(AI119:AI125) -> 31608060.57 | AJ118: =AI118/AH118 -> 0.994811147 | AK118: =SUM(AK119:AK125) -> 41237921.58 | AL118: =SUM(AL119:AL125) -> 104955418 | AM118: =SUM(AM119:AM125) -> 104897546.9 | AN118: =AM118/AL118 -> 0.9994486128
A119: =IF(COUNTBLANK(C119:IV119)=254,"odstr",IF(AND($A$1="TISK",SUM(J96:U96)=0),"odstr","OK")) ->  | B119: OK | E119: 5493 | G119: Účelové neinvestiční transfery nepodnikajícím fyzickým osobám | J119: 1341.8 | K119: 1435.57933 | L119: 816.38823 | M119: 0.5686820735 | N119: 341.8 | O119: 475.73233 | P119: 360.9525 | Q119: 0.7587302297 | R119: 1000 | S119: 959.847 | T119: 455.43573 | U119: 0.4744878402 | X119: 5331 | Z119: Neinvestiční příspěvky zřízeným příspěvkovým organizacím | AC119: 19852327.56 | AD119: 21960332.22 | AE119: 21799764.1 | AF119: =AE119/AD119 -> 0.9926882658 | AG119: 14105513.98 | AH119: 15632216.52 | AI119: 15520011.8 | AJ119: =AI119/AH119 -> 0.992822213 | AK119: 5746813.579 | AL119: 6328115.7 | AM119: 6279752.308 | AN119: =AM119/AL119 -> 0.9923573787
A120: =IF(COUNTBLANK(C120:IV120)=254,"odstr",IF(AND($A$1="TISK",SUM(J98:U98)=0),"odstr","OK")) ->  | B120: OK | E120: 5494 | G120: Neinvestiční transfery obyvatelstvu nemající charakter daru | J120: 1219 | K120: 1260.015 | L120: 1053.285 | M120: 0.8359305246 | N120: 369 | O120: 504.645 | P120: 460.431 | Q120: 0.9123859347 | R120: 850 | S120: 755.37 | T120: 592.854 | U120: 0.7848524564 | X120: 5332 | Z120: Neinvestiční dotace vysokým školám | AC120: 40009.6 | AD120: 185925.862 | AE120: 175115.382 | AF120: =AE120/AD120 -> 0.9418559641 | AG120: 10359.6 | AH120: 147660.2 | AI120: 137509.1058 | AJ120: =AI120/AH120 -> 0.9312536876 | AK120: 29650 | AL120: 38265.662 | AM120: 37606.27625 | AN120: =AM120/AL120 -> 0.9827682127
A121: =IF(COUNTBLANK(C121:IV121)=254,"odstr",IF(AND($A$1="TISK",SUM(J99:U99)=0),"odstr","OK")) ->  | B121: OK | E121: 5499 | G121: Ostatní neinvestiční transfery obyvatelstvu | J121: 5606.85 | K121: 8794.2287 | L121: 7186.73108 | M121: 0.8172099368 | N121: 5571.85 | O121: 7223.2287 | P121: 5818.06108 | Q121: 0.8054654396 | R121: 35 | S121: 1571 | T121: 1368.67 | U121: 0.8712094208 | X121: 5333 | Z121: Neinvestiční transfery školským právnickým osobám zřízeným státem, kraji a obcemi | AC121: 93690.797 | AD121: 136773.2822 | AE121: 136138.9219 | AF121: =AE121/AD121 -> 0.9953619579 | AG121: 69717.797 | AH121: 76153.85218 | AI121: 75519.49194 | AJ121: =AI121/AH121 -> 0.9916700177 | AK121: 23973 | AL121: 60619.43 | AM121: 60619.43 | AN121: =AM121/AL121 -> 1
E122: 54 | G122: Neinvestiční transfery obyvatelstvu | J122: 35581.75 | K122: 32285.61303 | L122: 27421.49851 | M122: 0.8493411132 | N122: 19454.75 | O122: 22422.73803 | P122: 19633.81708 | Q122: 0.8756208565 | R122: 16127 | S122: 9862.875 | T122: 7787.68143 | U122: 0.7895954709 | X122: 5334 | Z122: Neinvestiční transfery veřejným výzkumným institucím | AC122: 0 | AD122: 58126.4 | AE122: 56090.09229 | AF122: =AE122/AD122 -> 0.9649675929 | AG122: 0 | AH122: 58126.4 | AI122: 56090.09229 | AJ122: =AI122/AH122 -> 0.9649675929 | AK122: 0 | AL122: 0 | AM122: 0 | AN122: x
A123: =IF(COUNTBLANK(C123:IV123)=254,"odstr",IF(AND($A$1="TISK",SUM(J101:U101)=0),"odstr","OK")) ->  | B123: OK | E123: 5511 | G123: Neinvestiční transfery mezinárodním organizacím | J123: 646 | K123: 5 | L123: 5 | M123: 1 | N123: 646 | O123: 5 | P123: 5 | Q123: 1 | R123: 0 | S123: 0 | T123: 0 | U123: x | X123: 5335 | Z123: Neinvestiční transfery veřejným zdravotnickým zařízením zřízeným státem, kraji a obcemi | AC123: 0 | AD123: 0 | AE123: 0 | AF123: x | AG123: 0 | AH123: 0 | AI123: 0 | AJ123: x | AK123: 0 | AL123: 0 | AM123: 0 | AN123: x
A124: =IF(COUNTBLANK(C124:IV124)=254,"odstr",IF(AND($A$1="TISK",SUM(J102:U102)=0),"odstr","OK")) ->  | B124: OK | E124: 5513 | G124: Vratky neoprávněně použitých nebo zadržených prostředků Evropských společenství | J124: 0 | K124: 0 | L124: 0 | M124: x | N124: 0 | O124: 0 | P124: 0 | Q124: x | R124: 0 | S124: 0 | T124: 0 | U124: x | X124: 5336 | Z124: Neinvestiční dotace zřízeným příspěvkovým organizacím | AC124: 22422218.86 | AD124: 47185696.63 | AE124: 47142483.32 | AF124: =AE124/AD124 -> 0.9990841861 | AG124: 10506641.65 | AH124: 15815439.38 | AI124: 15779922.81 | AJ124: =AI124/AH124 -> 0.99775431 | AK124: 11915577.21 | AL124: 31370257.25 | AM124: 31362560.51 | AN124: =AM124/AL124 -> 0.9997546484
A125: =IF(COUNTBLANK(C125:IV125)=254,"odstr",IF(AND($A$1="TISK",SUM(J103:U103)=0),"odstr","OK")) ->  | B125: OK | E125: 5531 | G125: Peněžní dary do zahraničí | J125: 0 | K125: 0 | L125: 0 | M125: x | N125: 0 | O125: 0 | P125: 0 | Q125: x | R125: 0 | S125: 0 | T125: 0 | U125: x | X125: 5339 | Z125: Neinvestiční příspěvky cizím příspěvkovým organizacím | AC125: 23550498 | AD125: 67201489.17 | AE125: 67196015.63 | AF125: =AE125/AD125 -> 0.9999185504 | AG125: 28590.215 | AH125: 43329.25928 | AI125: 39007.2748 | AJ125: =AI125/AH125 -> 0.9002525187 | AK125: 23521907.79 | AL125: 67158159.91 | AM125: 67157008.36 | AN125: =AM125/AL125 -> 0.9999828531
E126: 5532 | G126: Ostatní neinvestiční transfery do zahraničí | J126: 943.4 | K126: 3857.762 | L126: 0 | M126: 0 | N126: 50 | O126: 0 | P126: 0 | Q126: x | R126: 893.4 | S126: 3857.762 | T126: 0 | U126: 0 | X126: 534 | Z126: Převody vlastním fondům a ve vztahu k útvarům bez plné právní subjektivity | AC126: =SUM(AC127:AC129) -> 0 | AD126: =SUM(AD127:AD129) -> 0 | AE126: 0 | AF126: x | AG126: 0 | AH126: =SUM(AH127:AH129) -> 0 | AI126: 0 | AJ126: x | AK126: 0 | AN126: x
A127: =IF(COUNTBLANK(C127:IV127)=254,"odstr",IF(AND($A$1="TISK",SUM(J104:U104)=0),"odstr","OK")) ->  | B127: OK | E127: 55 | G127: Neinvestiční transfery do zahraničí | J127: 1589.4 | K127: 3862.762 | L127: 5 | M127: 0.00129441058 | N127: 696 | O127: 5 | P127: 5 | Q127: 1 | R127: 893.4 | S127: 3857.762 | T127: 0 | U127: 0 | X127: 5341 | Z127: Převody vlastním fondům hospodářské (podnikatelské) činnosti | AF127: x | AJ127: x | AN127: x
A128: =IF(COUNTBLANK(C128:IV128)=254,"odstr",IF(AND($A$1="TISK",SUM(J105:U105)=0),"odstr","OK")) ->  | B128: OK | E128: 5612 | G128: Neinvestiční půjčené prostředky nefinančním podnikatelským subjektům – fyzickým osobám | J128: 0 | K128: 0 | L128: 0 | M128: x | N128: 0 | O128: 0 | P128: 0 | Q128: x | R128: 0 | S128: 0 | T128: 0 | U128: x | X128: 5342 | Z128: Převody fondu kulturních a sociálních potřeb a sociálnímu fondu obcí a krajů | AF128: x | AJ128: x | AN128: x
A129: =IF(COUNTBLANK(C129:IV129)=254,"odstr",IF(AND($A$1="TISK",SUM(J106:U106)=0),"odstr","OK")) ->  | B129: OK | E129: 5613 | G129: Neinvestiční půjčené prostředky nefinančním podnikatelským subjektům – právnickým osobám | J129: 0 | K129: 0 | L129: 0 | M129: x | N129: 0 | O129: 0 | P129: 0 | Q129: x | R129: 0 | S129: 0 | T129: 0 | U129: x | X129: 5343 | Z129: Převody jiným vlastním fondům a účtům nemajícím charakter veřejných rozpočtů | AF129: x | AJ129: x | AN129: x
E130: 5615 | G130: Neinvestiční půjčené prostředky vybraným podnikatelským subjektům ve vlastnictví státu | J130: 0 | K130: 0 | L130: 0 | M130: x | N130: 0 | O130: 0 | P130: 0 | Q130: x | R130: 0 | S130: 0 | T130: 0 | U130: x | X130: 536 | Z130: Ostatní neinvestiční transfery jiným veřejným rozpočtům, platby daní a další povinné platby | AC130: =SUM(AC131:AC136) -> 1274.659 | AD130: =SUM(AD131:AD136) -> 14116.26743 | AE130: =SUM(AE131:AE136) -> 6937.72054 | AF130: =AE130/AD130 -> 0.4914698998 | AG130: =SUM(AG131:AG136) -> 1274.659 | AH130: =SUM(AH131:AH136) -> 6352.71843 | AI130: =SUM(AI131:AI136) -> 5279.01654 | AJ130: =AI130/AH130 -> 0.8309854432 | AK130: 0 | AL130: =SUM(AL131:AL136) -> 7763.549 | AM130: =SUM(AM131:AM136) -> 1658.704 | AN130: =AM130/AL130 -> 0.2136528023
A131: =IF(COUNTBLANK(C131:IV131)=254,"odstr",IF(AND($A$1="TISK",SUM(J107:U107)=0),"odstr","OK")) ->  | B131: OK | E131: 5621 | G131: Neinvestiční půjčené prostředky obecně prospěšným společnostem | J131: 0 | K131: 757.49 | L131: 757.49 | M131: 1 | N131: 0 | O131: 757.49 | P131: 757.49 | Q131: 1 | R131: 0 | S131: 0 | T131: 0 | U131: x | X131: 5361 | Z131: Nákup kolků | AC131: 21 | AD131: 18.8 | AE131: 14 | AF131: 0.7446808511 | AG131: 21 | AH131: 18.8 | AI131: 14 | AJ131: 0.7446808511 | AK131: 0 | AL131: 0 | AM131: 0 | AN131: x
B132: OK | E132: 5622 | G132: Neinvestiční půjčené prostředky občanským sdružením | J132: 3000 | K132: 7225.479 | L132: 6225.479 | M132: 0.861600871 | N132: 0 | O132: 225.479 | P132: 225.479 | Q132: 1 | R132: 3000 | S132: 7000 | T132: 6000 | U132: 0.8571428571 | X132: 5362 | Z132: Platby daní a poplatků státnímu rozpočtu | AC132: 820.5 | AD132: 2494.46223 | AE132: 1637.01423 | AF132: 0.6562593774 | AG132: 820.5 | AH132: 2494.46223 | AI132: 1637.01423 | AJ132: 0.6562593774 | AK132: 0 | AL132: 0 | AM132: 0 | AN132: x
B133: OK | E133: 5629 | G133: Ostatní neinvestiční půjčené prostředky neziskovým a podobným organizacím | J133: 200 | K133: 186.23 | L133: 186.23 | M133: 1 | N133: 200 | O133: 186.23 | P133: 186.23 | Q133: 1 | R133: 0 | S133: 0 | T133: 0 | U133: x | X133: 5363 | Z133: Úhrady sankcí jiným rozpočtům | AC133: 1.559 | AD133: 9677.985 | AE133: 3509.07646 | AF133: 0.3625833745 | AG133: 1.559 | AH133: 1942.576 | AI133: 1874.70646 | AJ133: 0.9650620928 | AK133: 0 | AL133: 7735.409 | AM133: 1634.37 | AN133: =AM133/AL133 -> 0.2112842385
B134: OK | E134: 5649 | G134: Ostatní neinvestiční půjčené prostředky veřejným rozpočtům územní úrovně | J134: 0 | K134: 0 | L134: 0 | M134: x | N134: 0 | O134: 0 | P134: 0 | Q134: x | R134: 0 | S134: 0 | T134: 0 | U134: x | X134: 5364 | Z134: Vratky veřejným rozpočtům ústřední úrovně transferů poskytnutých v minulých rozpočtových obdobích | AC134: 201.7 | AD134: 1673.7582 | AE134: 1547.66785 | AF134: 0.9246663287 | AG134: 201.7 | AH134: 1659.6182 | AI134: 1533.53385 | AJ134: 0.9240280988 | AK134: 0 | AL134: 14.14 | AM134: 14.134 | AN134: =AM134/AL134 -> 0.9995756719
B135: OK | E135: 5651 | G135: Neinvestiční půjčené prostředky zřízeným příspěvkovým organizacím | J135: 66582.9 | K135: 99349.48118 | L135: 47340.67136 | M135: 0.4765064779 | N135: 28212.9 | O135: 38653.68627 | P135: 18350.80067 | Q135: 0.4747490457 | R135: 38370 | S135: 60695.79491 | T135: 28989.87069 | U135: 0.4776256861 | X135: 5365 | Z135: Výdaje z finančního vypořádání minulých let mezi krajem a obcemi | AC135: 74 | AD135: 251.262 | AE135: 229.962 | AF135: 0.9152279294 | AG135: 74 | AH135: 237.262 | AI135: 219.762 | AJ135: 0.9262418761 | AK135: 0 | AL135: 14 | AM135: 10.2 | AN135: =AM135/AL135 -> 0.7285714286
B136: OK | E136: 5659 | G136: Neinvestiční půjčené prostředky ostatním příspěvkovým organizacím | J136: 0 | K136: 330 | L136: 330 | M136: 1 | N136: 0 | O136: 330 | P136: 330 | Q136: 1 | R136: 0 | S136: 0 | T136: 0 | U136: x | X136: 5369 | Z136: Ostatní neinvestiční transfery jiným veřejným rozpočtům | AC136: 155.9 | AD136: 0 | AE136: 0 | AF136: x | AG136: 155.9 | AH136: 0 | AI136: 0 | AJ136: x | AK136: 0 | AL136: 0 | AM136: 0 | AN136: x
B137: OK | E137: 5660 | G137: Neinvestiční půjčené prostředky obyvatelstvu | J137: 225 | K137: 0 | L137: 0 | M137: x | N137: 225 | O137: 0 | P137: 0 | Q137: x | R137: 0 | S137: 0 | T137: 0 | U137: x | X137: 54 | Y137: Neinvestiční transfery obyvatelstvu | Z137: Neinvestiční transfery obyvatelstvu | AC137: =AC138+AC142 -> 34036.5 | AD137: =AD138+AD142 -> 40507.87316 | AE137: =AE138+AE142 -> 34913.21658 | AF137: =AE137/AD137 -> 0.8618871804 | AG137: =AG138+AG142 -> 25920.5 | AH137: =AH138+AH142 -> 30717.00416 | AI137: =AI138+AI142 -> 26852.38847 | AJ137: =AI137/AH137 -> 0.8741864386 | AK137: =AK138+AK142 -> 8116 | AL137: =AL138+AL142 -> 9790.869 | AM137: =AM138+AM142 -> 8060.82811 | AN137: =AM137/AL137 -> 0.8233005783
E138: 56 | G138: Neinvestiční půjčené prostředky | J138: 70007.9 | K138: 107848.6802 | L138: 54839.87036 | M138: 0.5084890262 | N138: 28637.9 | O138: 40152.88527 | P138: 19849.99967 | Q138: 0.4943604809 | R138: 41370 | S138: 67695.79491 | T138: 34989.87069 | U138: 0.5168691901 | X138: 542 | Z138: Náhrady placené obyvatelstvu | AC138: =SUM(AC139:AC141) -> 282.25 | AD138: =SUM(AD139:AD141) -> 886.42916 | AE138: =SUM(AE139:AE141) -> 349.4283 | AF138: 0.3941976593 | AG138: =AG139+AG140+AG141 -> 188.25 | AH138: =SUM(AH139:AH141) -> 504.27016 | AI138: =SUM(AI139:AI141) -> 274.4818 | AJ138: 0.5443149759 | AK138: =AK140 -> 94 | AL138: =AL140 -> 382.159 | AM138: =AM140 -> 74.9465 | AN138: =AM138/AL138 -> 0.1961133978
A139: =IF(COUNTBLANK(C139:IV139)=254,"odstr",IF(AND($A$1="TISK",SUM(J114:U114)=0),"odstr","OK")) ->  | B139: OK | E139: 5901 | G139: Nespecifikované rezervy | J139: 4497965.042 | K139: 109816.1042 | L139: 0.5 | M139: 4.553066269e-06 | N139: 144930.642 | O139: 45397.30023 | P139: 0.5 | Q139: 1.101387081e-05 | R139: 4353034.4 | S139: 64418.80402 | T139: 0 | U139: 0 | X139: 5421 | Z139: Náhrady z úrazového pojištění | AC139: 10 | AD139: 25 | AE139: 26.5 | AF139: 1.06 | AG139: 10 | AH139: 25 | AI139: 26.5 | AJ139: 1.06 | AK139: 0 | AL139: 0 | AM139: 0 | AN139: x
A140: =IF(COUNTBLANK(C140:IV140)=254,"odstr",IF(AND($A$1="TISK",SUM(J115:U115)=0),"odstr","OK")) ->  | B140: OK | E140: 5902 | G140: Ostatní výdaje z finančního vypořádání minulých let | J140: 0 | K140: 0.1 | L140: 0.06206 | M140: 0.6206 | N140: 0 | O140: 0.1 | P140: 0.06206 | Q140: 0.6206 | R140: 0 | S140: 0 | T140: 0 | U140: x | X140: 5424 | Z140: Náhrady mezd v době nemoci | AC140: 187.25 | AD140: 771.92916 | AE140: 283.1403 | AF140: 0.3667957044 | AG140: 93.25 | AH140: 389.77016 | AI140: 208.1938 | AJ140: 0.5341450459 | AK140: 94 | AL140: 382.159 | AM140: 74.9465 | AN140: =AM140/AL140 -> 0.1961133978
A141: =IF(COUNTBLANK(C141:IV141)=254,"odstr",IF(AND($A$1="TISK",SUM(J116:U116)=0),"odstr","OK")) ->  | B141: OK | E141: 5909 | G141: Ostatní neinvestiční výdaje jinde nezařazené | J141: 909724.1807 | K141: 26312.46619 | L141: 3703.43458 | M141: 0.1407482884 | N141: 867982.7907 | O141: 17693.01855 | P141: 2872.3579 | Q141: 0.1623441411 | R141: 41741.39 | S141: 8619.44764 | T141: 831.07668 | U141: 0.0964187863 | X141: 5429 | Z141: Ostatní náhrady placené obyvatelstvu | AC141: 85 | AD141: 89.5 | AE141: 39.788 | AF141: 0.4445586592 | AG141: 85 | AH141: 89.5 | AI141: 39.788 | AJ141: 0.4445586592 | AK141: 0 | AL141: 0 | AM141: 0 | AN141: x
E142: 59 | G142: Ostatní neinvestiční výdaje | J142: 5407689.223 | K142: 136128.6704 | L142: 3703.99664 | M142: 0.02720952631 | N142: 1012913.433 | O142: 63090.41878 | P142: 2872.91996 | Q142: 0.04553654922 | R142: 4394775.79 | S142: 73038.25166 | T142: 831.07668 | U142: 0.0113786497 | X142: 549 | Z142: Ostatní neinvestiční transfery obyvatelstvu | AC142: =SUM(AC143:AC147) -> 33754.25 | AD142: =SUM(AD143:AD147) -> 39621.444 | AE142: =SUM(AE143:AE147) -> 34563.78828 | AF142: 0.8723505453 | AG142: =SUM(AG143:AG147) -> 25732.25 | AH142: =SUM(AH143:AH147) -> 30212.734 | AI142: =SUM(AI143:AI147) -> 26577.90667 | AJ142: 0.8796922076 | AK142: =SUM(AK143:AK147) -> 8022 | AL142: =SUM(AL143:AL147) -> 9408.71 | AM142: =SUM(AM143:AM147) -> 7985.88161 | AN142: =AM142/AL142 -> 0.8487754017
A143: =IF(COUNTBLANK(C143:IV143)=254,"odstr",IF(AND($A$1="TISK",SUM(J117:U117)=0),"odstr","OK")) ->  | B143: OK | E143: 5 | G143: Běžné výdaje | J143: 68369775.36 | K143: 130058413 | L143: 128801303.8 | M143: 0.9903342721 | N143: 25720178.49 | O143: 32761511.9 | P143: 31909918.22 | Q143: 0.9740062765 | R143: 42649596.87 | S143: 97296901.12 | T143: 96891385.57 | U143: 0.9958321843 | X143: 5491 | Z143: Stipendia studentům a doktorandům | AC143: 5516 | AD143: 7125 | AE143: 6522.28 | AF143: 0.9154077193 | AG143: 2192 | AH143: 2238 | AI143: 2009.28 | AJ143: 0.8978016086 | AK143: 3324 | AL143: 4887 | AM143: 4513 | AN143: 0.9234704318
A144: =IF(COUNTBLANK(C144:IV144)=254,"odstr",IF(AND($A$1="TISK",SUM(J118:U118)=0),"odstr","OK")) ->  | B144: OK | E144: 6111 | G144: Programové vybavení | J144: 588 | K144: 1551.168 | L144: 1357.15157 | M144: 0.8749223617 | N144: 588 | O144: 1400.228 | P144: 1206.21617 | Q144: 0.8614426865 | R144: 0 | S144: 150.94 | T144: 150.9354 | U144: 0.9999695243 | X144: 5492 | Z144: Dary obyvatelstvu | AC144: 14205.8 | AD144: 16591.713 | AE144: 15254.82081 | AF144: 0.9194241011 | AG144: 13873.8 | AH144: 16125.013 | AI144: 14835.52081 | AJ144: 0.9200315566 | AK144: 332 | AL144: 466.7 | AM144: 419.3 | AN144: 0.898435826
A145: =IF(COUNTBLANK(C145:IV145)=254,"odstr",IF(AND($A$1="TISK",SUM(J119:U119)=0),"odstr","OK")) ->  | B145: OK | E145: 6112 | G145: Ocenitelná práva | J145: 0 | K145: 0 | L145: 0 | M145: x | N145: 0 | O145: 0 | P145: 0 | Q145: x | R145: 0 | S145: 0 | T145: 0 | U145: x | X145: 5493 | Z145: Účelové neinvestiční transfery nepodnikajícím fyzickým osobám | AC145: 1682.9 | AD145: 3126.917 | AE145: 2820.48861 | AF145: 0.9020030305 | AG145: 457.9 | AH145: 1830.167 | AI145: 1532.106 | AJ145: 0.8371399987 | AK145: 1225 | AL145: 1296.75 | AM145: 1288.38261 | AN145: 0.9935474147
A146: =IF(COUNTBLANK(C146:IV146)=254,"odstr",IF(AND($A$1="TISK",SUM(J120:U120)=0),"odstr","OK")) ->  | B146: OK | E146: 6113 | G146: Nehmotné výsledky výzkumné a obdobné činnosti | J146: 0 | K146: 0 | L146: 0 | M146: x | N146: 0 | O146: 0 | P146: 0 | Q146: x | R146: 0 | S146: 0 | T146: 0 | U146: x | X146: 5494 | Z146: Neinvestiční transfery obyvatelstvu nemající charakter daru | AC146: 1608 | AD146: 1699.452 | AE146: 1544.9909 | AF146: 0.9091112311 | AG146: 702 | AH146: 916.192 | AI146: 849.5619 | AJ146: 0.9272749598 | AK146: 906 | AL146: 783.26 | AM146: 695.429 | AN146: 0.8878648214
A147: =IF(COUNTBLANK(V147:IV147)=254,"odstr",IF(AND($A$1="TISK",SUM(J121:U121)=0),"odstr","OK")) ->  | B147: OK | E147: 6119 | G147: Ostatní nákupy dlouhodobého nehmotného majetku | J147: 10420 | K147: 6990.2 | L147: 2047.4988 | M147: 0.2929099024 | N147: 10420 | O147: 6990.2 | P147: 2047.4988 | Q147: 0.2929099024 | R147: 0 | S147: 0 | T147: 0 | U147: x | X147: 5499 | Z147: Ostatní neinvestiční transfery obyvatelstvu | AC147: 10741.55 | AD147: 11078.362 | AE147: 8421.20796 | AF147: 0.7601491953 | AG147: 8506.55 | AH147: 9103.362 | AI147: 7351.43796 | AJ147: 0.8075519748 | AK147: 2235 | AL147: 1975 | AM147: 1069.77 | AN147: 0.5416556962
A148: =IF(COUNTBLANK(C148:IV148)=254,"odstr",IF(AND($A$1="TISK",SUM(J122:U122)=0),"odstr","OK")) ->  | E148: 6121 | G148: Budovy, haly a stavby | J148: 8809758.79 | K148: 13742376.02 | L148: 8786988.876 | M148: 0.63940827 | N148: 7853672.21 | O148: 11876689.69 | P148: 7924724.17 | Q148: 0.6672502503 | R148: 956086.5801 | S148: 1865686.327 | T148: 862264.7069 | U148: 0.462170245 | X148: 55 | Y148: Neinvestiční transfery a související platby do zahraničí | Z148: Neinvestiční transfery a související platby do zahraničí | AC148: =AC149 -> 600 | AD148: =AD149+AD152 -> 4196.83858 | AE148: =AE149+AE152 -> 3444.97612 | AF148: 0.8208502792 | AG148: =AG149+AG152 -> 600 | AH148: =AH149+AH152 -> 624.6 | AI148: =AI149+AI152 -> 624.57502 | AJ148: 0.9999600064 | AL148: =AL152 -> 3572.23858 | AM148: =AM149+AM152 -> 2820.4011 | AN148: 0.78953324
E149: 6122 | G149: Stroje, přístroje a zařízení | J149: 136430.284 | K149: 397880.9342 | L149: 312571.1577 | M149: 0.7855896848 | N149: 98730.284 | O149: 358901.4767 | P149: 292832.7908 | Q149: 0.8159141429 | R149: 37700 | S149: 38979.45749 | T149: 19738.36692 | U149: 0.5063786977 | X149: 551 | Z149: Neinvestiční transfery mezinárodním vládním organizacím a nednárodním orgánům | AC149: =SUM(AC150:AC151) -> 600 | AD149: =AD150 -> 18 | AE149: =AE150 -> 18 | AF149: 1 | AG149: =AG150 -> 600 | AH149: =SUM(AH150) -> 18 | AI149: =AI150 -> 18 | AJ149: 1 | AK149: 0 | AM149: 0 | AN149: x
A150: =IF(COUNTBLANK(C150:IV150)=254,"odstr",IF(AND($A$1="TISK",SUM(J123:U123)=0),"odstr","OK")) ->  | B150: OK | E150: 6123 | G150: Dopravní prostředky | J150: 775.9 | K150: 1279 | L150: 1178.327 | M150: 0.9212877248 | N150: 775.9 | O150: 1121.7 | P150: 1117.827 | Q150: 0.9965472051 | R150: 0 | S150: 157.3 | T150: 60.5 | U150: 0.3846153846 | X150: 5511 | Z150: Neinvestiční transfery mezinárodním vládním organizacím | AC150: 600 | AD150: 18 | AE150: 18 | AF150: 1 | AG150: 600 | AH150: 18 | AI150: 18 | AJ150: 1 | AK150: 0 | AL150: 0 | AM150: 0 | AN150: x
A151: =IF(COUNTBLANK(C151:IV151)=254,"odstr",IF(AND($A$1="TISK",SUM(J124:U124)=0),"odstr","OK")) ->  | B151: OK | E151: 6124 | G151: Pěstitelské celky trvalých porostů | J151: 0 | K151: 0 | L151: 0 | M151: x | N151: 0 | O151: 0 | P151: 0 | Q151: x | U151: x | X151: 5513 | Z151: Vratky neoprávněně použitých nebo zadržených prostředků Evropské unie | AC151: x | AF151: x | AG151: x | AJ151: x | AK151: x | AN151: x
E152: 6125 | G152: Výpočetní technika | J152: 1420 | K152: 16747.72867 | L152: 11350.41925 | M152: 0.6777288714 | N152: 1420 | O152: 15882.81 | P152: 10486.58458 | Q152: 0.6602474361 | R152: 0 | S152: 864.91867 | T152: 863.83467 | U152: 0.998746703 | X152: 553 | Z152: Ostatní neinvestiční transfery do zahraničí | AC152: =SUM(AC153:AC154) -> 0 | AD152: =AD154 -> 4178.83858 | AE152: =AE154 -> 3426.97612 | AF152: =AE152/AD152 -> 0.8200786066 | AG152: 0 | AH152: =AH154 -> 606.6 | AI152: =AI154 -> 606.57502 | AJ152: =AI152/AH152 -> 0.9999588197 | AK152: 0 | AL152: =AL154 -> 3572.23858 | AM152: =AM154 -> 2820.4011 | AN152: =AM152/AL152 -> 0.78953324
A153: =IF(COUNTBLANK(C153:IV153)=254,"odstr",IF(AND($A$1="TISK",SUM(J125:U125)=0),"odstr","OK")) ->  | B153: OK | E153: 6127 | G153: Umělecká díla a předměty | J153: 0 | K153: 140 | L153: 0 | M153: 0 | N153: 0 | O153: 140 | P153: 0 | Q153: 0 | R153: 0 | S153: 0 | T153: 0 | U153: x | X153: 5531 | Z153: Peněžní dary do zahraničí | AC153: x | AF153: x | AG153: x | AJ153: x | AK153: x | AN153: x
A154: =IF(COUNTBLANK(C154:IV154)=254,"odstr",IF(AND($A$1="TISK",SUM(J126:U126)=0),"odstr","OK")) ->  | B154: OK | E154: 6129 | G154: Nákup dlouhodobého hmotného majetku jinde nezařazený | J154: 1100 | K154: 12789.332 | L154: 8892.30399 | M154: 0.6952907306 | N154: 1100 | O154: 12789.332 | P154: 8892.30399 | Q154: 0.6952907306 | R154: 0 | S154: 0 | T154: 0 | U154: x | X154: 5532 | Z154: Ostatní neinvestiční transfery do zahraničí | AC154: 0 | AD154: 4178.83858 | AE154: 3426.97612 | AF154: =AE154/AD154 -> 0.8200786066 | AG154: 0 | AH154: 606.6 | AI154: 606.57502 | AJ154: =AI154/AH154 -> 0.9999588197 | AK154: 0 | AL154: 3572.23858 | AM154: 2820.4011 | AN154: =AM154/AL154 -> 0.78953324
A155: =IF(COUNTBLANK(C155:IV155)=254,"odstr",IF(AND($A$1="TISK",SUM(J127:U127)=0),"odstr","OK")) ->  | B155: OK | E155: 6130 | G155: Pozemky | J155: 16307 | K155: 58121.673 | L155: 54726.0326 | M155: 0.9415770362 | N155: 16245 | O155: 57862.471 | P155: 54567.8886 | Q155: 0.943061844 | R155: 62 | S155: 259.202 | T155: 158.144 | U155: 0.6101187491 | X155: 56 | Y155: Neinvestiční půjčené prostředky | Z155: Neinvestiční půjčené prostředky | AC155: =AC156+AC160+AC166 -> 111469.426 | AD155: =AD156+AD160+AD166 -> 431952.6084 | AE155: =AE156+AE160+AE166 -> 390625.791 | AF155: =AE155/AD155 -> 0.9043255752 | AG155: =AG156+AG160+AG164+AG166+AG169 -> 36898.816 | AH155: =AH156+AH160+AH164+AH166+AH169 -> 117793.8603 | AI155: =AI156+AI160+AI164+AI166 -> 105112.1736 | AJ155: =AI155/AH155 -> 0.8923400031 | AK155: =AK156+AK160+AK164+AK166+AK169 -> 74570.61 | AL155: =AL160+AL166 -> 314158.7481 | AM155: =AM156+AM160+AM164+AM166 -> 285513.6174 | AN155: =AM155/AL155 -> 0.9088195668
E156: 61 | G156: Investiční nákupy a související výdaje | J156: 8976799.974 | K156: 14237876.05 | L156: 9179111.767 | M156: 0.6446967042 | N156: 7982951.394 | O156: 12331777.91 | P156: 8295875.28 | Q156: 0.672723377 | R156: 993848.5801 | S156: 1906098.145 | T156: 883236.4878 | U156: 0.463374087 | X156: 561 | Z156: Neinvestiční půjčené prostředky podnikatelským subjektům | AC156: =SUM(AC157:AC159) -> 0 | AD156: =AD157+AD158+AD159 -> 599.885 | AE156: =AE157+AE158 -> 599.885 | AF156: =AE156/AD156 -> 1 | AG156: 0 | AH156: =AH157+AH158 -> 599.885 | AI156: =AI157+AI158 -> 599.885 | AJ156: =AI156/AH156 -> 1 | AK156: 0 | AM156: 0 | AN156: x
A157: =IF(COUNTBLANK(C157:IV157)=254,"odstr",IF(AND($A$1="TISK",SUM(J128:U128)=0),"odstr","OK")) ->  | B157: OK | E157: 6202 | G157: Nákup majetkových podílů | J157: 0 | K157: 0 | L157: 0 | M157: x | N157: 0 | O157: 0 | P157: 0 | Q157: x | R157: 0 | S157: 0 | T157: 0 | U157: x | X157: 5612 | Z157: Neinvestiční půjčené prostředky nefinančním podnikatelským subjektům – fyzickým osobám | AC157: 0 | AD157: 499.885 | AE157: 499.885 | AF157: =AE157/AD157 -> 1 | AG157: 0 | AH157: 499.885 | AI157: 499.885 | AJ157: =AI157/AH157 -> 1 | AK157: 0 | AL157: 0 | AM157: 0 | AN157: x
A158: =IF(COUNTBLANK(C158:IV158)=254,"odstr",IF(AND($A$1="TISK",SUM(J129:U129)=0),"odstr","OK")) ->  | B158: OK | E158: 62 | G158: Nákup akcií a majetkových podílů | J158: 0 | K158: 0 | L158: 0 | M158: x | N158: 0 | O158: 0 | P158: 0 | Q158: x | R158: 0 | S158: 0 | T158: 0 | U158: x | X158: 5613 | Z158: Neinvestiční půjčené prostředky nefinančním podnikatelským subjektům – právnickým osobám | AC158: 0 | AD158: 100 | AE158: 100 | AF158: =AE158/AD158 -> 1 | AG158: 0 | AH158: 100 | AI158: 100 | AJ158: =AI158/AH158 -> 1 | AK158: 0 | AL158: 0 | AM158: 0 | AN158: x
A159: =IF(COUNTBLANK(C159:IV159)=254,"odstr",IF(AND($A$1="TISK",SUM(J130:U130)=0),"odstr","OK")) ->  | B159: OK | E159: 6312 | G159: Investiční transfery nefinančním podnikatelským subjektům-fyzickým osobám | J159: 0 | K159: 0 | L159: 0 | M159: x | N159: 0 | O159: 0 | P159: 0 | Q159: x | R159: 0 | S159: 0 | T159: 0 | U159: x | X159: 5615 | Z159: Neinvestiční půjčené prostředky vybraným podnikatelským subjektům ve vlastnictví státu | AC159: x | AD159: 0 | AE159: 0 | AF159: x | AG159: x | AH159: 0 | AI159: 0 | AJ159: x | AK159: x | AL159: 0 | AM159: 0 | AN159: x
E160: 6313 | G160: Investiční dotace nefinančním podnikatelským subjektům – právnickým osobám | J160: 0 | K160: 1832 | L160: 1832 | M160: 1 | N160: 0 | O160: 1368 | P160: 1368 | Q160: 1 | R160: 0 | S160: 464 | T160: 464 | U160: 1 | X160: 562 | Z160: Neinvestiční půjčené prostředky neziskovým a podobným organizacím | AC160: =SUM(AC161:AC163) -> 500 | AD160: =SUM(AD161:AD163) -> 27813.95763 | AE160: =AE161+AE162+AE163 -> 21658.989 | AF160: =AE160/AD160 -> 0.7787093548 | AG160: =AG162 -> 500 | AH160: =AH161+AH162+AH163 -> 4967.989 | AI160: =SUM(AI161:AI163) -> 4967.989 | AJ160: =AI160/AH160 -> 1 | AK160: 0 | AL160: =SUM(AL161:AL163) -> 22845.96863 | AM160: =SUM(AM161:AM163) -> 16691 | AN160: =AM160/AL160 -> 0.7305884145
A161: =IF(COUNTBLANK(C161:IV161)=254,"odstr",IF(AND($A$1="TISK",SUM(J131:U131)=0),"odstr","OK")) ->  | B161: OK | X161: 5621 | Z161: Neinvestiční půjčené prostředky obecně prospěšným společnostem | AC161: 0 | AD161: 7750 | AE161: 7750 | AF161: =AE161/AD161 -> 1 | AG161: 0 | AH161: 2050 | AI161: 2050 | AJ161: =AI161/AH161 -> 1 | AK161: 0 | AL161: 5700 | AM161: 5700 | AN161: =AM161/AL161 -> 1
A162: =IF(COUNTBLANK(C162:IV162)=254,"odstr",IF(AND($A$1="TISK",SUM(J132:U132)=0),"odstr","OK")) ->  | E162: 6314 | G162: Investiční transfery finančním a podobným institucím ve vlastnictví státu | J162: 0 | K162: 0 | L162: 0 | M162: x | N162: 0 | O162: 0 | P162: 0 | Q162: x | R162: 0 | S162: 0 | T162: 0 | U162: x | X162: 5622 | Z162: Neinvestiční půjčené prostředky občanským sdružením | AC162: 500 | AD162: 8865.96863 | AE162: 2711 | AF162: =AE162/AD162 -> 0.3057759522 | AG162: 500 | AH162: 1156 | AI162: 1156 | AJ162: =AI162/AH162 -> 1 | AK162: 0 | AL162: 7709.96863 | AM162: 1555 | AN162: =AM162/AL162 -> 0.2016869425
A163: =IF(COUNTBLANK(C163:IV163)=254,"odstr",IF(AND($A$1="TISK",SUM(J133:U133)=0),"odstr","OK")) ->  | B163: OK | E163: 6321 | G163: Investiční transfery obecně prospěšným organizacím | J163: 604 | K163: 1705 | L163: 1555.57 | M163: 0.9123577713 | N163: 604 | O163: 1705 | P163: 1555.57 | Q163: 0.9123577713 | R163: 0 | S163: 0 | T163: 0 | U163: x | X163: 5629 | Z163: Ostatní neinvestiční půjčené prostředky neziskovým a podobným organizacím | AC163: 0 | AD163: 11197.989 | AE163: 11197.989 | AF163: =AE163/AD163 -> 1 | AG163: 0 | AH163: 1761.989 | AI163: 1761.989 | AJ163: =AI163/AH163 -> 1 | AK163: 0 | AL163: 9436 | AM163: 9436 | AN163: =AM163/AL163 -> 1
E164: 6322 | G164: Investiční transfery občanským sdružením | J164: 0 | K164: 3080.279 | L164: 3065.279 | M164: 0.9951303112 | N164: 0 | O164: 2015 | P164: 2000 | Q164: 0.9925558313 | R164: 0 | S164: 1065.279 | T164: 1065.279 | U164: 1 | X164: 564 | Z164: Neinvestiční půjdčené prostřeky veřejným rozpočtům územní úrovně | AC164: x | AD164: x | AE164: x | AF164: x | AG164: 0 | AI164: 0 | AJ164: x | AK164: 0 | AM164: 0 | AN164: x
A165: =IF(COUNTBLANK(C165:IV165)=254,"odstr",IF(AND($A$1="TISK",SUM(J134:U134)=0),"odstr","OK")) ->  | B165: OK | E165: 6323 | G165: Investiční transfery církvím a náboženským společnostem | J165: 0 | K165: 365 | L165: 300 | M165: 0.8219178082 | N165: 0 | O165: 215 | P165: 150 | Q165: 0.6976744186 | R165: 0 | S165: 150 | T165: 150 | U165: 1 | X165: 5649 | Z165: Ostatní neinvestiční půjčené prostředky veřejným rozpočtům územní úrovně | AC165: x | AD165: x | AE165: x | AF165: x | AG165: x | AI165: 0 | AJ165: x | AK165: x | AM165: 0 | AN165: x
E166: 6329 | G166: Ostatní investiční transfery neziskovým a podobným organizacím | J166: 0 | K166: 488.142 | L166: 488.1419 | M166: 0.9999997951 | N166: 0 | O166: 488.142 | P166: 488.1419 | Q166: 0.9999997951 | R166: 0 | S166: 0 | T166: 0 | U166: x | X166: 565 | Z166: Neinvestiční půjčené prostředky příspěvkovým a podobným organizacím | AC166: =SUM(AC167:AC168) -> 110969.426 | AD166: =AD167 -> 403538.7658 | AE166: =AE167 -> 368366.917 | AF166: =AE166/AD166 -> 0.9128414623 | AG166: =AG167 -> 36398.816 | AH166: =AH167 -> 112225.9863 | AI166: =AI167 -> 99544.29963 | AJ166: =AI166/AH166 -> 0.8869986618 | AK166: =AK167 -> 74570.61 | AL166: =AL167 -> 291312.7795 | AM166: =AM167 -> 268822.6174 | AN166: =AM166/AL166 -> 0.9227972005
A167: =IF(COUNTBLANK(C167:IV167)=254,"odstr",IF(AND($A$1="TISK",SUM(J135:U135)=0),"odstr","OK")) ->  | B167: OK | E167: 6331 | G167: Investiční transfery státnímu rozpočtu | J167: 300 | K167: 50 | L167: 50 | M167: 1 | N167: 300 | O167: 50 | P167: 50 | Q167: 1 | R167: 0 | S167: 0 | T167: 0 | U167: x | X167: 5651 | Z167: Neinvestiční půjčené prostředky zřízeným příspěvkovým organizacím | AC167: 110969.426 | AD167: 403538.7658 | AE167: 368366.917 | AF167: =AE167/AD167 -> 0.9128414623 | AG167: 36398.816 | AH167: 112225.9863 | AI167: 99544.29963 | AJ167: =AI167/AH167 -> 0.8869986618 | AK167: 74570.61 | AL167: 291312.7795 | AM167: 268822.6174 | AN167: =AM167/AL167 -> 0.9227972005
A168: =IF(COUNTBLANK(C168:IV168)=254,"odstr",IF(AND($A$1="TISK",SUM(J136:U136)=0),"odstr","OK")) ->  | B168: OK | E168: 6335 | G168: Investiční transfery státním finančním aktivům | J168: 0 | K168: 0 | L168: 0 | M168: x | N168: 0 | O168: 0 | P168: 0 | Q168: x | R168: 0 | S168: 0 | T168: 0 | U168: x | X168: 5659 | Z168: Neinvestiční půjčené prostředky ostatním příspěvkovým organizacím | AC168: x | AD168: x | AE168: x | AF168: x | AG168: x | AH168: x | AI168: x | AJ168: x | AK168: x | AL168: x | AM168: x | AN168: x
E169: 6339 | G169: Ostatní investiční transfery jiným veřejným rozpočtům | J169: 60 | K169: 60 | L169: 0 | M169: 0 | N169: 60 | O169: 60 | P169: 0 | Q169: 0 | R169: 0 | S169: 0 | T169: 0 | U169: x | X169: 566 | Z169: Neinvestiční půjčené prostředky obyvatelstvu | AC169: x | AD169: x | AE169: x | AF169: x | AG169: 0 | AI169: 0 | AJ169: x | AK169: 0 | AM169: x | AN169: x
A170: =IF(COUNTBLANK(C170:IV170)=254,"odstr",IF(AND($A$1="TISK",SUM(J137:U137)=0),"odstr","OK")) ->  | B170: OK | E170: 6351 | G170: Investiční dotace zřízeným příspěvkovým a podobným organizacím | J170: 1193872.798 | K170: 2488502.631 | L170: 2026160.924 | M170: 0.8142088734 | N170: 639711.798 | O170: 1350701.419 | P170: 1030414.75 | Q170: 0.7628738194 | R170: 554161 | S170: 1137801.213 | T170: 995746.1737 | U170: 0.8751495101 | X170: 5660 | Z170: Neinvestiční půjčené prostředky obyvatelstvu | AC170: x | AD170: x | AE170: x | AF170: x | AG170: x | AI170: x | AJ170: x | AK170: x | AM170: x | AN170: x
A171: =IF(COUNTBLANK(C171:IV171)=254,"odstr",IF(AND($A$1="TISK",SUM(J138:U138)=0),"odstr","OK")) ->  | B171: OK | E171: 6352 | G171: Investiční dotace vysokým školám | J171: 0 | K171: 11415 | L171: 11415 | M171: 1 | N171: 0 | O171: 2525 | P171: 2525 | Q171: 1 | R171: 0 | S171: 8890 | T171: 8890 | U171: 1 | X171: 59 | Y171: Ostatní neinvestiční výdaje | Z171: Ostatní neinvestiční výdaje | AC171: =AC172 -> 6006851.134 | AD171: =AD172 -> 195938.094 | AE171: =AE172 -> 13204.67579 | AF171: =AE171/AD171 -> 0.06739208042 | AG171: =AG172 -> 1193300.064 | AH171: =AH172 -> 84060.01801 | AI171: =AI172 -> 9407.0255 | AJ171: =AI171/AH171 -> 0.1119084402 | AK171: =AK172 -> 4813551.07 | AL171: =AL172 -> 111878.076 | AM171: =AM172 -> 3797.65029 | AN171: =AM171/AL171 -> 0.03394454415
E172: 6353 | G172: Investiční transfery školským právnickým osobám zřízeným státem, kraji a obcemi | J172: 2973.275 | K172: 3474.41674 | L172: 2014.60374 | M172: 0.5798394064 | N172: 2973.275 | O172: 3474.41674 | P172: 2014.60374 | Q172: 0.5798394064 | R172: 0 | S172: 0 | T172: 0 | U172: x | X172: 590 | Z172: Ostatní neinvestiční výdaje | AC172: =SUM(AC173:AC175) -> 6006851.134 | AD172: =SUM(AD173:AD175) -> 195938.094 | AE172: =AE174+AE175 -> 13204.67579 | AF172: =AE172/AD172 -> 0.06739208042 | AG172: =AG173+AG175 -> 1193300.064 | AH172: =AH173+AH174+AH175 -> 84060.01801 | AI172: =AI173+AI174+AI175 -> 9407.0255 | AJ172: =AI172/AH172 -> 0.1119084402 | AK172: =AK173+AK175 -> 4813551.07 | AL172: =AL173+AL175 -> 111878.076 | AM172: =AM175 -> 3797.65029 | AN172: =AM172/AL172 -> 0.03394454415
A173: =IF(COUNTBLANK(C173:IV173)=254,"odstr",IF(AND($A$1="TISK",SUM(J139:U139)=0),"odstr","OK")) ->  | B173: OK | E173: 6354 | G173: Investiční transfery veřejným výzkumným institucím | J173: 0 | K173: 0 | L173: 0 | M173: x | N173: 0 | O173: 0 | P173: 0 | Q173: x | R173: 0 | S173: 0 | T173: 0 | U173: x | X173: 5901 | Z173: Nespecifikované rezervy | AC173: 4943920.1 | AD173: 148903.2537 | AE173: 0 | AF173: x | AG173: 191687.13 | AH173: 66612.70129 | AI173: 0 | AJ173: x | AK173: 4752232.97 | AL173: 82290.55237 | AM173: 0 | AN173: x
A174: =IF(COUNTBLANK(C174:IV174)=254,"odstr",IF(AND($A$1="TISK",SUM(J140:U140)=0),"odstr","OK")) ->  | B174: OK | E174: 6356 | G174: Jiné investiční transfery zřízeným příspěvkovým organizacím | J174: 350 | K174: 128631.7491 | L174: 80441.80386 | M174: 0.6253650786 | N174: 350 | O174: 95567.95487 | P174: 47378.02367 | Q174: 0.4957521978 | R174: 0 | S174: 33063.79419 | T174: 33063.78019 | U174: 0.9999995766 | X174: 5902 | Z174: Ostatní výdaje z finančního vypořádání minulých let | AC174: 0 | AD174: 16.14357 | AE174: 16.14357 | AF174: =AE174/AD174 -> 1 | AG174: 0 | AH174: 16.14357 | AI174: 16.14357 | AJ174: =AI174/AH174 -> 1 | AK174: 0 | AL174: 0 | AM174: 0 | AN174: x
A175: =IF(COUNTBLANK(C175:IV175)=254,"odstr",IF(AND($A$1="TISK",SUM(J141:U141)=0),"odstr","OK")) ->  | B175: OK | E175: 6359 | G175: Investiční dotace ostatním příspěvkovým organizacím | J175: 75 | K175: 760.2 | L175: 623.345 | M175: 0.8199750066 | N175: 75 | O175: 760.2 | P175: 623.345 | Q175: 0.8199750066 | R175: 0 | S175: 0 | T175: 0 | U175: x | X175: 5909 | Z175: Ostatní neinvestiční výdaje jinde nezařazené | AC175: 1062931.034 | AD175: 47018.69679 | AE175: 13188.53222 | AF175: 0.2804954863 | AG175: 1001612.934 | AH175: 17431.17315 | AI175: 9390.88193 | AJ175: 0.5387406716 | AK175: 61318.1 | AL175: 29587.52364 | AM175: 3797.65029 | AN175: =AM175/AL175 -> 0.1283530969
E176: 6371 | G176: Účelové investiční transfery nepodnikajícím fyzickým osobám | J176: 0 | K176: 0 | L176: 0 | M176: x | N176: 0 | O176: 0 | P176: 0 | Q176: x | R176: 0 | S176: 0 | T176: 0 | U176: x | X176: 6 | Z176: KAPITÁLOVÉ VÝDAJE | AC176: =AC177+AC193+AC197+AC222+AC234 -> 17791054.8 | AD176: =AD177+AD193+AD197+AD222+AD234 -> 28244967.44 | AE176: =AE177+AE193+AE197+AE234 -> 20029888.19 | AF176: 0.7091489211 | AG176: =AG177+AG193+AG197+AG222+AG234 -> 13626442.91 | AH176: =AH177+AH193+AH197+AH222+AH234 -> 20741280.47 | AI176: =AI177+AI193+AI197+AI222+AI234 -> 15311465.48 | AJ176: 0.7382121612 | AK176: =AK177+AK193+AK197+AK222+AK234 -> 4164611.89 | AL176: =AL177+AL193+AL197+AL222+AL234 -> 7549566.971 | AM176: =AM177+AM193+AM197+AM234 -> 4897393.378 | AN176: =AM176/AL176 -> 0.6486985806
A177: =IF(COUNTBLANK(C177:IV177)=254,"odstr",IF(AND($A$1="TISK",SUM(J142:U142)=0),"odstr","OK")) ->  | B177: OK | E177: 6380 | G177: Investiční transfery do zahraničí | J177: 0 | K177: 0 | L177: 0 | M177: x | N177: 0 | O177: 0 | P177: 0 | Q177: x | R177: 0 | S177: 0 | T177: 0 | U177: x | X177: 61 | Y177: Investiční nákupy a související výdaje | Z177: Investiční nákupy a související výdaje | AC177: =AC178+AC183+AC191 -> 14758877.76 | AD177: =AD178+AD183+AD191 -> 23012728.94 | AE177: =AE178+AE183+AE191 -> 16678216.33 | AF177: 0.7247387464 | AG177: =AG178+AG183+AG191 -> 12631127.55 | AH177: =AH178+AH183+AH191 -> 18999420.44 | AI177: =AI178+AI183+AI191 -> 13769173.63 | AJ177: 0.724715455 | AK177: =AK178+AK183+AK191 -> 2127750.21 | AL177: =AL178+AL183+AL191 -> 4059188.502 | AM177: =AM178+AM183+AM191 -> 2909042.696 | AN177: =AM177/AL177 -> 0.716656222
E178: 63 | G178: Investiční transfery | J178: 1198235.073 | K178: 2640364.418 | L178: 2127946.668 | M178: 0.8059291562 | N178: 644074.073 | O178: 1458930.132 | P178: 1088567.435 | Q178: 0.7461408949 | R178: 554161 | S178: 1181434.286 | T178: 1039379.233 | U178: 0.8797605127 | X178: 611 | Z178: Pořízení dlouhodobého nehmotného majetku | AC178: =SUM(AC179:AC182) -> 9826.3 | AD178: =SUM(AD179:AD182) -> 55831.78095 | AE178: 38261.81561 | AF178: 0.6853053039 | AG178: =SUM(AG179:AG182) -> 5095.3 | AH178: =SUM(AH179:AH182) -> 23722.40864 | AI178: =SUM(AI179:AI182) -> 17239.35129 | AJ178: 0.7267116738 | AK178: =SUM(AK179:AK182) -> 4731 | AL178: =SUM(AL179:AL182) -> 32109.37231 | AM178: =SUM(AM179:AM182) -> 21022.46432 | AN178: =AM178/AL178 -> 0.6547142721
A179: =IF(COUNTBLANK(C179:IV179)=254,"odstr",IF(AND($A$1="TISK",SUM(J143:U143)=0),"odstr","OK")) ->  | B179: OK | E179: 6412 | G179: Investiční půjčené prostředky nefinančním podnikatelským subjektům – fyzickým osobám | J179: 0 | K179: 0 | L179: 0 | M179: x | N179: 0 | O179: 0 | P179: 0 | Q179: x | R179: 0 | S179: 0 | T179: 0 | U179: x | X179: 6111 | Z179: Programové vybavení | AC179: 4733 | AD179: 49263.18095 | AE179: 32966.4444 | AF179: 0.6691903317 | AG179: 1532 | AH179: 17153.80864 | AI179: 11943.98008 | AJ179: 0.696287357 | AK179: 3201 | AL179: 32109.37231 | AM179: 21022.46432 | AN179: =AM179/AL179 -> 0.6547142721
A180: =IF(COUNTBLANK(C180:IV180)=254,"odstr",IF(AND($A$1="TISK",SUM(J144:U144)=0),"odstr","OK")) ->  | B180: OK | E180: 6413 | G180: Investiční půjčené prostředky nefinančním podnikatelským subjektům – právnickým osobám | J180: 0 | K180: 770.7 | L180: 770.649 | M180: 0.9999338264 | N180: 0 | O180: 770.7 | P180: 770.649 | Q180: 0.9999338264 | R180: 0 | S180: 0 | T180: 0 | U180: x | X180: 6112 | Z180: Ocenitelná práva | AC180: 600 | AD180: 0 | AE180: 0 | AF180: x | AG180: 600 | AH180: 0 | AI180: 0 | AJ180: x | AK180: 0 | AL180: 0 | AM180: 0 | AN180: x
A181: =IF(COUNTBLANK(C181:IV181)=254,"odstr",IF(AND($A$1="TISK",SUM(J145:U145)=0),"odstr","OK")) ->  | B181: OK | E181: 6421 | G181: Investiční půjčené prostředky obecně prospěšným organizacím | J181: 0 | K181: 0 | L181: 0 | M181: x | N181: 0 | O181: 0 | P181: 0 | Q181: x | R181: 0 | S181: 0 | T181: 0 | U181: x | X181: 6113 | Z181: Nehmotné výsledky výzkumné a obdobné činnosti | AC181: 0 | AD181: 0 | AE181: 0 | AF181: x | AG181: , | AH181: 0 | AI181: 0 | AJ181: x | AK181: 0 | AL181: 0 | AN181: x
A182: =IF(COUNTBLANK(C182:IV182)=254,"odstr",IF(AND($A$1="TISK",SUM(J146:U146)=0),"odstr","OK")) ->  | B182: OK | E182: 6422 | G182: Investiční půjčené prostředky občanským sdružením | J182: 0 | K182: 0 | L182: 0 | M182: x | N182: 0 | O182: 0 | P182: 0 | Q182: x | R182: 0 | S182: 0 | T182: 0 | U182: x | X182: 6119 | Z182: Ostatní nákupy dlouhodobého nehmotného majetku | AC182: 4493.3 | AD182: 6568.6 | AE182: 5295.37121 | AF182: =AE182/AD182 -> 0.8061643592 | AG182: 2963.3 | AH182: 6568.6 | AI182: 5295.37121 | AJ182: =AI182/AH182 -> 0.8061643592 | AK182: 1530 | AL182: 0 | AM182: 0 | AN182: x
E183: 6429 | G183: Ostatní investiční půjčené prostředky neziskovým a podobným organizacím | J183: 0 | K183: 180.5 | L183: 180.5 | M183: 1 | N183: 0 | O183: 180.5 | P183: 180.5 | Q183: 1 | R183: 0 | S183: 0 | T183: 0 | U183: x | X183: 612 | Z183: Pořízení dlouhodobého hmotného majektu | AC183: =SUM(AC184:AC190) -> 14695667.06 | AD183: =SUM(AD184:AD190) -> 22876965.04 | AE183: 16521431.85 | AF183: =AE183/AD183 -> 0.7221863488 | AG183: =SUM(AG184:AG190) -> 12587084.85 | AH183: =SUM(AH184:AH190) -> 18876580.25 | AI183: =SUM(AI184:AI190) -> 13654972.91 | AJ183: =AI183/AH183 -> 0.7233817107 | AK183: =SUM(AK184:AK190) -> 2108582.21 | AL183: =SUM(AL184:AL190) -> 4000384.79 | AM183: =SUM(AM184:AM190) -> 2866458.94 | AN183: =AM183/AL183 -> 0.7165458051
A184: =IF(COUNTBLANK(C184:IV184)=254,"odstr",IF(AND($A$1="TISK",SUM(J147:U147)=0),"odstr","OK")) ->  | B184: OK | E184: 6451 | G184: Investiční půjčené prostředky zřízeným příspěvkovým organizacím | J184: 208213 | K184: 242192.742 | L184: 132150.3695 | M184: 0.5456413286 | N184: 0 | O184: 757 | P184: 757 | Q184: 1 | R184: 208213 | S184: 241435.742 | T184: 131393.3695 | U184: 0.5442167279 | X184: 6121 | Z184: Budovy, haly a stavby | AC184: 14233661.66 | AD184: 21426356.59 | AE184: 15370861.98 | AF184: =AE184/AD184 -> 0.7173810402 | AG184: 12364189.45 | AH184: 18100969.61 | AI184: 12984891.28 | AJ184: =AI184/AH184 -> 0.7173588798 | AK184: 1869472.21 | AL184: 3325386.98 | AM184: 2385970.694 | AN184: =AM184/AL184 -> 0.7175016649
B185: OK | E185: 6452 | G185: Investiční půjčené prostředky vysokým školám | J185: 0 | K185: 5000 | L185: 5000 | M185: 1 | N185: 0 | O185: 5000 | P185: 5000 | Q185: 1 | R185: 0 | S185: 0 | T185: 0 | U185: x | X185: 6122 | Z185: Stroje, přístroje a zařízení | AC185: 426116.3997 | AD185: 1228191.623 | AE185: 971526.521 | AF185: =AE185/AD185 -> 0.7910219405 | AG185: 210996.3997 | AH185: 652459.381 | AI185: 564634.6843 | AJ185: =AI185/AH185 -> 0.8653943843 | AK185: 215120 | AL185: 575732.2421 | AM185: 406891.8367 | AN185: =AM185/AL185 -> 0.7067379711
B186: OK | E186: 64 | G186: Investiční půjčené prostředky | J186: 208213 | K186: 248143.942 | L186: 138101.5185 | M186: 0.5565379409 | N186: 0 | O186: 6708.2 | P186: 6708.149 | Q186: 0.9999923974 | R186: 208213 | S186: 241435.742 | T186: 131393.3695 | U186: 0.5442167279 | X186: 6123 | Z186: Dopravní prostředky | AC186: 6203 | AD186: 52837.85523 | AE186: 51031.29487 | AF186: =AE186/AD186 -> 0.9658093548 | AG186: 1650 | AH186: 2566.944 | AI186: 2513.49605 | AJ186: =AI186/AH186 -> 0.9791783732 | AK186: 4553 | AL186: 50270.91123 | AM186: 48517.79882 | AN186: =AM186/AL186 -> 0.9651267032
B187: OK | E187: 6901 | G187: Rezervy kapitálových výdajů | J187: 277526.416 | K187: 94835.10514 | L187: 0 | M187: 0 | N187: 203160.416 | O187: 23716.34583 | P187: 0 | Q187: 0 | R187: 74366 | S187: 71118.75931 | T187: 0 | U187: 0 | X187: 6124 | Z187: Pěstitelské celky trvalých porostů | AC187: 0 | AD187: 0 | AE187: 0 | AF187: x | AG187: 0 | AH187: 0 | AI187: 0 | AJ187: x | AK187: 0 | AL187: 0 | AM187: 0 | AN187: x
B188: OK | E188: 6909 | G188: Ostatní kapitálové výdaje jinde nezařazené | J188: 70487 | K188: 0 | L188: 0 | M188: x | N188: 0 | O188: 0 | P188: 0 | Q188: x | R188: 70487 | S188: 0 | T188: 0 | U188: x | X188: 6125 | Z188: Výpočetní technika | AC188: 23729 | AD188: 147578.3745 | AE188: 109201.0822 | AF188: =AE188/AD188 -> 0.7399531436 | AG188: 5189 | AH188: 98652.93162 | AI188: 84122.47189 | AJ188: =AI188/AH188 -> 0.8527113235 | AK188: 18540 | AL188: 48925.44289 | AM188: 25078.61026 | AN188: =AM188/AL188 -> 0.5125883135
B189: OK | E189: 69 | G189: Ostatní kapitálové výdaje | J189: 348013.416 | K189: 94835.10514 | L189: 0 | M189: 0 | N189: 203160.416 | O189: 23716.34583 | P189: 0 | Q189: 0 | R189: 144853 | S189: 71118.75931 | T189: 0 | U189: 0 | X189: 6127 | Z189: Umělecká díla a předměty | AC189: 100 | AD189: 54 | AE189: 53.979 | AF189: 0.9996111111 | AG189: 100 | AH189: 54 | AI189: 53.979 | AJ189: 0.9996111111 | AK189: 0 | AL189: 0 | AM189: 0 | AN189: x
B190: OK | E190: 6 | G190: Kapitálové výdaje | J190: 10731261.46 | K190: 17221219.52 | L190: 11445159.95 | M190: 0.6645963685 | N190: 8830185.883 | O190: 13821132.59 | P190: 9391150.863 | Q190: 0.6794776624 | R190: 1901075.58 | S190: 3400086.932 | T190: 2054009.09 | U190: 0.6041048747 | X190: 6129 | Z190: Nákup dlouhodobého hmotného majetku jinde nezařazený | AC190: 5857 | AD190: 21946.59589 | AE190: 18756.99786 | AF190: 0.8546654777 | AG190: 4960 | AH190: 21877.38189 | AI190: 18756.99786 | AJ190: 0.8573694034 | AK190: 897 | AL190: 69.214 | AM190: 0 | AN190: x
E191: Výdaje kapitoly 700-Obce a DSO; KÚ (část: vzdělávání) celkem | J191: 79101036.83 | K191: 147279632.5 | L191: 140246463.7 | M191: 0.9522461546 | N191: 34550364.38 | O191: 46582644.49 | P191: 41301069.08 | Q191: 0.8866192449 | R191: 44550672.45 | S191: 100696988.1 | T191: 98945394.66 | U191: 0.982605305 | X191: 613 | Z191: Pozemky | AC191: =SUM(AC192:AC194) -> 53384.4 | AD191: =AD192 -> 79932.124 | AE191: =SUM(AE192:AE194) -> 118522.6588 | AF191: 1.482791309 | AG191: =AG192 -> 38947.4 | AH191: =SUM(AH192:AH194) -> 99117.784 | AI191: =SUM(AI192:AI194) -> 96961.3668 | AJ191: 0.9782438921 | AK191: =AK192 -> 14437 | AL191: =SUM(AL192:AL194) -> 26694.34 | AM191: =SUM(AM192:AM194) -> 21561.292 | AN191: =AM191/AL191 -> 0.8077102487
A192: =IF(COUNTBLANK(C192:IV192)=254,"odstr",IF(AND($A$1="TISK",SUM(J154:U154)=0),"odstr","OK")) ->  | B192: OK | D192: Komentáře: | U192: Zdroj: Závěrečný účet – kapitola 700-Obce a DSO; KÚ (část: vzdělávání) | X192: 6130 | Z192: Pozemky | AC192: 53384.4 | AD192: 79932.124 | AE192: 72642.6588 | AF192: 0.90880431 | AG192: 38947.4 | AH192: 54237.784 | AI192: 52081.3668 | AJ192: 0.9602414214 | AK192: 14437 | AL192: 25694.34 | AM192: 20561.292 | AN192: =AM192/AL192 -> 0.800226509
A193: =IF(COUNTBLANK(C193:IV193)=254,"odstr",IF(AND($A$1="TISK",SUM(J155:U155)=0),"odstr","OK")) ->  | B193: OK | D193: 1) | E193: Tabulka neobsahuje z daných tříd následující položky: 5321, 5323, 5329, 5344, 5345, 5349, 5366, 5367, 5641, 5642, 5649, 6341, 6342, 6349, 6441, 6442, 6449. | X193: 62 | Y193: Nákup akcií a majetkových podílů a vklady do fundací a ústavů | Z193: Nákup akcií a majetkových podílů a vklady do fundací a ústavů | AC193: =AC195 -> 0 | AD193: =AD194+AD195 -> 23440 | AE193: =AE194+AE195 -> 23440 | AF193: 1 | AG193: =AG194+AG195 -> 0 | AH193: =AH194+AH195 -> 22440 | AI193: =AI194+AI195 -> 22440 | AJ193: 1 | AK193: =AK194+AK195 -> 0 | AL193: =AL194+AL195 -> 1000 | AM193: =AM194+AM196 -> 1000 | AN193: =AM193/AL193 -> 1
A194: =IF(COUNTBLANK(C194:IV194)=254,"odstr",IF(AND($A$1="TISK",SUM(J156:U156)=0),"odstr","OK")) ->  | B194: OK | X194: 6202 | Z194: Nákup majetkových podílů | AC194: 0 | AD194: 22440 | AE194: 22440 | AF194: 1 | AG194: 0 | AH194: 22440 | AI194: 22440 | AJ194: 1 | AK194: 0 | AL194: 0 | AM194: 0 | AN194: x
X195: 621 | Z195: Vklady do fundací a ústavů | AC195: =AC196 -> 0 | AD195: =AD196 -> 1000 | AE195: 1000 | AF195: 1 | AG195: 0 | AH195: 0 | AI195: 0 | AJ195: x | AK195: 0 | AL195: =AL196 -> 1000 | AM195: =AM196 -> 1000 | AN195: =AM195/AL195 -> 1
X196: 6212 | Z196: Vklady do nadačních fondů | AC196: 0 | AD196: 1000 | AE196: 1000 | AF196: 1 | AG196: 0 | AH196: 0 | AI196: 0 | AJ196: x | AK196: 0 | AL196: 1000 | AM196: 1000 | AN196: 1
A197: =IF(COUNTBLANK(C197:IV197)=254,"odstr",IF(AND($A$1="TISK",SUM(J157:U157)=0),"odstr","OK")) ->  | B197: OK | X197: 63 | Y197: Investiční transfery | AC197: =AC198+AC202+AC207+AC211 -> 1482944.052 | AD197: =AD198+AD202+AD207+AD211 -> 3527425.467 | AE197: =AE198+AE202+AE207+AE211 -> 3328231.862 | AF197: 0.9435300316 | AG197: =AG198+AG202+AG207+AG211 -> 637651.102 | AH197: =AH198+AH202+AH207+AH211 -> 1432062.068 | AI197: =AI198+AI202+AI207+AI211 -> 1340881.18 | AJ197: =AI197/AH197 -> 0.9363289552 | AK197: =AK198+AK202+AK207+AK211 -> 845292.95 | AL197: =AL198+AL202+AL207+AL211 -> 2095363.399 | AM197: =AM198+AM202+AM207+AM211 -> 1987350.682 | AN197: 0.9484515589
X198: 631 | Z198: Investiční transfery podnikatelským subjektům | AC198: =SUM(AC199:AC201) -> 0 | AD198: =SUM(AD199:AD201) -> 10682.22 | AE198: 7410.7024 | AF198: 0.6937417878 | AG198: 0 | AH198: =AH200 -> 7298 | AI198: =AI200 -> 4026.5014 | AJ198: =AI198/AH198 -> 0.5517266922 | AK198: 0 | AL198: =SUM(AL199:AL201) -> 3384.22 | AM198: =SUM(AM199:AM201) -> 3384.201 | AN198: 0.9999943857
A199: =IF(COUNTBLANK(C199:IV199)=254,"odstr",IF(AND($A$1="TISK",SUM(J158:U158)=0),"odstr","OK")) ->  | B199: OK | X199: 6312 | Z199: Investiční transfery nefinančním podnikatelským subjektům-fyzickým osobám | AC199: 0 | AD199: 210 | AE199: 210 | AF199: 1 | AG199: 0 | AH199: 0 | AI199: 0 | AJ199: x | AK199: 0 | AL199: 210 | AM199: 210 | AN199: 1
A200: =IF(COUNTBLANK(C200:IV200)=254,"odstr",IF(AND($A$1="TISK",SUM(J159:U159)=0),"odstr","OK")) ->  | B200: OK | X200: 6313 | Z200: Investiční dotace nefinančním podnikatelským subjektům – právnickým osobám | AC200: 0 | AD200: 10472.22 | AE200: 7200.7024 | AF200: 0.6876003751 | AG200: 0 | AH200: 7298 | AI200: 4026.5014 | AJ200: =AI200/AH200 -> 0.5517266922 | AK200: 0 | AL200: 3174.22 | AM200: 3174.201 | AN200: 0.9999940143
... 44 more rows

Sheet B8
B1: 0 | F1: 8
A2: konst
A3: konst | B3: 57x3 | D3: Tab. B8: | H3: Běžné a kapitálové výdaje kapitoly 333-MŠMT – podle paragrafů | N3: Tab. B8: | R3: Běžné a kapitálové výdaje kapitoly 333-MŠMT – podle paragrafů
A4: konst | B4: 169 | H4: Běžné a kapitálové výdaje kapitoly 333-MŠMT – podle paragrafů | R4: Běžné a kapitálové výdaje kapitoly 333-MŠMT – podle paragrafů
A5: odstr | B5: 0
A6: odstr | B6: Řádky pro
A7: odstr | B7: ročenku PaM
A8: konst | D8: (podle stavu k: 31. 12. 2017) | L8: v tis. Kč | N8: (podle stavu k: 31. 12. 2018) | V8: v tis. Kč
A9: konst | D9: Paragraf | G9: Název | J9: Běžné výdaje | K9: Kapitálové výdaje | L9: Výdaje celkem | N9: Paragraf | Q9: Název | T9: Běžné výdaje | U9: Kapitálové výdaje | V9: Výdaje celkem
A10: konst
A11: konst
A12: konst
A13: konst
B14: OK | E14: SKUPINA 3 – služby pro obyvatelstvo | J14: 151737564.1 | K14: 5632649.007 | L14: 157370213.1 | O14: SKUPINA 3 – služby pro obyvatelstvo | T14: 174393006.8 | U14: 13022564.07 | V14: =V15+V61+V64+V70+V73 -> 187279499.7
B15: OK | G15: 31–32 – vzdělávání | J15: 142356162.2 | K15: 3428037.665 | L15: 145784199.9 | Q15: 31 a 32 – vzdělávání a školské služby | T15: 164364833.4 | U15: 10605088.26 | V15: 174969921.7
E16: 3111 | G16: Mateřské školy | J16: 632221.1676 | K16: 0 | L16: 632221.1676 | O16: 311 | Q16: Předškolní a základní vzdělávání | T16: =T17+T18+T19+T20 -> 3402634.571 | U16: =U17+U18+U19+U20 -> 21016.287 | V16: =V17+V18+V19+V20 -> 3423650.858
B17: OK | E17: 3112 | G17: Mateřské školy pro děti se speciálními vzdělávacími potřebami | J17: 36864.961 | K17: 0 | L17: 36864.961 | O17: 3111 | Q17: Mateřské školy | T17: 671543.5316 | U17: 0 | V17: 671543.5316
B18: OK | E18: 3113 | G18: Základní školy | J18: 2086843.052 | K18: 400 | L18: 2087243.052 | O18: 3112 | Q18: Mateřské školy pro děti se speciálními vzdělávacími potřebami | T18: 50270.031 | U18: 0 | V18: 50270.031
B19: OK | E19: 3114 | G19: Základní školy pro žáky se speciálními vzdělávacími potřebami | J19: 484834.1845 | K19: 2767.521 | L19: 487601.7055 | O19: 3113 | Q19: Základní školy | T19: 2132628.986 | U19: 465.387 | V19: 2133094.373
B20: OK | E20: 3121 | G20: Gymnázia | J20: 514381.0488 | K20: 212 | L20: 514593.0488 | O20: 3114 | Q20: Základní školy pro žáky se speciálními vzdělávacími potřebami | T20: 548192.0222 | U20: 20550.9 | V20: 568742.9222
E21: 3122 | G21: Střední odborné školy | J21: 331534.9698 | K21: 3800 | L21: 335334.9698 | O21: 312 | R21: Střední vzdělávání a vzdělávání v konzervatořích | T21: =T22+T23+T24+T25+T26+T27 -> 1473101.279 | U21: =U22+U23+U24+U25+U26+U27 -> 0 | V21: =V22+V23+V24+V25+V26+V27 -> 1473101.279
B22: OK | E22: 3123 | G22: Střední školy poskytující střední vzdělání s výučním listem | J22: 114334.5417 | K22: 149 | L22: 114483.5417 | O22: 3121 | Q22: Gymnázia | T22: 558261.8079 | U22: 0 | V22: 558261.8079
B23: OK | E23: 3124 | G23: Střední školy a konzervatoře pro žáky se speciálními vzdělávacími potřebami | J23: 291067.7942 | K23: 18695.46395 | L23: 309763.2582 | O23: 3122 | Q23: Střední odborné školy | T23: 328133.8854 | U23: 0 | V23: 328133.8854
B24: OK | E24: 3126 | G24: Konzervatoře | J24: 37237.4666 | K24: 0 | L24: 37237.4666 | O24: 3123 | Q24: Střední školy poskytující střední vzdělání s výučním listem | T24: 128779.2748 | U24: 0 | V24: 128779.2748
B25: OK | E25: 3128 | G25: Sportovní školy - gymnázia | J25: 82999.92 | K25: 0 | L25: 82999.92 | O25: 3124 | Q25: Střední školy a konzervatoře pro žáky se speciálními vzdělávacími potřebami | T25: 320529.5966 | U25: 0 | V25: 320529.5966
B26: OK | E26: 3131 | G26: Výchovné ústavy a dětské domovy se školou | J26: 879998.9592 | K26: 10554.38446 | L26: 890553.3437 | O26: 3126 | Q26: Konzervatoře | T26: 44188.8344 | U26: 0 | V26: 44188.8344
B27: OK | E27: 3132 | G27: Diagnostické ústavy | J27: 325747.4336 | K27: 5927.8786 | L27: 331675.3122 | O27: 3128 | Q27: Sportovní školy - gymnázia | T27: 93207.88 | U27: 0 | V27: 93207.88
E28: 3133 | G28: Dětské domovy | J28: 32072.405 | K28: 0 | L28: 32072.405 | O28: 313 | R28: Školská zařízení pro výkon ústavní a ochranné výchovy | T28: =T29+T30+T31+T32 -> 1492989.999 | U28: =U29+U30+U31+U32 -> 49804.19718 | V28: =V29+V30+V31+V32 -> 1542794.196
B29: OK | E29: 3139 | G29: Ostatní školská zařízení pro výkon ústavní a ochranné výchovy | J29: 127843.736 | K29: 0 | L29: 127843.736 | O29: 3131 | Q29: Výchovné ústavy a dětské domovy se školou | T29: 981453.8491 | U29: 25568.46867 | V29: 1007022.318
B30: OK | E30: 3141 | G30: Školní stravování | J30: 199275.971 | K30: 0 | L30: 199275.971 | O30: 3132 | Q30: Diagnostické ústavy | T30: 344919.4744 | U30: 24235.72851 | V30: 369155.2029
B31: OK | E31: 3142 | G31: Ostatní školní stravování | L31: 0 | O31: 3133 | Q31: Dětské domovy | T31: 21387.015 | U31: 0 | V31: 21387.015
B32: OK | E32: 3143 | G32: Školní družiny a kluby | J32: 108720.727 | K32: 0 | L32: 108720.727 | O32: 3139 | Q32: Ostatní školská zařízení pro výkon ústavní a ochranné výchovy | T32: 145229.66 | U32: 0 | V32: 145229.66
E33: 3145 | G33: Internáty | J33: 66352.792 | K33: 0 | L33: 66352.792 | O33: 314 | Q33: Ostatní zařízení související s výchovou a vzděláváním mládeže | T33: =T34+T35+T36+T37+T38+T39+T40 -> 811207.6524 | U33: =U34+U35+U36+U37+U38+U39+U40 -> 0 | V33: =V34+V35+V36+V37+V38+V39+V40 -> 811207.6524
B34: OK | E34: 3146 | G34: Zařízení výchovného poradenství | J34: 50637.399 | K34: 0 | L34: 50637.399 | O34: 3141 | Q34: Školní stravování | T34: 220909.901 | U34: 0 | V34: 220909.901
B35: OK | E35: 3147 | G35: Domovy mládeže | J35: 48663.65 | K35: 0 | L35: 48663.65 | O35: 3143 | Q35: Školní družiny a kluby | T35: 128792.747 | U35: 0 | V35: 128792.747
B36: OK | E36: 3148 | G36: Střediska výchovné péče | J36: 249092.187 | K36: 0 | L36: 249092.187 | O36: 3145 | Q36: Internáty | T36: 73378.255 | U36: 0 | V36: 73378.255
B37: OK | E37: 3150 | G37: Vyšší odborné školy | J37: 105887.0906 | K37: 0 | L37: 105887.0906 | O37: 3146 | Q37: Zařízení výchovného poradenství | T37: 56661.134 | U37: 0 | V37: 56661.134
B38: odstr | E38: 3211 | G38: Vysoké školy | J38: 20353220.98 | K38: 2272569.379 | L38: 22625790.36 | O38: 3147 | Q38: Domovy mládeže | T38: 56607.865 | U38: 0 | V38: 56607.865
B39: OK | E39: 3212 | G39: Výzkum, vývoj a inovace na vysokých školách | J39: 9173672.38 | K39: 678645.5724 | L39: 9852317.952 | O39: 3148 | Q39: Střediska výchovné péče | T39: 269448.309 | U39: 0 | V39: 269448.309
E40: 3221 | G40: Vysokoškolské koleje a menzy | J40: 129947 | K40: 0 | L40: 129947 | O40: 3149 | Q40: Ostatní zařízení související s výchovou a vzděláváním mládeže | T40: 5409.4414 | U40: 0 | V40: 5409.4414
E41: 3231 | G41: Základní umělecké školy | J41: 18015.727 | K41: 0 | L41: 18015.727 | O41: 315 | R41: Vyšší odborné vzdělávání | T41: =T42 -> 214347.6516 | U41: =U42 -> 0 | V41: =V42 -> 214347.6516
B42: OK | E42: 3233 | G42: Střediska volného času | J42: 106034.5122 | K42: 0 | L42: 106034.5122 | O42: 3150 | Q42: Vyšší odborné školy | T42: 214347.6516 | U42: 0 | V42: 214347.6516
E43: 3261 | G43: Činnost ústředního orgánu státní správy ve vzdělávání | J43: 460364.3522 | K43: 11461.97611 | L43: 471826.3283 | O43: 321 | Q43: Vysokoškolské vzdělávání | T43: =T45 -> 11752701.79 | U43: =U44+U45 -> 9613682.023 | V43: =V44+V45 -> 46001484
B44: OK | E44: 3262 | G44: Činnost ostatních orgánů státní správy ve vzdělávání | J44: 367025.7127 | K44: 11248.5843 | L44: 378274.297 | O44: 3211 | Q44: Vysoké školy | T44: 24635100.19 | U44: 6504722.767 | V44: 31139822.96
B45: OK | E45: 3269 | G45: Ostatní správa ve vzdělávání jinde nezařazená | L45: 0 | O45: 3212 | Q45: Výzkum, vývoj a inovace na vysokých školách | T45: 11752701.79 | U45: 3108959.256 | V45: 14861661.04
E46: 3291 | G46: Mezinárodní spolupráce ve vzdělávání | J46: 17503.67021 | K46: 0 | L46: 17503.67021 | O46: 322 | Q46: Zařízení související s vysokoškolským vzděláváním | T46: =T47 -> 122900 | U46: =U47 -> 0 | V46: =V47 -> 122900
B47: OK | E47: 3292 | G47: Vzdělávání národnostních menšin a multikulturní výchova | J47: 10200.973 | K47: 0 | L47: 10200.973 | O47: 3221 | Q47: Vysokoškolské koleje a menzy | T47: 122900 | U47: 0 | V47: 122900
E48: 3293 | G48: Vzdělávací akce k integraci Romů | J48: 14328.256 | K48: 0 | L48: 14328.256 | O48: 323 | Q48: Základní umělecké, jazykové a zájmové vzdělávání | T48: =T49+T50 -> 242744.1898 | U48: =U49+U50 -> 0 | V48: =V49+V50 -> 242744.1898
B49: OK | E49: 3294 | G49: Zařízení pro další vzdělávání pedagogických pracovníků | J49: 181720.4993 | K49: 0 | L49: 181720.4993 | O49: 3231 | Q49: Základní umělecké školy | T49: 79160.349 | U49: 0 | V49: 79160.349
B50: OK | E50: 3299 | G50: Ostatní záležitosti vzdělávání | J50: 104717516.7 | K50: 411605.9055 | L50: 105129122.6 | O50: 3233 | Q50: Střediska volného času | T50: 163583.8408 | U50: 0 | V50: 163583.8408
G51: 33 – kultura, církve a sdělovací prostředky | J51: 195991.3734 | K51: 5687.55571 | L51: 201678.9291 | O51: 326 | R51: Správa ve vzdělávání | T51: =T52+T53 -> 891240.4193 | U51: =U52+U53 -> 105594.239 | V51: =V52+V53 -> 901799.8432
B52: OK | E52: 3314 | G52: činnosti knihovnické | J52: 157368.824 | K52: 1693 | L52: 159061.824 | O52: 3261 | Q52: Činnost ústředního orgánu státní správy ve vzdělávání | T52: 489349.674 | U52: 33371.275 | V52: 492686.8015
B53: OK | E53: 3315 | G53: činnosti muzeí a galerií | J53: 38622.54935 | K53: 3994.55571 | L53: 42617.10506 | O53: 3262 | Q53: Činnost ostatních orgánů státní správy ve vzdělávání | T53: 401890.7453 | U53: 72222.964 | V53: 409113.0417
B54: OK | G54: 34 – tělovýchova a zájmová činnost | J54: 4424350.202 | K54: 109580.871 | L54: 4533931.073 | O54: 3269 | Q54: Ostatní správa ve vzdělávání jinde nezařazená | V54: 0
E55: 3411 | G55: státní sportovní reprezentace | J55: 1342321.32 | K55: 179.80352 | L55: 1342501.124 | O55: 329 | R55: Ostatní činnost a nespecifikované výdaje | T55: =T56+T57+T58+T59+T60 -> 119325865.7 | U55: =U57+U56+U58+U59+U60 -> 910026.3303 | V55: =V56+V57+V58+V59+V60 -> 120235892
B56: OK | E56: 3419 | G56: ostatní tělovýchovná činnost | J56: 2824409.568 | K56: 86397.86578 | L56: 2910807.434 | O56: 3291 | Q56: Mezinárodní spolupráce ve vzdělávání | T56: 20428.55327 | U56: 0 | V56: 20428.55327
E57: 3421 | G57: využití volného času dětí a mládeže | J57: 257619.3134 | K57: 23003.20167 | L57: 280622.5151 | O57: 3292 | Q57: Vzdělávání národnostních menšin a multikulturní výchova | T57: 12589.97184 | U57: 0 | V57: 12589.97184
G58: 35 – zdravotnictví | J58: 12058.398 | K58: 0 | L58: 12058.398 | O58: 3293 | Q58: Vzdělávací akce k integraci Romů | T58: 17358.6031 | U58: 0 | V58: 17358.6031
E59: 3541 | G59: prevence před drogami, alkoholem, nikotinem a jinými návykovými látkami | J59: 12058.398 | K59: 0 | L59: 12058.398 | O59: 3294 | Q59: Zařízení pro další vzdělávání pedagogických pracovníků | T59: 246165.5859 | U59: 0 | V59: 246165.5859
G60: 38 – ostatní výzkum a vývoj | J60: 4749001.939 | K60: 2089342.916 | L60: 6838344.855 | O60: 3299 | Q60: Ostatní záležitosti vzdělávání | T60: 119029323 | U60: 910026.3303 | V60: 119939349.3
B61: OK | E61: 3809 | G61: ostatní výzkum a vývoj odvětvově nespecifikovaný | J61: 4749001.939 | K61: 2089342.916 | L61: 6838344.855 | Q61: 33 – kultura, církve a sdělovací prostředky | T61: =T62+T63 -> 210972.471 | U61: =U62+U63 -> 1237.249 | V61: =V62+V63 -> 212209.72
B62: OK | E62: SKUPINA 4 – sociální věci a politika zaměstnanosti | J62: 0 | K62: 0 | L62: 0 | O62: 3314 | Q62: Činnosti knihovnické | T62: 170364.424 | U62: 0 | V62: 170364.424
B63: OK | G63: 43 – sociální služby a společné činnosti v sociálním zabezpečení a politice zaměstnanosti | J63: 0 | K63: 0 | L63: 0 | O63: 3315 | Q63: Činnosti muzeí a galerií | T63: 40608.047 | U63: 1237.249 | V63: 41845.296
B64: OK | E64: 4322 | G64: ústavy péče pro mládež | J64: 0 | K64: 0 | L64: 0 | Q64: 34 – tělovýchova a zájmová činnost | T64: =T65+T68 -> 4779995.916 | U64: =U65+U68 -> 1170969.894 | V64: =V65+V68 -> 5950965.81
E65: SKUPINA 5 – bezpečnost státu a právní ochrana | J65: 17728.29201 | K65: 0 | L65: 17728.29201 | O65: 341 | Q65: Tělovýchova | T65: 4379347.368 | U65: 1139663.443 | V65: 5519010.811
B66: OK | G66: 52 – civilní připravenost na krizové stavy | J66: 52.42501 | K66: 0 | L66: 52.42501 | O66: 3411 | Q66: Státní sportovní reprezentace | T66: 1448121.72 | U66: 19539.041 | V66: 1467660.761
B67: OK | E67: 5299 | G67: ostatní záležitosti civilní připravenosti na krizové stavy | J67: 52.42501 | K67: 0 | L67: 52.42501 | O67: 3419 | Q67: Ostatní tělovýchovná činnost | T67: 2931225.648 | U67: 1120124.402 | V67: 4051350.05
G68: 53 – bezpečnost a veřejný pořádek | J68: 17675.867 | K68: 0 | L68: 17675.867 | O68: 342 | Q68: Zájmová činnost a rekreace | T68: =T69 -> 400648.5485 | U68: =U69 -> 31306.45033 | V68: =V69 -> 431954.9988
B69: OK | E69: 5399 | G69: ostatní záležitosti bezpečnosti, veřejného pořádku | J69: 17675.867 | K69: 0 | L69: 17675.867 | O69: 3421 | Q69: Využití volného času dětí a mládeže | T69: 400648.5485 | U69: 31306.45033 | V69: 431954.9988
B70: OK | E70: SKUPINA 6 – všeobecná veřejná správa a služby | J70: 123498.6154 | K70: 0 | L70: 123498.6154 | Q70: 35 – zdravotnictví | T70: =T71 -> 11982.615 | U70: 0 | V70: 11982.615
G71: 62 – jiné veřejné služby a činnosti | J71: 123498.6154 | K71: 0 | L71: 123498.6154 | O71: 354 | Q71: Zdravotnické programy | T71: 11982.615 | U71: 0 | V71: 11982.615
B72: OK | E72: 6221 | G72: humanitární zahraniční pomoc | J72: 7431.122 | K72: 0 | L72: 7431.122 | O72: 3541 | Q72: Prevence před drogami, alkoholem, nikotinem a jinými závislostmi | T72: 11982.615 | U72: 0 | V72: 11982.615
B73: OK | E73: 6222 | G73: rozvojová zahraniční pomoc | J73: 115277.5164 | K73: 0 | L73: 115277.5164 | Q73: 38 – ostatní výzkum a vývoj | T73: =T74 -> 4889423.484 | U73: =U74 -> 1244996.416 | V73: =V74 -> 6134419.9
B74: OK | E74: 6229 | G74: ostatní zahraniční pomoc | J74: 789.977 | K74: 0 | L74: 789.977 | O74: 3809 | Q74: Ostatní výzkum a vývoj odvětvově nespecifikovaný | T74: 4889423.484 | U74: 1244996.416 | V74: 6134419.9
B75: OK | E75: Celkem kapitola 333-MŠMT | J75: 151878791 | K75: 5632649.007 | L75: 157511440 | O75: SKUPINA 4 – sociální věci a politika zaměstnanosti | T75: 0 | U75: 0 | V75: 0
B76: OK | L76: Zdroj: Závěrečný účet – kapitola 333-MŠMT | Q76: 43 – sociální služby a společné činnosti v sociálním zabezpečení a politice zaměstnanosti | T76: 0 | U76: 0 | V76: 0
B77: OK | O77: 4322 | Q77: zrušen | T77: 0 | U77: 0 | V77: 0
B78: OK | O78: SKUPINA 5 – bezpečnost státu a právní ochrana | T78: =T79+T81 -> 8117.294 | U78: =U79+U81 -> 272.25 | V78: =V79+V81 -> 8389.544
B79: OK | Q79: 52 – civilní připravenost na krizové stavy | T79: =T80 -> 0 | U79: =U80 -> 272.25 | V79: =V80 -> 272.25
B80: odstr | O80: 5299 | Q80: Ostatní záležitosti civilní připravenosti na krizové stavy | T80: 0 | U80: 272.25 | V80: 272.25
B81: odstr | Q81: 53 – bezpečnost a veřejný pořádek | T81: =T82 -> 8117.294 | U81: =U82 -> 0 | V81: =V82 -> 8117.294
B82: OK | O82: 5399 | Q82: Ostatní záležitosti bezpečnosti, veřejného pořádku | T82: 8117.294 | U82: 0 | V82: 8117.294
B83: OK | O83: SKUPINA 6 – všeobecná veřejná správa a služby | T83: =T84 -> 127681.6094 | U83: 0 | V83: =V84 -> 127681.6094
B84: OK | Q84: 62 – jiné veřejné služby a činnosti | T84: =T85+T86+T87 -> 127681.6094 | U84: 0 | V84: =V85+V86+V87 -> 127681.6094
B85: OK | O85: 6221 | Q85: Humanitární zahraniční pomoc přímá | T85: 19779.60776 | U85: 0 | V85: 19779.60776
B86: OK | O86: 6222 | Q86: Rozvojová zahraniční pomoc | T86: 107902.0017 | U86: 0 | V86: 107902.0017
B87: OK | O87: 6229 | Q87: Ostatní zahraniční pomoc | T87: 0 | U87: 0 | V87: 0
B88: OK | O88: Celkem kapitola 333-MŠMT | T88: 174393006.8 | U88: 13022564.07 | V88: 187415570.9
A89: konst | B89: stop | V89: Zdroj: Závěrečný účet – kapitola 333-MŠMT; monitor.statnipokladny.cz
A90: odstr
A91: odstr
A92: stop

Sheet B9
A1: =IF(#REF!="","ŠABLONA",IF(#REF!="T","TISK","ELEKTRO")) ->  | B1: 0 | C1: =CONCATENATE(D1,F1,IF(G1<>"",".",""),G1,IF(H1<>"",".",""),H1,IF(I1<>"",".",""),I1,"") ->  | D1: =IF(#REF!=""," ?",#REF!) ->  | E1: =CONCATENATE(C1,P1) ->  | F1: 9
A2: konst
A3: konst | B3: 45x6 | D3: Tab. B9: | H3: Běžné a kapitálové výdaje kapitoly 700-Obce a DSO; KÚ (část: 31–32–vzdělávání) – podle paragrafů | R3: Tab. B9: | V3: Běžné a kapitálové výdaje kapitoly 700-Obce a DSO; KÚ (část: 31–32–vzdělávání) – podle paragrafů
A4: konst | B4: =COUNTA(Datova_oblast) -> 308 | D4: =IF(D1=" ?","",CONCATENATE("Tab. ",E1,":")) ->  | H4: =IF(H3="Zadejte název tabulky","",H3) -> Běžné a kapitálové výdaje kapitoly 700-Obce a DSO; KÚ (část: 31–32–vzdělávání) – podle paragrafů | R4: =IF(R1=" ?","",CONCATENATE("Tab. ",S1,":")) -> Tab. : | V4: =IF(V3="Zadejte název tabulky","",V3) -> Běžné a kapitálové výdaje kapitoly 700-Obce a DSO; KÚ (část: 31–32–vzdělávání) – podle paragrafů
A5: =IF(D5="","odstr","OK") -> odstr | B5: 0
A6: =IF(COUNTBLANK(C6:IV6)=254,"odstr","OK") -> odstr | B6: Řádky pro
A7: =IF(COUNTBLANK(C7:IV7)=254,"odstr","OK") -> odstr | B7: ročenku PaM
A8: konst | D8: (podle stavu k: 31. 12. 2017) | P8: v tis. Kč | R8: (podle stavu k: 31. 12. 2018) | AD8: v tis. Kč
A9: konst | D9: Paragraf | G9: Název | J9: Obce a DSO | M9: Krajské úřady | P9: Výdaje celkem kapitola-Obce a DSO; KÚ | R9: Paragraf | U9: Název | X9: Obce a DSO | AA9: Krajské úřady | AD9: Výdaje celkem kapitola-Obce a DSO; KÚ
A10: konst
A11: konst | J11: běžné výdaje | K11: kapitálové výdaje | L11: výdaje celkem | M11: běžné výdaje | N11: kapitálové výdaje | O11: výdaje celkem | X11: běžné výdaje | Y11: kapitálové výdaje | Z11: výdaje celkem | AA11: běžné výdaje | AB11: kapitálové výdaje | AC11: výdaje celkem
A12: konst
A13: konst
A14: =IF(COUNTBLANK(C14:IV14)=254,"odstr",IF(AND($A$1="TISK",SUM(J14:P14)=0),"odstr","OK")) ->  | B14: OK | E14: SKUPINA 3 – služby pro obyvatelstvo | J14: . | K14: . | L14: . | M14: . | N14: . | O14: . | P14: . | S14: SKUPINA 3 – služby pro obyvatelstvo | X14: . | Y14: . | Z14: . | AA14: . | AB14: . | AC14: . | AD14: .
B15: OK | G15: 31–32 – vzdělávání | J15: 31909918.22 | K15: 9391150.863 | L15: 41301069.08 | M15: 96891385.57 | N15: 2054009.09 | O15: 98945394.66 | P15: 140246463.7 | R15: 31–32 – vzdělávání a školské služby | X15: 35676406.32 | Y15: 14056598.28 | Z15: 49733004.6 | AA15: 109788985.3 | AB15: 6192138.759 | AC15: 115981124.1 | AD15: =Z15+AC15 -> 165714128.7
S16: 311 | U16: Předškolní a základní vzdělávání | X16: =SUM(X17:X24) -> 27380751.75 | Y16: 12692099.62 | Z16: 40079846.13 | AA16: 65076264.83 | AB16: 246021.9793 | AC16: 65322286.81 | AD16: 105402132.9
A17: =IF(COUNTBLANK(C17:IV17)=254,"odstr",IF(AND($A$1="TISK",SUM(J17:P17)=0),"odstr","OK")) ->  | B17: OK | E17: 3111 | G17: Mateřské školy | J17: 5969406.581 | K17: 2168605.656 | L17: 8138012.237 | M17: 12823283.04 | N17: 239.5165 | O17: 12823522.56 | P17: 20961534.79 | S17: 3111 | U17: Mateřské školy | X17: 6553892.262 | Y17: 3114961.338 | Z17: 9668853.6 | AA17: 14493690.62 | AB17: 27870.60318 | AC17: 14521561.23 | AD17: =Z17+AC17 -> 24190414.83
B18: OK | E18: 3112 | G18: Mateřské školy pro děti se speciálními vzdělávacími potřebami | J18: 84581.06181 | K18: 0 | L18: 84581.06181 | M18: 311322.0887 | N18: 1474.40085 | O18: 312796.4895 | P18: 397377.5513 | S18: 3112 | U18: Mateřské školy pro děti se speciálními vzdělávacími potřebami | X18: 95121.91875 | Y18: 3440.5 | Z18: 98562.41875 | AA18: 365351.4601 | AB18: 12746.4183 | AC18: 378097.8784 | AD18: 476660.2972
B19: OK | E19: 3113 | G19: Základní školy | J19: 16593273.39 | K19: 5617199.823 | L19: 22210473.21 | M19: 35373541.47 | N19: 876.9617 | O19: 35374418.43 | P19: 57584891.64 | S19: 3113 | U19: Základní školy | X19: 18700639.17 | Y19: 8788488.746 | Z19: 27489127.92 | AA19: 40355108.82 | AB19: 97481.13381 | AC19: 40452589.96 | AD19: 67941717.87
B20: OK | E20: 3114 | G20: Základní školy pro žáky se speciálními vzdělávacími potřebami | J20: 705615.1105 | K20: 67437.56091 | L20: 773052.6714 | M20: 3741802.48 | N20: 102104.9534 | O20: 3843907.434 | P20: 4616960.105 | S20: 3114 | U20: Základní školy pro žáky se speciálními vzdělávacími potřebami | X20: 771402.7867 | Y20: 74716.00755 | Z20: 846118.7942 | AA20: 4200221.44 | AB20: 107046.775 | AC20: 4307268.215 | AD20: 5153387.009
E21: 3115 | G21: Ostatní záležitosti předškolního vzdělávání | J21: 17089.45517 | K21: 3867.02445 | L21: 20956.47962 | M21: 0 | N21: 0 | O21: 0 | P21: 20956.47962 | S21: 3115 | U21: Ostatní záležitosti předškolního vzdělávání | X21: 39171.46188 | Y21: ; | Z21: 46166.2176 | AA21: 0 | AB21: 212.049 | AC21: 212.049 | AD21: 46378.2666
B22: OK | E22: 3117 | G22: První stupeň základních škol | J22: 633339.028 | K22: 214941.5528 | L22: 848280.5807 | M22: 4940079.843 | N22: 0 | O22: 4940079.843 | P22: 5788360.424 | S22: 3117 | U22: První stupeň základních škol | X22: 722053.6097 | Y22: 405806.5379 | Z22: 1127860.148 | AA22: 5645255.915 | AB22: 0 | AC22: 5645255.915 | AD22: 6773116.062
B23: OK | E23: 3118 | G23: Druhý stupeň základních škol | J23: 2173.83029 | K23: 4857.01746 | L23: 7030.84775 | M23: 13335.083 | N23: 0 | O23: 13335.083 | P23: 20365.93075 | S23: 3118 | U23: Druhý stupeň základních škol | X23: 9677.47458 | Y23: 28527.67027 | Z23: 38205.14485 | AA23: 16636.571 | AB23: 0 | AC23: 16636.571 | AD23: 54841.71585
B24: OK | E24: 3119 | G24: Ostatní záležitosti základního vzdělávání | J24: 453840.9913 | K24: 103161.466 | L24: 557002.4573 | M24: 617.83737 | N24: 255.02536 | O24: 872.86273 | P24: 557875.32 | S24: 3119 | U24: Ostatní záležitosti základního vzdělávání | X24: 488793.0674 | Y24: 276158.8208 | Z24: 764951.8882 | AA24: 0 | AB24: 665 | AC24: 665 | AD24: 765616.8882
E25: 3121 | G25: Gymnázia | J25: 1617327.212 | K25: 110316.5226 | L25: 1727643.735 | M25: 5832253.538 | N25: 368001.9852 | O25: 6200255.523 | P25: 7927899.258 | S25: 312 | U25: Střední vzdělávání a vzdělávání v konzervatořích | X25: =SUM(X26:X34) -> 5768398.296 | Y25: 568524.1396 | Z25: 6336922.436 | AA25: 29422024.58 | AB25: 5198904.804 | AC25: 34620929.39 | AD25: 40957851.82
A26: =IF(COUNTBLANK(C26:IV26)=254,"odstr",IF(AND($A$1="TISK",SUM(J25:P25)=0),"odstr","OK")) ->  | B26: OK | E26: 3122 | G26: Střední odborné školy | J26: 1657041.064 | K26: 224180.8392 | L26: 1881221.903 | M26: 9740850.953 | N26: 582493.7982 | O26: 10323344.75 | P26: 12204566.65 | S26: 3121 | U26: Gymnázia | X26: 1797040.328 | Y26: 135001.9178 | Z26: 1932042.246 | AA26: 6589539.552 | AB26: 937568.417 | AC26: 7527107.969 | AD26: =Z26+AC26 -> 9459150.215
B27: OK | E27: 3123 | G27: Střední školy poskytující střední vzdělání s výučním listem | J27: 1179793.381 | K27: 165092.0986 | L27: 1344885.479 | M27: 6258468.652 | N27: 382414.0907 | O27: 6640882.743 | P27: 7985768.222 | S27: 3122 | U27: Střední odborné školy | X27: 1863640.027 | Y27: 176249.3687 | Z27: 2039889.395 | AA27: 10888497.81 | AB27: 2238439.772 | AC27: 13126937.59 | AD27: 15166826.98
B28: OK | E28: 3124 | G28: Střední školy a konzervatoře pro žáky se speciálními vzdělávacími potřebami | J28: 191653.3112 | K28: 10404.81675 | L28: 202058.1279 | M28: 899753.0572 | N28: 10125.12708 | O28: 909878.1842 | P28: 1111936.312 | S28: 3123 | U28: Střední školy poskytující střední vzdělání s výučním listem | X28: 1285620.811 | Y28: 192158.4754 | Z28: 1477779.286 | AA28: 6833724.312 | AB28: 962251.9912 | AC28: 7795976.304 | AD28: 9273755.59
B29: OK | E29: 3125 | G29: Střediska praktického vyučování a školní hospodářství | J29: 13763.224 | K29: 0 | L29: 13763.224 | M29: 53803.69492 | N29: 22161.7507 | O29: 75965.44562 | P29: 89728.66962 | S29: 3124 | U29: Střední školy a konzervatoře pro žáky se speciálními vzdělávacími potřebami | X29: 226839.0528 | Y29: 15482.70294 | Z29: 242321.7557 | AA29: 923600.9613 | AB29: 42809.55059 | AC29: 966410.5119 | AD29: 1208732.268
B30: OK | E30: 3126 | G30: Konzervatoře | J30: 352859.281 | K30: 6873.722 | L30: 359733.003 | M30: 326233.1872 | N30: 21388.36182 | O30: 347621.549 | P30: 707354.552 | S30: 3125 | U30: Střediska praktického vyučování a školní hospodářství | X30: 14452.303 | Y30: 0 | Z30: 14452.303 | AA30: 56017.88785 | AB30: 72198.49895 | AC30: 128216.3868 | AD30: 142668.6898
B31: OK | E31: 3127 | G31: Střední školy | J31: 183308.8475 | K31: 0 | L31: 183308.8475 | M31: 3361523.661 | N31: 348253.5013 | O31: 3709777.162 | P31: 3893086.01 | S31: 3126 | U31: Konzervatoře | X31: 380938.454 | Y31: 49631.6747 | Z31: 430570.1287 | AA31: 363214.0382 | AB31: 42919.234 | AC31: 406133.2722 | AD31: 836703.4009
E32: 3128 | G32: Sportovní školy - gymnázia | J32: 0 | K32: 0 | L32: 0 | M32: 97692.54994 | N32: 279.787 | O32: 97972.33694 | P32: 97972.33694 | S32: 3127 | U32: Střední školy | X32: 199772.821 | Y32: 0 | Z32: 199772.821 | AA32: 3658041.496 | AB32: 892494.2157 | AC32: 4550535.712 | AD32: 4750308.533
B33: OK | E33: 3129 | G33: Ostatní zařízení středního vzdělávání | J33: 82 | K33: 0 | L33: 82 | M33: 0.2691 | N33: 0 | O33: 0.2691 | P33: 82.2691 | S33: 3128 | U33: Sportovní školy - gymnázia | X33: 0 | Y33: 0 | Z33: 0 | AA33: 108939.61 | AB33: 10223.125 | AC33: 119162.735 | AD33: 119162.735
B34: OK | E34: 3131 | G34: Výchovné ústavy a dětské domovy se školou | J34: 62.6726 | K34: 0 | L34: 62.6726 | M34: 0 | N34: 0 | O34: 0 | P34: 62.6726 | S34: 3129 | U34: Ostatní zařízení středního vzdělávání | X34: 94.5 | Y34: 0 | Z34: 94.5 | AA34: 448.91 | AB34: 0 | AC34: 448.91 | AD34: 543.41
E35: 3132 | G35: Diagnostické ústavy | J35: 0 | K35: 0 | L35: 0 | M35: 0 | N35: 0 | O35: 0 | P35: 0 | S35: 313 | U35: Školská zařízení pro výkon ústavní a ochranné výchovy | X35: =SUM(X36:X39) -> 80914.8436 | Y35: =SUM(Y36:Y39) -> 2415.6 | Z35: 83330.4436 | AA35: =SUM(AA36:AA39) -> 1906514.729 | AB35: =SUM(AB36:AB39) -> 39150.13663 | AC35: 1945664.866 | AD35: =SUM(AD36:AD39) -> 2028995.31
A36: =IF(COUNTBLANK(C36:IV36)=254,"odstr",IF(AND($A$1="TISK",SUM(J34:P34)=0),"odstr","OK")) ->  | B36: OK | E36: 3133 | G36: Dětské domovy | J36: 72448.3596 | K36: 1939.3425 | L36: 74387.7021 | M36: 1741848.505 | N36: 18374.44467 | O36: 1760222.95 | P36: 1834610.652 | S36: 3131 | U36: Výchovné ústavy a dětské domovy se školou | X36: 74.8546 | Y36: 0 | Z36: 74.8546 | AA36: 60 | AB36: 0 | AC36: 60 | AD36: =Z36+AC36 -> 134.8546
A37: =IF(COUNTBLANK(C37:IV37)=254,"odstr",IF(AND($A$1="TISK",SUM(J35:P35)=0),"odstr","OK")) ->  | B37: OK | E37: 3139 | G37: Ostatní školská zařízení pro výkon ústavní a ochranné výchovy | J37: 10 | K37: 0 | L37: 10 | M37: 0 | N37: 0 | O37: 0 | P37: 10 | S37: 3132 | U37: Diagnostické ústavy | X37: 0 | Y37: 0 | Z37: 0 | AA37: 0 | AB37: 0 | AC37: 0 | AD37: =Z37+AC37 -> 0
A38: =IF(COUNTBLANK(C38:IV38)=254,"odstr",IF(AND($A$1="TISK",SUM(J36:P36)=0),"odstr","OK")) ->  | E38: 3141 | G38: Školní stravování | J38: 595323.9407 | K38: 98761.5667 | L38: 694085.5074 | M38: 2863427.551 | N38: 3974.787 | O38: 2867402.338 | P38: 3561487.846 | S38: 3133 | U38: Dětské domovy | X38: 80829.989 | Y38: 2415.6 | Z38: 83245.589 | AA38: 1906454.729 | AB38: 39150.13663 | AC38: 1945604.866 | AD38: =Z38+AC38 -> 2028850.455
A39: =IF(COUNTBLANK(C39:IV39)=254,"odstr",IF(AND($A$1="TISK",SUM(J37:P37)=0),"odstr","OK")) ->  | B39: OK | E39: 3142 | G39: Ostatní školní stravování | L39: 0 | O39: 0 | P39: 0 | S39: 3139 | U39: Ostatní školská zařízení pro výkon ústavní a ochranné výchovy | X39: 10 | Z39: 10 | AA39: 0 | AB39: 0 | AC39: 0 | AD39: =Z39+AC39 -> 10
E40: 3143 | G40: Školní družiny a kluby | J40: 33940.34765 | K40: 417.7155 | L40: 34358.06315 | M40: 1608936.537 | N40: 0 | O40: 1608936.537 | P40: 1643294.6 | S40: 314 | U40: Ostatní zařízení související s výchovou a vzděláváním mládeže | X40: =SUM(X41:X49) -> 999445.0554 | Y40: =SUM(Y41:Y49) -> 422711.8437 | Z40: 1422156.899 | AA40: 6756302.294 | AB40: 88926.92007 | AC40: 6845229.214 | AD40: 8267386.113
A41: =IF(COUNTBLANK(C41:IV41)=254,"odstr",IF(AND($A$1="TISK",SUM(J38:P38)=0),"odstr","OK")) ->  | B41: OK | E41: 3144 | G41: Školy v přírodě | J41: 19011.333 | K41: 0 | L41: 19011.333 | M41: 0 | N41: 0 | O41: 0 | P41: 19011.333 | S41: 3141 | U41: Školní stravování | X41: 633392.4288 | Y41: 156999.434 | Z41: 790391.8628 | AA41: 3322665.66 | AB41: 7986.8658 | AC41: 3330652.526 | AD41: =Z41+AC41 -> 4121044.388
B42: OK | E42: 3145 | G42: Internáty | J42: 4.054 | K42: 0 | L42: 4.054 | M42: 72199.71378 | N42: 0 | O42: 72199.71378 | P42: 72203.76778 | S42: 3142 | U42: Ostatní školní stravování | X42: 0 | Y42: 0 | Z42: 0 | AA42: 0 | AB42: 0 | AC42: 0 | AD42: 0
B43: OK | E43: 3146 | G43: Zařízení výchovného poradenství | J43: 112101.4054 | K43: 580.4 | L43: 112681.8054 | M43: 732658.5997 | N43: 10708.4849 | O43: 743367.0846 | P43: 856048.89 | S43: 3143 | U43: Školní družiny a kluby | X43: 44993.69515 | Y43: 175.328 | Z43: 45169.02315 | AA43: 1844391.935 | AB43: 0 | AC43: 1844391.935 | AD43: 1889560.958
B44: OK | E44: 3147 | G44: Domovy mládeže | J44: 81477.958 | K44: 9605.135 | L44: 91083.093 | M44: 523627.7095 | N44: 20266.19101 | O44: 543893.9005 | P44: 634976.9935 | S44: 3144 | U44: Školy v přírodě | X44: 19762.80948 | Y44: 0 | Z44: 19762.80948 | AA44: 0 | AB44: 0 | AC44: 0 | AD44: 19762.80948
B45: OK | E45: 3148 | G45: Střediska výchovné péče | J45: 1157.49 | K45: 0 | L45: 1157.49 | M45: 17688.595 | N45: 0 | O45: 17688.595 | P45: 18846.085 | S45: 3145 | U45: Internáty | X45: 0 | Y45: 0 | Z45: 0 | AA45: 76813.797 | AB45: 0 | AC45: 76813.797 | AD45: 76813.797
B46: OK | E46: 3149 | G46: Ostatní zařízení související s výchovou a vzděláváním mládeže | J46: 116522.4378 | K46: 375744.1786 | L46: 492266.6164 | M46: 82131.53283 | N46: 37960.80753 | O46: 120092.3404 | P46: 612358.9568 | S46: 3146 | U46: Zařízení výchovného poradenství | X46: 127384.8055 | Y46: 11864.21954 | Z46: 139249.025 | AA46: 827386.5051 | AB46: 6973.00731 | AC46: 834359.5125 | AD46: 973608.5375
B47: OK | E47: 3150 | G47: Vyšší odborné školy | J47: 102762.4336 | K47: 0 | L47: 102762.4336 | M47: 308925.2498 | N47: 3074 | O47: 311999.2498 | P47: 414761.6833 | S47: 3147 | U47: Domovy mládeže | X47: 86779.28 | Y47: 8287.8 | Z47: 95067.08 | AA47: 582466.7295 | AB47: 70809.81531 | AC47: 653276.5448 | AD47: 748343.6248
E48: 3211 | G48: Vysoké školy | J48: 4131.933 | K48: 0 | L48: 4131.933 | M48: 2702.9 | N48: 0 | O48: 2702.9 | P48: 6834.833 | S48: 3148 | U48: Střediska výchovné péče | X48: 972.89481 | Y48: 250 | Z48: 1222.89481 | AA48: 21734.266 | AB48: 0 | AC48: 21734.266 | AD48: 22957.16081
B49: OK | E49: 3212 | G49: Výzkum, vývoj a inovace na vysokých školách | J49: 0 | K49: 0 | L49: 0 | M49: 3920.7 | N49: 0 | O49: 3920.7 | P49: 3920.7 | S49: 3149 | U49: Ostatní zařízení související s výchovou a vzděláváním mládeže | X49: 86159.1417 | Y49: 245135.0621 | Z49: 331294.2038 | AA49: 80843.40138 | AB49: 3157.23165 | AC49: 84000.63303 | AD49: 415294.8369
E50: 3213 | G50: Bakalářské studium | J50: 104 | K50: 0 | L50: 104 | M50: 500 | N50: 0 | O50: 500 | P50: 604 | S50: 315 | U50: Vyšší odborné vzdělávání | X50: =SUM(X51) -> 103679.1326 | Y50: =SUM(Y51) -> 0 | Z50: 103679.1326 | AA50: 339054.8663 | AB50: 155531.4987 | AC50: 494586.365 | AD50: 598265.4976
A51: =IF(COUNTBLANK(C51:IV51)=254,"odstr",IF(AND($A$1="TISK",SUM(J47:P47)=0),"odstr","OK")) ->  | B51: OK | E51: 3214 | G51: Magisterské a doktorské studium | J51: 50 | K51: 0 | L51: 50 | M51: 0 | N51: 0 | O51: 0 | P51: 50 | S51: 3150 | U51: Vyšší odborné školy | X51: 103679.1326 | Y51: 0 | Z51: 103679.1326 | AA51: 339054.8663 | AB51: 155531.4987 | AC51: 494586.365 | AD51: =Z51+AC51 -> 598265.4976
E52: 3221 | G52: Vysokoškolské koleje a menzy | J52: 0 | K52: 0 | L52: 0 | M52: 0 | N52: 0 | O52: 0 | P52: 0 | S52: 321 | U52: Vysokoškolské vzdělávání | X52: =SUM(X53:X56) -> 5747.39562 | Y52: =SUM(Y53:Y56) -> 0 | Z52: 5747.39562 | AA52: 7082.96875 | AB52: 3082.757 | AC52: 10165.72575 | AD52: 15913.12137
A53: =IF(COUNTBLANK(C53:IV53)=254,"odstr",IF(AND($A$1="TISK",SUM(J48:P48)=0),"odstr","OK")) ->  | B53: OK | E53: 3229 | G53: Ostatní zařízení související s vysokoškolským vzděláváním | J53: 2963 | K53: 0 | L53: 2963 | M53: 64.981 | N53: 0 | O53: 64.981 | P53: 3027.981 | S53: 3211 | U53: Vysoké školy | X53: 5614.39562 | Y53: 0 | Z53: 5614.39562 | AA53: 4646 | AB53: 3082.757 | AC53: 7728.757 | AD53: =Z53+AC53 -> 13343.15262
A54: =IF(COUNTBLANK(C54:IV54)=254,"odstr",IF(AND($A$1="TISK",SUM(J49:P49)=0),"odstr","OK")) ->  | B54: OK | E54: 3231 | G54: Základní umělecké školy | J54: 664890.2665 | K54: 160356.6319 | L54: 825246.8984 | M54: 4120014.628 | N54: 12470.27107 | O54: 4132484.899 | P54: 4957731.797 | S54: 3212 | U54: Výzkum, vývoj a inovace na vysokých školách | X54: 0 | Y54: 0 | Z54: 0 | AA54: 2436.96875 | AB54: 0 | AC54: 2436.96875 | AD54: =Z54+AC54 -> 2436.96875
A55: =IF(COUNTBLANK(C55:IV55)=254,"odstr",IF(AND($A$1="TISK",SUM(J50:P50)=0),"odstr","OK")) ->  | B55: OK | E55: 3232 | G55: Jazykové školy s právem státní jazykové zkoušky | J55: 1062.9 | K55: 0 | L55: 1062.9 | M55: 42 | N55: 0 | O55: 42 | P55: 1104.9 | S55: 3213 | U55: Bakalářské studium | X55: 85 | Y55: 0 | Z55: 85 | AA55: 0 | AB55: 0 | AC55: 0 | AD55: =Z55+AC55 -> 85
A56: =IF(COUNTBLANK(C56:IV56)=254,"odstr",IF(AND($A$1="TISK",SUM(J51:P51)=0),"odstr","OK")) ->  | B56: OK | E56: 3233 | G56: Střediska volného času | J56: 70525.35781 | K56: 19441.59393 | L56: 89966.95174 | M56: 741196.6288 | N56: 23295.66711 | O56: 764492.2959 | P56: 854459.2476 | S56: 3214 | U56: Magisterské a doktorské studium | X56: 48 | Y56: 0 | Z56: 48 | AA56: 0 | AB56: 0 | AC56: 0 | AD56: =Z56+AC56 -> 48
E57: 3239 | G57: Záležitosti zájmového vzdělávání jinde nezařazené | J57: 3025.50687 | K57: 1837.727 | L57: 4863.23387 | M57: 0 | N57: 0 | O57: 0 | P57: 4863.23387 | S57: 322 | U57: Zařízení související s vysokoškolským vzděláváním | X57: =SUM(X58:X59) -> 3133.922 | Y57: =SUM(Y58:Y59) -> 0 | Z57: 3133.922 | AA57: 1600 | AB57: 0 | AC57: 1600 | AD57: 4733.922
A58: =IF(COUNTBLANK(C58:IV58)=254,"odstr",IF(AND($A$1="TISK",SUM(J52:P52)=0),"odstr","OK")) ->  | B58: OK | E58: 3261 | G58: Činnost ústředního orgánu státní správy ve vzdělávání | J58: 0 | K58: 0 | L58: 0 | M58: 0 | N58: 0 | O58: 0 | P58: 0 | S58: 3221 | U58: Vysokoškolské koleje a menzy | X58: 0 | Y58: 0 | Z58: 0 | AA58: 0 | AB58: 0 | AC58: 0 | AD58: 0
A59: =IF(COUNTBLANK(C59:IV59)=254,"odstr",IF(AND($A$1="TISK",SUM(J53:P53)=0),"odstr","OK")) ->  | B59: OK | E59: 3262 | G59: Činnost ostatních orgánů státní správy ve vzdělávání | J59: 0 | K59: 0 | L59: 0 | M59: 0 | N59: 0 | O59: 0 | P59: 0 | S59: 3229 | U59: Ostatní zařízení související s vysokoškolským vzděláváním | X59: 3133.922 | Y59: 0 | Z59: 3133.922 | AA59: 1600 | AB59: 0 | AC59: 1600 | AD59: =Z59+AC59 -> 4733.922
E60: 3269 | G60: Ostatní správa ve vzdělávání jinde nezařazená | J60: 19.064 | K60: 0 | L60: 19.064 | M60: 21425.5742 | N60: 0 | O60: 21425.5742 | P60: 21444.6382 | S60: 323 | U60: Základní umělecké, jazykové a zájmové vzdělávání | X60: =SUM(X61:X64) -> 897590.5844 | Y60: =SUM(Y61:Y64) -> 317314.0692 | Z60: 1214904.654 | AA60: 5510502.148 | AB60: 40699.03073 | AC60: 5590257.591 | AD60: 6805162.245
A61: =IF(COUNTBLANK(C61:IV61)=254,"odstr",IF(AND($A$1="TISK",SUM(J54:P54)=0),"odstr","OK")) ->  | B61: OK | E61: 3280 | G61: Výzkum školství a vzdělávání | J61: 834.69066 | K61: 0 | L61: 834.69066 | M61: 0 | N61: 0 | O61: 0 | P61: 834.69066 | S61: 3231 | U61: Základní umělecké školy | X61: 783759.344 | Y61: 268001.119 | Z61: 1051760.463 | AA61: 4641999.429 | AB61: 39056,41,5 | AC61: 4681055.841 | AD61: =Z61+AC61 -> 5732816.304
E62: 3291 | G62: Mezinárodní spolupráce ve vzdělávání | J62: 2645.76492 | K62: 0 | L62: 2645.76492 | M62: 860 | N62: 0 | O62: 860 | P62: 3505.76492 | S62: 3232 | U62: Jazykové školy s právem státní jazykové zkoušky | X62: 3011.8 | Y62: 2418.7 | Z62: 5430.5 | AA62: 74.27 | AB62: 24770 | AC62: 24844.27 | AD62: =Z62+AC62 -> 30274.77
E63: 3292 | G63: Vzdělávání národnostních menšin a multikulturní výchova | J63: 4403.21801 | K63: 0 | L63: 4403.21801 | M63: 1778.4845 | N63: 0 | O63: 1778.4845 | P63: 6181.70251 | S63: 3233 | U63: Střediska volného času | X63: 107462.1802 | Y63: 24432.44677 | Z63: 131894.627 | AA63: 868428.4491 | AB63: 15929.03073 | AC63: 884357.4798 | AD63: =Z63+AC63 -> 1016252.107
A64: =IF(COUNTBLANK(C64:IV64)=254,"odstr",IF(AND($A$1="TISK",SUM(J57:P57)=0),"odstr","OK")) ->  | B64: OK | E64: 3293 | G64: Vzdělávací akce k integraci Romů | J64: 0 | K64: 0 | L64: 0 | M64: 1086.823 | N64: 0 | O64: 1086.823 | P64: 1086.823 | S64: 3239 | U64: Záležitosti zájmového vzdělávání jinde nezařazené | X64: 3357.26016 | Y64: 22461.80343 | Z64: 25819.06359 | AA64: 0 | AB64: 0 | AC64: 0 | AD64: =Z64+AC64 -> 25819.06359
E65: 3294 | G65: Zařízení pro další vzdělávání pedagogických pracovníků | J65: 50 | K65: 0 | L65: 50 | M65: 35195.26374 | N65: 0 | O65: 35195.26374 | P65: 35245.26374 | S65: 326 | U65: Správa ve vzdělávání | X65: =SUM(X66:X68) -> 18.265 | Y65: =SUM(Y66:Y68) -> 0 | Z65: 18.265 | AA65: 31972.08165 | AB65: 500 | AC65: 32472.08165 | AD65: 32490.34665
A66: =IF(COUNTBLANK(C66:IV66)=254,"odstr",IF(AND($A$1="TISK",SUM(J58:P58)=0),"odstr","OK")) ->  | B66: OK | E66: 3299 | G66: Ostatní záležitosti vzdělávání | J66: 365242.3211 | K66: 25528.47244 | L66: 390770.7936 | M66: 236592.1874 | N66: 83815.17732 | O66: 320407.3647 | P66: 711178.1582 | S66: 3261 | U66: Činnost ústředního orgánu státní správy ve vzdělávání | X66: 0 | Y66: 0 | Z66: 0 | AA66: 0 | AB66: 0 | AC66: 0 | AD66: 0
A67: =IF(COUNTBLANK(C67:IV67)=254,"odstr",IF(AND($A$1="TISK",SUM(J59:P59)=0),"odstr","OK")) ->  | B67: OK | E67: Celkem kapitola 700-Obce a DSO; KÚ (část vzdělávání)1) | J67: 31909918.22 | K67: 9391150.863 | L67: 41301069.08 | M67: 96891385.57 | N67: 2054009.09 | O67: 98945394.66 | P67: 140246463.7 | S67: 3262 | U67: Činnost ostatních orgánů státní správy ve vzdělávání | X67: 0 | Y67: 0 | Z67: 0 | AA67: 0 | AB67: 0 | AC67: 0 | AD67: 0
A68: =IF(COUNTBLANK(C68:IV68)=254,"odstr",IF(AND($A$1="TISK",SUM(J60:P60)=0),"odstr","OK")) ->  | B68: OK | D68: Komentáře: | P68: Zdroj: Závěrečný účet – kapitola 700-Obce a DSO; KÚ (část: vzdělávání) | S68: 3269 | U68: Ostatní správa ve vzdělávání jinde nezařazená | X68: 18.265 | Z68: 18.265 | AA68: 31972.08165 | AB68: 500 | AC68: 32472.08165 | AD68: =Z68+AC68 -> 32490.34665
D69: 1) | E69: Tabulka neobsahuje z daných tříd následující položky: 5321, 5323, 5329, 5344, 5345, 5349, 5366, 5367, 5641, 5642, 5649, 6341, 6342, 6349, 6441, 6442, 6449. | S69: 328 | U69: Výzkum školství a vzdělávání | X69: =SUM(X70) -> 863.82983 | Y69: =SUM(Y70) -> 0 | Z69: 863.82983 | AA69: 1000 | AB69: 0 | AC69: 1000 | AD69: =AD70 -> 1863.82983
A70: =IF(COUNTBLANK(C70:IV70)=254,"odstr",IF(AND($A$1="TISK",SUM(J61:P61)=0),"odstr","OK")) ->  | B70: OK | S70: 3280 | U70: Výzkum školství a vzdělávání | X70: 863.82983 | Y70: 0 | Z70: 863.82983 | AA70: 1000 | AB70: 0 | AC70: 1000 | AD70: =Z70+AC70 -> 1863.82983
S71: 329 | U71: Ostatní činnost a nespecifikované výdaje | X71: =SUM(X72:X76) -> 435863.2385 | Y71: =SUM(Y72:Y76) -> 46538.25551 | Z71: 482401.494 | AA71: 736666.8388 | AB71: 380265.2203 | AC71: 1116932.059 | AD71: 1599333.553
A72: =IF(COUNTBLANK(C72:IV72)=254,"odstr",IF(AND($A$1="TISK",SUM(J62:P62)=0),"odstr","OK")) ->  | B72: OK | S72: 3291 | U72: Mezinárodní spolupráce ve vzdělávání | X72: 2669.10205 | Y72: 0 | Z72: 2669.10205 | AA72: 1291.4232 | AB72: 0 | AC72: 1291.4232 | AD72: =Z72+AC72 -> 3960.52525
B73: OK | S73: 3292 | U73: Vzdělávání národnostních menšin a multikulturní výchova | X73: 4400.60895 | Y73: 0 | Z73: 4400.60895 | AA73: 1861.963 | AB73: 0 | AC73: 1861.963 | AD73: =Z73+AC73 -> 6262.57195
B74: OK | S74: 3293 | U74: Vzdělávací akce k integraci Romů | X74: 0 | Y74: 0 | Z74: 0 | AA74: 1203.554 | AB74: 0 | AC74: 1203.554 | AD74: =Z74+AC74 -> 1203.554
S75: 3294 | U75: Zařízení pro další vzdělávání pedagogických pracovníků | X75: 50 | Y75: 0 | Z75: 50 | AA75: 57408.39291 | AB75: 150.392 | AC75: 57558.78491 | AD75: =Z75+AC75 -> 57608.78491
B76: OK | S76: 3299 | U76: Ostatní záležitosti vzdělávání | X76: 428743.5275 | Y76: 46538.25551 | Z76: 475281.783 | AA76: 674901.5057 | AB76: 380114.8283 | AC76: 1055016.334 | AD76: =Z76+AC76 -> 1530298.117
B77: OK | S77: Celkem kapitola 700-Obce a DSO; KÚ (část vzdělávání)1) | X77: 35676406.32 | Y77: 14056598.28 | Z77: 49733004.6 | AA77: 109788985.3 | AB77: 6192138.759 | AC77: 115981124.1 | AD77: 165714128.7
A78: konst | B78: stop | AD78: Zdroj: Závěrečný účet – kapitola 700-Obce a DSO; KÚ (část: vzdělávání); monitor.statnipokladna.cz
A79: stop

Sheet B10
A1: =IF(#REF!="","ŠABLONA",IF(#REF!="T","TISK","ELEKTRO")) ->  | B1: 0 | C1: =CONCATENATE(D1,F1,IF(G1<>"",".",""),G1,IF(H1<>"",".",""),H1,IF(I1<>"",".",""),I1,"") ->  | D1: =IF(#REF!=""," ?",#REF!) ->  | E1: =CONCATENATE(C1,Q1) ->  | F1: 10
A2: konst
A3: konst | B3: 70x8 | D3: Tab. B10: | H3: Výdaje kapitol 333-MŠMT a 700-Obce a DSO; KÚ (vzdělávání) – podle paragrafů | S3: Tab. B10: | V3: Výdaje kapitol 333-MŠMT a 700-Obce a DSO; KÚ (vzdělávání) - podle paragrafů
A4: konst | B4: =COUNTA(Datova_oblast) -> 588 | D4: =IF(D1=" ?","",CONCATENATE("Tab. ",E1,":")) ->  | H4: =IF(H3="Zadejte název tabulky","",H3) -> Výdaje kapitol 333-MŠMT a 700-Obce a DSO; KÚ (vzdělávání) – podle paragrafů | S4: =IF(S1=" ?","",CONCATENATE("Tab. ",T1,":")) -> Tab. :
A5: =IF(D5="","odstr","OK") -> odstr | B5: 0
A6: =IF(COUNTBLANK(C6:IU6)=254,"odstr","OK") -> OK | B6: Řádky pro
A7: =IF(COUNTBLANK(C7:IU7)=254,"odstr","OK") -> OK | B7: ročenku PaM
A8: konst | D8: (podle stavu k: 31. 12. 2017) | S8: (podle stavu k: 31. 12. 2018) | AE8: v tis. Kč
A9: konst | D9: Paragraf | G9: Název | J9: Kapitola 333-MŠMT | L9: Transfery z kapitoly 333-MŠMT | N9: Kapitola 700-Obce a DSO; KÚ (vzdělávání)1),2) | P9: Celkem | S9: Paragraf | V9: Název | X9: Kapitola 333-MŠMT | Z9: Transfery z kapitoly 333-MŠMT | AB9: Kapitola 700-Obce a DSO; KÚ (vzdělávání)1),2) | AD9: Celkem
A10: konst
A11: konst
A12: konst
A13: konst | B13: nebo odstr | J13: v tis. Kč | K13: % z cel. výdajů | L13: v tis. Kč | M13: % z cel. výdajů | N13: v tis. Kč | O13: % z cel. výdajů | P13: v tis. Kč | Q13: % z cel. výdajů | X13: v tis. Kč | Y13: % z cel. výdajů | Z13: v tis. Kč | AA13: % z cel. výdajů | AB13: v tis. Kč | AC13: % z cel. výdajů | AD13: v tis. Kč | AE13: % z cel. výdajů
A14: =IF(COUNTBLANK(C14:IU14)=254,"odstr",IF(AND($A$1="TISK",SUM(J14:Q14)=0),"odstr","OK")) ->  | B14: OK | E14: SKUPINA 3 – služby pro obyvatelstvo | J14: 157370213.1 | K14: 0.9991033863 | L14: -106424970.8 | M14: -0.9998919027 | N14: 142567169.8 | O14: 1 | P14: 193512412.1 | Q14: 0.9993300972 | T14: SKUPINA 3 – služby pro obyvatelstvo | X14: 187415570.9 | Y14: =X14/X104 -> 1 | Z14: =SUM(Z15,Z77,Z80,Z86,Z89) -> -121416404.7 | AA14: =-Z14/Z104 -> -0.9999895807 | AB14: =AB15+AB77+AB80+AB86+AB89+AB94+AB99 -> 177886511.4 | AC14: =AB14/AB104 -> 1 | AD14: =SUM(AD15,AD77,AD80,AD86,AD89) -> 243710485.8 | AE14: =AD14/AD104 -> 0.9992868472
A15: =IF(COUNTBLANK(C15:IU15)=254,"odstr",IF(AND($A$1="TISK",SUM(J15:Q15)=0),"odstr","OK")) ->  | B15: OK | G15: 31–32 – vzdělávání | J15: 145784199.9 | K15: 0.9255467402 | L15: -106254453.3 | M15: -0.9982898439 | N15: 140246463.7 | O15: 0.9837220166 | P15: 179776210.3 | Q15: 0.9283940796 | V15: 31–32 – vzdělávání a školské služby | X15: 174969921.7 | Y15: 0.93359 | Z15: =Z16+Z25+Z35+Z40+Z50+Z52+Z57+Z60+Z65+Z69+Z71 -> -120882985.4 | AA15: =-Z15/Z104 -> -0.9955963215 | AB15: 165714128.7 | AC15: =AB15/AB104 -> 0.9315721996 | AD15: =AD16+AD25+AD35+AD40+AD50+AD52+AD57+AD60+AD65+AD69+AD71 -> 219801065 | AE15: =AD15/AD104 -> 0.9012509765
T16: 311 | V16: Předškolní a základní vzdělávání | X16: 3423650.858 | Y16: 0.01826 | Z16: =Z17+Z18+Z19+Z20 -> -2259540.097 | AA16: =-Z16/Z104 -> -0.01860964802 | AB16: 105402132.9 | AC16: =AB16/AB104 -> 0.592524594 | AD16: =SUM(AD17:AD24) -> 106566243.6 | AE16: =AD16/AD104 -> 0.4369538934
A17: =IF(COUNTBLANK(C17:IU17)=254,"odstr",IF(AND($A$1="TISK",SUM(J17:Q17)=0),"odstr","OK")) ->  | B17: OK | E17: 3111 | G17: Mateřské školy | J17: 632221.1676 | K17: 0.004013811108 | L17: -515762.8984 | M17: -0.004845734437 | N17: 20961534.79 | O17: 0.1470291851 | P17: 21077993.06 | Q17: 0.1088502418 | T17: 3111 | V17: Mateřské školy | X17: 671543.5316 | Y17: 0.00358 | Z17: -537128.8284 | AA17: =-Z17/Z104 -> -0.004423811044 | AB17: 24190414.83 | AC17: =AB17/AB104 -> 0.1359879096 | AD17: 24324829.5 | AE17: =AD17/AD104 -> 0.09973917249
B18: OK | E18: 3112 | G18: Mateřské školy pro děti se speciálními vzdělávacími potřebami | J18: 36864.961 | K18: 0.0002340462445 | L18: -3858.2812 | M18: -3.624961419e-05 | N18: 397377.5514 | O18: 0.002787300554 | P18: 430384.2312 | Q18: 0.002222575342 | T18: 3112 | V18: Mateřské školy pro děti se speciálními vzdělávacími potřebami | X18: 50270.031 | Y18: =X18/X104 -> 0.0002682276119 | Z18: -6695.7218 | AA18: =-Z18/Z104 -> -5.514618929e-05 | AB18: 476660.2972 | AC18: =AB18/AB104 -> 0.002679575272 | AD18: 520234.6 | AE18: =AD18/AD104 -> 0.002133119515
B19: OK | E19: 3113 | G19: Základní školy | J19: 2087243.052 | K19: 0.01325137433 | L19: -1701039.877 | M19: -0.015981738 | N19: 57584891.64 | O19: 0.403914111 | P19: 57971094.82 | Q19: 0.2993723203 | T19: 3113 | V19: Základní školy | X19: 2133094.373 | Y19: =X19/X104 -> 0.01138162834 | Z19: -1677670.265 | AA19: =-Z19/Z104 -> -0.01381734856 | AB19: 67941717.87 | AC19: =AB19/AB104 -> 0.3819385593 | AD19: 68397142 | AE19: =AD19/AD104 -> 0.2804490097
B20: OK | E20: 3114 | G20: Základní školy pro žáky se speciálními vzdělávacími potřebami | J20: 487601.7055 | K20: 0.003095658991 | L20: -44914.82749 | M20: -0.0004219871708 | N20: 4616960.105 | O20: 0.03238445508 | P20: 5059646.983 | Q20: 0.02612885373 | T20: 3114 | V20: Základní školy pro žáky se speciálními vzdělávacími potřebami | X20: 568742.9222 | Y20: =X20/X104 -> 0.003034662059 | Z20: -38045.282 | AA20: =-Z20/Z104 -> -0.0003133422184 | AB20: 5153387.009 | AC20: =AB20/AB104 -> 0.02897008305 | AD20: 5684084.6 | AE20: =AD20/AD104 -> 0.0233064694
E21: 3115 | G21: Ostatní záležitosti předškolního vzdělávání | J21: 0 | K21: 0 | L21: 0 | M21: 0 | N21: 20956.47962 | O21: 0.0001469937269 | P21: 20956.47962 | Q21: 0.0001082227263 | T21: 3115 | V21: Ostatní záležitosti předškolního vzdělávání | X21: 0 | Y21: 0 | Z21: 0 | AA21: =Z21/Z104 -> 0 | AB21: 46378.2666 | AC21: =AB21/AB104 -> 0.0002607182874 | AD21: 46378.2666 | AE21: =AD21/AD104 -> 0.0001901649478
B22: OK | E22: 3117 | G22: První stupeň základních škol | J22: 0 | K22: 0 | L22: 0 | M22: 0 | N22: 5788360.424 | O22: 0.04060093522 | P22: 5788360.424 | Q22: 0.02989205044 | T22: 3117 | V22: První stupeň základních škol | X22: 0 | Y22: 0 | Z22: 0 | AA22: =Z22/Z104 -> 0 | AB22: 6773116.062 | AC22: =AB22/AB104 -> 0.03807548987 | AD22: 6773116.062 | AE22: =AD22/AD104 -> 0.02777182842
B23: OK | E23: 3118 | G23: Druhý stupeň základních škol | J23: 0 | K23: 0 | L23: 0 | M23: 0 | N23: 20365.93075 | O23: 0.0001428514768 | P23: 20365.93075 | Q23: 0.0001051730343 | T23: 3118 | V23: Druhý stupeň základních škol | X23: 0 | Y23: 0 | Z23: 0 | AA23: =Z23/Z104 -> 0 | AB23: 54841.71585 | AC23: =AB23/AB104 -> 0.0003082960896 | AD23: 54841.71585 | AE23: =AD23/AD104 -> 0.0002248676545
B24: OK | E24: 3119 | G24: Ostatní záležitosti základního vzdělávání | J24: 0 | K24: 0 | L24: 0 | M24: 0 | N24: 557875.32 | O24: 0.003913070035 | P24: 557875.32 | Q24: 0.002880960408 | T24: 3119 | V24: Ostatní záležitosti základního vzdělávání | X24: 0 | Y24: 0 | Z24: 0 | AA24: =Z24/Z104 -> 0 | AB24: 765616.8882 | AC24: =AB24/AB104 -> 0.004303962578 | AD24: 765616.8882 | AE24: =AD24/AD104 -> 0.003139261259
T25: 312 | V25: Střední vzdělávání a vzdělávání v konzervatořích | X25: 1473101.279 | Y25: =X25/X104 -> 0.00786007946 | Z25: =SUM(Z26:Z34) -> -469714.0329 | AA25: =-Z25/Z104 -> -0.003868580527 | AB25: 40957851.82 | AC25: =AB25/AB104 -> 0.2302470913 | AD25: =SUM(AD26:AD34) -> 41961239.03 | AE25: =AD25/AD104 -> 0.1720537962
A26: =IF(COUNTBLANK(C26:IU26)=254,"odstr",IF(AND($A$1="TISK",SUM(J26:Q26)=0),"odstr","OK")) ->  | B26: OK | E26: 3121 | G26: Gymnázia | J26: 514593.0488 | K26: 0.003267020152 | L26: -120566.098 | M26: -0.001132751687 | N26: 7927899.258 | O26: 0.05560816891 | P26: 8321926.209 | Q26: 0.04297580313 | T26: 3121 | V26: Gymnázia | X26: 558261.8079 | Y26: =X26/X104 -> 0.0029787376 | Z26: -135430.7623 | AA26: =-Z26/Z104 -> -0.0011154123 | AB26: 9459150.215 | AC26: =AB26/AB104 -> 0.05317519659 | AD26: 9881981.2 | AE26: =AD26/AD104 -> 0.04051911761
B27: OK | E27: 3122 | G27: Střední odborné školy | J27: 335334.9698 | K27: 0.002128956282 | L27: -156222.0684 | M27: -0.001467749346 | N27: 12204566.65 | O27: 0.08560573008 | P27: 12383679.56 | Q27: 0.0639513691 | T27: 3122 | V27: Střední odborné školy | X27: 328133.8854 | Y27: =X27/X104 -> 0.00175083577 | Z27: -136342.5424 | AA27: =-Z27/Z104 -> -0.001122921752 | AB27: 15166826.98 | AC27: =AB27/AB104 -> 0.08526125372 | AD27: 15358618.4 | AE27: =AD27/AD104 -> 0.06297498981
B28: OK | E28: 3123 | G28: Střední školy poskytující střední vzdělání s výučním listem | J28: 114483.5417 | K28: 0.0007268268369 | L28: -87766.10313 | M28: -0.0008245867039 | N28: 7985768.222 | O28: 0.05601407557 | P28: 8012485.661 | Q28: 0.04137780097 | T28: 3123 | V28: Střední školy poskytující střední vzdělání s výučním listem | X28: 128779.2748 | Y28: =X28/X104 -> 0.0006871322068 | Z28: -95992.66061 | AA28: =-Z28/Z104 -> -0.000790598772 | AB28: 9273755.59 | AC28: =AB28/AB104 -> 0.05213298927 | AD28: 9306542.2 | AE28: =AD28/AD104 -> 0.03815964333
B29: OK | E29: 3124 | G29: Střední školy a konzervatoře pro žáky se speciálními vzdělávacími potřebami | J29: 309763.2582 | K29: 0.001966608001 | L29: -5215.5816 | M29: -4.900182516e-05 | N29: 1111936.312 | O29: 0.007799385468 | P29: 1416483.989 | Q29: 0.00731495756 | T29: 3124 | V29: Střední školy a konzervatoře pro žáky se speciálními vzdělávacími potřebami | X29: 320529.5966 | Y29: =X29/X104 -> 0.001710261293 | Z29: -6987.184 | AA29: =-Z29/Z104 -> -5.754668174e-05 | AB29: 1208732.268 | AC29: =AB29/AB104 -> 0.006794963025 | AD29: 1522274.7 | AE29: =AD29/AD104 -> 0.006241787589
B30: OK | E30: 3125 | G30: Střediska praktického vyučování a školní hospodářství | J30: 0 | K30: 0 | L30: 0 | M30: 0 | N30: 89728.66962 | O30: 0.0006293782065 | P30: 89728.66962 | Q30: 0.0004633736883 | T30: 3125 | V30: Střediska praktického vyučování a školní hospodářství | X30: 0 | Y30: 0 | Z30: 0 | AA30: =-Z30/Z104 -> 0 | AB30: 142668.6898 | AC30: =AB30/AB104 -> 0.0008020208428 | AD30: =AB30 -> 142668.6898 | AE30: =AD30/AD104 -> 0.0005849848634
B31: OK | E31: 3126 | G31: Konzervatoře | J31: 37237.4666 | K31: 0.0002364111876 | L31: -462.3384 | M31: -4.343796565e-06 | N31: 707354.552 | O31: 0.004961552882 | P31: 744129.6802 | Q31: 0.003842808725 | T31: 3126 | V31: Konzervatoře | X31: 44188.8344 | Y31: =X31/X104 -> 0.0002357799525 | Z31: -1753.0036 | AA31: =-Z31/Z104 -> -1.443779644e-05 | AB31: 836703.4009 | AC31: =AB31/AB104 -> 0.004703579796 | AD31: 879139.2 | AE31: =AD31/AD104 -> 0.00360473714
E32: 3127 | G32: Střední školy | J32: 0 | K32: 0 | L32: 0 | M32: 0 | N32: 3893086.01 | O32: 0.02730703019 | P32: 3893086.01 | Q32: 0.02010453995 | T32: 3127 | V32: Střední školy | X32: 0 | Y32: 0 | Z32: 0 | AA32: =-Z32/Z104 -> 0 | AB32: 4750308.533 | AC32: =AB32/AB104 -> 0.02670415253 | AD32: =AB32 -> 4750308.533 | AE32: =AD32/AD104 -> 0.01947770455
B33: OK | E33: 3128 | G33: Sportovní školy - gymnázia | J33: 82999.92 | K33: 0.0005269453443 | L33: -82999.92 | M33: -0.0007798071011 | N33: 97972.33694 | O33: 0.0006872012476 | P33: 97972.33694 | Q33: 0.0005059453495 | T33: 3128 | V33: Sportovní školy - gymnázia | X33: 93207.88 | Y33: =X33/X104 -> 0.0004973326366 | Z33: -93207.88 | AA33: =-Z33/Z104 -> -0.0007676632255 | AB33: 119162.735 | AC33: =AB33/AB104 -> 0.0006698806675 | AD33: 119162.7 | AE33: =AD33/AD104 -> 0.0004886031818
B34: OK | E34: 3129 | G34: Ostatní zařízení středního vzdělávání | J34: 0 | K34: 0 | L34: 0 | M34: 0 | N34: 82.2691 | O34: 5.770550129e-07 | P34: 82.2691 | Q34: 4.248512372e-07 | T34: 3129 | V34: Ostatní zařízení středního vzdělávání | X34: 0 | Y34: 0 | Z34: 0 | AA34: =-Z34/Z104 -> 0 | AB34: 543.41 | AC34: =AB34/AB104 -> 3.054812845e-06 | AD34: =AB34 -> 543.41 | AE34: =AD34/AD104 -> 2.228145678e-06
T35: 313 | V35: Školská zařízení pro výkon ústavní a ochranné výchovy | X35: 1542794.196 | Y35: =X35/X104 -> 0.008231942461 | Z35: =Z36 -> -673.1436 | AA35: =-Z35/Z104 -> -5.544033264e-06 | AB35: 2028995.31 | AC35: =AB35/AB104 -> 0.01140612233 | AD35: =SUM(AD36:AD39) -> 3571116.433 | AE35: =AD35/AD104 -> 0.01464265959
A36: =IF(COUNTBLANK(C36:IU36)=254,"odstr",IF(AND($A$1="TISK",SUM(J36:Q36)=0),"odstr","OK")) ->  | B36: OK | E36: 3131 | G36: Výchovné ústavy a dětské domovy se školou | J36: 890553.3437 | K36: 0.005653896273 | L36: -280.0464 | M36: -2.631113034e-06 | N36: 62.6726 | O36: 4.396005062e-07 | P36: 890335.9699 | Q36: 0.004597842182 | T36: 3131 | V36: Výchovné ústavy a dětské domovy se školou | X36: 1007022.318 | Y36: =X36/X104 -> 0.005373205188 | Z36: -673.1436 | AA36: =-Z36/Z104 -> -5.544033264e-06 | AB36: 134.8546 | AC36: =AB36/AB104 -> 7.580934549e-07 | AD36: 1006484.1 | AE36: =AD36/AD104 -> 0.004126889821
A37: =IF(COUNTBLANK(C37:IU37)=254,"odstr",IF(AND($A$1="TISK",SUM(J37:Q37)=0),"odstr","OK")) ->  | B37: OK | E37: 3132 | G37: Diagnostické ústavy | J37: 331675.3122 | K37: 0.002105722049 | L37: 0 | M37: 0 | N37: 0 | O37: 0 | P37: 331675.3122 | Q37: 0.001712826161 | T37: 3132 | V37: Diagnostické ústavy | X37: 369155.2029 | Y37: =X37/X104 -> 0.001969714689 | Z37: 0 | AA37: =-Z37/Z104 -> 0 | AB37: 0 | AC37: =AB37/AB104 -> 0 | AD37: =X37 -> 369155.2029 | AE37: =AD37/AD104 -> 0.001513648203
A38: =IF(COUNTBLANK(C38:IU38)=254,"odstr",IF(AND($A$1="TISK",SUM(J38:Q38)=0),"odstr","OK")) ->  | E38: 3133 | G38: Dětské domovy | J38: 32072.405 | K38: 0.0002036195275 | L38: 0 | M38: 0 | N38: 1834610.652 | O38: 0.01286839498 | P38: 1866683.057 | Q38: 0.009639859997 | T38: 3133 | V38: Dětské domovy | X38: 21387.015 | Y38: =X38/X104 -> 0.0001141154649 | Z38: 0 | AA38: =-Z38/Z104 -> 0 | AB38: 2028850.455 | AC38: =AB38/AB104 -> 0.01140530802 | AD38: =X38+AB38 -> 2050237.47 | AE38: =AD38/AD104 -> 0.008406594943
A39: =IF(COUNTBLANK(C39:IU39)=254,"odstr",IF(AND($A$1="TISK",SUM(J39:Q39)=0),"odstr","OK")) ->  | B39: OK | E39: 3139 | G39: Ostatní školská zařízení pro výkon ústavní a ochranné výchovy | J39: 127843.736 | K39: 0.0008116473063 | L39: 0 | M39: 0 | N39: 10 | O39: 7.014237581e-08 | P39: 127853.736 | Q39: 0.0006602578357 | T39: 3139 | V39: Ostatní školská zařízení pro výkon ústavní a ochranné výchovy | X39: 145229.66 | Y39: =X39/X104 -> 0.0007749071186 | Z39: 0 | AA39: =-Z39/Z104 -> 0 | AB39: 10 | AC39: =AB39/AB104 -> 5.621561703e-08 | AD39: =X39+AB39 -> 145239.66 | AE39: =AD39/AD104 -> 0.0005955266203
T40: 314 | V40: Ostatní zařízení související s výchovou a vzděláváním mládeže | X40: 811207.6524 | Y40: =X40/X104 -> 0.004328389838 | Z40: =Z41+Z42+Z43+Z44+Z45+Z46+Z47+Z48+Z49 -> -5604.2554 | AA40: =-Z40/Z104 -> -4.615683542e-05 | AB40: 8267386.113 | AC40: =AB40/AB104 -> 0.04647562116 | AD40: =SUM(AD41:AD49) -> 9072989.482 | AE40: =AD40/AD104 -> 0.03720200641
A41: =IF(COUNTBLANK(C41:IU41)=254,"odstr",IF(AND($A$1="TISK",SUM(J41:Q41)=0),"odstr","OK")) ->  | B41: OK | E41: 3141 | G41: Školní stravování | J41: 199275.971 | K41: 0.001265152366 | L41: 0 | M41: 0 | N41: 3561487.846 | O41: 0.02498112189 | P41: 3760763.817 | Q41: 0.01942120626 | T41: 3141 | V41: Školní stravování | X41: 220909.901 | Y41: =X41/X104 -> 0.001178716902 | Z41: 0 | AA41: =-Z41/Z104 -> 0 | AB41: 4121044.388 | AC41: =AB41/AB104 -> 0.02316670531 | AD41: =X41+AB41 -> 4341954.289 | AE41: =AD41/AD104 -> 0.0178033284
T42: 3142 | V42: Ostatní školní stravování | X42: 0 | Y42: =X42/X104 -> 0 | Z42: 0 | AA42: =-Z42/Z104 -> 0 | AB42: 0 | AC42: =AB42/AB104 -> 0 | AD42: 0 | AE42: =AD42/AD104 -> 0
A43: =IF(COUNTBLANK(C43:IU43)=254,"odstr",IF(AND($A$1="TISK",SUM(J43:Q43)=0),"odstr","OK")) ->  | B43: OK | E43: 3143 | G43: Školní družiny a kluby | J43: 108720.727 | K43: 0.0006902401945 | L43: 0 | M43: 0 | N43: 1643294.6 | O43: 0.01152645874 | P43: 1752015.327 | Q43: 0.009047696878 | T43: 3143 | V43: Školní družiny a kluby | X43: 128792.747 | Y43: =X43/X104 -> 0.0006872040909 | Z43: -194.814 | AA43: =-Z43/Z104 -> -1.604494637e-06 | AB43: 1889560.958 | AC43: =AB43/AB104 -> 0.01062228352 | AD43: 2018158.9 | AE43: =AD43/AD104 -> 0.008275063085
B44: OK | E44: 3144 | G44: Školy v přírodě | J44: 0 | K44: 0 | L44: 0 | M44: 0 | N44: 19011.333 | O44: 0.0001333500064 | P44: 19011.333 | Q44: 9.81776675e-05 | T44: 3144 | V44: Školy v přírodě | X44: 0 | Y44: 0 | Z44: 0 | AA44: =-Z44/Z104 -> 0 | AB44: 19762.80948 | AC44: =AB44/AB104 -> 0.0001110978529 | AD44: =AB44 -> 19762.80948 | AE44: =AD44/AD104 -> 8.103350791e-05
B45: OK | E45: 3145 | G45: Internáty | J45: 66352.792 | K45: 0.0004212569702 | L45: 0 | M45: 0 | N45: 72203.76778 | O45: 0.0005064543814 | P45: 138556.5598 | Q45: 0.0007155289877 | T45: 3145 | V45: Internáty | X45: 73378.255 | Y45: =X45/X104 -> 0.0003915269935 | Z45: 0 | AA45: =-Z45/Z104 -> 0 | AB45: 76813.797 | AC45: =AB45/AB104 -> 0.0004318134995 | AD45: =X45+AB45 -> 150192.052 | AE45: =AD45/AD104 -> 0.0006158329283
B46: OK | E46: 3146 | G46: Zařízení výchovného poradenství | J46: 50637.399 | K46: 0.0003214839442 | L46: 0 | M46: 0 | N46: 856048.89 | O46: 0.006004530295 | P46: 906686.289 | Q46: 0.004682277934 | T46: 3146 | V46: Zařízení výchovného poradenství | X46: 56661.134 | Y46: =X46/X104 -> 0.0003023288499 | Z46: 0 | AA46: =-Z46/Z104 -> 0 | AB46: 973608.5375 | AC46: =AB46/AB104 -> 0.005473200468 | AD46: =X46+AB46 -> 1030269.671 | AE46: =AD46/AD104 -> 0.004224417872
B47: OK | E47: 3147 | G47: Domovy mládeže | J47: 48663.65 | K47: 0.0003089531147 | L47: 0 | M47: 0 | N47: 634976.9935 | O47: 0.004453879491 | P47: 683640.6435 | Q47: 0.003530433336 | T47: 3147 | V47: Domovy mládeže | X47: 56607.865 | Y47: =X47/X104 -> 0.0003020446206 | Z47: 0 | AA47: =-Z47/Z104 -> 0 | AB47: 748343.6248 | AC47: =AB47/AB104 -> 0.004206859862 | AD47: =X47+AB47 -> 804951.4898 | AE47: =AD47/AD104 -> 0.003300545045
B48: OK | E48: 3148 | G48: Střediska výchovné péče | J48: 249092.187 | K48: 0.001581422828 | L48: 0 | M48: 0 | N48: 18846.085 | O48: 0.0001321909177 | P48: 267938.272 | Q48: 0.001383677545 | T48: 3148 | V48: Střediska výchovné péče | X48: 269448.309 | Y48: =X48/X104 -> 0.00143770503 | Z48: 0 | AA48: =-Z48/Z104 -> 0 | AB48: 22957.16081 | AC48: =AB48/AB104 -> 0.000129055096 | AD48: =X48+AB48 -> 292405.4698 | AE48: =AD48/AD104 -> 0.001198951039
B49: OK | E49: 3149 | G49: Ostatní zařízení související s výchovou a vzděláváním mládeže | J49: 0 | K49: 0 | L49: 0 | M49: 0 | N49: 612358.9568 | O49: 0.004295231207 | P49: 612358.9568 | Q49: 0.003162322918 | T49: 3149 | V49: Ostatní zařízení související s výchovou a vzděláváním mládeže | X49: 5409.4414 | Y49: =X49/X104 -> 2.886335097e-05 | Z49: -5409.4414 | AA49: =-Z49/Z104 -> -4.455234078e-05 | AB49: 415294.8369 | AC49: =AB49/AB104 -> 0.00233460555 | AD49: 415294.8 | AE49: =AD49/AD104 -> 0.001702834533
T50: 315 | V50: Vyšší odborné vzdělávání | X50: 214347.6516 | Y50: =X50/X104 -> 0.001143702471 | Z50: =Z51 -> -90851.081 | AA50: =-Z50/Z104 -> -0.0007482525499 | AB50: 598265.4976 | AC50: =AB50/AB104 -> 0.00336318641 | AD50: =AD51 -> 721762.1 | AE50: =AD50/AD104 -> 0.002959443337
A51: =IF(COUNTBLANK(C51:IU51)=254,"odstr",IF(AND($A$1="TISK",SUM(J51:Q51)=0),"odstr","OK")) ->  | B51: OK | E51: 3150 | G51: Vyšší odborné školy | J51: 105887.0906 | K51: 0.000672250159 | L51: -37848.165 | M51: -0.0003555939311 | N51: 414761.6833 | O51: 0.002909236986 | P51: 482800.6089 | Q51: 0.002493262185 | T51: 3150 | V51: Vyšší odborné školy | X51: 214347.6516 | Y51: =X51/X104 -> 0.001143702471 | Z51: -90851.081 | AA51: =-Z51/Z104 -> -0.0007482525499 | AB51: 598265.4976 | AC51: =AB51/AB104 -> 0.00336318641 | AD51: 721762.1 | AE51: =AD51/AD104 -> 0.002959443337
T52: 321 | V52: Vysokoškolské vzdělávání | X52: 46001484 | Y52: =X52/X104 -> 0.2454517722 | Z52: =SUM(Z53:Z56) -> 0 | AA52: =-Z52/Z104 -> 0 | AB52: 15913.12137 | AC52: =AB52/AB104 -> 8.945659367e-05 | AD52: =SUM(AD53:AD56) -> 46017397.13 | AE52: =AD52/AD104 -> 0.1886852736
A53: =IF(COUNTBLANK(C53:IU53)=254,"odstr",IF(AND($A$1="TISK",SUM(J53:Q53)=0),"odstr","OK")) ->  | B53: OK | E53: 3211 | G53: Vysoké školy | J53: 22625790.36 | K53: 0.1436453781 | L53: 0 | M53: 0 | N53: 6834.833 | O53: 4.794114249e-05 | P53: 22632625.19 | Q53: 0.1168786192 | T53: 3211 | V53: Vysoké školy | X53: 31139822.96 | Y53: =X53/X104 -> 0.166153873 | Z53: 0 | AA53: =-Z53/Z104 -> 0 | AB53: 13343.15262 | AC53: =AB53/AB104 -> 7.500935577e-05 | AD53: =X53+AB53 -> 31153166.11 | AE53: =AD53/AD104 -> 0.1277374219
A54: =IF(COUNTBLANK(C54:IU54)=254,"odstr",IF(AND($A$1="TISK",SUM(J54:Q54)=0),"odstr","OK")) ->  | B54: OK | E54: 3212 | G54: Výzkum, vývoj a inovace na vysokých školách | J54: 9852317.952 | K54: 0.06254985638 | L54: 0 | M54: 0 | N54: 3920.7 | O54: 2.750072128e-05 | P54: 9856238.652 | Q54: 0.05089924631 | T54: 3212 | V54: Výzkum, vývoj a inovace na vysokých školách | X54: 14861661.04 | Y54: =X54/X104 -> 0.07929789917 | Z54: 0 | AA54: =-Z54/Z104 -> 0 | AB54: 2436.96875 | AC54: =AB54/AB104 -> 1.36995702e-05 | AD54: =X54+AB54 -> 14864098.01 | AE54: =AD54/AD104 -> 0.06094730635
A55: =IF(COUNTBLANK(C55:IU55)=254,"odstr",IF(AND($A$1="TISK",SUM(J55:Q55)=0),"odstr","OK")) ->  | B55: OK | E55: 3213 | G55: Bakalářské studium | J55: 0 | K55: 0 | L55: 0 | M55: 0 | N55: 604 | O55: 4.236599499e-06 | P55: 604 | Q55: 3.119155883e-06 | T55: 3213 | V55: Bakalářské studium | X55: 0 | Y55: 0 | Z55: 0 | AA55: =-Z55/Z104 -> 0 | AB55: 85 | AC55: =AB55/AB104 -> 4.778327448e-07 | AD55: =X55+AB55 -> 85 | AE55: =AD55/AD104 -> 3.485257589e-07
A56: =IF(COUNTBLANK(C56:IU56)=254,"odstr",IF(AND($A$1="TISK",SUM(J56:Q56)=0),"odstr","OK")) ->  | B56: OK | E56: 3214 | G56: Magisterské a doktorské studium | J56: 0 | K56: 0 | L56: 0 | M56: 0 | N56: 50 | O56: 3.50711879e-07 | P56: 50 | Q56: 2.582082684e-07 | T56: 3214 | V56: Magisterské a doktorské studium | X56: 0 | Y56: 0 | Z56: 0 | AA56: =-Z56/Z104 -> 0 | AB56: 48 | AC56: =AB56/AB104 -> 2.698349618e-07 | AD56: =X56+AB56 -> 48 | AE56: =AD56/AD104 -> 1.968145462e-07
T57: 322 | V57: Zařízení související s vysokoškolským vzděláváním | X57: 122900 | Y57: =X57/X104 -> 0.0006557619488 | Z57: =SUM(Z58:Z59) -> 0 | AA57: =-Z57/Z104 -> 0 | AB57: 4733.922 | AC57: =AB57/AB104 -> 2.661203462e-05 | AD57: =SUM(AD58:AD59) -> 127633.922 | AE57: =AD57/AD104 -> 0.0005233377591
A58: =IF(COUNTBLANK(C58:IU58)=254,"odstr",IF(AND($A$1="TISK",SUM(J58:Q58)=0),"odstr","OK")) ->  | B58: OK | E58: 3221 | G58: Vysokoškolské koleje a menzy | J58: 129947 | K58: 0.0008250003935 | L58: 0 | M58: 0 | N58: 0 | O58: 0 | P58: 129947 | Q58: 0.0006710677972 | T58: 3221 | V58: Vysokoškolské koleje a menzy | X58: 122900 | Y58: =X58/X104 -> 0.0006557619488 | Z58: 0 | AA58: =-Z58/Z104 -> 0 | AB58: 0 | AC58: =AB58/AB104 -> 0 | AD58: =X58+AB58 -> 122900 | AE58: =AD58/AD104 -> 0.0005039272444
A59: =IF(COUNTBLANK(C59:IU59)=254,"odstr",IF(AND($A$1="TISK",SUM(J59:Q59)=0),"odstr","OK")) ->  | B59: OK | E59: 3229 | G59: Ostatní zařízení související s vysokoškolským vzděláváním | J59: 0 | K59: 0 | L59: 0 | M59: 0 | N59: 3027.981 | O59: 2.123897812e-05 | P59: 3027.981 | Q59: 1.563699462e-05 | T59: 3229 | V59: Ostatní zařízení související s vysokoškolským vzděláváním | X59: 0 | Y59: 0 | Z59: 0 | AA59: =-Z59/Z104 -> 0 | AB59: 4733.922 | AC59: =AB59/AB104 -> 2.661203462e-05 | AD59: =X59+AB59 -> 4733.922 | AE59: =AD59/AD104 -> 1.94105148e-05
T60: 323 | V60: Základní umělecké, jazykové a zájmové vzdělávání | X60: 242744.1898 | Y60: =X60/X104 -> 0.001295218901 | Z60: =Z61+Z62+Z63+Z64 -> -89207.0988 | AA60: =-Z60/Z104 -> -0.0007347126573 | AB60: 6805162.245 | AC60: =AB60/AB104 -> 0.03825563946 | AD60: =SUM(AD61:AD64) -> 6958699.234 | AE60: =AD60/AD104 -> 0.02853277566
A61: =IF(COUNTBLANK(C61:IU61)=254,"odstr",IF(AND($A$1="TISK",SUM(J61:Q61)=0),"odstr","OK")) ->  | B61: OK | E61: 3231 | G61: Základní umělecké školy | J61: 18015.727 | K61: 0.0001143772605 | L61: 0 | M61: 0 | N61: 4957731.797 | O61: 0.03477470869 | P61: 4975747.524 | Q61: 0.02569558305 | T61: 3231 | V61: Základní umělecké školy | X61: 79160.349 | Y61: =X61/X104 -> 0.0004223787203 | Z61: -51815.953 | AA61: =-Z61/Z104 -> -0.0004267579266 | AB61: 5732816.304 | AC61: =AB61/AB104 -> 0.03222738059 | AD61: 5760160.6 | AE61: =AD61/AD104 -> 0.02361840405
A62: =IF(COUNTBLANK(C62:IU62)=254,"odstr",IF(AND($A$1="TISK",SUM(J62:Q62)=0),"odstr","OK")) ->  | E62: 3232 | G62: Jazykové školy s právem státní jazykové zkoušky | J62: 0 | K62: 0 | L62: 0 | M62: 0 | N62: 1104.9 | O62: 7.750031103e-06 | P62: 1104.9 | Q62: 5.705886316e-06 | T62: 3232 | V62: Jazykové školy s právem státní jazykové zkoušky | X62: 0 | Y62: 0 | Z62: 0 | AA62: =-Z62/Z104 -> 0 | AB62: 30274.77 | AC62: =AB62/AB104 -> 0.0001701914876 | AD62: =X62+AB62 -> 30274.77 | AE62: =AD62/AD104 -> 0.0001241357316
A63: =IF(COUNTBLANK(C63:IU63)=254,"odstr",IF(AND($A$1="TISK",SUM(J63:Q63)=0),"odstr","OK")) ->  | E63: 3233 | G63: Střediska volného času | J63: 106034.5122 | K63: 0.0006731861012 | L63: -4472.5732 | M63: -4.202105666e-05 | N63: 854459.2476 | O63: 0.005993380166 | P63: 956021.1866 | Q63: 0.004937051504 | T63: 3233 | V63: Střediska volného času | X63: 163583.8408 | Y63: =X63/X104 -> 0.000872840181 | Z63: -37391.1458 | AA63: =-Z63/Z104 -> -0.0003079547307 | AB63: 1016252.107 | AC63: =AB63/AB104 -> 0.005712923925 | AD63: 1142444.8 | AE63: =AD63/AD104 -> 0.004684369893
A64: =IF(COUNTBLANK(C64:IU64)=254,"odstr",IF(AND($A$1="TISK",SUM(J64:Q64)=0),"odstr","OK")) ->  | B64: OK | E64: 3239 | G64: Záležitosti zájmového vzdělávání jinde nezařazené | J64: 0 | K64: 0 | L64: 0 | M64: 0 | N64: 4863.23387 | O64: 3.411187777e-05 | P64: 4863.23387 | Q64: 2.511454393e-05 | T64: 3239 | V64: Záležitosti zájmového vzdělávání jinde nezařazené | X64: 0 | Y64: 0 | Z64: 0 | AA64: =-Z64/Z104 -> 0 | AB64: 25819.06359 | AC64: =AB64/AB104 -> 0.0001451434591 | AD64: =X64+AB64 -> 25819.06359 | AE64: =AD64/AD104 -> 0.0001058659851
T65: 326 | V65: Správa ve vzdělávání | X65: 901799.8432 | Y65: =X65/X104 -> 0.004811765847 | Z65: =Z66+Z67+Z68 -> -10403.78604 | AA65: =-Z65/Z104 -> -8.568593072e-05 | AB65: 32490.34665 | AC65: =AB65/AB104 -> 0.0001826464885 | AD65: =SUM(AD66:AD68) -> 923886.3466 | AE65: =AD65/AD104 -> 0.003788214001
A66: =IF(COUNTBLANK(C66:IU66)=254,"odstr",IF(AND($A$1="TISK",SUM(J66:Q66)=0),"odstr","OK")) ->  | B66: OK | E66: 3261 | G66: Činnost ústředního orgánu státní správy ve vzdělávání | J66: 471826.3283 | K66: 0.002995505141 | L66: 0 | M66: 0 | N66: 0 | O66: 0 | P66: 471826.3283 | Q66: 0.002436589185 | T66: 3261 | V66: Činnost ústředního orgánu státní správy ve vzdělávání | X66: 492686.8015 | Y66: =X66/X104 -> 0.002628846681 | Z66: -5591.10004 | AA66: =-Z66/Z104 -> -4.604848743e-05 | AB66: 0 | AC66: =AB66/AB104 -> 0 | AD66: 487095.7 | AE66: =AD66/AD104 -> 0.001997239982
A67: =IF(COUNTBLANK(C67:IU67)=254,"odstr",IF(AND($A$1="TISK",SUM(J67:Q67)=0),"odstr","OK")) ->  | B67: OK | E67: 3262 | G67: Činnost ostatních orgánů státní správy ve vzdělávání | J67: 378274.297 | K67: 0.002401567131 | L67: 0 | M67: 0 | N67: 0 | O67: 0 | P67: 378274.297 | Q67: 0.001953471025 | T67: 3262 | V67: Činnost ostatních orgánů státní správy ve vzdělávání | X67: 409113.0417 | Y67: =X67/X104 -> 0.002182919166 | Z67: -4812.686 | AA67: =-Z67/Z104 -> -3.963744329e-05 | AB67: 0 | AC67: =AB67/AB104 -> 0 | AD67: 404300.3 | AE67: =AD67/AD104 -> 0.001657753752
A68: =IF(COUNTBLANK(C68:IU68)=254,"odstr",IF(AND($A$1="TISK",SUM(J68:Q68)=0),"odstr","OK")) ->  | B68: OK | E68: 3269 | G68: Ostatní správa ve vzdělávání jinde nezařazená | J68: 0 | K68: 0 | L68: 0 | M68: 0 | N68: 21444.6382 | O68: 0.0001504177872 | P68: 21444.6382 | Q68: 0.0001107436579 | T68: 3269 | V68: Ostatní správa ve vzdělávání jinde nezařazená | X68: 0 | Y68: 0 | Z68: 0 | AA68: =-Z68/Z104 -> 0 | AB68: 32490.34665 | AC68: =AB68/AB104 -> 0.0001826464885 | AD68: =AB68 -> 32490.34665 | AE68: =AD68/AD104 -> 0.0001332202673
T69: 328 | V69: Výzkum školství a vzdělávání | X69: 0 | Y69: 0 | Z69: =Z70 -> 0 | AA69: =-Z69/Z104 -> 0 | AB69: 1863.82983 | AC69: =AB69/AB104 -> 1.047763439e-05 | AD69: =AD70 -> 1863.82983 | AE69: =AD69/AD104 -> 7.642267129e-06
A70: =IF(COUNTBLANK(C70:IU70)=254,"odstr",IF(AND($A$1="TISK",SUM(J70:Q70)=0),"odstr","OK")) ->  | B70: OK | E70: 3280 | G70: Výzkum školství a vzdělávání | J70: 0 | K70: 0 | L70: 0 | M70: 0 | N70: 834.69066 | O70: 5.854718596e-06 | P70: 834.69066 | Q70: 4.3104806e-06 | T70: 3280 | V70: Výzkum školství a vzdělávání | X70: 0 | Y70: 0 | Z70: 0 | AA70: =-Z70/Z104 -> 0 | AB70: 1863.82983 | AC70: =AB70/AB104 -> 1.047763439e-05 | AD70: =AB70 -> 1863.82983 | AE70: =AD70/AD104 -> 7.642267129e-06
T71: 329 | V71: Ostatní činnost a nespecifikované výdaje | X71: 120235892 | Y71: =X71/X104 -> 0.641546972 | Z71: =Z72+Z73+Z74+Z75+Z76 -> -117956991.9 | AA71: =-Z71/Z104 -> -0.9714977409 | AB71: 1599333.553 | AC71: =AB71/AB104 -> 0.008990752253 | AD71: =SUM(AD72:AD76) -> 3878233.9 | AE71: =AD71/AD104 -> 0.01590193427
A72: =IF(COUNTBLANK(C72:IU72)=254,"odstr",IF(AND($A$1="TISK",SUM(J72:Q72)=0),"odstr","OK")) ->  | B72: OK | E72: 3291 | G72: Mezinárodní spolupráce ve vzdělávání | J72: 17503.67021 | K72: 0.0001111263424 | L72: 0 | M72: 0 | N72: 3505.76492 | O72: 2.459026805e-05 | P72: 21009.43513 | Q72: 0.0001084961973 | T72: 3291 | V72: Mezinárodní spolupráce ve vzdělávání | X72: 20428.55327 | Y72: =X72/X104 -> 0.0001090013662 | Z72: 0 | AA72: =-Z72/Z104 -> 0 | AB72: 3960.52525 | AC72: =AB72/AB104 -> 2.226433707e-05 | AD72: 24389.1 | AE72: =AD72/AD104 -> 0.000100002701
B73: OK | E73: 3292 | G73: Vzdělávání národnostních menšin a multikulturní výchova | J73: 10200.973 | K73: 6.476337845e-05 | L73: -878.267 | M73: -8.251560282e-06 | N73: 6181.70251 | O73: 4.335993006e-05 | P73: 15504.40851 | Q73: 8.006732949e-05 | T73: 3292 | V73: Vzdělávání národnostních menšin a multikulturní výchova | X73: 12589.97184 | Y73: =X73/X104 -> 6.717676542e-05 | Z73: -1923.444 | AA73: =-Z73/Z104 -> -1.584154929e-05 | AB73: 6262.57195 | AC73: =AB73/AB104 -> 3.520543464e-05 | AD73: 16929.2 | AE73: =AD73/AD104 -> 6.941485033e-05
B74: OK | E74: 3293 | G74: Vzdělávací akce k integraci Romů | J74: 14328.256 | K74: 9.096644661e-05 | L74: -4364.62 | M74: -4.100680663e-05 | N74: 1086.823 | O74: 7.62323473e-06 | P74: 11050.459 | Q74: 5.706639768e-05 | T74: 3293 | V74: Vzdělávací akce k integraci Romů | X74: 17358.6031 | Y74: =X74/X104 -> 9.262092268e-05 | Z74: -4404.5091 | AA74: =-Z74/Z104 -> -3.627568466e-05 | AB74: 1203.554 | AC74: =AB74/AB104 -> 6.765853074e-06 | AD74: 14157.7 | AE74: =AD74/AD104 -> 5.805086043e-05
E75: 3294 | G75: Zařízení pro další vzdělávání pedagogických pracovníků | J75: 181720.4993 | K75: 0.001153697149 | L75: -5100 | M75: -4.79159042e-05 | N75: 35245.26374 | O75: 0.0002472186535 | P75: 211865.7631 | Q75: 0.001094109836 | T75: 3294 | V75: Zařízení pro další vzdělávání pedagogických pracovníků | X75: 246165.5859 | Y75: =X75/X104 -> 0.001313474568 | Z75: 0 | AA75: =-Z75/Z104 -> 0 | AB75: 57608.78491 | AC75: =AB75/AB104 -> 0.000323851339 | AD75: 303774.4 | AE75: =AD75/AD104 -> 0.001245567098
B76: OK | E76: 3299 | G76: Ostatní záležitosti vzdělávání | J76: 105129122.6 | K76: 0.6674380132 | L76: -103482701.6 | M76: -0.9722484738 | N76: 711178.1582 | O76: 0.004988372564 | P76: 2357599.14 | Q76: 0.01217503183 | T76: 3299 | V76: Ostatní záležitosti vzdělávání | X76: 119939349.3 | Y76: =X76/X104 -> 0.6399646984 | Z76: -117950663.9 | AA76: =-Z76/Z104 -> -0.9714456237 | AB76: 1530298.117 | AC76: =AB76/AB104 -> 0.008602665289 | AD76: 3518983.5 | AE76: =AD76/AD104 -> 0.01442889876
B77: OK | G77: 33 – kultura, církve a sdělovací prostředky | J77: 201678.9291 | K77: 0.001280408134 | L77: 0 | M77: 0 | N77: 0 | O77: 0 | P77: 201678.9291 | Q77: 0.001041503341 | V77: 33 – kultura, církve a sdělovací prostředky | X77: 212209.72 | Y77: =X77/X104 -> 0.001132295033 | Z77: =Z78+Z79 -> 0 | AA77: =-Z77/Z104 -> 0 | AB77: =AB78+AB79 -> 5278085.531 | AC77: =AB77/AB104 -> 0.02967108349 | AD77: =SUM(AD78:AD79) -> 5490295.251 | AE77: =AD77/AD104 -> 0.02251187434
B78: OK | E78: 3314 | G78: činnosti knihovnické | J78: 159061.824 | K78: 0.001009842993 | L78: 0 | M78: 0 | N78: 0 | O78: 0 | P78: 159061.824 | Q78: 0.000821421563 | T78: 3314 | V78: činnosti knihovnické | X78: 170364.424 | Y78: =X78/X104 -> 0.0009090195825 | Z78: 0 | AA78: =-Z78/Z104 -> 0 | AB78: 2585367.842 | AC78: =AB78/AB104 -> 0.01453380485 | AD78: =X78+AB78 -> 2755732.266 | AE78: =AD78/AD104 -> 0.0112993374
B79: OK | E79: 3315 | G79: činnosti muzeí a galerií | J79: 42617.10506 | K79: 0.0002705651415 | L79: 0 | M79: 0 | N79: 0 | O79: 0 | P79: 42617.10506 | Q79: 0.0002200817781 | T79: 3315 | V79: činnosti muzeí a galerií | X79: 41845.296 | Y79: =X79/X104 -> 0.0002232754504 | Z79: 0 | AA79: =-Z79/Z104 -> 0 | AB79: 2692717.69 | AC79: =AB79/AB104 -> 0.01513727864 | AD79: =X79+AB79 -> 2734562.986 | AE79: =AD79/AD104 -> 0.01121253694
B80: OK | G80: 34 – tělovýchova a zájmová činnost | J80: 4533931.073 | K80: 0.02878477317 | L80: -64910.576 | M80: -0.0006098527336 | N80: 2095480.251 | O80: 0.01469819633 | P80: 6564500.748 | Q80: 0.03390016743 | V80: 34 – tělovýchova a zájmová činnost | X80: 5950965.81 | Y80: =X80/X104 -> 0.03175278224 | Z80: =Z81+Z84 -> -424819.9608 | AA80: =-Z80/Z104 -> -0.003498831444 | AB80: =AB81+AB84 -> 6586998.403 | AC80: =AB80/AB104 -> 0.03702921796 | AD80: =AD81+AD84 -> 12113144.3 | AE80: =AD80/AD104 -> 0.04966756247
T81: 341 | V81: Tělovýchova | X81: 5519010.811 | Y81: =X81/X104 -> 0.02944798442 | Z81: =Z82+Z83 -> -253971.0356 | AA81: =-Z81/Z104 -> -0.002091713967 | AB81: =AB82+AB83 -> 4682880.435 | AC81: =AB81/AB104 -> 0.02632510132 | AD81: =AD82+AD83 -> 9947920.2 | AE81: =AD81/AD104 -> 0.0407894875
A82: =IF(COUNTBLANK(C82:IU82)=254,"odstr",IF(AND($A$1="TISK",SUM(J82:Q82)=0),"odstr","OK")) ->  | B82: OK | E82: 3411 | G82: státní sportovní reprezentace | J82: 1342501.124 | K82: 0.008523197576 | L82: 0 | M82: 0 | N82: 0 | O82: 0 | P82: 1342501.124 | Q82: 0.006932897811 | T82: 3411 | V82: státní sportovní reprezentace | X82: 1467660.761 | Y82: =X82/X104 -> 0.00783105029 | Z82: -1246.174 | AA82: =-Z82/Z104 -> -1.026353086e-05 | AB82: 2.133 | AC82: =AB82/AB104 -> 1.199079111e-08 | AD82: 1466416.7 | AE82: =AD82/AD104 -> 0.006012752862
A83: =IF(COUNTBLANK(C83:IU83)=254,"odstr",IF(AND($A$1="TISK",SUM(J83:Q83)=0),"odstr","OK")) ->  | B83: OK | E83: 3419 | G83: ostatní tělovýchovná činnost | J83: 2910807.434 | K83: 0.01847997474 | L83: -20000 | M83: -0.0001879055067 | N83: 0 | O83: 0 | P83: 2890807.434 | Q83: 0.01492860764 | T83: 3419 | V83: ostatní tělovýchovná činnost | X83: 4051350.05 | Y83: =X83/X104 -> 0.02161693413 | Z83: -252724.8616 | AA83: =-Z83/Z104 -> -0.002081450436 | AB83: 4682878.302 | AC83: =AB83/AB104 -> 0.02632508933 | AD83: 8481503.5 | AE83: =AD83/AD104 -> 0.03477673464
T84: 342 | V84: Zájmová činnost a rekreace | X84: 431954.9988 | Y84: =X84/X104 -> 0.002304797818 | Z84: =Z85 -> -170848.9252 | AA84: =-Z84/Z104 -> -0.001407117478 | AB84: 1904117.967 | AC84: =AB84/AB104 -> 0.01070411664 | AD84: 2165224.1 | AE84: =AD84/AD104 -> 0.008878074972
A85: =IF(COUNTBLANK(C85:IU85)=254,"odstr",IF(AND($A$1="TISK",SUM(J85:Q85)=0),"odstr","OK")) ->  | B85: OK | E85: 3421 | G85: využití volného času dětí a mládeže | J85: 280622.5151 | K85: 0.001781600848 | L85: -44910.576 | M85: -0.0004219472269 | N85: 2095480.251 | O85: 0.01469819633 | P85: 2331192.19 | Q85: 0.01203866198 | T85: 3421 | V85: využití volného času dětí a mládeže | X85: 431954.9988 | Y85: =X85/X104 -> 0.002304797818 | Z85: -170848.9252 | AA85: =-Z85/Z104 -> -0.001407117478 | AB85: 1904117.967 | AC85: =AB85/AB104 -> 0.01070411664 | AD85: 2165224.1 | AE85: =AD85/AD104 -> 0.008878074972
A86: =IF(COUNTBLANK(C86:IU86)=254,"odstr",IF(AND($A$1="TISK",SUM(J86:Q86)=0),"odstr","OK")) ->  | B86: OK | G86: 35 – zdravotnictví | J86: 12058.398 | K86: 7.655569651e-05 | L86: -1194.259 | M86: -1.122039212e-05 | N86: 0 | O86: 0 | P86: 10864.139 | Q86: 5.610421039e-05 | V86: 35 – zdravotnictví | X86: 11982.615 | Y86: =X86/X104 -> 6.393606969e-05 | Z86: =Z87 -> -1110.905 | AA86: =-Z86/Z104 -> -9.149450835e-06 | AB86: =AB87 -> 121056.3468 | AC86: =AB86/AB104 -> 0.0006805257232 | AD86: =AD87 -> 131928 | AE86: =AD86/AD104 -> 0.0005409447803
T87: 354 | V87: Zdravotnické programy | X87: 11982.615 | Y87: =X87/X104 -> 6.393606969e-05 | Z87: =Z88 -> -1110.905 | AA87: =-Z87/Z104 -> -9.149450835e-06 | AB87: =AB88 -> 121056.3468 | AC87: =AB87/AB104 -> 0.0006805257232 | AD87: =AD88 -> 131928 | AE87: =AD87/AD104 -> 0.0005409447803
A88: =IF(COUNTBLANK(C88:IU88)=254,"odstr",IF(AND($A$1="TISK",SUM(J88:Q88)=0),"odstr","OK")) ->  | B88: OK | E88: 3541 | G88: prevence před drogami, alkoholem, nikotinem a jinými návykovými látkami | J88: 12058.398 | K88: 7.655569651e-05 | L88: -1194.259 | M88: -1.122039212e-05 | O88: 0 | P88: 10864.139 | Q88: 5.610421039e-05 | T88: 3541 | V88: prevence před drogami, alkoholem, nikotinem a jinými návykovými látkami | X88: 11982.615 | Y88: =X88/X104 -> 6.393606969e-05 | Z88: -1110.905 | AA88: =-Z88/Z104 -> -9.149450835e-06 | AB88: 121056.3468 | AC88: =AB88/AB104 -> 0.0006805257232 | AD88: 131928 | AE88: =AD88/AD104 -> 0.0005409447803
B89: OK | G89: 38 – výzkum a vývoj odvětvově nespecifikovaný | J89: 6838344.855 | K89: 0.04341490912 | L89: -104412.6573 | M89: -0.0009809856635 | N89: 225225.7762 | O89: 0.001579787104 | P89: 6959157.974 | Q89: 0.0359382426 | V89: 38 – výzkum a vývoj odvětvově nespecifikovaný | X89: 6134419.9 | Y89: =X89/X104 -> 0.03273164482 | Z89: -107488.4269 | AA89: =-Z89/Z104 -> -0.0008852782884 | AB89: 147121.6754 | AC89: =AB89/AB104 -> 0.0008270535764 | AD89: 6174053.2 | AE89: =AD89/AD104 -> 0.02531548914
B90: OK | E90: 3809 | G90: ostatní výzkum a vývoj odvětvově nespecifikovaný | J90: 6838344.855 | K90: 0.04341490912 | L90: -104412.6573 | M90: -0.0009809856635 | N90: 225225.7762 | O90: 0.001579787104 | P90: 6959157.974 | Q90: 0.0359382426 | T90: 3809 | V90: ostatní výzkum a vývoj odvětvově nespecifikovaný | X90: 6134419.9 | Y90: =X90/X104 -> 0.03273164482 | Z90: -107488.4269 | AA90: =-Z90/Z104 -> -0.0008852782884 | AB90: 147121.6754 | AC90: =AB90/AB104 -> 0.0008270535764 | AD90: 6174053.2 | AE90: =AD90/AD104 -> 0.02531548914
B91: OK | E91: SKUPINA 4 – sociální věci a politika zaměstnanosti | J91: 0 | K91: 0 | L91: 0 | M91: 0 | N91: 0 | O91: 0 | P91: 0 | Q91: 0 | T91: SKUPINA 4 – sociální věci a politika zaměstnanosti | X91: x | Y91: x | Z91: x | AA91: x | AB91: x | AC91: x | AD91: x | AE91: x
B92: OK | G92: 43 – sociální služby a společné činnosti v sociálním zabezpečení a politice zaměstnanosti | J92: 0 | K92: 0 | L92: 0 | M92: 0 | N92: 0 | O92: 0 | P92: 0 | Q92: 0 | V92: 43 – sociální služby a společné činnosti v sociálním zabezpečení a politice zaměstnanosti | X92: x | Y92: x | Z92: x | AA92: x | AB92: x | AC92: x | AD92: x | AE92: x
B93: OK | E93: 4322 | G93: ústavy péče pro mládež | J93: 0 | K93: 0 | L93: 0 | M93: 0 | O93: 0 | P93: 0 | Q93: 0 | T93: 4322 | V93: zrušen | X93: x | Y93: x | Z93: x | AA93: x | AB93: x | AC93: x | AD93: x | AE93: x
B94: OK | E94: SKUPINA 5 – bezpečnost státu a právní ochrana | J94: 17728.29201 | K94: 0.0001125524089 | L94: -11505.499 | M94: -0.000108097331 | N94: . | P94: 6222.79301 | Q94: 3.213553216e-05 | T94: SKUPINA 5 – bezpečnost státu a právní ochrana | X94: 8389.544 | Y94: =X94/X104 -> 4.476439156e-05 | Z94: =Z97 -> -555.99 | AA94: =-Z94/Z104 -> -4.579152285e-06 | AB94: =AB95+AB97 -> 38379.57842 | AC94: =AB94/AB104 -> 0.0002157531682 | AD94: =AD95+AD97 -> 46213.1643 | AE94: =AD94/AD104 -> 0.0001894879783
B95: OK | G95: 52 – civilní připravenost na krizové stavy | J95: 52.42501 | K95: 3.32833031e-07 | L95: 0 | M95: 0 | N95: . | P95: 52.42501 | Q95: 2.707314211e-07 | V95: 52 – civilní připravenost na krizové stavy | X95: 272.25 | Y95: =X95/X104 -> 1.452654114e-06 | Z95: 0 | AA95: =-Z95/Z104 -> 0 | AB95: =AB96 -> 3334.6143 | AC95: =AB95/AB104 -> 1.874574004e-05 | AD95: =AD96 -> 3606.8643 | AE95: =AD95/AD104 -> 1.478923668e-05
B96: OK | E96: 5299 | G96: ostatní záležitosti civilní připravenosti na krizové stavy | J96: 52.42501 | K96: 3.32833031e-07 | L96: 0 | M96: 0 | N96: . | P96: 52.42501 | Q96: 2.707314211e-07 | T96: 5299 | V96: ostatní záležitosti civilní připravenosti na krizové stavy | X96: 272.25 | Y96: =X96/X104 -> 1.452654114e-06 | Z96: 0 | AA96: =-Z96/Z104 -> 0 | AB96: 3334.6143 | AC96: =AB96/AB104 -> 1.874574004e-05 | AD96: =X96+AB96 -> 3606.8643 | AE96: =AD96/AD104 -> 1.478923668e-05
B97: OK | G97: 53 – bezpečnost a veřejný pořádek | J97: 17675.867 | K97: 0.0001122195759 | L97: -11505.499 | M97: -0.000108097331 | N97: . | P97: 6170.368 | Q97: 3.186480074e-05 | V97: 53 – bezpečnost a veřejný pořádek | X97: 8117.294 | Y97: =X97/X104 -> 4.331173745e-05 | Z97: =Z98 -> -555.99 | AA97: =-Z97/Z104 -> -4.579152285e-06 | AB97: =AB98 -> 35044.96412 | AC97: =AB97/AB104 -> 0.0001970074282 | AD97: =AD98 -> 42606.3 | AE97: =AD97/AD104 -> 0.0001746987417
B98: OK | E98: 5399 | G98: ostatní záležitosti bezpečnosti, veřejného pořádku | J98: 17675.867 | K98: 0.0001122195759 | L98: -11505.499 | M98: -0.000108097331 | N98: . | P98: 6170.368 | Q98: 3.186480074e-05 | T98: 5399 | V98: ostatní záležitosti bezpečnosti, veřejného pořádku | X98: 8117.294 | Y98: =X97/X104 -> 4.331173745e-05 | Z98: -555.99 | AA98: =-Z98/Z104 -> -4.579152285e-06 | AB98: 35044.96412 | AC98: =AB98/AB104 -> 0.0001970074282 | AD98: 42606.3 | AE98: =AD98/AD104 -> 0.0001746987417
B99: OK | E99: SKUPINA 6 – všeobecná veřejná správa a služby | J99: 123498.6154 | K99: 0.0007840612427 | L99: 0 | M99: 0 | N99: . | P99: 123498.6154 | Q99: 0.0006377672728 | T99: SKUPINA 6 – všeobecná veřejná správa a služby | X99: 127681.6094 | Y99: =X99/X104 -> 0.0006812753541 | Z99: =Z100 -> -709.1 | AA99: =-Z99/Z104 -> -5.84017138e-06 | AB99: =AB100 -> 741.159 | AC99: =AB99/AB104 -> 4.16647105e-06 | AD99: =AD100 -> 127713.6817 | AE99: =AD99/AD104 -> 0.0005236647979
B100: OK | G100: 62 – jiné veřejné služby a činnosti | J100: 123498.6154 | K100: 0.0007840612427 | L100: 0 | M100: 0 | N100: . | P100: 123498.6154 | Q100: 0.0006377672728 | V100: 62 – jiné veřejné služby a činnosti | X100: 127681.6094 | Y100: =X100/X104 -> 0.0006812753541 | Z100: =Z101+Z102+Z103 -> -709.1 | AA100: =-Z100/Z104 -> -5.84017138e-06 | AB100: =SUM(AB101:AB103) -> 741.159 | AC100: =AB100/AB104 -> 4.16647105e-06 | AD100: =AD101+AD102+AD103 -> 127713.6817 | AE100: =AD100/AD104 -> 0.0005236647979
B101: OK | E101: 6221 | G101: humanitární zahraniční pomoc | J101: 7431.122 | K101: 4.717830018e-05 | L101: 0 | M101: 0 | N101: . | P101: 7431.122 | Q101: 3.837554288e-05 | T101: 6221 | V101: humanitární zahraniční pomoc přímá | X101: 19779.60776 | Y101: =X101/X104 -> 0.0001055387643 | Z101: -709.1 | AA101: =-Z101/Z104 -> -5.84017138e-06 | AB101: 144.379 | AC101: =AB101/AB104 -> 8.116354572e-07 | AD101: 19214.9 | AE101: =AD101/AD104 -> 7.8786913e-05
B102: OK | E102: 6222 | G102: rozvojová zahraniční pomoc | J102: 115277.5164 | K102: 0.0007318675798 | L102: 0 | M102: 0 | N102: . | P102: 115277.5164 | Q102: 0.000595312158 | T102: 6222 | V102: rozvojová zahraniční pomoc | X102: 107902.0017 | Y102: =X102/X104 -> 0.0005757365898 | Z102: 0 | AA102: =-Z102/Z104 -> 0 | AB102: 86.78 | AC102: =AB102/AB104 -> 4.878391246e-07 | AD102: =X102+AB102 -> 107988.7817 | AE102: =AD102/AD104 -> 0.0004427867303
B103: OK | E103: 6229 | G103: ostatní zahraniční pomoc | J103: 789.977 | K103: 5.015362693e-06 | L103: 0 | M103: 0 | N103: . | P103: 789.977 | Q103: 4.079571866e-06 | T103: 6229 | V103: ostatní zahraniční pomoc | X103: 0 | Y103: =X103/X104 -> 0 | Z103: 0 | AA103: =-Z103/Z104 -> 0 | AB103: 510 | AC103: =AB103/AB104 -> 2.866996469e-06 | AD103: =X103+AB103 -> 510 | AE103: =AD103/AD104 -> 2.091154553e-06
A104: konst | B104: stop | E104: Celkem výdaje | J104: 157511440 | K104: 1 | L104: -106436476.3 | M104: -1 | N104: 142567169.8 | O104: 1 | P104: 193642133.5 | Q104: 1 | T104: Celkem výdaje | X104: =X15+X77+X80+X86+X89+X94+X99 -> 187415570.9 | Y104: =X104/X104 -> 1 | Z104: -121417669.8 | AA104: =-Z104/Z104 -> -1 | AB104: =AB15+AB77+AB80+AB86+AB89+AB94+AB99 -> 177886511.4 | AC104: =AB104/AB104 -> 1 | AD104: =AD99+AD94+AD89+AD86+AD80+AD77+AD15 -> 243884412.6 | AE104: =AD104/AD104 -> 1
A105: =IF(COUNTBLANK(D105:E105)=2,"odstr","OK") -> OK | D105: Komentáře: | Q105: Zdroj: Závěrečný účet – kapitola 333-MŠMT, 700-Obce a DSO; KÚ, (část: vzdělávání) | S105: Komentáře: | X105: Zdroj: Závěrečný účet – kapitola 333-MŠMT, 700-Obce a DSO; KÚ, (část: vzdělávání); monitor.statnipokladna.cz
A106: =IF(COUNTBLANK(D106:E106)=2,"odstr","OK") -> OK | D106: 1) | E106: Tabulka neobsahuje z daných tříd následující položky: 5321, 5323, 5329, 5344, 5345, 5349, 5366, 5367, 5641, 5642, 5649, 6341, 6342, 6349, 6441, 6442, 6449. | S106: 1) | T106: Tabulka neobsahuje z daných tříd následující položky: 5321, 5323, 5329, 5344, 5345, 5349, 5366, 5367, 5641, 5642, 5649, 6341, 6342, 6349, 6441, 6442, 6449.
A107: stop | D107: 2) | E107: V tabulce jsou za kapitolu 700-Obce a DSO;KÚ jsou započteny také paragrafy 3421, 3809 a 4322, které tabulkách B7 a B9 neuvádíme. | S107: 2) | T107: V tabulce jsou za kapitolu 700-Obce a DSO;KÚ jsou započteny také paragrafy 3421, 3809 a 4322, které tabulkách B7 a B9 neuvádíme.

Sheet B11
A1: =IF(#REF!="","ŠABLONA",IF(#REF!="T","TISK","ELEKTRO")) ->  | B1: 0 | C1: =CONCATENATE(D1,F1,IF(G1<>"",".",""),G1,IF(H1<>"",".",""),H1,IF(I1<>"",".",""),I1,"") ->  | D1: =IF(#REF!=""," ?",#REF!) ->  | E1: =CONCATENATE(C1,K1) ->  | F1: 11
A2: konst
A3: konst | B3: 24x2 | D3: Tab. B11: | H3: Poskytnuté dotace církevním školám – podle paragrafů | M3: Tab. B11: | Q3: Poskytnuté dotace církevním školám – podle paragrafů
A4: konst | B4: =COUNTA(Datova_oblast) -> 40 | D4: =IF(D1=" ?","",CONCATENATE("Tab. ",E1,":")) ->  | H4: =IF(H3="Zadejte název tabulky","",H3) -> Poskytnuté dotace církevním školám – podle paragrafů | M4: =IF(M1=" ?","",CONCATENATE("Tab. ",N1,":")) -> Tab. : | Q4: =IF(Q3="Zadejte název tabulky","",Q3) -> Poskytnuté dotace církevním školám – podle paragrafů
A5: =IF(D5="","odstr","OK") -> odstr | B5: 0
A6: =IF(COUNTBLANK(C6:IU6)=254,"odstr","OK") -> OK | B6: Řádky pro
A7: =IF(COUNTBLANK(C7:IU7)=254,"odstr","OK") -> OK | B7: ročenku PaM
A8: konst | D8: (podle stavu k: 31. 12. 2017) | K8: v tis. Kč | M8: (podle stavu k: 31. 12. 2018) | T8: v tis. Kč
A9: konst | D9: Paragraf | G9: Název | J9: Uvolněno | K9: Čerpáno | M9: Paragraf | P9: Název | R9: Uvolněno 1) | S9: Čerpáno 2) | T9: Skutečnost 4)
A10: konst
A11: konst
A12: konst
A13: konst
A14: =IF(COUNTBLANK(C14:IU14)=254,"odstr",IF(AND($A$1="TISK",SUM(J14:K14)=0),"odstr","OK")) ->  | B14: OK | E14: 3111 | G14: Mateřské školy | J14: 84531.373 | K14: 84496.402 | N14: 3111 | P14: Mateřské školy | R14: 97413.323 | S14: 97130.933 | T14: 97130.933
B15: OK | E15: 3112 | G15: Mateřské školy pro děti se speciálními vzdělávacími potřebami | J15: 10474.317 | K15: 10474.317 | N15: 3112 | P15: Mateřské školy pro děti se speciálními vzdělávacími potřebami | R15: 15164.639 | S15: 15040.062 | T15: 15040.062
B16: OK | E16: 3113 | G16: Základní školy | J16: 333558.849 | K16: 333142.427 | N16: 3113 | P16: Základní školy | R16: 387612.012 | S16: 385867.3976 | T16: 385795.6277
B17: OK | E17: 3114 | G17: Základní školy pro žáky se speciálními vzdělávacími potřebami | J17: 99125.805 | K17: 98844.206 | N17: 3114 | P17: Základní školy pro žáky se speciálními vzdělávacími potřebami | R17: 127220.295 | S17: 122798.779 | T17: 122798.779
B18: OK | E18: 3121 | G18: Gymnázia | J18: 360065.113 | K18: 359657.843 | N18: 3121 | P18: Gymnázia | R18: 391975.471 | S18: 391202.795 | T18: 391182.795
B19: OK | E19: 3122 | G19: Střední odborné školy | J19: 124135.734 | K19: 124134.653 | N19: 3122 | P19: Střední odborné školy | R19: 138330.644 | S19: 137923.879 | T19: 137923.879
B20: OK | E20: 3123 | G20: Střední školy poskytující střední vzdělání s výučním listem | J20: 14653.139 | K20: 14653.139 | N20: 3123 | P20: Střední školy poskytující střední vzdělání s výučním listem | R20: 16146.198 | S20: 16146.198 | T20: 16146.198
B21: OK | E21: 3124 | G21: Střední školy a konzervatoře pro žáky se speciálními vzdělávacími potřebami | J21: 36211.018 | K21: 36069.751 | N21: 3124 | P21: Střední školy a konzervatoře pro žáky se speciálními vzdělávacími potřebami | R21: 47466.143 | S21: 46267.089 | T21: 46267.089
B22: OK | E22: 3126 | G22: Konzervatoře | J22: 36487.271 | K22: 36487.271 | N22: 3126 | P22: Konzervatoře | R22: 41436.175 | S22: 41436.175 | T22: 41436.175
B23: OK | E23: 3133 | G23: Dětské domovy | J23: 14410 | K23: 14410 | N23: 3133 | P23: Dětské domovy | R23: 16085.375 | S23: 16085.375 | T23: 15953.45853
B24: OK | E24: 3141 | G24: Školní stravování při předškolním a základním vzdělávání | J24: 64859.248 | K24: 64859.248 | N24: 3141 | P24: Školní stravování při předškolním a základním vzdělávání | R24: 73554.097 | S24: 73199.344 | T24: 73199.344
B25: OK | E25: 3143 | G25: Školní družiny a kluby | J25: 91142.207 | K25: 91142.207 | N25: 3143 | P25: Školní družiny a kluby | R25: 107502.466 | S25: 107478.978 | T25: 107478.978
B26: OK | E26: 3145 | G26: Internáty | J26: 4889.744 | K26: 4889.744 | N26: 3145 | P26: Internáty | R26: 6448.792 | S26: 6448.792 | T26: 6448.792
B27: OK | E27: 3146 | G27: Zařízení výchovného poradenství a preventivně výchovné péče | J27: 9953 | K27: 9953 | N27: 3146 | P27: Zařízení výchovného poradenství a preventivně výchovné péče | R27: 12622.974 | S27: 12622.974 | T27: 12622.974
B28: OK | E28: 3147 | G28: Domovy mládeže | J28: 48663.65 | K28: 48663.65 | N28: 3147 | P28: Domovy mládeže | R28: 52856.078 | S28: 52832.237 | T28: 52832.237
B29: OK | E29: 3150 | G29: Vyšší odborné školy | J29: 62055.887 | K29: 62055.887 | N29: 3150 | P29: Vyšší odborné školy | R29: 62552.844 | S29: 62546.87925 | T29: 62546.87925
B30: OK | E30: 3231 | G30: Základní umělecké školy | J30: 15346.963 | K30: 15346.963 | N30: 3231 | P30: Základní umělecké školy | R30: 19749.495 | S30: 19749.495 | T30: 19749.495
B31: OK | E31: 3392 | G31: Střediska volného času | J31: 100304.394 | K31: 100304.394 | N31: 3233 | P31: Střediska volného času | R31: 110721.638 | S31: 110718.079 | T31: 110718.079
B32: OK | E32: 3299 | G32: Ostatní záležitosti vzdělávání | J32: 39950.334 | K32: 36397.36296 | N32: 3299 | P32: Ostatní záležitosti vzdělávání 3) | R32: 7 548 ,3 | S32: 7535.5 | T32: 12249.12
B33: OK | E33: Dotace celkem | J33: 1550818.046 | K33: 1545982.465 | N33: Dotace celkem | R33: 1724858.659 | S33: 1723030.961 | T33: =SUM(T14:T32) -> 1727520.894
A34: konst | B34: stop | D34: Komentáře: | K34: Zdroj: Centrální registr dotací MF | M34: Komentáře: | S34: Zdroj: Centrální registr dotací MF
A35: stop | M35: 1) | N35: Údaje odpovídající hodnotám, na co bylo příjemcům dotačních prostředků vystavena rozhodnutí o poskytnutí dotace a co příjemcům dotačních prostředků skutečně v součtu za všechna rozhodnutí o poskytnutí dotace v příslušném roce odešlo.
M36: 2) | N36: Údaje představující rozdíl mezi poskytnutými dotačními prostředky a vratkami před koncem roku a nezahrnující vratky z finančního vypořádání.
M37: 3) | N37: Zahrnuty rozvojové programy.
M38: 4) | N38: Údaje představují spotřebované dotace církevními školami dle paragrafů (oddíl 31 - 32 rozpočtové skladby).

Sheet B12
B1: 0 | F1: 12
A2: konst
A3: konst | B3: 15x3 | D3: Tab. B12: | H3: Porovnání dotací církevním školám v letech | O3: Tab. B12: | S3: Porovnání čerpaných dotací církevním školám v letech 2017 a 2018 - vybrané oblasti
A4: konst | B4: 45 | H4: Porovnání dotací církevním školám v letech
B5: 0 | E5: 2016 a 2017 – vybrané oblasti | O5: (podle stavu k: 31. 12. 2018) | W5: v tis. Kč
A6: odstr | B6: Řádky pro
A7: odstr | B7: ročenku PaM
A8: konst | J8: Dotace církevním školám | U8: Dotace církevním školám
A9: konst
A10: konst
A11: konst | B11: Označte | J11: skutečnost1) | L11: Index 2017/2016 | U11: čerpáno1) | W11: Index 2018/2017
A12: konst | B12: nebo odstr | J12: 2016 | K12: 2017 | U12: 2017 | V12: 2018
B13: OK | E13: Předškolní vzdělávání | J13: 82856 | K13: 94775.914 | L13: 1.143863015 | P13: Předškolní vzdělávání | U13: =SUM(U14:U15) -> 94970.719 | V13: =SUM(V14:V15) -> 112170.995 | W13: =V13/U13 -> 1.181111359
E14: Základní vzdělávání včetně školních družin a klubů | J14: 449704 | K14: 523110.415 | L14: 1.163232738 | P14: z toho | Q14: Mateřské školy | U14: 84496.402 | V14: 97130.933 | W14: =V14/U14 -> 1.149527444
E15: Střední vzdělávání | J15: 490323 | K15: 534515.386 | L15: 1.090129131 | Q15: Mateřské školy pro děti se speciálními vzdělávacími potřebami | U15: 10474.317 | V15: 15040.062 | W15: 1.435899066
E16: z toho | F16: gymnázia2) | J16: 334503 | K16: 359657.843 | L16: 1.07520065 | P16: Základní školy | U16: 333142.427 | V16: 385867.3976 | W16: 1.158265553
F17: střední odborné školy2) | J17: 113681 | K17: 124134.653 | L17: 1.091956026 | P17: Základní školy pro žáky se speciálními vzdělávacími potřebami | U17: 98844.206 | V17: 122798.779 | W17: 1.242346759
B18: OK | F18: střední školy poskytující střední vzdělání s výučním listem 2) | J18: 13504 | K18: 14653.139 | L18: 1.085096194 | P18: Střední vzdělávání a vzdělávání v konzervatořích | U18: =SUM(U19:U23) -> 571002.657 | V18: =SUM(V19:V23) -> 632976.136 | W18: 1.108534484
B19: OK | E19: Konzervatoře | J19: 38817 | K19: 36487.271 | L19: 0.9399817348 | P19: z toho | Q19: Gymnázia | U19: 359657.843 | V19: 391202.795 | W19: 1.087708228
B20: OK | E20: Vyšší odborné školy | J20: 66136 | K20: 62055.887 | L20: 0.9383072306 | Q20: Střední odborné školy | U20: 124134.653 | V20: 137923.879 | W20: 1.111082809
B21: OK | E21: Školní stravování | J21: 63747 | K21: 64859.248 | L21: 1.017447849 | Q21: Střední školy poskytující střední vzdělání s výučním listem | U21: 14653.139 | V21: 16146.198 | W21: 1.101893458
B22: OK | E22: Ubytovací zařízení | J22: 51498 | K22: 53553.394 | L22: 1.039912113 | Q22: Střední školy a konzervatoře pro žáky se speciálními vzdělávacími potřebami | U22: 36069.751 | V22: 46267.089 | W22: 1.282711627
E23: Ústavní a ochranná výchova | J23: 12344 | K23: 14410 | L23: 1.167368762 | Q23: Konzervatoře | U23: 36487.271 | V23: 41436.175 | W23: 1.135633712
E24: Zařízení pro zájmové studium (ZUŠ) | J24: 12888 | K24: 15346.963 | L24: 1.19079477 | P24: Školská zařízení pro výkon ústavní a ochranné výchovy | U24: =SUM(U25) -> 14410 | V24: =SUM(V25) -> 16085.375 | W24: 1.116264747
E25: Domy a stanice dětí a mládeže | J25: 90826 | K25: 100304.394 | L25: 1.104357717 | P25: z toho | Q25: Dětské domovy | U25: 14410 | V25: 16085.375 | W25: 1.116264747
E26: Zařízení výchovného poradenství | J26: 8004 | K26: 9953 | L26: 1.243503248 | P26: Ostatní zařízení související s výchovou a vzděláváním mládeže | U26: =SUM(U27:U31) -> 219507.849 | V26: =SUM(V27:V31) -> 252582.325 | W26: 1.150675596
E27: Provozní dotace celkem | J27: 1367143 | K27: =SUM(K13:K26) -> 2007817.507 | L27: 1.468622892 | P27: z toho | Q27: Školní stravování | U27: 64859.248 | V27: 73199.344 | W27: 1.128587615
D28: Komentáře: | L28: Zdroj: Centrální registr dotací MF | Q28: Školní družiny a kluby | U28: 91142.207 | V28: 107478.978 | W28: 1.179244848
D29: 1) | E29: Tabulka uvádí pouze spotřebované finanční prostředky, to znamená dotace zmenšené o vratky. | Q29: Internáty | U29: 4889.744 | V29: 6448.792 | W29: 1.318840414
D30: 2) | E30: Bez škol pro děti, žáky, studenty se speciálními vzdělávacími potřebami. | Q30: Zařízení výchovného poradenství. Školská poradenská zařízení. | U30: 9953 | V30: 12622.974 | W30: 1.268258214
Q31: Domovy mládeže | U31: 48663.65 | V31: 52832.237 | W31: 1.085661207
P32: Vyšší odborné školy | U32: 62055.887 | V32: 62546.87925 | W32: 1.007912098
P33: Základní umělecké, jazykové a zájmové vzdělávání | U33: =SUM(U34:U35) -> 115651.357 | V33: =SUM(V34:V35) -> 130467.574 | W33: 1.128111052
P34: z toho | Q34: Základní umělecké školy | U34: 15346.963 | V34: 19749.495 | W34: 1.286866659
Q35: Střediska volného času | U35: 100304.394 | V35: 110718.079 | W35: 1.103820826
P36: Ostatní záležitosti vzdělávání | U36: 36397.36296 | V36: 7535.5 | W36: 0.2070342296
B37: OK | P37: Čerpané dotace celkem | U37: =U13+U16+U17+U18+U24+U26+U32+U33+U36 -> 1545982.465 | V37: =V13+V16+V17+V18+V24+V26+V32+V33+V36 -> 1723030.961 | W37: =V37/U37 -> 1.114521671
B38: OK | O38: Komentáře: | W38: Zdroj: Centrální registr dotací MF
B39: OK | O39: 1) | P39: Údaje představující rozdíl mezi poskytnutými dotačními prostředky a vratkami před koncem roku a nezahrnující vratky z finančního vypořádání.
B40: OK
B41: OK
B42: OK
B43: OK
B44: OK
A45: konst | B45: stop
A46: OK
A47: OK
A48: stop

Sheet Paragrafy (hidden)
A1: SKUPINA 3 – služby pro obyvatelstvo
B2: 31–32 – vzdělávání
A3: 3111 | B3: předškolní zařízení
A4: 3112 | B4: speciální předškolní zařízení
A5: 3113 | B5: základní školy
A6: 3114 | B6: speciální základní školy
A7: 3115 | B7: internátní speciální mateřské školy
A8: 3116 | B8: internátní speciální základní školy
A9: 3117 | B9: první stupeň základních škol
A10: 3118 | B10: druhý stupeň základních škol
A11: 3119 | B11: ostatní záležitosti předškolní výchovy a základního vzdělávání
A12: 3121 | B12: gymnázia
A13: 3122 | B13: střední odborné školy
A14: 3123 | B14: střední odborná učiliště a učiliště
A15: 3124 | B15: speciální střední školy
A16: 3125 | B16: střediska praktického vyučování a školní hospodářství
A17: 3126 | B17: konzervatoře
A18: 3127 | B18: internátní speciální střední odborná učiliště a odborná učiliště
A19: 3128 | B19: sportovní školy – gymnázia
A20: 3129 | B20: ostatní zařízení středního vzdělávání
A21: 3131 | B21: výchovné ústavy a dětské domovy se školou
A22: 3132 | B22: diagnostické ústavy
A23: 3139 | B23: ostatní školská zařízení pro výkon ústavní a ochranné výchovy
A24: 3141 | B24: školní stravování při předškolním a základním vzdělávání
A25: 3142 | B25: ostatní školní stravování
A26: 3143 | B26: školní družiny a kluby
A27: 3144 | B27: školy v přírodě
A28: 3145 | B28: internáty
A29: 3146 | B29: zařízení výchovného poradenství a preventivně výchovné péče
A30: 3147 | B30: domovy mládeže
A31: 3149 | B31: ostatní zařízení související s výchovou a vzděláváním mládeže
A32: 3150 | B32: vyšší odborné školy
A33: 3211 | B33: činnost vysokých škol
A34: 3212 | B34: výzkum a vývoj na vysokých školách
A35: 3213 | B35: bakalářské studium
A36: 3214 | B36: magisterské a doktorské studium
A37: 3221 | B37: vysokoškolské koleje a menzy
A38: 3229 | B38: ostatní zařízení související s vysokoškolským vzděláváním
A39: 3231 | B39: základní umělecké školy
A40: 3239 | B40: záležitosti zájmového studia jinde nezařazené
A41: 3261 | B41: činnost ústředního orgánu státní správy ve vzdělávání (MŠMT)
A42: 3262 | B42: činnost ostatních orgánů státní správy ve vzdělávání
A43: 3269 | B43: ostatní správa ve vzdělávání jinde nezařazená
A44: 3280 | B44: výzkum školství a vzdělávání
A45: 3291 | B45: mezinárodní spolupráce ve vzdělávání
A46: 3292 | B46: vzdělávání národnostních menšin a multikulturní výchova
A47: 3293 | B47: vzdělávací akce k integraci Romů
A48: 3299 | B48: ostatní záležitosti vzdělávání
